{"text_format":"1","workbook":"xlsx","n_sheets":23,"sheets":["zemlje","Sifrarnici","šifrarnik za identifikatore","šifrarnik zemalja i NKD","šifrarnik identifikatora","Tablica 1. Osoba za kontakt","Šifrarnik A.","Šifrarnik K.","Šifrarnik D.","Tablica A.1.IZRAVNA ULAGANJA","Tablica A.1.OSTALA ULAGANJA","Tablica A.2.","Tablica A.4.","Tablica A.5.","Napomena","Šifrarnik B.","Šifrarnik B.B.","Tablica B.1.IZRAVNA ULAGANJA","Tablica B.1.OSTALA ULAGANJA","B.2.1.Transakcije-izravna","B.2.2.Transakcije-ostala","Tablica Dodatak A","Kreiranje datoteke"],"not_rendered":{"charts":0,"images":2,"macros":1,"external_links":1,"defined_names":74,"comments":6,"pivot_tables":0},"unopened":[],"bounds":{"document_bytes":16777216,"sheet_cells":100000,"rows_first":2000,"rows_last":500,"rows_between":2000,"halvings":0,"cell_chars":16384,"cell_head_chars":4096},"cells_cut":0,"cells_raw":0,"read":"whole","date_system":"1900"}

{"sheet":"zemlje","index":0,"n_rows":325,"n_cols":4,"rows_kept":325,"cut":false,"hidden":true,"merged":[]}
["AD",null,null,{"$f":"CONCATENATE(\"O-\",A1)","v":"O-AD"}]
["AE",null,null,"O-AE"]
["AF",null,null,"O-AF"]
["AG",null,null,"O-AG"]
["AI",null,null,"O-AI"]
["AL",null,null,"O-AL"]
["AM",null,null,"O-AM"]
["AO",null,null,"O-AO"]
["AQ",null,null,"O-AQ"]
["AR",null,null,"O-AR"]
["AS",null,null,"O-AS"]
["AT",null,null,"O-AT"]
["AU",null,null,"O-AU"]
["AW",null,null,"O-AW"]
["AX",null,null,"O-AX"]
["AZ",null,null,"O-AZ"]
["BA",null,null,"O-BA"]
["BB",null,null,"O-BB"]
["BD",null,null,"O-BD"]
["BE",null,null,"O-BE"]
["BF",null,null,"O-BF"]
["BG",null,null,"O-BG"]
["BH",null,null,"O-BH"]
["BI",null,null,"O-BI"]
["BJ",null,null,"O-BJ"]
["BL",null,null,"O-BL"]
["BM",null,null,"O-BM"]
["BN",null,null,"O-BN"]
["BO",null,null,"O-BO"]
["BQ",null,null,"O-BQ"]
["BR",null,null,"O-BR"]
["BS",null,null,"O-BS"]
["BT",null,null,"O-BT"]
["BV",null,null,"O-BV"]
["BW",null,null,"O-BW"]
["BY",null,null,"O-BY"]
["BZ",null,null,"O-BZ"]
["CA",null,null,"O-CA"]
["CC",null,null,"O-CC"]
["CD",null,null,"O-CD"]
["CF",null,null,"O-CF"]
["CG",null,null,"O-CG"]
["CH",null,null,"O-CH"]
["CI",null,null,"O-CI"]
["CK",null,null,"O-CK"]
["CL",null,null,"O-CL"]
["CM",null,null,"O-CM"]
["CN",null,null,"O-CN"]
["CO",null,null,"O-CO"]
["CR",null,null,"O-CR"]
["CU",null,null,"O-CU"]
["CV",null,null,"O-CV"]
["CW",null,null,"O-CW"]
["CX",null,null,"O-CX"]
["CY",null,null,"O-CY"]
["CZ",null,null,"O-CZ"]
["DE",null,null,"O-DE"]
["DJ",null,null,"O-DJ"]
["DK",null,null,"O-DK"]
["DM",null,null,"O-DM"]
["DO",null,null,"O-DO"]
["DZ",null,null,"O-DZ"]
["EC",null,null,"O-EC"]
["EE",null,null,"O-EE"]
["EG",null,null,{"$f":"CONCATENATE(\"O-\",A65)","v":"O-EG"}]
["EH",null,null,"O-EH"]
["ER",null,null,"O-ER"]
["ES",null,null,"O-ES"]
["ET",null,null,"O-ET"]
["FI",null,null,"O-FI"]
["FJ",null,null,"O-FJ"]
["FK",null,null,"O-FK"]
["FM",null,null,"O-FM"]
["FO",null,null,"O-FO"]
["FR",null,null,"O-FR"]
["GA",null,null,"O-GA"]
["GB",null,null,"O-GB"]
["GD",null,null,"O-GD"]
["GE",null,null,"O-GE"]
["GF",null,null,"O-GF"]
["GG",null,null,"O-GG"]
["GH",null,null,"O-GH"]
["GI",null,null,"O-GI"]
["GL",null,null,"O-GL"]
["GM",null,null,"O-GM"]
["GN",null,null,"O-GN"]
["GP",null,null,"O-GP"]
["GQ",null,null,"O-GQ"]
["GR",null,null,"O-GR"]
["GS",null,null,"O-GS"]
["GT",null,null,"O-GT"]
["GU",null,null,"O-GU"]
["GW",null,null,"O-GW"]
["GY",null,null,"O-GY"]
["HK",null,null,"O-HK"]
["HM",null,null,"O-HM"]
["HN",null,null,"O-HN"]
["HT",null,null,"O-HT"]
["HU",null,null,"O-HU"]
["ID",null,null,"O-ID"]
["IE",null,null,"O-IE"]
["IL",null,null,"O-IL"]
["IM",null,null,"O-IM"]
["IN",null,null,"O-IN"]
["IO",null,null,"O-IO"]
["IQ",null,null,"O-IQ"]
["IR",null,null,"O-IR"]
["IS",null,null,"O-IS"]
["IT",null,null,"O-IT"]
["JE",null,null,"O-JE"]
["JM",null,null,"O-JM"]
["JO",null,null,"O-JO"]
["JP",null,null,"O-JP"]
["KE",null,null,"O-KE"]
["KG",null,null,"O-KG"]
["KH",null,null,"O-KH"]
["KI",null,null,"O-KI"]
["KM",null,null,"O-KM"]
["KN",null,null,"O-KN"]
["KP",null,null,"O-KP"]
["KR",null,null,"O-KR"]
["KW",null,null,"O-KW"]
["KY",null,null,"O-KY"]
["KZ",null,null,"O-KZ"]
["LA",null,null,"O-LA"]
["LB",null,null,"O-LB"]
["LC",null,null,"O-LC"]
["LI",null,null,"O-LI"]
["LK",null,null,{"$f":"CONCATENATE(\"O-\",A129)","v":"O-LK"}]
["LR",null,null,"O-LR"]
["LS",null,null,"O-LS"]
["LT",null,null,"O-LT"]
["LU",null,null,"O-LU"]
["LV",null,null,"O-LV"]
["LY",null,null,"O-LY"]
["MA",null,null,"O-MA"]
["MC",null,null,"O-MC"]
["MD",null,null,"O-MD"]
["ME",null,null,"O-ME"]
["MF",null,null,"O-MF"]
["MG",null,null,"O-MG"]
["MH",null,null,"O-MH"]
["MK",null,null,"O-MK"]
["ML",null,null,"O-ML"]
["MM",null,null,"O-MM"]
["MN",null,null,"O-MN"]
["MO",null,null,"O-MO"]
["MP",null,null,"O-MP"]
["MQ",null,null,"O-MQ"]
["MR",null,null,"O-MR"]
["MS",null,null,"O-MS"]
["MT",null,null,"O-MT"]
["MU",null,null,"O-MU"]
["MV",null,null,"O-MV"]
["MW",null,null,"O-MW"]
["MX",null,null,"O-MX"]
["MY",null,null,"O-MY"]
["MZ",null,null,"O-MZ"]
["NA",null,null,"O-NA"]
["NC",null,null,"O-NC"]
["NE",null,null,"O-NE"]
["NF",null,null,"O-NF"]
["NG",null,null,"O-NG"]
["NI",null,null,"O-NI"]
["NL",null,null,"O-NL"]
["NO",null,null,"O-NO"]
["NP",null,null,"O-NP"]
["NR",null,null,"O-NR"]
["NU",null,null,"O-NU"]
["NZ",null,null,"O-NZ"]
["OM",null,null,"O-OM"]
["PA",null,null,"O-PA"]
["PE",null,null,"O-PE"]
["PF",null,null,"O-PF"]
["PG",null,null,"O-PG"]
["PH",null,null,"O-PH"]
["PK",null,null,"O-PK"]
["PL",null,null,"O-PL"]
["PM",null,null,"O-PM"]
["PN",null,null,"O-PN"]
["PR",null,null,"O-PR"]
["PS",null,null,"O-PS"]
["PT",null,null,"O-PT"]
["PW",null,null,"O-PW"]
["PY",null,null,"O-PY"]
["QA",null,null,"O-QA"]
["RE",null,null,"O-RE"]
["RO",null,null,"O-RO"]
["RS",null,null,"O-RS"]
["RU",null,null,"O-RU"]
["RW",null,null,"O-RW"]
["SA",null,null,"O-SA"]
["SB",null,null,{"$f":"CONCATENATE(\"O-\",A193)","v":"O-SB"}]
["SC",null,null,"O-SC"]
["SD",null,null,"O-SD"]
["SE",null,null,"O-SE"]
["SG",null,null,"O-SG"]
["SH",null,null,"O-SH"]
["SI",null,null,"O-SI"]
["SJ",null,null,"O-SJ"]
["SK",null,null,"O-SK"]
["SL",null,null,"O-SL"]
["SM",null,null,"O-SM"]
["SN",null,null,"O-SN"]
["SO",null,null,"O-SO"]
["SR",null,null,"O-SR"]
["SS",null,null,"O-SS"]
["ST",null,null,"O-ST"]
["SV",null,null,"O-SV"]
["SX",null,null,"O-SX"]
["SY",null,null,"O-SY"]
["SZ",null,null,"O-SZ"]
["TC",null,null,"O-TC"]
["TD",null,null,"O-TD"]
["TF",null,null,"O-TF"]
["TG",null,null,"O-TG"]
["TH",null,null,"O-TH"]
["TJ",null,null,"O-TJ"]
["TK",null,null,"O-TK"]
["TL",null,null,"O-TL"]
["TM",null,null,"O-TM"]
["TN",null,null,"O-TN"]
["TO",null,null,"O-TO"]
["TR",null,null,"O-TR"]
["TT",null,null,"O-TT"]
["TV",null,null,"O-TV"]
["TW",null,null,"O-TW"]
["TZ",null,null,"O-TZ"]
["UA",null,null,"O-UA"]
["UG",null,null,"O-UG"]
["UM",null,null,"O-UM"]
["US",null,null,"O-US"]
["UY",null,null,"O-UY"]
["UZ",null,null,"O-UZ"]
["VA",null,null,"O-VA"]
["VC",null,null,"O-VC"]
["VE",null,null,"O-VE"]
["VG",null,null,"O-VG"]
["VI",null,null,"O-VI"]
["VN",null,null,"O-VN"]
["VU",null,null,"O-VU"]
["WF",null,null,"O-WF"]
["WS",null,null,"O-WS"]
["XK",null,null,"O-XK"]
["YE",null,null,"O-YE"]
["YT",null,null,"O-YT"]
["ZA",null,null,"O-ZA"]
["ZM",null,null,"O-ZM"]
["ZW",null,null,"O-ZW"]
["1B",null,null,"O-1B"]
["1C",null,null,"O-1C"]
["1D",null,null,"O-1D"]
["1E",null,null,"O-1E"]
["1F",null,null,"O-1F"]
["1H",null,null,"O-1H"]
["1J",null,null,"O-1J"]
["1K",null,null,{"$f":"CONCATENATE(\"O-\",A257)","v":"O-1K"}]
["1L",null,null,"O-1L"]
["1M",null,null,"O-1M"]
["1N",null,null,"O-1N"]
["1O",null,null,"O-1O"]
["1P",null,null,"O-1P"]
["1Q",null,null,"O-1Q"]
["1R",null,null,"O-1R"]
["1S",null,null,"O-1S"]
["1T",null,null,"O-1T"]
["1Z",null,null,"O-1Z"]
["4B",null,null,"O-4B"]
["4C",null,null,"O-4C"]
["4D",null,null,"O-4D"]
["4E",null,null,"O-4E"]
["4G",null,null,"O-4G"]
["4H",null,null,"O-4H"]
["4J",null,null,"O-4J"]
["4K",null,null,"O-4K"]
["4L",null,null,"O-4L"]
["4M",null,null,"O-4M"]
["4N",null,null,"O-4N"]
["4P",null,null,"O-4P"]
["4Q",null,null,"O-4Q"]
["5A",null,null,"O-5A"]
["5B",null,null,"O-5B"]
["5C",null,null,"O-5C"]
["5D",null,null,"O-5D"]
["5E",null,null,"O-5E"]
["5F",null,null,"O-5F"]
["5G",null,null,"O-5G"]
["5H",null,null,"O-5H"]
["5I",null,null,"O-5I"]
["5J",null,null,"O-5J"]
["5K",null,null,"O-5K"]
["5L",null,null,"O-5L"]
["5M",null,null,"O-5M"]
["5N",null,null,"O-5N"]
["5O",null,null,"O-5O"]
["5P",null,null,"O-5P"]
["5Q",null,null,"O-5Q"]
["5R",null,null,"O-5R"]
["5S",null,null,"O-5S"]
["5T",null,null,"O-5T"]
["5U",null,null,"O-5U"]
["5W",null,null,"O-5W"]
["5X",null,null,"O-5X"]
["5Y",null,null,"O-5Y"]
["5Z",null,null,"O-5Z"]
["6B",null,null,"O-6B"]
["6C",null,null,"O-6C"]
["6D",null,null,"O-6D"]
["6E",null,null,"O-6E"]
["6F",null,null,"O-6F"]
["6G",null,null,"O-6G"]
["6H",null,null,"O-6H"]
["6I",null,null,"O-6I"]
["6J",null,null,"O-6J"]
["6K",null,null,"O-6K"]
["6L",null,null,"O-6L"]
["6M",null,null,"O-6M"]
["6N",null,null,"O-6N"]
["6O",null,null,"O-6O"]
["6P",null,null,"O-6P"]
["6Q",null,null,"O-6Q"]
["6R",null,null,"O-6R"]
["6Z",null,null,"O-6Z"]
["7Z",null,null,"O-7Z"]
["HR",null,null,"O-HR"]

{"sheet":"Sifrarnici","index":1,"n_rows":687,"n_cols":37,"rows_kept":687,"cut":false,"hidden":true,"merged":[]}
[null,null,null,null,null,null,null,null,null,null,"OS1","202601",1,"uplata u novcu",{"$f":"CONCATENATE(M1, \" - \",N1)","v":"1 - uplata u novcu"},null,null,null,null,null,"B001",null,1,1,"Q1",null,"Uzgoj žitarica, osim riže, uzgoj mahunarki i uljanog sjemenja","01110","01.11.0 - Uzgoj žitarica, osim riže, uzgoj mahunarki i uljanog sjemenja",null,null,null,null,null,null,null,"DA"]
[null,null,null,null,null,null,null,null,null,null,"OS2","202602",2,"maržni kredit brokera",{"$f":"CONCATENATE(M2, \" - \",N2)","v":"2 - maržni kredit brokera"},null,null,null,null,null,"B002",null,3,2,"Q2",null,"Uzgoj riže","01120","01.12.0 - Uzgoj riže",null,null,null,null,null,null,null,"NE"]
[null,null,null,null,null,null,null,null,null,null,null,"202603",3,"stvari","3 - stvari",null,null,null,null,null,"B003",null,4,3,"Q3",null,"Uzgoj povrća, dinja i lubenica, korjenastog i gomoljastog povrća","01130","01.13.0 - Uzgoj povrća, dinja i lubenica, korjenastog i gomoljastog povrća"]
[null,null,null,null,null,null,null,null,null,null,null,"202604",4,"prava i licence","4 - prava i licence",null,null,null,null,null,"B004",null,null,4,"Q4",null,"Uzgoj šećerne trske","01140","01.14.0 - Uzgoj šećerne trske"]
[null,null,null,null,null,null,null,null,null,null,null,"202605",5,"zamjena dužničkog odnosa vlasničkim","5 - zamjena dužničkog odnosa vlasničkim",null,null,null,null,null,"B005",null,null,5,null,null,"Uzgoj duhana","01150","01.15.0 - Uzgoj duhana"]
[null,null,null,null,null,null,null,null,null,null,null,"202606",7,"fin.potraživanja / imovina (osim dionica/vl.udjela)","7 - fin.potraživanja / imovina (osim dionica/vl.udjela)",null,null,null,null,null,"B006",null,null,6,null,null,"Uzgoj predivog bilja","01160","01.16.0 - Uzgoj predivog bilja"]
[null,null,null,null,null,null,null,null,null,null,null,"202607","7a","fin. imovina u obliku dionica/vl.udjela rezidentnog društva","7a - fin. imovina u obliku dionica/vl.udjela rezidentnog društva",null,null,null,null,null,"B007",null,null,7,null,null,"Uzgoj ostalih jednogodišnjih usjeva","01190","01.19.0 - Uzgoj ostalih jednogodišnjih usjeva"]
[null,null,null,null,null,null,null,null,null,null,null,"202608","7b","fin. imovina u obliku dionica/vl.udjela nerezidentnog društva ","7b - fin. imovina u obliku dionica/vl.udjela nerezidentnog društva ",null,null,null,null,null,"B008",null,null,8,null,null,"Uzgoj grožđa","01210","01.21.0 - Uzgoj grožđa"]
[null,null,null,null,null,null,null,null,null,null,null,"202609","7c","vl. udjeli (dionice) stečene kroz dividendu u dionicama ","7c - vl. udjeli (dionice) stečene kroz dividendu u dionicama ",null,null,null,null,null,"B009",null,null,9,null,null,"Uzgoj tropskog i suptropskog voća","01220","01.22.0 - Uzgoj tropskog i suptropskog voća"]
[null,null,null,null,null,null,null,null,null,null,null,"202610",8,"pripajanja i spajanja",{"$f":"CONCATENATE(M10, \" - \",N10)","v":"8 - pripajanja i spajanja"},null,null,null,null,null,"B010",null,null,10,null,null,"Uzgoj agruma","01230","01.23.0 - Uzgoj agruma"]
[null,null,null,null,null,null,null,null,null,null,null,"202611",11,"prijenos nekretnine",{"$f":"CONCATENATE(M11, \" - \",N11)","v":"11 - prijenos nekretnine"},null,null,null,null,null,"B011",null,null,null,null,null,"Uzgoj jezgričavog i koštuničavog voća ","01240","01.24.0 - Uzgoj jezgričavog i koštuničavog voća "]
[null,null,null,null,null,null,null,null,null,null,null,"202612",12,"prijenos vlasništva bez naknade",{"$f":"CONCATENATE(M12, \" - \",N12)","v":"12 - prijenos vlasništva bez naknade"},null,null,null,null,null,"B012",null,null,null,null,null,"Uzgoj bobičastog, orašastog i ostalog voća","01250","01.25.0 - Uzgoj bobičastog, orašastog i ostalog voća"]
[null,null,null,null,null,null,null,null,null,null,null,"202701","P","neparticiprajuće povlaštene dionice",{"$f":"CONCATENATE(M13, \" - \",N13)","v":"P - neparticiprajuće povlaštene dionice"},null,null,null,null,null,"B013",null,null,null,null,null,"Uzgoj uljanih plodova","01260","01.26.0 - Uzgoj uljanih plodova"]
[null,null,null,null,null,null,null,null,null,null,null,"202702",null,null,null,null,null,null,null,null,"B014",null,null,null,null,null,"Uzgoj usjeva za pripremanje napitaka","01270","01.27.0 - Uzgoj usjeva za pripremanje napitaka"]
[null,null,null,null,null,null,null,null,null,null,null,"202703",null,null,null,null,null,null,null,null,"B015",null,null,null,null,null,"Uzgoj začinskog, aromatskog, ljekovitog bilja i bilja za uporabu u farmaciji","01280","01.28.0 - Uzgoj začinskog, aromatskog, ljekovitog bilja i bilja za uporabu u farmaciji"]
[null,null,null,null,null,null,null,null,null,null,null,"202704",null,null,null,null,null,null,null,null,"B016",null,null,null,null,null,"Uzgoj ostalih višegodišnjih usjeva","01290","01.29.0 - Uzgoj ostalih višegodišnjih usjeva"]
[null,null,null,null,null,null,null,null,null,null,null,"202705",null,null,null,null,null,null,null,null,"B017",null,null,null,null,null,"Uzgoj sadnog materijala i ukrasnog bilja","01300","01.30.0 - Uzgoj sadnog materijala i ukrasnog bilja"]
[null,null,null,null,null,null,null,null,null,null,null,"202706",null,null,null,null,null,null,null,null,"B018",null,null,null,null,null,"Uzgoj mliječnih goveda","01410","01.41.0 - Uzgoj mliječnih goveda"]
[null,null,null,null,null,null,null,null,null,null,null,"202707",null,null,null,null,null,null,null,null,"B019",null,null,null,null,null,"Uzgoj ostalih goveda i bivola","01420","01.42.0 - Uzgoj ostalih goveda i bivola"]
[null,null,null,null,null,null,null,null,null,null,null,"202708",null,null,null,null,null,null,null,null,"B020",null,null,null,null,null,"Uzgoj konja i drugih kopitara","01430","01.43.0 - Uzgoj konja i drugih kopitara"]
[null,null,null,null,null,null,null,null,null,null,null,"202709",null,null,null,null,null,null,null,null,"B021",null,null,null,null,null,"Uzgoj deva i ljama","01440","01.44.0 - Uzgoj deva i ljama"]
[null,null,null,null,null,null,null,null,null,null,null,"202710",null,null,null,null,null,null,null,null,"B022",null,null,null,null,null,"Uzgoj mliječnih ovaca i koza","01451","01.45.1 - Uzgoj mliječnih ovaca i koza"]
[null,null,null,null,null,null,null,null,null,null,null,"202711",null,null,null,null,null,null,null,null,"B023",null,null,null,null,null,"Uzgoj ostalih ovaca i koza","01459","01.45.9 - Uzgoj ostalih ovaca i koza"]
[null,null,null,null,null,null,null,null,null,null,null,"202712",null,null,null,null,null,null,null,null,"B024",null,null,null,null,null,"Uzgoj svinja","01460","01.46.0 - Uzgoj svinja"]
[null,null,null,null,null,null,null,null,null,null,null,"202801",null,null,null,null,null,null,null,null,"B025",null,null,null,null,null,"Uzgoj nesilica","01471","01.47.1 - Uzgoj nesilica"]
[null,null,null,null,null,null,null,null,null,null,null,"202802",null,null,null,null,null,null,null,null,"B026",null,null,null,null,null,"Uzgoj brojlera","01472","01.47.2 - Uzgoj brojlera"]
[null,null,null,null,null,null,null,null,null,null,null,"202803",null,null,null,null,null,null,null,null,"B027",null,null,null,null,null,"Uzgoj ostale peradi","01479","01.47.9 - Uzgoj ostale peradi"]
[null,null,null,null,null,null,null,null,null,null,null,"202804",null,null,null,null,null,null,null,null,"B028",null,null,null,null,null,"Uzgoj pčela","01481","01.48.1 - Uzgoj pčela"]
[null,null,null,null,null,null,null,null,null,null,null,"202805",null,null,null,null,null,null,null,null,"B029",null,null,null,null,null,"Uzgoj ostalih životinja, d. n.","01489","01.48.9 - Uzgoj ostalih životinja, d. n."]
[null,null,null,null,null,null,null,null,null,null,null,"202806",null,null,null,null,null,null,null,null,"B030",null,null,null,null,null,"Mješovita poljoprivreda","01500","01.50.0 - Mješovita poljoprivreda"]
[null,null,null,null,null,null,null,null,null,null,null,"202807",null,null,null,null,null,null,null,null,"B031",null,null,null,null,null,"Pomoćne djelatnosti za uzgoj usjeva","01610","01.61.0 - Pomoćne djelatnosti za uzgoj usjeva"]
[null,null,null,null,null,null,null,null,null,null,null,"202808",null,null,null,null,null,null,null,null,"B032",null,null,null,null,null,"Pomoćne djelatnosti za uzgoj životinja","01620","01.62.0 - Pomoćne djelatnosti za uzgoj životinja"]
[null,null,null,null,null,null,null,null,null,null,null,"202809",null,null,null,null,null,null,null,null,"B033",null,null,null,null,null,"Djelatnosti koje se obavljaju nakon žetve usjeva i dorada sjemena za sjemenski materijal","01630","01.63.0 - Djelatnosti koje se obavljaju nakon žetve usjeva i dorada sjemena za sjemenski materijal"]
[null,null,null,null,null,null,null,null,null,null,null,"202810",null,null,null,null,null,null,null,null,"B034",null,null,null,null,null,"Lov, stupičarenje i uslužne djelatnosti povezane s njima","01700","01.70.0 - Lov, stupičarenje i uslužne djelatnosti povezane s njima"]
[null,null,null,null,null,null,null,null,null,null,null,"202811",null,null,null,null,null,null,null,null,"B035",null,null,null,null,null,"Uzgoj šuma i ostale djelatnosti u šumarstvu povezane s njime","02100","02.10.0 - Uzgoj šuma i ostale djelatnosti u šumarstvu povezane s njime"]
[null,null,null,null,null,null,null,null,null,null,null,"202812",null,null,null,null,null,null,null,null,"B036",null,null,null,null,null,"Sječa drva","02200","02.20.0 - Sječa drva"]
[null,null,null,null,null,null,null,null,null,null,null,"202901",null,null,null,null,null,null,null,null,"B037",null,null,null,null,null,"Skupljanje samoniklih plodova i proizvoda, osim drva","02300","02.30.0 - Skupljanje samoniklih plodova i proizvoda, osim drva"]
[null,null,null,null,null,null,null,null,null,null,null,"202902",null,null,null,null,null,null,null,null,"B038",null,null,null,null,null,"Pomoćne usluge u šumarstvu","02400","02.40.0 - Pomoćne usluge u šumarstvu"]
[null,null,null,null,null,null,null,null,null,null,null,"202903",null,null,null,null,null,null,null,null,"B039",null,null,null,null,null,"Morski ribolov","03110","03.11.0 - Morski ribolov"]
[null,null,null,null,null,null,null,null,null,null,null,"202904",null,null,null,null,null,null,null,null,"B040",null,null,null,null,null,"Slatkovodni ribolov","03120","03.12.0 - Slatkovodni ribolov"]
[null,null,null,null,null,null,null,null,null,null,null,"202905",null,null,null,null,null,null,null,null,"B041",null,null,null,null,null,"Morska akvakultura","03210","03.21.0 - Morska akvakultura"]
[null,null,null,null,null,null,null,null,null,null,null,"202906",null,null,null,null,null,null,null,null,"B042",null,null,null,null,null,"Slatkovodna akvakultura","03220","03.22.0 - Slatkovodna akvakultura"]
[null,null,null,null,null,null,null,null,null,null,null,"202907",null,null,null,null,null,null,null,null,"B043",null,null,null,null,null,"Pomoćne djelatnosti u ribolovu i akvakulturi ","03300","03.30.0 - Pomoćne djelatnosti u ribolovu i akvakulturi "]
[null,null,null,null,null,null,null,null,null,null,null,"202908",null,null,null,null,null,null,null,null,"B044",null,null,null,null,null,"Vađenje kamenog ugljena","05100","05.10.0 - Vađenje kamenog ugljena"]
[null,null,null,null,null,null,null,null,null,null,null,"202909",null,null,null,null,null,null,null,null,"B045",null,null,null,null,null,"Vađenje lignita ","05200","05.20.0 - Vađenje lignita "]
[null,null,null,null,null,null,null,null,null,null,null,"202910",null,null,null,null,null,null,null,null,"B046",null,null,null,null,null,"Vađenje sirove nafte","06100","06.10.0 - Vađenje sirove nafte"]
[null,null,null,null,null,null,null,null,null,null,null,"202911",null,null,null,null,null,null,null,null,"B047",null,null,null,null,null,"Vađenje prirodnog plina","06200","06.20.0 - Vađenje prirodnog plina"]
[null,null,null,null,null,null,null,null,null,null,null,"202912",null,null,null,null,null,null,null,null,"B048",null,null,null,null,null,"Vađenje željeznih ruda","07100","07.10.0 - Vađenje željeznih ruda"]
[null,null,null,null,null,null,null,null,null,null,null,"203001",null,null,null,null,null,null,null,null,"B049",null,null,null,null,null,"Vađenje uranovih i torijevih ruda","07210","07.21.0 - Vađenje uranovih i torijevih ruda"]
[null,null,null,null,null,null,null,null,null,null,null,"203002",null,null,null,null,null,null,null,null,"B050",null,null,null,null,null,"Vađenje ostalih ruda obojenih metala","07290","07.29.0 - Vađenje ostalih ruda obojenih metala"]
[null,null,null,null,null,null,null,null,null,null,null,"203003",null,null,null,null,null,null,null,null,"B051",null,null,null,null,null,"Vađenje ukrasnoga kamena, vapnenca, gipsa, škriljevca i drugoga kamena","08110","08.11.0 - Vađenje ukrasnoga kamena, vapnenca, gipsa, škriljevca i drugoga kamena"]
[null,null,null,null,null,null,null,null,null,null,null,"203004",null,null,null,null,null,null,null,null,"B052",null,null,null,null,null,"Djelatnosti šljunčara i pješčara te vađenje gline i kaolina","08120","08.12.0 - Djelatnosti šljunčara i pješčara te vađenje gline i kaolina"]
[null,null,null,null,null,null,null,null,null,null,null,"203005",null,null,null,null,null,null,null,null,"B053",null,null,null,null,null,"Vađenje minerala za kemikalije i gnojiva","08910","08.91.0 - Vađenje minerala za kemikalije i gnojiva"]
[null,null,null,null,null,null,null,null,null,null,null,"203006",null,null,null,null,null,null,null,null,"B054",null,null,null,null,null,"Vađenje treseta","08920","08.92.0 - Vađenje treseta"]
[null,null,null,null,null,null,null,null,null,null,null,"203007",null,null,null,null,null,null,null,null,"B055",null,null,null,null,null,"Vađenje soli","08930","08.93.0 - Vađenje soli"]
[null,null,null,null,null,null,null,null,null,null,null,"203008",null,null,null,null,null,null,null,null,"B056",null,null,null,null,null,"Ostalo rudarstvo i vađenje, d. n.","08990","08.99.0 - Ostalo rudarstvo i vađenje, d. n."]
[null,null,null,null,null,null,null,null,null,null,null,"203009",null,null,null,null,null,null,null,null,"B057",null,null,null,null,null,"Pomoćne djelatnosti za vađenje nafte i prirodnog plina","09100","09.10.0 - Pomoćne djelatnosti za vađenje nafte i prirodnog plina"]
[null,null,null,null,null,null,null,null,null,null,null,"203010",null,null,null,null,null,null,null,null,"B058",null,null,null,null,null,"Pomoćne djelatnosti za ostalo rudarstvo i vađenje","09900","09.90.0 - Pomoćne djelatnosti za ostalo rudarstvo i vađenje"]
[null,null,null,null,null,null,null,null,null,null,null,"203011",null,null,null,null,null,null,null,null,"B059",null,null,null,null,null,"Prerada i konzerviranje mesa, osim mesa peradi",10110,"10.11.0 - Prerada i konzerviranje mesa, osim mesa peradi"]
[null,null,null,null,null,null,null,null,null,null,null,"203012",null,null,null,null,null,null,null,null,"B060",null,null,null,null,null,"Prerada i konzerviranje mesa peradi",10120,"10.12.0 - Prerada i konzerviranje mesa peradi"]
[null,null,null,null,null,null,null,null,null,null,null,"203101",null,null,null,null,null,null,null,null,"B061",null,null,null,null,null,"Proizvodnja proizvoda od mesa i mesa peradi",10130,"10.13.0 - Proizvodnja proizvoda od mesa i mesa peradi"]
[null,null,null,null,null,null,null,null,null,null,null,"203102",null,null,null,null,null,null,null,null,"B062",null,null,null,null,null,"Prerada i konzerviranje riba, rakova i mekušaca",10200,"10.20.0 - Prerada i konzerviranje riba, rakova i mekušaca"]
[null,null,null,null,null,null,null,null,null,null,null,"203103",null,null,null,null,null,null,null,null,"B063",null,null,null,null,null,"Prerada i konzerviranje krumpira",10310,"10.31.0 - Prerada i konzerviranje krumpira"]
[null,null,null,null,null,null,null,null,null,null,null,"203104",null,null,null,null,null,null,null,null,"B064",null,null,null,null,null,"Proizvodnja sokova od voća i povrća",10320,"10.32.0 - Proizvodnja sokova od voća i povrća"]
[null,null,null,null,null,null,null,null,null,null,null,"203105",null,null,null,null,null,null,null,null,"B065",null,null,null,null,null,"Ostala prerada i konzerviranje voća i povrća",10390,"10.39.0 - Ostala prerada i konzerviranje voća i povrća"]
[null,null,null,null,null,null,null,null,null,null,null,"203106",null,null,null,null,null,null,null,null,"B066",null,null,null,null,null,"Proizvodnja ulja i masti",10410,"10.41.0 - Proizvodnja ulja i masti"]
[null,null,null,null,null,null,null,null,null,null,null,"203107",null,null,null,null,null,null,null,null,"B067",null,null,null,null,null,"Proizvodnja margarina i sličnih jestivih masti",10420,"10.42.0 - Proizvodnja margarina i sličnih jestivih masti"]
[null,null,null,null,null,null,null,null,null,null,null,"203108",null,null,null,null,null,null,null,null,"B068",null,null,null,null,null,"Proizvodnja mliječnih proizvoda",10510,"10.51.0 - Proizvodnja mliječnih proizvoda"]
[null,null,null,null,null,null,null,null,null,null,null,"203109",null,null,null,null,null,null,null,null,"B069",null,null,null,null,null,"Proizvodnja sladoleda i ostalih jestivih ledenih proizvoda ",10520,"10.52.0 - Proizvodnja sladoleda i ostalih jestivih ledenih proizvoda "]
[null,null,null,null,null,null,null,null,null,null,null,"203110",null,null,null,null,null,null,null,null,"B070",null,null,null,null,null,"Proizvodnja mlinskih proizvoda",10610,"10.61.0 - Proizvodnja mlinskih proizvoda"]
[null,null,null,null,null,null,null,null,null,null,null,"203111",null,null,null,null,null,null,null,null,null,null,null,null,null,null,"Proizvodnja škroba i škrobnih proizvoda",10620,"10.62.0 - Proizvodnja škroba i škrobnih proizvoda"]
[null,null,null,null,null,null,null,null,null,null,null,"203112",null,null,null,null,null,null,null,null,null,null,null,null,null,null,"Proizvodnja kruha; proizvodnja svježih peciva i sličnih proizvoda te kolača",10710,"10.71.0 - Proizvodnja kruha; proizvodnja svježih peciva i sličnih proizvoda te kolača"]
[null,null,null,null,null,null,null,null,null,null,null,null,null,null,null,null,null,null,null,null,null,null,null,null,null,null,"Proizvodnja dvopeka, keksa, trajnih peciva i kolača",10720,"10.72.0 - Proizvodnja dvopeka, keksa, trajnih peciva i kolača"]
[null,null,null,null,null,null,null,null,null,null,null,null,null,null,null,null,null,null,null,null,null,null,null,null,null,null,"Proizvodnja tjestenine",10730,"10.73.0 - Proizvodnja tjestenine"]
[null,null,null,null,null,null,null,null,null,null,null,null,null,null,null,null,null,null,null,null,null,null,null,null,null,null,"Proizvodnja šećera",10810,"10.81.0 - Proizvodnja šećera"]
[null,null,null,null,null,null,null,null,null,null,null,null,null,null,null,null,null,null,null,null,null,null,null,null,null,null,"Proizvodnja kakao, čokoladnih proizvoda i proizvoda od šećera",10820,"10.82.0 - Proizvodnja kakao, čokoladnih proizvoda i proizvoda od šećera"]
[null,null,null,null,null,null,null,null,null,null,"A","001",null,null,null,null,null,null,null,null,null,null,null,null,null,null,"Prerada čaja i kave",10830,"10.83.0 - Prerada čaja i kave"]
[null,null,null,null,null,null,null,null,null,null,"B","002","A","B",null,null,null,null,null,null,null,null,null,null,null,null,"Proizvodnja začina i drugih dodataka hrani",10840,"10.84.0 - Proizvodnja začina i drugih dodataka hrani"]
[null,null,null,null,null,null,null,null,null,null,"FA","003","B",null,null,null,null,null,null,null,null,null,null,null,null,null,"Proizvodnja gotove hrane i jela",10850,"10.85.0 - Proizvodnja gotove hrane i jela"]
[null,null,null,null,null,null,null,null,null,null,"FB","004","FA",null,null,null,null,null,null,null,null,null,null,null,null,null,"Proizvodnja homogeniziranih prehrambenih pripravaka i dijetetske hrane",10860,"10.86.0 - Proizvodnja homogeniziranih prehrambenih pripravaka i dijetetske hrane"]
[null,null,null,null,null,null,null,null,null,null,null,"005","FB",null,null,null,null,null,null,null,null,null,null,null,null,null,"Proizvodnja ostalih prehrambenih proizvoda, d. n.",10890,"10.89.0 - Proizvodnja ostalih prehrambenih proizvoda, d. n."]
[null,null,null,null,null,null,null,null,null,null,"O-","006",null,null,null,null,null,null,null,null,null,null,null,null,null,null,"Proizvodnja pripremljene stočne hrane",10910,"10.91.0 - Proizvodnja pripremljene stočne hrane"]
[null,null,null,null,null,null,null,null,null,null,null,"007",null,null,null,null,null,null,null,null,null,null,null,null,null,null,"Proizvodnja pripremljene hrane za kućne ljubimce",10920,"10.92.0 - Proizvodnja pripremljene hrane za kućne ljubimce"]
[null,null,null,null,null,null,null,null,null,null,"B","008",null,null,null,null,null,null,null,null,null,null,null,null,null,null,"Destiliranje, pročišćavanje i miješanje alkoholnih pića",11010,"11.01.0 - Destiliranje, pročišćavanje i miješanje alkoholnih pića"]
[null,null,null,null,null,null,null,null,null,null,"A","009","B",null,null,null,null,null,null,null,null,null,null,null,null,null,"Proizvodnja vina od grožđa",11020,"11.02.0 - Proizvodnja vina od grožđa"]
[null,null,null,null,null,null,null,null,null,null,"FA","010","A",null,null,null,null,null,null,null,null,null,null,null,null,null,"Proizvodnja jabukovače i ostalih fermentiranih voćnih pića",11030,"11.03.0 - Proizvodnja jabukovače i ostalih fermentiranih voćnih pića"]
[null,null,null,null,null,null,null,null,null,null,"FB","011","FA",null,null,null,null,null,null,null,null,null,null,null,null,null,"Proizvodnja ostalih nedestiliranih fermentiranih pića",11040,"11.04.0 - Proizvodnja ostalih nedestiliranih fermentiranih pića"]
[null,null,null,null,null,null,null,null,null,null,"O-","012","FB",null,null,null,null,null,null,null,null,null,null,null,null,null,"Proizvodnja piva",11050,"11.05.0 - Proizvodnja piva"]
[null,null,null,null,null,null,null,null,null,null,null,"013",null,null,null,null,null,null,null,null,null,null,null,null,null,null,"Proizvodnja slada",11060,"11.06.0 - Proizvodnja slada"]
[null,null,null,null,null,null,null,null,null,null,null,"014",null,null,null,null,null,null,null,null,null,null,null,null,null,null,"Proizvodnja osvježavajućih napitaka i flaširane vode",11070,"11.07.0 - Proizvodnja osvježavajućih napitaka i flaširane vode"]
[null,null,null,null,null,null,null,null,null,null,null,"015",null,null,null,null,null,null,null,null,null,null,null,null,null,null,"Obrada duhanskih listova",12001,"12.00.1 - Obrada duhanskih listova"]
[null,null,null,null,null,null,null,null,null,null,null,"016",null,null,null,null,null,null,null,null,null,null,null,null,null,null,"Proizvodnja ostalih duhanskih proizvoda",12002,"12.00.2 - Proizvodnja ostalih duhanskih proizvoda"]
[null,null,null,null,null,null,null,null,null,null,null,"017",null,null,null,null,null,null,null,null,null,null,null,null,null,null,"Priprema i predenje tekstilnih vlakana",13100,"13.10.0 - Priprema i predenje tekstilnih vlakana"]
[null,null,null,null,null,null,null,null,null,null,null,"018",null,null,null,null,null,null,null,null,null,null,null,null,null,null,"Tkanje tekstila",13200,"13.20.0 - Tkanje tekstila"]
[null,null,null,null,null,null,null,null,null,null,null,"019",null,null,null,null,null,null,null,null,null,null,null,null,null,null,"Dovršavanje tekstila",13300,"13.30.0 - Dovršavanje tekstila"]
[null,null,null,null,null,null,null,null,null,null,null,"020",null,null,null,null,null,null,null,null,null,null,null,null,null,null,"Proizvodnja pletenih i kukičanih tkanina",13910,"13.91.0 - Proizvodnja pletenih i kukičanih tkanina"]
[null,null,null,null,null,null,null,null,null,null,null,"021",null,null,null,null,null,null,null,null,null,null,null,null,null,null,"Proizvodnja tekstilnih proizvoda za kućanstvo i gotovih proizvoda za pokućstvo",13920,"13.92.0 - Proizvodnja tekstilnih proizvoda za kućanstvo i gotovih proizvoda za pokućstvo"]
[null,null,null,null,null,null,null,null,null,null,null,"022",null,null,null,null,null,null,null,null,null,null,null,null,null,null,"Proizvodnja tepiha i sagova",13930,"13.93.0 - Proizvodnja tepiha i sagova"]
[null,null,null,null,null,null,null,null,null,null,null,"023",null,null,null,null,null,null,null,null,null,null,null,null,null,null,"Proizvodnja užadi, konopaca, upletenoga konca i mreža",13940,"13.94.0 - Proizvodnja užadi, konopaca, upletenoga konca i mreža"]
[null,null,null,null,null,null,null,null,null,null,null,"024",null,null,null,null,null,null,null,null,null,null,null,null,null,null,"Proizvodnja netkanog tekstila i netkanih proizvoda",13950,"13.95.0 - Proizvodnja netkanog tekstila i netkanih proizvoda"]
[null,null,null,null,null,null,null,null,null,null,null,"025",null,null,null,null,null,null,null,null,null,null,null,null,null,null,"Proizvodnja ostalog tehničkog i industrijskog tekstila",13960,"13.96.0 - Proizvodnja ostalog tehničkog i industrijskog tekstila"]
[null,null,null,null,null,null,null,null,null,null,null,"026",null,null,null,null,null,null,null,null,null,null,null,null,null,null,"Proizvodnja ostalog tekstila, d. n.",13990,"13.99.0 - Proizvodnja ostalog tekstila, d. n."]
[null,null,null,null,null,null,null,null,null,null,null,"027",null,null,null,null,null,null,null,null,null,null,null,null,null,null,"Proizvodnja pletene i kukičane odjeće",14100,"14.10.0 - Proizvodnja pletene i kukičane odjeće"]
[null,null,null,null,null,null,null,null,null,null,null,"028",null,null,null,null,null,null,null,null,null,null,null,null,null,null,"Proizvodnja vanjske odjeće ",14210,"14.21.0 - Proizvodnja vanjske odjeće "]
[null,null,null,null,null,null,null,null,null,null,null,"029",null,null,null,null,null,null,null,null,null,null,null,null,null,null,"Proizvodnja rublja",14220,"14.22.0 - Proizvodnja rublja"]
[null,null,null,null,null,null,null,null,null,null,null,"030",null,null,null,null,null,null,null,null,null,null,null,null,null,null,"Proizvodnja radne odjeće",14230,"14.23.0 - Proizvodnja radne odjeće"]
[null,null,null,null,null,null,null,null,null,null,null,"031",null,null,null,null,null,null,null,null,null,null,null,null,null,null,"Proizvodnja kožne odjeće i proizvoda od krzna",14240,"14.24.0 - Proizvodnja kožne odjeće i proizvoda od krzna"]
[null,null,null,null,null,null,null,null,null,null,null,"032",null,null,null,null,null,null,null,null,null,null,null,null,null,null,"Proizvodnja ostale odjeće i pribora za odjeću, d. n.",14290,"14.29.0 - Proizvodnja ostale odjeće i pribora za odjeću, d. n."]
[null,null,null,null,null,null,null,null,null,null,null,"033",null,null,null,null,null,null,null,null,null,null,null,null,null,null,"Štavljenje, obrada, bojenje kože i krzna",15110,"15.11.0 - Štavljenje, obrada, bojenje kože i krzna"]
[null,null,null,null,null,null,null,null,null,null,null,"034",null,null,null,null,null,null,null,null,null,null,null,null,null,null,"Proizvodnja putnih i ručnih torbi, sedlarskih i remenarskih proizvoda od bilo kojeg materijala\n",15120,"15.12.0 - Proizvodnja putnih i ručnih torbi, sedlarskih i remenarskih proizvoda od bilo kojeg materijala\n"]
[null,null,null,null,null,null,null,null,null,null,null,"035",null,null,null,null,null,null,null,null,null,null,null,null,null,null,"Proizvodnja obuće",15200,"15.20.0 - Proizvodnja obuće"]
[null,null,null,null,null,null,null,null,null,null,null,"036",null,null,null,null,null,null,null,null,null,null,null,null,null,null,"Piljenje i blanjanje drva",16110,"16.11.0 - Piljenje i blanjanje drva"]
[null,null,null,null,null,null,null,null,null,null,null,"037",null,null,null,null,null,null,null,null,null,null,null,null,null,null,"Obrada i dorada drva",16120,"16.12.0 - Obrada i dorada drva"]
[null,null,null,null,null,null,null,null,null,null,null,"038",null,null,null,null,null,null,null,null,null,null,null,null,null,null,"Proizvodnja furnira i ostalih ploča od drva",16210,"16.21.0 - Proizvodnja furnira i ostalih ploča od drva"]
[null,null,null,null,null,null,null,null,null,null,null,"039",null,null,null,null,null,null,null,null,null,null,null,null,null,null,"Proizvodnja sastavljenog parketa",16220,"16.22.0 - Proizvodnja sastavljenog parketa"]
[null,null,null,null,null,null,null,null,null,null,null,"040",null,null,null,null,null,null,null,null,null,null,null,null,null,null,"Proizvodnja ostale građevne stolarije i elemenata",16230,"16.23.0 - Proizvodnja ostale građevne stolarije i elemenata"]
[null,null,null,null,null,null,null,null,null,null,null,"041",null,null,null,null,null,null,null,null,null,null,null,null,null,null,"Proizvodnja ambalaže od drva",16240,"16.24.0 - Proizvodnja ambalaže od drva"]
[null,null,null,null,null,null,null,null,null,null,null,"042",null,null,null,null,null,null,null,null,null,null,null,null,null,null,"Proizvodnja vrata i prozora od drva",16250,"16.25.0 - Proizvodnja vrata i prozora od drva"]
[null,null,null,null,null,null,null,null,null,null,null,"043",null,null,null,null,null,null,null,null,null,null,null,null,null,null,"Proizvodnja krutih goriva iz biljne biomase",16260,"16.26.0 - Proizvodnja krutih goriva iz biljne biomase"]
[null,null,null,null,null,null,null,null,null,null,null,"044",null,null,null,null,null,null,null,null,null,null,null,null,null,null,"Dorada proizvoda od drva",16270,"16.27.0 - Dorada proizvoda od drva"]
[null,null,null,null,null,null,null,null,null,null,null,"045",null,null,null,null,null,null,null,null,null,null,null,null,null,null,"Proizvodnja ostalih proizvoda od drva i pluta, slame i pletarskih materijala",16280,"16.28.0 - Proizvodnja ostalih proizvoda od drva i pluta, slame i pletarskih materijala"]
[null,null,null,null,null,null,null,null,null,null,null,"046",null,null,null,null,null,null,null,null,null,null,null,null,null,null,"Proizvodnja celuloze",17110,"17.11.0 - Proizvodnja celuloze"]
[null,null,null,null,null,null,null,null,null,null,null,"047",null,null,null,null,null,null,null,null,null,null,null,null,null,null,"Proizvodnja papira i kartona",17120,"17.12.0 - Proizvodnja papira i kartona"]
[null,null,null,null,null,null,null,null,null,null,null,"048",null,null,null,null,null,null,null,null,null,null,null,null,null,null,"Proizvodnja valovitog papira, kartona i ambalaže od papira i kartona",17210,"17.21.0 - Proizvodnja valovitog papira, kartona i ambalaže od papira i kartona"]
[null,null,null,null,null,null,null,null,null,null,null,"049",null,null,null,null,null,null,null,null,null,null,null,null,null,null,"Proizvodnja robe za kućanstvo i higijenu te toaletnih potrepština od papira",17220,"17.22.0 - Proizvodnja robe za kućanstvo i higijenu te toaletnih potrepština od papira"]
[null,null,null,null,null,null,null,null,null,null,null,"050",null,null,null,null,null,null,null,null,null,null,null,null,null,null,"Proizvodnja uredskog materijala od papira",17230,"17.23.0 - Proizvodnja uredskog materijala od papira"]
[null,null,null,null,null,null,null,null,null,null,null,"051",null,null,null,null,null,null,null,null,null,null,null,null,null,null,"Proizvodnja zidnih tapeta",17240,"17.24.0 - Proizvodnja zidnih tapeta"]
[null,null,null,null,null,null,null,null,null,null,null,"052",null,null,null,null,null,null,null,null,null,null,null,null,null,null,"Proizvodnja ostalih proizvoda od papira i kartona",17250,"17.25.0 - Proizvodnja ostalih proizvoda od papira i kartona"]
[null,null,null,null,null,null,null,null,null,null,null,"053",null,null,null,null,null,null,null,null,null,null,null,null,null,null,"Tiskanje novina",18110,"18.11.0 - Tiskanje novina"]
[null,null,null,null,null,null,null,null,null,null,null,"054",null,null,null,null,null,null,null,null,null,null,null,null,null,null,"Ostalo tiskanje",18120,"18.12.0 - Ostalo tiskanje"]
[null,null,null,null,null,null,null,null,null,null,null,"055",null,null,null,null,null,null,null,null,null,null,null,null,null,null,"Usluge pripreme za tisak i objavljivanje",18130,"18.13.0 - Usluge pripreme za tisak i objavljivanje"]
[null,null,null,null,null,null,null,null,null,null,null,"056",null,null,null,null,null,null,null,null,null,null,null,null,null,null,"Knjigoveške i srodne usluge",18140,"18.14.0 - Knjigoveške i srodne usluge"]
[null,null,null,null,null,null,null,null,null,null,null,"057",null,null,null,null,null,null,null,null,null,null,null,null,null,null,"Umnožavanje snimljenih zapisa",18200,"18.20.0 - Umnožavanje snimljenih zapisa"]
[null,null,null,null,null,null,null,null,null,null,null,"058",null,null,null,null,null,null,null,null,null,null,null,null,null,null,"Proizvodnja proizvoda koksnih peći",19100,"19.10.0 - Proizvodnja proizvoda koksnih peći"]
[null,null,null,null,null,null,null,null,null,null,null,"059",null,null,null,null,null,null,null,null,null,null,null,null,null,null,"Proizvodnja rafiniranih naftnih proizvoda i proizvoda od fosilnih goriva",19200,"19.20.0 - Proizvodnja rafiniranih naftnih proizvoda i proizvoda od fosilnih goriva"]
[null,null,null,null,null,null,null,null,null,null,null,"060",null,null,null,null,null,null,null,null,null,null,null,null,null,null,"Proizvodnja industrijskih plinova",20110,"20.11.0 - Proizvodnja industrijskih plinova"]
[null,null,null,null,null,null,null,null,null,null,null,"061",null,null,null,null,null,null,null,null,null,null,null,null,null,null,"Proizvodnja bojila i pigmenata",20120,"20.12.0 - Proizvodnja bojila i pigmenata"]
[null,null,null,null,null,null,null,null,null,null,null,"062",null,null,null,null,null,null,null,null,null,null,null,null,null,null,"Proizvodnja ostalih anorganskih osnovnih kemikalija",20130,"20.13.0 - Proizvodnja ostalih anorganskih osnovnih kemikalija"]
[null,null,null,null,null,null,null,null,null,null,null,"063",null,null,null,null,null,null,null,null,null,null,null,null,null,null,"Proizvodnja ostalih organskih osnovnih kemikalija",20140,"20.14.0 - Proizvodnja ostalih organskih osnovnih kemikalija"]
[null,null,null,null,null,null,null,null,null,null,null,"064",null,null,null,null,null,null,null,null,null,null,null,null,null,null,"Proizvodnja gnojiva i dušičnih spojeva",20150,"20.15.0 - Proizvodnja gnojiva i dušičnih spojeva"]
[null,null,null,null,null,null,null,null,null,null,null,"065",null,null,null,null,null,null,null,null,null,null,null,null,null,null,"Proizvodnja plastike u primarnim oblicima",20160,"20.16.0 - Proizvodnja plastike u primarnim oblicima"]
[null,null,null,null,null,null,null,null,null,null,null,"066",null,null,null,null,null,null,null,null,null,null,null,null,null,null,"Proizvodnja sintetičkoga kaučuka u primarnim oblicima",20170,"20.17.0 - Proizvodnja sintetičkoga kaučuka u primarnim oblicima"]
[null,null,null,null,null,null,null,null,null,null,null,"067",null,null,null,null,null,null,null,null,null,null,null,null,null,null,"Proizvodnja pesticida, dezinficijensa i drugih agrokemijskih proizvoda",20200,"20.20.0 - Proizvodnja pesticida, dezinficijensa i drugih agrokemijskih proizvoda"]
[null,null,null,null,null,null,null,null,null,null,null,"068",null,null,null,null,null,null,null,null,null,null,null,null,null,null,"Proizvodnja boja, lakova i sličnih premaza, grafičkih boja i kitova",20300,"20.30.0 - Proizvodnja boja, lakova i sličnih premaza, grafičkih boja i kitova"]
[null,null,null,null,null,null,null,null,null,null,null,"069",null,null,null,null,null,null,null,null,null,null,null,null,null,null,"Proizvodnja sapuna i deterdženata, sredstava za čišćenje i poliranje",20410,"20.41.0 - Proizvodnja sapuna i deterdženata, sredstava za čišćenje i poliranje"]
[null,null,null,null,null,null,null,null,null,null,null,"070",null,null,null,null,null,null,null,null,null,null,null,null,null,null,"Proizvodnja parfema i toaletno-kozmetičkih preparata",20420,"20.42.0 - Proizvodnja parfema i toaletno-kozmetičkih preparata"]
[null,null,null,null,null,null,null,null,null,null,null,null,null,null,null,null,null,null,null,null,null,null,null,null,null,null,"Proizvodnja tekućih biogoriva",20510,"20.51.0 - Proizvodnja tekućih biogoriva"]
[null,null,null,null,null,null,null,null,null,null,null,null,null,null,null,null,null,null,null,null,null,null,null,null,null,null,"Proizvodnja eksploziva",20591,"20.59.1 - Proizvodnja eksploziva"]
[null,null,null,null,null,null,null,null,null,null,null,null,null,null,null,null,null,null,null,null,null,null,null,null,null,null,"Proizvodnja ljepila",20592,"20.59.2 - Proizvodnja ljepila"]
[null,null,null,null,null,null,null,null,null,null,null,null,null,null,null,null,null,null,null,null,null,null,null,null,null,null,"Proizvodnja eteričnih ulja",20593,"20.59.3 - Proizvodnja eteričnih ulja"]
[null,null,null,null,null,null,null,null,null,null,null,null,null,null,null,null,null,null,null,null,null,null,null,null,null,null,"Proizvodnja ostalih kemijskih proizvoda",20599,"20.59.9 - Proizvodnja ostalih kemijskih proizvoda"]
[null,null,null,null,null,null,null,null,null,null,null,null,null,null,null,null,null,null,null,null,null,null,null,null,null,null,"Proizvodnja umjetnih vlakana",20600,"20.60.0 - Proizvodnja umjetnih vlakana"]
[null,null,null,null,null,null,null,null,null,null,null,null,null,null,null,null,null,null,null,null,null,null,null,null,null,null,"Proizvodnja osnovnih farmaceutskih proizvoda",21100,"21.10.0 - Proizvodnja osnovnih farmaceutskih proizvoda"]
[null,null,null,null,null,null,null,null,null,null,null,null,null,null,null,null,null,null,null,null,null,null,null,null,null,null,"Proizvodnja farmaceutskih pripravaka",21200,"21.20.0 - Proizvodnja farmaceutskih pripravaka"]
[null,null,null,null,null,null,null,null,null,null,null,null,null,null,null,null,null,null,null,null,null,null,null,null,null,null,"Proizvodnja, protektiranje i obnova vanjskih i unutrašnjih guma za vozila te proizvodnja zračnica",22110,"22.11.0 - Proizvodnja, protektiranje i obnova vanjskih i unutrašnjih guma za vozila te proizvodnja zračnica"]
[null,null,null,null,null,null,null,null,null,null,null,null,null,null,null,null,null,null,null,null,null,null,null,null,null,null,"Proizvodnja ostalih proizvoda od gume",22120,"22.12.0 - Proizvodnja ostalih proizvoda od gume"]
[null,null,null,null,null,null,null,null,null,null,null,null,null,null,null,null,null,null,null,null,null,null,null,null,null,null,"Proizvodnja ploča, listova, cijevi i profila od plastike",22210,"22.21.0 - Proizvodnja ploča, listova, cijevi i profila od plastike"]
[null,null,null,null,null,null,null,null,null,null,null,null,null,null,null,null,null,null,null,null,null,null,null,null,null,null,"Proizvodnja ambalaže od plastike",22220,"22.22.0 - Proizvodnja ambalaže od plastike"]
[null,null,null,null,null,null,null,null,null,null,null,null,null,null,null,null,null,null,null,null,null,null,null,null,null,null,"Proizvodnja vrata i prozora od plastike",22230,"22.23.0 - Proizvodnja vrata i prozora od plastike"]
[null,null,null,null,null,null,null,null,null,null,null,null,null,null,null,null,null,null,null,null,null,null,null,null,null,null,"Proizvodnja proizvoda od plastike za građevinarstvo",22240,"22.24.0 - Proizvodnja proizvoda od plastike za građevinarstvo"]
[null,null,null,null,null,null,null,null,null,null,null,null,null,null,null,null,null,null,null,null,null,null,null,null,null,null,"Obrada i dovršavanje proizvoda od plastike",22250,"22.25.0 - Obrada i dovršavanje proizvoda od plastike"]
[null,null,null,null,null,null,null,null,null,null,null,null,null,null,null,null,null,null,null,null,null,null,null,null,null,null,"Proizvodnja ostalih proizvoda od plastike",22260,"22.26.0 - Proizvodnja ostalih proizvoda od plastike"]
[null,null,null,null,null,null,null,null,null,null,null,null,null,null,null,null,null,null,null,null,null,null,null,null,null,null,"Proizvodnja ravnog stakla",23110,"23.11.0 - Proizvodnja ravnog stakla"]
[null,null,null,null,null,null,null,null,null,null,null,null,null,null,null,null,null,null,null,null,null,null,null,null,null,null,"Oblikovanje i obrada ravnog stakla",23120,"23.12.0 - Oblikovanje i obrada ravnog stakla"]
[null,null,null,null,null,null,null,null,null,null,null,null,null,null,null,null,null,null,null,null,null,null,null,null,null,null,"Proizvodnja šupljeg stakla",23130,"23.13.0 - Proizvodnja šupljeg stakla"]
[null,null,null,null,null,null,null,null,null,null,null,null,null,null,null,null,null,null,null,null,null,null,null,null,null,null,"Proizvodnja staklenih vlakana",23140,"23.14.0 - Proizvodnja staklenih vlakana"]
[null,null,null,null,null,null,null,null,null,null,null,null,null,null,null,null,null,null,null,null,null,null,null,null,null,null,"Proizvodnja i obrada ostalog stakla uključujući tehničku robu od stakla",23150,"23.15.0 - Proizvodnja i obrada ostalog stakla uključujući tehničku robu od stakla"]
[null,null,null,null,null,null,null,null,null,null,null,null,null,null,null,null,null,null,null,null,null,null,null,null,null,null,"Proizvodnja vatrostalnih proizvoda",23200,"23.20.0 - Proizvodnja vatrostalnih proizvoda"]
[null,null,null,null,null,null,null,null,null,null,null,null,null,null,null,null,null,null,null,null,null,null,null,null,null,null,"Proizvodnja keramičkih pločica i ploča",23310,"23.31.0 - Proizvodnja keramičkih pločica i ploča"]
[null,null,null,null,null,null,null,null,null,null,null,null,null,null,null,null,null,null,null,null,null,null,null,null,null,null,"Proizvodnja opeke, crijepa i ostalih proizvoda od pečene gline za građevinarstvo",23320,"23.32.0 - Proizvodnja opeke, crijepa i ostalih proizvoda od pečene gline za građevinarstvo"]
[null,null,null,null,null,null,null,null,null,null,null,null,null,null,null,null,null,null,null,null,null,null,null,null,null,null,"Proizvodnja keramičkih proizvoda za kućanstvo i ukrasnih predmeta",23410,"23.41.0 - Proizvodnja keramičkih proizvoda za kućanstvo i ukrasnih predmeta"]
[null,null,null,null,null,null,null,null,null,null,null,null,null,null,null,null,null,null,null,null,null,null,null,null,null,null,"Proizvodnja sanitarne keramike",23420,"23.42.0 - Proizvodnja sanitarne keramike"]
[null,null,null,null,null,null,null,null,null,null,null,null,null,null,null,null,null,null,null,null,null,null,null,null,null,null,"Proizvodnja keramičkih izolatora i izolacijskog pribora",23430,"23.43.0 - Proizvodnja keramičkih izolatora i izolacijskog pribora"]
[null,null,null,null,null,null,null,null,null,null,null,null,null,null,null,null,null,null,null,null,null,null,null,null,null,null,"Proizvodnja ostalih tehničkih proizvoda od keramike",23440,"23.44.0 - Proizvodnja ostalih tehničkih proizvoda od keramike"]
[null,null,null,null,null,null,null,null,null,null,null,null,null,null,null,null,null,null,null,null,null,null,null,null,null,null,"Proizvodnja ostalih proizvoda od keramike",23450,"23.45.0 - Proizvodnja ostalih proizvoda od keramike"]
[null,null,null,null,null,null,null,null,null,null,null,null,null,null,null,null,null,null,null,null,null,null,null,null,null,null,"Proizvodnja cementa",23510,"23.51.0 - Proizvodnja cementa"]
[null,null,null,null,null,null,null,null,null,null,null,null,null,null,null,null,null,null,null,null,null,null,null,null,null,null,"Proizvodnja vapna i gipsa",23520,"23.52.0 - Proizvodnja vapna i gipsa"]
[null,null,null,null,null,null,null,null,null,null,null,null,null,null,null,null,null,null,null,null,null,null,null,null,null,null,"Proizvodnja proizvoda od betona za građevinarstvo",23610,"23.61.0 - Proizvodnja proizvoda od betona za građevinarstvo"]
[null,null,null,null,null,null,null,null,null,null,null,null,null,null,null,null,null,null,null,null,null,null,null,null,null,null,"Proizvodnja proizvoda od gipsa za građevinarstvo",23620,"23.62.0 - Proizvodnja proizvoda od gipsa za građevinarstvo"]
[null,null,null,null,null,null,null,null,null,null,null,null,null,null,null,null,null,null,null,null,null,null,null,null,null,null,"Proizvodnja gotove betonske smjese",23630,"23.63.0 - Proizvodnja gotove betonske smjese"]
[null,null,null,null,null,null,null,null,null,null,null,null,null,null,null,null,null,null,null,null,null,null,null,null,null,null,"Proizvodnja žbuke",23640,"23.64.0 - Proizvodnja žbuke"]
[null,null,null,null,null,null,null,null,null,null,null,null,null,null,null,null,null,null,null,null,null,null,null,null,null,null,"Proizvodnja fibrocementa",23650,"23.65.0 - Proizvodnja fibrocementa"]
[null,null,null,null,null,null,null,null,null,null,null,null,null,null,null,null,null,null,null,null,null,null,null,null,null,null,"Proizvodnja ostalih proizvoda od betona, cementa i gipsa",23660,"23.66.0 - Proizvodnja ostalih proizvoda od betona, cementa i gipsa"]
[null,null,null,null,null,null,null,null,null,null,null,null,null,null,null,null,null,null,null,null,null,null,null,null,null,null,"Rezanje, oblikovanje i obrada kamena",23700,"23.70.0 - Rezanje, oblikovanje i obrada kamena"]
[null,null,null,null,null,null,null,null,null,null,null,null,null,null,null,null,null,null,null,null,null,null,null,null,null,null,"Proizvodnja brusnih proizvoda",23910,"23.91.0 - Proizvodnja brusnih proizvoda"]
[null,null,null,null,null,null,null,null,null,null,null,null,null,null,null,null,null,null,null,null,null,null,null,null,null,null,"Proizvodnja ostalih nemetalnih mineralnih proizvoda, d. n.",23990,"23.99.0 - Proizvodnja ostalih nemetalnih mineralnih proizvoda, d. n."]
[null,null,null,null,null,null,null,null,null,null,null,null,null,null,null,null,null,null,null,null,null,null,null,null,null,null,"Proizvodnja sirovog željeza, čelika i ferolegura",24100,"24.10.0 - Proizvodnja sirovog željeza, čelika i ferolegura"]
[null,null,null,null,null,null,null,null,null,null,null,null,null,null,null,null,null,null,null,null,null,null,null,null,null,null,"Proizvodnja čeličnih cijevi, šupljih profila i pripadajućeg pribora",24200,"24.20.0 - Proizvodnja čeličnih cijevi, šupljih profila i pripadajućeg pribora"]
[null,null,null,null,null,null,null,null,null,null,null,null,null,null,null,null,null,null,null,null,null,null,null,null,null,null,"Hladno vučenje šipki",24310,"24.31.0 - Hladno vučenje šipki"]
[null,null,null,null,null,null,null,null,null,null,null,null,null,null,null,null,null,null,null,null,null,null,null,null,null,null,"Hladno valjanje uskih vrpci",24320,"24.32.0 - Hladno valjanje uskih vrpci"]
[null,null,null,null,null,null,null,null,null,null,null,null,null,null,null,null,null,null,null,null,null,null,null,null,null,null,"Hladno oblikovanje i profiliranje",24330,"24.33.0 - Hladno oblikovanje i profiliranje"]
[null,null,null,null,null,null,null,null,null,null,null,null,null,null,null,null,null,null,null,null,null,null,null,null,null,null,"Hladno vučenje žica",24340,"24.34.0 - Hladno vučenje žica"]
[null,null,null,null,null,null,null,null,null,null,null,null,null,null,null,null,null,null,null,null,null,null,null,null,null,null,"Proizvodnja plemenitih metala",24410,"24.41.0 - Proizvodnja plemenitih metala"]
[null,null,null,null,null,null,null,null,null,null,null,null,null,null,null,null,null,null,null,null,null,null,null,null,null,null,"Proizvodnja aluminija",24420,"24.42.0 - Proizvodnja aluminija"]
[null,null,null,null,null,null,null,null,null,null,null,null,null,null,null,null,null,null,null,null,null,null,null,null,null,null,"Proizvodnja olova, cinka i kositra",24430,"24.43.0 - Proizvodnja olova, cinka i kositra"]
[null,null,null,null,null,null,null,null,null,null,null,null,null,null,null,null,null,null,null,null,null,null,null,null,null,null,"Proizvodnja bakra",24440,"24.44.0 - Proizvodnja bakra"]
[null,null,null,null,null,null,null,null,null,null,null,null,null,null,null,null,null,null,null,null,null,null,null,null,null,null,"Proizvodnja ostalih obojenih metala",24450,"24.45.0 - Proizvodnja ostalih obojenih metala"]
[null,null,null,null,null,null,null,null,null,null,null,null,null,null,null,null,null,null,null,null,null,null,null,null,null,null,"Obrada nuklearnoga goriva",24460,"24.46.0 - Obrada nuklearnoga goriva"]
[null,null,null,null,null,null,null,null,null,null,null,null,null,null,null,null,null,null,null,null,null,null,null,null,null,null,"Lijevanje željeza",24510,"24.51.0 - Lijevanje željeza"]
[null,null,null,null,null,null,null,null,null,null,null,null,null,null,null,null,null,null,null,null,null,null,null,null,null,null,"Lijevanje čelika",24520,"24.52.0 - Lijevanje čelika"]
[null,null,null,null,null,null,null,null,null,null,null,null,null,null,null,null,null,null,null,null,null,null,null,null,null,null,"Lijevanje lakih metala",24530,"24.53.0 - Lijevanje lakih metala"]
[null,null,null,null,null,null,null,null,null,null,null,null,null,null,null,null,null,null,null,null,null,null,null,null,null,null,"Lijevanje ostalih obojenih metala",24540,"24.54.0 - Lijevanje ostalih obojenih metala"]
[null,null,null,null,null,null,null,null,null,null,null,null,null,null,null,null,null,null,null,null,null,null,null,null,null,null,"Proizvodnja metalnih konstrukcija i njihovih dijelova",25110,"25.11.0 - Proizvodnja metalnih konstrukcija i njihovih dijelova"]
[null,null,null,null,null,null,null,null,null,null,null,null,null,null,null,null,null,null,null,null,null,null,null,null,null,null,"Proizvodnja vrata i prozora od metala",25120,"25.12.0 - Proizvodnja vrata i prozora od metala"]
[null,null,null,null,null,null,null,null,null,null,null,null,null,null,null,null,null,null,null,null,null,null,null,null,null,null,"Proizvodnja radijatora, parnih kotlova i kotlova za centralno grijanje",25210,"25.21.0 - Proizvodnja radijatora, parnih kotlova i kotlova za centralno grijanje"]
[null,null,null,null,null,null,null,null,null,null,null,null,null,null,null,null,null,null,null,null,null,null,null,null,null,null,"Proizvodnja ostalih cisterni, rezervoara i sličnih posuda od metala",25220,"25.22.0 - Proizvodnja ostalih cisterni, rezervoara i sličnih posuda od metala"]
[null,null,null,null,null,null,null,null,null,null,null,null,null,null,null,null,null,null,null,null,null,null,null,null,null,null,"Proizvodnja oružja i streljiva ",25300,"25.30.0 - Proizvodnja oružja i streljiva "]
[null,null,null,null,null,null,null,null,null,null,null,null,null,null,null,null,null,null,null,null,null,null,null,null,null,null,"Kovanje i oblikovanje metala i metalurgija praha",25400,"25.40.0 - Kovanje i oblikovanje metala i metalurgija praha"]
[null,null,null,null,null,null,null,null,null,null,null,null,null,null,null,null,null,null,null,null,null,null,null,null,null,null,"Prevlačenje metala",25510,"25.51.0 - Prevlačenje metala"]
[null,null,null,null,null,null,null,null,null,null,null,null,null,null,null,null,null,null,null,null,null,null,null,null,null,null,"Toplinska obrada metala",25520,"25.52.0 - Toplinska obrada metala"]
[null,null,null,null,null,null,null,null,null,null,null,null,null,null,null,null,null,null,null,null,null,null,null,null,null,null,"Strojna obrada metala",25530,"25.53.0 - Strojna obrada metala"]
[null,null,null,null,null,null,null,null,null,null,null,null,null,null,null,null,null,null,null,null,null,null,null,null,null,null,"Proizvodnja pribora za jelo i sječiva",25610,"25.61.0 - Proizvodnja pribora za jelo i sječiva"]
[null,null,null,null,null,null,null,null,null,null,null,null,null,null,null,null,null,null,null,null,null,null,null,null,null,null,"Proizvodnja brava i okova",25620,"25.62.0 - Proizvodnja brava i okova"]
[null,null,null,null,null,null,null,null,null,null,null,null,null,null,null,null,null,null,null,null,null,null,null,null,null,null,"Proizvodnja alata",25630,"25.63.0 - Proizvodnja alata"]
[null,null,null,null,null,null,null,null,null,null,null,null,null,null,null,null,null,null,null,null,null,null,null,null,null,null,"Proizvodnja čeličnih bačvi i sličnih posuda",25910,"25.91.0 - Proizvodnja čeličnih bačvi i sličnih posuda"]
[null,null,null,null,null,null,null,null,null,null,null,null,null,null,null,null,null,null,null,null,null,null,null,null,null,null,"Proizvodnja ambalaže od lakih metala",25920,"25.92.0 - Proizvodnja ambalaže od lakih metala"]
[null,null,null,null,null,null,null,null,null,null,null,null,null,null,null,null,null,null,null,null,null,null,null,null,null,null,"Proizvodnja proizvoda od žice, lanaca i opruga",25930,"25.93.0 - Proizvodnja proizvoda od žice, lanaca i opruga"]
[null,null,null,null,null,null,null,null,null,null,null,null,null,null,null,null,null,null,null,null,null,null,null,null,null,null,"Proizvodnja zakovica i vijčane robe",25940,"25.94.0 - Proizvodnja zakovica i vijčane robe"]
[null,null,null,null,null,null,null,null,null,null,null,null,null,null,null,null,null,null,null,null,null,null,null,null,null,null,"Proizvodnja ostalih gotovih proizvoda od metala, d. n.",25990,"25.99.0 - Proizvodnja ostalih gotovih proizvoda od metala, d. n."]
[null,null,null,null,null,null,null,null,null,null,null,null,null,null,null,null,null,null,null,null,null,null,null,null,null,null,"Proizvodnja elektroničkih komponenata",26110,"26.11.0 - Proizvodnja elektroničkih komponenata"]
[null,null,null,null,null,null,null,null,null,null,null,null,null,null,null,null,null,null,null,null,null,null,null,null,null,null,"Proizvodnja punih elektroničkih ploča",26120,"26.12.0 - Proizvodnja punih elektroničkih ploča"]
[null,null,null,null,null,null,null,null,null,null,null,null,null,null,null,null,null,null,null,null,null,null,null,null,null,null,"Proizvodnja računala i periferne opreme",26200,"26.20.0 - Proizvodnja računala i periferne opreme"]
[null,null,null,null,null,null,null,null,null,null,null,null,null,null,null,null,null,null,null,null,null,null,null,null,null,null,"Proizvodnja komunikacijske opreme",26300,"26.30.0 - Proizvodnja komunikacijske opreme"]
[null,null,null,null,null,null,null,null,null,null,null,null,null,null,null,null,null,null,null,null,null,null,null,null,null,null,"Proizvodnja elektroničkih uređaja za široku potrošnju",26400,"26.40.0 - Proizvodnja elektroničkih uređaja za široku potrošnju"]
[null,null,null,null,null,null,null,null,null,null,null,null,null,null,null,null,null,null,null,null,null,null,null,null,null,null,"Proizvodnja instrumenata i aparata za mjerenje, ispitivanje i navigaciju",26510,"26.51.0 - Proizvodnja instrumenata i aparata za mjerenje, ispitivanje i navigaciju"]
[null,null,null,null,null,null,null,null,null,null,null,null,null,null,null,null,null,null,null,null,null,null,null,null,null,null,"Proizvodnja satova",26520,"26.52.0 - Proizvodnja satova"]
[null,null,null,null,null,null,null,null,null,null,null,null,null,null,null,null,null,null,null,null,null,null,null,null,null,null,"Proizvodnja opreme za zračenje, elektromedicinske i elektroterapeutske opreme",26600,"26.60.0 - Proizvodnja opreme za zračenje, elektromedicinske i elektroterapeutske opreme"]
[null,null,null,null,null,null,null,null,null,null,null,null,null,null,null,null,null,null,null,null,null,null,null,null,null,null,"Proizvodnja optičkih instrumenata, magnetskih i optičkih medija te fotografske opreme",26700,"26.70.0 - Proizvodnja optičkih instrumenata, magnetskih i optičkih medija te fotografske opreme"]
[null,null,null,null,null,null,null,null,null,null,null,null,null,null,null,null,null,null,null,null,null,null,null,null,null,null,"Proizvodnja elektromotora, generatora i transformatora",27110,"27.11.0 - Proizvodnja elektromotora, generatora i transformatora"]
[null,null,null,null,null,null,null,null,null,null,null,null,null,null,null,null,null,null,null,null,null,null,null,null,null,null,"Proizvodnja uređaja za distribuciju i kontrolu električne energije",27120,"27.12.0 - Proizvodnja uređaja za distribuciju i kontrolu električne energije"]
[null,null,null,null,null,null,null,null,null,null,null,null,null,null,null,null,null,null,null,null,null,null,null,null,null,null,"Proizvodnja baterija i akumulatora",27200,"27.20.0 - Proizvodnja baterija i akumulatora"]
[null,null,null,null,null,null,null,null,null,null,null,null,null,null,null,null,null,null,null,null,null,null,null,null,null,null,"Proizvodnja kablova od optičkih vlakana",27310,"27.31.0 - Proizvodnja kablova od optičkih vlakana"]
[null,null,null,null,null,null,null,null,null,null,null,null,null,null,null,null,null,null,null,null,null,null,null,null,null,null,"Proizvodnja ostalih elektroničkih i električnih žica i kablova",27320,"27.32.0 - Proizvodnja ostalih elektroničkih i električnih žica i kablova"]
[null,null,null,null,null,null,null,null,null,null,null,null,null,null,null,null,null,null,null,null,null,null,null,null,null,null,"Proizvodnja elektroinstalacijskog materijala",27330,"27.33.0 - Proizvodnja elektroinstalacijskog materijala"]
[null,null,null,null,null,null,null,null,null,null,null,null,null,null,null,null,null,null,null,null,null,null,null,null,null,null,"Proizvodnja rasvjetne opreme",27400,"27.40.0 - Proizvodnja rasvjetne opreme"]
[null,null,null,null,null,null,null,null,null,null,null,null,null,null,null,null,null,null,null,null,null,null,null,null,null,null,"Proizvodnja električnih aparata za kućanstvo",27510,"27.51.0 - Proizvodnja električnih aparata za kućanstvo"]
[null,null,null,null,null,null,null,null,null,null,null,null,null,null,null,null,null,null,null,null,null,null,null,null,null,null,"Proizvodnja neelektričnih aparata za kućanstvo",27520,"27.52.0 - Proizvodnja neelektričnih aparata za kućanstvo"]
[null,null,null,null,null,null,null,null,null,null,null,null,null,null,null,null,null,null,null,null,null,null,null,null,null,null,"Proizvodnja ostale električne opreme",27900,"27.90.0 - Proizvodnja ostale električne opreme"]
[null,null,null,null,null,null,null,null,null,null,null,null,null,null,null,null,null,null,null,null,null,null,null,null,null,null,"Proizvodnja motora i turbina, osim motora za zrakoplove i motorna vozila",28110,"28.11.0 - Proizvodnja motora i turbina, osim motora za zrakoplove i motorna vozila"]
[null,null,null,null,null,null,null,null,null,null,null,null,null,null,null,null,null,null,null,null,null,null,null,null,null,null,"Proizvodnja hidrauličnih pogonskih uređaja",28120,"28.12.0 - Proizvodnja hidrauličnih pogonskih uređaja"]
[null,null,null,null,null,null,null,null,null,null,null,null,null,null,null,null,null,null,null,null,null,null,null,null,null,null,"Proizvodnja ostalih crpki i kompresora",28130,"28.13.0 - Proizvodnja ostalih crpki i kompresora"]
[null,null,null,null,null,null,null,null,null,null,null,null,null,null,null,null,null,null,null,null,null,null,null,null,null,null,"Proizvodnja ostalih slavina i ventila",28140,"28.14.0 - Proizvodnja ostalih slavina i ventila"]
[null,null,null,null,null,null,null,null,null,null,null,null,null,null,null,null,null,null,null,null,null,null,null,null,null,null,"Proizvodnja ležajeva, prijenosnika te prijenosnih i pogonskih elemenata",28150,"28.15.0 - Proizvodnja ležajeva, prijenosnika te prijenosnih i pogonskih elemenata"]
[null,null,null,null,null,null,null,null,null,null,null,null,null,null,null,null,null,null,null,null,null,null,null,null,null,null,"Proizvodnja peći, kamina  i trajne opreme za grijanje kućanstva",28210,"28.21.0 - Proizvodnja peći, kamina  i trajne opreme za grijanje kućanstva"]
[null,null,null,null,null,null,null,null,null,null,null,null,null,null,null,null,null,null,null,null,null,null,null,null,null,null,"Proizvodnja uređaja za dizanje i prenošenje ",28220,"28.22.0 - Proizvodnja uređaja za dizanje i prenošenje "]
[null,null,null,null,null,null,null,null,null,null,null,null,null,null,null,null,null,null,null,null,null,null,null,null,null,null,"Proizvodnja uredskih strojeva i opreme, osim proizvodnje računala i periferne opreme",28230,"28.23.0 - Proizvodnja uredskih strojeva i opreme, osim proizvodnje računala i periferne opreme"]
[null,null,null,null,null,null,null,null,null,null,null,null,null,null,null,null,null,null,null,null,null,null,null,null,null,null,"Proizvodnja mehaniziranog ručnog alata",28240,"28.24.0 - Proizvodnja mehaniziranog ručnog alata"]
[null,null,null,null,null,null,null,null,null,null,null,null,null,null,null,null,null,null,null,null,null,null,null,null,null,null,"Proizvodnja rashladne i ventilacijske opreme, osim za kućanstva",28250,"28.25.0 - Proizvodnja rashladne i ventilacijske opreme, osim za kućanstva"]
[null,null,null,null,null,null,null,null,null,null,null,null,null,null,null,null,null,null,null,null,null,null,null,null,null,null,"Proizvodnja ostalih strojeva za opće namjene, d. n.",28290,"28.29.0 - Proizvodnja ostalih strojeva za opće namjene, d. n."]
[null,null,null,null,null,null,null,null,null,null,null,null,null,null,null,null,null,null,null,null,null,null,null,null,null,null,"Proizvodnja strojeva za poljoprivredu i šumarstvo",28300,"28.30.0 - Proizvodnja strojeva za poljoprivredu i šumarstvo"]
[null,null,null,null,null,null,null,null,null,null,null,null,null,null,null,null,null,null,null,null,null,null,null,null,null,null,"Proizvodnja strojeva za oblikovanje metala i alatnih strojeva za obradu metala",28410,"28.41.0 - Proizvodnja strojeva za oblikovanje metala i alatnih strojeva za obradu metala"]
[null,null,null,null,null,null,null,null,null,null,null,null,null,null,null,null,null,null,null,null,null,null,null,null,null,null,"Proizvodnja ostalih alatnih strojeva",28420,"28.42.0 - Proizvodnja ostalih alatnih strojeva"]
[null,null,null,null,null,null,null,null,null,null,null,null,null,null,null,null,null,null,null,null,null,null,null,null,null,null,"Proizvodnja strojeva za metalurgiju",28910,"28.91.0 - Proizvodnja strojeva za metalurgiju"]
[null,null,null,null,null,null,null,null,null,null,null,null,null,null,null,null,null,null,null,null,null,null,null,null,null,null,"Proizvodnja strojeva za rudnike, kamenolome i građevinarstvo",28920,"28.92.0 - Proizvodnja strojeva za rudnike, kamenolome i građevinarstvo"]
[null,null,null,null,null,null,null,null,null,null,null,null,null,null,null,null,null,null,null,null,null,null,null,null,null,null,"Proizvodnja strojeva za industriju hrane, pića i duhana",28930,"28.93.0 - Proizvodnja strojeva za industriju hrane, pića i duhana"]
[null,null,null,null,null,null,null,null,null,null,null,null,null,null,null,null,null,null,null,null,null,null,null,null,null,null,"Proizvodnja strojeva za industriju tekstila, odjeće i kože",28940,"28.94.0 - Proizvodnja strojeva za industriju tekstila, odjeće i kože"]
[null,null,null,null,null,null,null,null,null,null,null,null,null,null,null,null,null,null,null,null,null,null,null,null,null,null,"Proizvodnja strojeva za industriju papira i kartona",28950,"28.95.0 - Proizvodnja strojeva za industriju papira i kartona"]
[null,null,null,null,null,null,null,null,null,null,null,null,null,null,null,null,null,null,null,null,null,null,null,null,null,null,"Proizvodnja strojeva za plastiku i gumu",28960,"28.96.0 - Proizvodnja strojeva za plastiku i gumu"]
[null,null,null,null,null,null,null,null,null,null,null,null,null,null,null,null,null,null,null,null,null,null,null,null,null,null,"Proizvodnja strojeva za aditivnu proizvodnju",28970,"28.97.0 - Proizvodnja strojeva za aditivnu proizvodnju"]
[null,null,null,null,null,null,null,null,null,null,null,null,null,null,null,null,null,null,null,null,null,null,null,null,null,null,"Proizvodnja ostalih strojeva za posebne namjene, d. n.",28990,"28.99.0 - Proizvodnja ostalih strojeva za posebne namjene, d. n."]
[null,null,null,null,null,null,null,null,null,null,null,null,null,null,null,null,null,null,null,null,null,null,null,null,null,null,"Proizvodnja motornih vozila",29100,"29.10.0 - Proizvodnja motornih vozila"]
[null,null,null,null,null,null,null,null,null,null,null,null,null,null,null,null,null,null,null,null,null,null,null,null,null,null,"Proizvodnja karoserija za motorna vozila; proizvodnja prikolica i poluprikolica",29200,"29.20.0 - Proizvodnja karoserija za motorna vozila; proizvodnja prikolica i poluprikolica"]
[null,null,null,null,null,null,null,null,null,null,null,null,null,null,null,null,null,null,null,null,null,null,null,null,null,null,"Proizvodnja električne i elektroničke opreme za motorna vozila",29310,"29.31.0 - Proizvodnja električne i elektroničke opreme za motorna vozila"]
[null,null,null,null,null,null,null,null,null,null,null,null,null,null,null,null,null,null,null,null,null,null,null,null,null,null,"Proizvodnja ostalih dijelova i pribora za motorna vozila",29320,"29.32.0 - Proizvodnja ostalih dijelova i pribora za motorna vozila"]
[null,null,null,null,null,null,null,null,null,null,null,null,null,null,null,null,null,null,null,null,null,null,null,null,null,null,"Gradnja civilnih brodova i plutajućih objekata",30110,"30.11.0 - Gradnja civilnih brodova i plutajućih objekata"]
[null,null,null,null,null,null,null,null,null,null,null,null,null,null,null,null,null,null,null,null,null,null,null,null,null,null,"Gradnja čamaca za razonodu i sportskih čamaca",30120,"30.12.0 - Gradnja čamaca za razonodu i sportskih čamaca"]
[null,null,null,null,null,null,null,null,null,null,null,null,null,null,null,null,null,null,null,null,null,null,null,null,null,null,"Gradnja vojnih brodova i plovila",30130,"30.13.0 - Gradnja vojnih brodova i plovila"]
[null,null,null,null,null,null,null,null,null,null,null,null,null,null,null,null,null,null,null,null,null,null,null,null,null,null,"Proizvodnja željezničkih lokomotiva i tračničkih vozila ",30200,"30.20.0 - Proizvodnja željezničkih lokomotiva i tračničkih vozila "]
[null,null,null,null,null,null,null,null,null,null,null,null,null,null,null,null,null,null,null,null,null,null,null,null,null,null,"Proizvodnja civilnih zrakoplova i svemirskih letjelica te srodnih strojeva i opreme",30310,"30.31.0 - Proizvodnja civilnih zrakoplova i svemirskih letjelica te srodnih strojeva i opreme"]
[null,null,null,null,null,null,null,null,null,null,null,null,null,null,null,null,null,null,null,null,null,null,null,null,null,null,"Proizvodnja vojnih zrakoplova i svemirskih letjelica te srodnih strojeva i opreme",30320,"30.32.0 - Proizvodnja vojnih zrakoplova i svemirskih letjelica te srodnih strojeva i opreme"]
[null,null,null,null,null,null,null,null,null,null,null,null,null,null,null,null,null,null,null,null,null,null,null,null,null,null,"Proizvodnja vojnih borbenih vozila",30400,"30.40.0 - Proizvodnja vojnih borbenih vozila"]
[null,null,null,null,null,null,null,null,null,null,null,null,null,null,null,null,null,null,null,null,null,null,null,null,null,null,"Proizvodnja motocikala",30910,"30.91.0 - Proizvodnja motocikala"]
[null,null,null,null,null,null,null,null,null,null,null,null,null,null,null,null,null,null,null,null,null,null,null,null,null,null,"Proizvodnja bicikala i invalidskih kolica",30920,"30.92.0 - Proizvodnja bicikala i invalidskih kolica"]
[null,null,null,null,null,null,null,null,null,null,null,null,null,null,null,null,null,null,null,null,null,null,null,null,null,null,"Proizvodnja ostalih prijevoznih sredstava, d. n.",30990,"30.99.0 - Proizvodnja ostalih prijevoznih sredstava, d. n."]
[null,null,null,null,null,null,null,null,null,null,null,null,null,null,null,null,null,null,null,null,null,null,null,null,null,null,"Proizvodnja namještaja za poslovne i prodajne prostore",31001,"31.00.1 - Proizvodnja namještaja za poslovne i prodajne prostore"]
[null,null,null,null,null,null,null,null,null,null,null,null,null,null,null,null,null,null,null,null,null,null,null,null,null,null,"Proizvodnja kuhinjskog namještaja",31002,"31.00.2 - Proizvodnja kuhinjskog namještaja"]
[null,null,null,null,null,null,null,null,null,null,null,null,null,null,null,null,null,null,null,null,null,null,null,null,null,null,"Proizvodnja madraca",31003,"31.00.3 - Proizvodnja madraca"]
[null,null,null,null,null,null,null,null,null,null,null,null,null,null,null,null,null,null,null,null,null,null,null,null,null,null,"Proizvodnja ostalog namještaja",31009,"31.00.9 - Proizvodnja ostalog namještaja"]
[null,null,null,null,null,null,null,null,null,null,null,null,null,null,null,null,null,null,null,null,null,null,null,null,null,null,"Proizvodnja kovanog novca",32110,"32.11.0 - Proizvodnja kovanog novca"]
[null,null,null,null,null,null,null,null,null,null,null,null,null,null,null,null,null,null,null,null,null,null,null,null,null,null,"Proizvodnja nakita i srodnih proizvoda",32120,"32.12.0 - Proizvodnja nakita i srodnih proizvoda"]
[null,null,null,null,null,null,null,null,null,null,null,null,null,null,null,null,null,null,null,null,null,null,null,null,null,null,"Proizvodnja imitacije nakita (bižuterije) i srodnih proizvoda",32130,"32.13.0 - Proizvodnja imitacije nakita (bižuterije) i srodnih proizvoda"]
[null,null,null,null,null,null,null,null,null,null,null,null,null,null,null,null,null,null,null,null,null,null,null,null,null,null,"Proizvodnja glazbenih instrumenata",32200,"32.20.0 - Proizvodnja glazbenih instrumenata"]
[null,null,null,null,null,null,null,null,null,null,null,null,null,null,null,null,null,null,null,null,null,null,null,null,null,null,"Proizvodnja sportske opreme",32300,"32.30.0 - Proizvodnja sportske opreme"]
[null,null,null,null,null,null,null,null,null,null,null,null,null,null,null,null,null,null,null,null,null,null,null,null,null,null,"Proizvodnja igara i igračaka",32400,"32.40.0 - Proizvodnja igara i igračaka"]
[null,null,null,null,null,null,null,null,null,null,null,null,null,null,null,null,null,null,null,null,null,null,null,null,null,null,"Proizvodnja medicinskih i stomatoloških instrumenata i pribora",32500,"32.50.0 - Proizvodnja medicinskih i stomatoloških instrumenata i pribora"]
[null,null,null,null,null,null,null,null,null,null,1,null,null,null,null,null,null,null,null,null,null,null,null,null,null,null,"Proizvodnja metli i četki",32910,"32.91.0 - Proizvodnja metli i četki"]
[null,null,null,null,null,null,null,null,null,null,"2a","osnivački ulog",{"$f":"CONCATENATE(K286,\"- \",L287)","v":"1- osnivački ulog"},null,null,null,null,null,null,null,null,null,null,null,null,null,"Ostala prerađivačka industrija, d. n.",32990,"32.99.0 - Ostala prerađivačka industrija, d. n."]
[null,null,null,null,null,null,null,null,null,null,"2b","povećanje temeljnog kapitala","2a- povećanje temeljnog kapitala",null,null,null,null,null,null,null,null,null,null,null,null,null,"Popravak i održavanje proizvoda od metala",33110,"33.11.0 - Popravak i održavanje proizvoda od metala"]
[null,null,null,null,null,null,null,null,null,null,3,"povećanje pričuva pravne osobe","2b- povećanje pričuva pravne osobe",null,null,null,null,null,null,null,null,null,null,null,null,null,"Popravak i održavanje strojeva",33120,"33.12.0 - Popravak i održavanje strojeva"]
[null,null,null,null,null,null,null,null,null,null,4,"privatizacija (otkup udjela u kapitalu od HFP)","3- privatizacija (otkup udjela u kapitalu od HFP)",null,null,null,null,null,null,null,null,null,null,null,null,null,"Popravak i održavanje elektroničke i optičke opreme",33130,"33.13.0 - Popravak i održavanje elektroničke i optičke opreme"]
[null,null,null,null,null,null,null,null,null,null,5,"preuzimanje udjela u kapitalu od drugih pravnih ili fizičkih osoba / prodaja udjela drugoj pravnoj ili fizičkoj osobi ","4- preuzimanje udjela u kapitalu od drugih pravnih ili fizičkih osoba / prodaja udjela drugoj pravnoj ili fizičkoj osobi ",null,null,null,null,null,null,null,null,null,null,null,null,null,"Popravak i održavanje električne opreme",33140,"33.14.0 - Popravak i održavanje električne opreme"]
[null,null,null,null,null,null,null,null,null,null,null,"ostalo","5- ostalo",null,null,null,null,null,null,null,null,null,null,null,null,null,"Popravak i održavanje civilnih brodova i čamaca",33150,"33.15.0 - Popravak i održavanje civilnih brodova i čamaca"]
[null,null,null,null,null,null,null,null,null,null,null,null,null,null,null,null,null,null,null,null,null,null,null,null,null,null,"Popravak i održavanje civilnih zrakoplova i svemirskih letjelica",33160,"33.16.0 - Popravak i održavanje civilnih zrakoplova i svemirskih letjelica"]
[null,null,null,null,null,null,null,null,null,null,null,null,null,null,null,null,null,null,null,null,null,null,null,null,null,null,"Popravak i održavanje ostalih civilnih prijevoznih sredstava",33170,"33.17.0 - Popravak i održavanje ostalih civilnih prijevoznih sredstava"]
[null,null,null,null,null,null,null,null,null,null,null,null,null,null,null,null,null,null,null,null,null,null,null,null,null,null,"Popravak i održavanje vojnih borbenih vozila, brodova, čamaca, zrakoplova i svemirskih letjelica",33180,"33.18.0 - Popravak i održavanje vojnih borbenih vozila, brodova, čamaca, zrakoplova i svemirskih letjelica"]
[null,null,null,null,null,null,null,null,null,null,null,null,null,null,null,null,null,null,null,null,null,null,null,null,null,null,"Popravak i održavanje ostale opreme",33190,"33.19.0 - Popravak i održavanje ostale opreme"]
[null,null,null,null,null,null,null,null,null,null,null,null,null,null,null,null,null,null,null,null,null,null,null,null,null,null,"Instalacija industrijskih strojeva i opreme",33200,"33.20.0 - Instalacija industrijskih strojeva i opreme"]
[null,null,null,null,null,null,null,null,null,null,null,null,null,null,null,null,null,null,null,null,null,null,null,null,null,null,"Proizvodnja električne energije iz neobnovljivih izvora",35110,"35.11.0 - Proizvodnja električne energije iz neobnovljivih izvora"]
[null,null,null,null,null,null,null,null,null,null,null,null,null,null,null,null,null,null,null,null,null,null,null,null,null,null,"Proizvodnja električne energije iz obnovljivih izvora",35120,"35.12.0 - Proizvodnja električne energije iz obnovljivih izvora"]
[null,null,null,null,null,null,null,null,null,null,null,null,null,null,null,null,null,null,null,null,null,null,null,null,null,null,"Prijenos električne energije",35130,"35.13.0 - Prijenos električne energije"]
[null,null,null,null,null,null,null,null,null,null,null,null,null,null,null,null,null,null,null,null,null,null,null,null,null,null,"Distribucija električne energije",35140,"35.14.0 - Distribucija električne energije"]
[null,null,null,null,null,null,null,null,null,null,null,null,null,null,null,null,null,null,null,null,null,null,null,null,null,null,"Trgovina električnom energijom",35150,"35.15.0 - Trgovina električnom energijom"]
[null,null,null,null,null,null,null,null,null,null,null,null,null,null,null,null,null,null,null,null,null,null,null,null,null,null,"Skladištenje električne energije",35160,"35.16.0 - Skladištenje električne energije"]
[null,null,null,null,null,null,null,null,null,null,null,null,null,null,null,null,null,null,null,null,null,null,null,null,null,null,"Proizvodnja plina",35210,"35.21.0 - Proizvodnja plina"]
[null,null,null,null,null,null,null,null,null,null,null,null,null,null,null,null,null,null,null,null,null,null,null,null,null,null,"Djelatnosti distribucije plina distribucijskom mrežom",35221,"35.22.1 - Djelatnosti distribucije plina distribucijskom mrežom"]
[null,null,null,null,null,null,null,null,null,null,null,null,null,null,null,null,null,null,null,null,null,null,null,null,null,null,"Djelatnosti opskrbe plinom putem distribucijske mreže",35222,"35.22.2 - Djelatnosti opskrbe plinom putem distribucijske mreže"]
[null,null,null,null,null,null,null,null,null,null,null,null,null,null,null,null,null,null,null,null,null,null,null,null,null,null,"Djelatnosti distribucije ostalih plinovitih goriva distribucijskom mrežom",35229,"35.22.9 - Djelatnosti distribucije ostalih plinovitih goriva distribucijskom mrežom"]
[null,null,null,null,null,null,null,null,null,null,null,null,null,null,null,null,null,null,null,null,null,null,null,null,null,null,"Trgovina plinom distribucijskom mrežom",35230,"35.23.0 - Trgovina plinom distribucijskom mrežom"]
[null,null,null,null,null,null,null,null,null,null,null,null,null,null,null,null,null,null,null,null,null,null,null,null,null,null,"Skladištenje plina kao dio usluge opskrbe putem mreže",35240,"35.24.0 - Skladištenje plina kao dio usluge opskrbe putem mreže"]
[null,null,null,null,null,null,null,null,null,null,null,null,null,null,null,null,null,null,null,null,null,null,null,null,null,null,"Opskrba parom i klimatizacija",35300,"35.30.0 - Opskrba parom i klimatizacija"]
[null,null,null,null,null,null,null,null,null,null,null,null,null,null,null,null,null,null,null,null,null,null,null,null,null,null,"Djelatnosti brokera i agenata za električnu energiju i plin",35400,"35.40.0 - Djelatnosti brokera i agenata za električnu energiju i plin"]
[null,null,null,null,null,null,null,null,null,null,null,null,null,null,null,null,null,null,null,null,null,null,null,null,null,null,"Zahvaćanje, pročišćavanje i opskrba vodom",36000,"36.00.0 - Zahvaćanje, pročišćavanje i opskrba vodom"]
[null,null,null,null,null,null,null,null,null,null,null,null,null,null,null,null,null,null,null,null,null,null,null,null,null,null,"Obrada otpadnih voda",37000,"37.00.0 - Obrada otpadnih voda"]
[null,null,null,null,null,null,null,null,null,null,null,null,null,null,null,null,null,null,null,null,null,null,null,null,null,null,"Sakupljanje neopasnog otpada",38110,"38.11.0 - Sakupljanje neopasnog otpada"]
[null,null,null,null,null,null,null,null,null,null,null,null,null,null,null,null,null,null,null,null,null,null,null,null,null,null,"Sakupljanje opasnog otpada",38120,"38.12.0 - Sakupljanje opasnog otpada"]
[null,null,null,null,null,null,null,null,null,null,null,null,null,null,null,null,null,null,null,null,null,null,null,null,null,null,"Oporaba materijala",38210,"38.21.0 - Oporaba materijala"]
[null,null,null,null,null,null,null,null,null,null,null,null,null,null,null,null,null,null,null,null,null,null,null,null,null,null,"Oporaba energije",38220,"38.22.0 - Oporaba energije"]
[null,null,null,null,null,null,null,null,null,null,null,null,null,null,null,null,null,null,null,null,null,null,null,null,null,null,"Ostala oporaba otpada",38230,"38.23.0 - Ostala oporaba otpada"]
[null,null,null,null,null,null,null,null,null,null,null,null,null,null,null,null,null,null,null,null,null,null,null,null,null,null,"Spaljivanje otpada bez dobivanja energije",38310,"38.31.0 - Spaljivanje otpada bez dobivanja energije"]
[null,null,null,null,null,null,null,null,null,null,null,null,null,null,null,null,null,null,null,null,null,null,null,null,null,null,"Odlaganje ili trajno skladištenje otpada",38320,"38.32.0 - Odlaganje ili trajno skladištenje otpada"]
[null,null,null,null,null,null,null,null,null,null,null,null,null,null,null,null,null,null,null,null,null,null,null,null,null,null,"Ostalo zbrinjavanje otpada",38330,"38.33.0 - Ostalo zbrinjavanje otpada"]
[null,null,null,null,null,null,null,null,null,null,null,null,null,null,null,null,null,null,null,null,null,null,null,null,null,null,"Djelatnosti sanacije okoliša i ostale djelatnosti gospodarenja otpadom",39000,"39.00.0 - Djelatnosti sanacije okoliša i ostale djelatnosti gospodarenja otpadom"]
[null,null,null,null,null,null,null,null,null,null,null,null,null,null,null,null,null,null,null,null,null,null,null,null,null,null,"Građenje stambenih i nestambenih zgrada",41000,"41.00.0 - Građenje stambenih i nestambenih zgrada"]
[null,null,null,null,null,null,null,null,null,null,null,null,null,null,null,null,null,null,null,null,null,null,null,null,null,null,"Građenje cesta i autocesta",42110,"42.11.0 - Građenje cesta i autocesta"]
[null,null,null,null,null,null,null,null,null,null,null,null,null,null,null,null,null,null,null,null,null,null,null,null,null,null,"Građenje željezničkih pruga i podzemnih željeznica",42120,"42.12.0 - Građenje željezničkih pruga i podzemnih željeznica"]
[null,null,null,null,null,null,null,null,null,null,null,null,null,null,null,null,null,null,null,null,null,null,null,null,null,null,"Građenje mostova i tunela",42130,"42.13.0 - Građenje mostova i tunela"]
[null,null,null,null,null,null,null,null,null,null,null,null,null,null,null,null,null,null,null,null,null,null,null,null,null,null,"Građenje cjevovoda za tekućine i plinove",42210,"42.21.0 - Građenje cjevovoda za tekućine i plinove"]
[null,null,null,null,null,null,null,null,null,null,null,null,null,null,null,null,null,null,null,null,null,null,null,null,null,null,"Građenje elektroenergetskih i telekomunikacijskih vodova",42220,"42.22.0 - Građenje elektroenergetskih i telekomunikacijskih vodova"]
[null,null,null,null,null,null,null,null,null,null,null,null,null,null,null,null,null,null,null,null,null,null,null,null,null,null,"Građenje vodnih građevina",42910,"42.91.0 - Građenje vodnih građevina"]
[null,null,null,null,null,null,null,null,null,null,null,null,null,null,null,null,null,null,null,null,null,null,null,null,null,null,"Građenje ostalih građevina niskogradnje, d. n.",42990,"42.99.0 - Građenje ostalih građevina niskogradnje, d. n."]
[null,null,null,null,null,null,null,null,null,null,null,null,null,null,null,null,null,null,null,null,null,null,null,null,null,null,"Uklanjanje građevina ",43110,"43.11.0 - Uklanjanje građevina "]
[null,null,null,null,null,null,null,null,null,null,null,null,null,null,null,null,null,null,null,null,null,null,null,null,null,null,"Pripremni radovi na gradilištu",43120,"43.12.0 - Pripremni radovi na gradilištu"]
[null,null,null,null,null,null,null,null,null,null,null,null,null,null,null,null,null,null,null,null,null,null,null,null,null,null,"Pokusno bušenje i sondiranje terena za gradnju",43130,"43.13.0 - Pokusno bušenje i sondiranje terena za gradnju"]
[null,null,null,null,null,null,null,null,null,null,null,null,null,null,null,null,null,null,null,null,null,null,null,null,null,null,"Elektroinstalacijski radovi ",43210,"43.21.0 - Elektroinstalacijski radovi "]
[null,null,null,null,null,null,null,null,null,null,null,null,null,null,null,null,null,null,null,null,null,null,null,null,null,null,"Uvođenje instalacija vodovoda, kanalizacije i plina te instalacija za grijanje i klimatizaciju",43220,"43.22.0 - Uvođenje instalacija vodovoda, kanalizacije i plina te instalacija za grijanje i klimatizaciju"]
[null,null,null,null,null,null,null,null,null,null,null,null,null,null,null,null,null,null,null,null,null,null,null,null,null,null,"Radovi na postavljanju izolacije",43230,"43.23.0 - Radovi na postavljanju izolacije"]
[null,null,null,null,null,null,null,null,null,null,null,null,null,null,null,null,null,null,null,null,null,null,null,null,null,null,"Ostali građevinski instalacijski radovi",43240,"43.24.0 - Ostali građevinski instalacijski radovi"]
[null,null,null,null,null,null,null,null,null,null,null,null,null,null,null,null,null,null,null,null,null,null,null,null,null,null,"Fasadni i štukaturski radovi",43310,"43.31.0 - Fasadni i štukaturski radovi"]
[null,null,null,null,null,null,null,null,null,null,null,null,null,null,null,null,null,null,null,null,null,null,null,null,null,null,"Ugradnja stolarije",43320,"43.32.0 - Ugradnja stolarije"]
[null,null,null,null,null,null,null,null,null,null,null,null,null,null,null,null,null,null,null,null,null,null,null,null,null,null,"Postavljanje podnih i zidnih obloga",43330,"43.33.0 - Postavljanje podnih i zidnih obloga"]
[null,null,null,null,null,null,null,null,null,null,null,null,null,null,null,null,null,null,null,null,null,null,null,null,null,null,"Soboslikarski i staklarski radovi",43340,"43.34.0 - Soboslikarski i staklarski radovi"]
[null,null,null,null,null,null,null,null,null,null,null,null,null,null,null,null,null,null,null,null,null,null,null,null,null,null,"Ostali završni građevinski radovi",43350,"43.35.0 - Ostali završni građevinski radovi"]
[null,null,null,null,null,null,null,null,null,null,null,null,null,null,null,null,null,null,null,null,null,null,null,null,null,null,"Radovi na krovištu",43410,"43.41.0 - Radovi na krovištu"]
[null,null,null,null,null,null,null,null,null,null,null,null,null,null,null,null,null,null,null,null,null,null,null,null,null,null,"Ostali specijalizirani građevinski radovi u gradnji zgrada",43420,"43.42.0 - Ostali specijalizirani građevinski radovi u gradnji zgrada"]
[null,null,null,null,null,null,null,null,null,null,null,null,null,null,null,null,null,null,null,null,null,null,null,null,null,null,"Specijalizirani građevinski radovi u niskogradnji",43500,"43.50.0 - Specijalizirani građevinski radovi u niskogradnji"]
[null,null,null,null,null,null,null,null,null,null,null,null,null,null,null,null,null,null,null,null,null,null,null,null,null,null,"Usluge posredovanja u pružanju specijaliziranih građevinskih usluga",43600,"43.60.0 - Usluge posredovanja u pružanju specijaliziranih građevinskih usluga"]
[null,null,null,null,null,null,null,null,null,null,null,null,null,null,null,null,null,null,null,null,null,null,null,null,null,null,"Zidarski radovi",43910,"43.91.0 - Zidarski radovi"]
[null,null,null,null,null,null,null,null,null,null,null,null,null,null,null,null,null,null,null,null,null,null,null,null,null,null,"Ostale specijalizirane građevinske djelatnosti, d. n.",43990,"43.99.0 - Ostale specijalizirane građevinske djelatnosti, d. n."]
[null,null,null,null,null,null,null,null,null,null,null,null,null,null,null,null,null,null,null,null,null,null,null,null,null,null,"Posredovanje u trgovini na veliko poljoprivrednim sirovinama, živim životinjama, tekstilnim sirovinama i poluproizvodima",46110,"46.11.0 - Posredovanje u trgovini na veliko poljoprivrednim sirovinama, živim životinjama, tekstilnim sirovinama i poluproizvodima"]
[null,null,null,null,null,null,null,null,null,null,null,null,null,null,null,null,null,null,null,null,null,null,null,null,null,null,"Posredovanje u trgovini na veliko gorivima, rudama, metalima i industrijskim kemikalijama",46120,"46.12.0 - Posredovanje u trgovini na veliko gorivima, rudama, metalima i industrijskim kemikalijama"]
[null,null,null,null,null,null,null,null,null,null,null,null,null,null,null,null,null,null,null,null,null,null,null,null,null,null,"Posredovanje u trgovini na veliko drvom i građevinskim materijalom",46130,"46.13.0 - Posredovanje u trgovini na veliko drvom i građevinskim materijalom"]
[null,null,null,null,null,null,null,null,null,null,null,null,null,null,null,null,null,null,null,null,null,null,null,null,null,null,"Posredovanje u trgovini na veliko strojevima, industrijskom opremom, brodovima i zrakoplovima",46140,"46.14.0 - Posredovanje u trgovini na veliko strojevima, industrijskom opremom, brodovima i zrakoplovima"]
[null,null,null,null,null,null,null,null,null,null,null,null,null,null,null,null,null,null,null,null,null,null,null,null,null,null,"Posredovanje u trgovini na veliko namještajem, proizvodima za kućanstvo i željeznom robom",46150,"46.15.0 - Posredovanje u trgovini na veliko namještajem, proizvodima za kućanstvo i željeznom robom"]
[null,null,null,null,null,null,null,null,null,null,null,null,null,null,null,null,null,null,null,null,null,null,null,null,null,null,"Posredovanje u trgovini na veliko tekstilom, odjećom, krznom, obućom i kožnim proizvodima",46160,"46.16.0 - Posredovanje u trgovini na veliko tekstilom, odjećom, krznom, obućom i kožnim proizvodima"]
[null,null,null,null,null,null,null,null,null,null,null,null,null,null,null,null,null,null,null,null,null,null,null,null,null,null,"Posredovanje u trgovini na veliko hranom, pićima i duhanom",46170,"46.17.0 - Posredovanje u trgovini na veliko hranom, pićima i duhanom"]
[null,null,null,null,null,null,null,null,null,null,null,null,null,null,null,null,null,null,null,null,null,null,null,null,null,null,"Posredovanje u trgovini na veliko ostalim određenim proizvodima",46180,"46.18.0 - Posredovanje u trgovini na veliko ostalim određenim proizvodima"]
[null,null,null,null,null,null,null,null,null,null,null,null,null,null,null,null,null,null,null,null,null,null,null,null,null,null,"Posredovanje u  nespecijaliziranoj trgovini na veliko ",46190,"46.19.0 - Posredovanje u  nespecijaliziranoj trgovini na veliko "]
[null,null,null,null,null,null,null,null,null,null,null,null,null,null,null,null,null,null,null,null,null,null,null,null,null,null,"Trgovina na veliko žitaricama, sirovim duhanom, sjemenjem i stočnom hranom",46210,"46.21.0 - Trgovina na veliko žitaricama, sirovim duhanom, sjemenjem i stočnom hranom"]
[null,null,null,null,null,null,null,null,null,null,null,null,null,null,null,null,null,null,null,null,null,null,null,null,null,null,"Trgovina na veliko cvijećem i sadnicama",46220,"46.22.0 - Trgovina na veliko cvijećem i sadnicama"]
[null,null,null,null,null,null,null,null,null,null,null,null,null,null,null,null,null,null,null,null,null,null,null,null,null,null,"Trgovina na veliko živim životinjama",46230,"46.23.0 - Trgovina na veliko živim životinjama"]
[null,null,null,null,null,null,null,null,null,null,null,null,null,null,null,null,null,null,null,null,null,null,null,null,null,null,"Trgovina na veliko sirovim i štavljenim kožama",46240,"46.24.0 - Trgovina na veliko sirovim i štavljenim kožama"]
[null,null,null,null,null,null,null,null,null,null,null,null,null,null,null,null,null,null,null,null,null,null,null,null,null,null,"Trgovina na veliko voćem i povrćem",46310,"46.31.0 - Trgovina na veliko voćem i povrćem"]
[null,null,null,null,null,null,null,null,null,null,null,null,null,null,null,null,null,null,null,null,null,null,null,null,null,null,"Trgovina na veliko mesom, mesnim proizvodima, ribom i ribljim proizvodima",46320,"46.32.0 - Trgovina na veliko mesom, mesnim proizvodima, ribom i ribljim proizvodima"]
[null,null,null,null,null,null,null,null,null,null,null,null,null,null,null,null,null,null,null,null,null,null,null,null,null,null,"Trgovina na veliko mlijekom, mliječnim proizvodima, jajima, jestivim uljima i mastima",46330,"46.33.0 - Trgovina na veliko mlijekom, mliječnim proizvodima, jajima, jestivim uljima i mastima"]
[null,null,null,null,null,null,null,null,null,null,null,null,null,null,null,null,null,null,null,null,null,null,null,null,null,null,"Trgovina na veliko pićima",46340,"46.34.0 - Trgovina na veliko pićima"]
[null,null,null,null,null,null,null,null,null,null,null,null,null,null,null,null,null,null,null,null,null,null,null,null,null,null,"Trgovina na veliko duhanskim proizvodima",46350,"46.35.0 - Trgovina na veliko duhanskim proizvodima"]
[null,null,null,null,null,null,null,null,null,null,null,null,null,null,null,null,null,null,null,null,null,null,null,null,null,null,"Trgovina na veliko šećerom, čokoladom i proizvodima od šećera",46360,"46.36.0 - Trgovina na veliko šećerom, čokoladom i proizvodima od šećera"]
[null,null,null,null,null,null,null,null,null,null,null,null,null,null,null,null,null,null,null,null,null,null,null,null,null,null,"Trgovina na veliko kavom, čajem, kakaom i začinima",46370,"46.37.0 - Trgovina na veliko kavom, čajem, kakaom i začinima"]
[null,null,null,null,null,null,null,null,null,null,null,null,null,null,null,null,null,null,null,null,null,null,null,null,null,null,"Trgovina na veliko ostalom hranom ",46380,"46.38.0 - Trgovina na veliko ostalom hranom "]
[null,null,null,null,null,null,null,null,null,null,null,null,null,null,null,null,null,null,null,null,null,null,null,null,null,null,"Nespecijalizirana trgovina na veliko hranom, pićima i duhanskim proizvodima",46390,"46.39.0 - Nespecijalizirana trgovina na veliko hranom, pićima i duhanskim proizvodima"]
[null,null,null,null,null,null,null,null,null,null,null,null,null,null,null,null,null,null,null,null,null,null,null,null,null,null,"Trgovina na veliko tekstilom",46410,"46.41.0 - Trgovina na veliko tekstilom"]
[null,null,null,null,null,null,null,null,null,null,null,null,null,null,null,null,null,null,null,null,null,null,null,null,null,null,"Trgovina na veliko odjećom i obućom",46420,"46.42.0 - Trgovina na veliko odjećom i obućom"]
[null,null,null,null,null,null,null,null,null,null,null,null,null,null,null,null,null,null,null,null,null,null,null,null,null,null,"Trgovina na veliko električnim aparatima za kućanstvo",46430,"46.43.0 - Trgovina na veliko električnim aparatima za kućanstvo"]
[null,null,null,null,null,null,null,null,null,null,null,null,null,null,null,null,null,null,null,null,null,null,null,null,null,null,"Trgovina na veliko porculanom, staklom i sredstvima za čišćenje",46440,"46.44.0 - Trgovina na veliko porculanom, staklom i sredstvima za čišćenje"]
[null,null,null,null,null,null,null,null,null,null,null,null,null,null,null,null,null,null,null,null,null,null,null,null,null,null,"Trgovina na veliko parfemima i kozmetikom",46450,"46.45.0 - Trgovina na veliko parfemima i kozmetikom"]
[null,null,null,null,null,null,null,null,null,null,null,null,null,null,null,null,null,null,null,null,null,null,null,null,null,null,"Trgovina na veliko farmaceutskim i medicinskim proizvodima",46460,"46.46.0 - Trgovina na veliko farmaceutskim i medicinskim proizvodima"]
[null,null,null,null,null,null,null,null,null,null,null,null,null,null,null,null,null,null,null,null,null,null,null,null,null,null,"Trgovina na veliko namještajem za kućanstva, urede i trgovine, sagovima i opremom za rasvjetu",46470,"46.47.0 - Trgovina na veliko namještajem za kućanstva, urede i trgovine, sagovima i opremom za rasvjetu"]
[null,null,null,null,null,null,null,null,null,null,null,null,null,null,null,null,null,null,null,null,null,null,null,null,null,null,"Trgovina na veliko satovima i nakitom",46480,"46.48.0 - Trgovina na veliko satovima i nakitom"]
[null,null,null,null,null,null,null,null,null,null,null,null,null,null,null,null,null,null,null,null,null,null,null,null,null,null,"Trgovina na veliko ostalim proizvodima za kućanstvo",46490,"46.49.0 - Trgovina na veliko ostalim proizvodima za kućanstvo"]
[null,null,null,null,null,null,null,null,null,null,null,null,null,null,null,null,null,null,null,null,null,null,null,null,null,null,"Trgovina na veliko informacijsko-komunikacijskom opremom",46500,"46.50.0 - Trgovina na veliko informacijsko-komunikacijskom opremom"]
[null,null,null,null,null,null,null,null,null,null,null,null,null,null,null,null,null,null,null,null,null,null,null,null,null,null,"Trgovina na veliko poljoprivrednim strojevima, opremom i priborom",46610,"46.61.0 - Trgovina na veliko poljoprivrednim strojevima, opremom i priborom"]
[null,null,null,null,null,null,null,null,null,null,null,null,null,null,null,null,null,null,null,null,null,null,null,null,null,null,"Trgovina na veliko alatnim strojevima",46620,"46.62.0 - Trgovina na veliko alatnim strojevima"]
[null,null,null,null,null,null,null,null,null,null,null,null,null,null,null,null,null,null,null,null,null,null,null,null,null,null,"Trgovina na veliko strojevima za rudarstvo i građevinarstvo",46630,"46.63.0 - Trgovina na veliko strojevima za rudarstvo i građevinarstvo"]
[null,null,null,null,null,null,null,null,null,null,null,null,null,null,null,null,null,null,null,null,null,null,null,null,null,null,"Trgovina na veliko ostalim strojevima i opremom",46640,"46.64.0 - Trgovina na veliko ostalim strojevima i opremom"]
[null,null,null,null,null,null,null,null,null,null,null,null,null,null,null,null,null,null,null,null,null,null,null,null,null,null,"Trgovina na veliko motornim vozilima",46710,"46.71.0 - Trgovina na veliko motornim vozilima"]
[null,null,null,null,null,null,null,null,null,null,null,null,null,null,null,null,null,null,null,null,null,null,null,null,null,null,"Trgovina na veliko dijelovima i priborom za motorna vozila",46720,"46.72.0 - Trgovina na veliko dijelovima i priborom za motorna vozila"]
[null,null,null,null,null,null,null,null,null,null,null,null,null,null,null,null,null,null,null,null,null,null,null,null,null,null,"Trgovina na veliko motociklima te dijelovima i priborom za motocikle",46730,"46.73.0 - Trgovina na veliko motociklima te dijelovima i priborom za motocikle"]
[null,null,null,null,null,null,null,null,null,null,null,null,null,null,null,null,null,null,null,null,null,null,null,null,null,null,"Trgovina na veliko krutim, tekućim i plinovitim gorivima i srodnim proizvodima",46810,"46.81.0 - Trgovina na veliko krutim, tekućim i plinovitim gorivima i srodnim proizvodima"]
[null,null,null,null,null,null,null,null,null,null,null,null,null,null,null,null,null,null,null,null,null,null,null,null,null,null,"Trgovina na veliko metalima i metalnim rudama",46820,"46.82.0 - Trgovina na veliko metalima i metalnim rudama"]
[null,null,null,null,null,null,null,null,null,null,null,null,null,null,null,null,null,null,null,null,null,null,null,null,null,null,"Trgovina na veliko drvom, građevinskim materijalom i sanitarnom opremom",46830,"46.83.0 - Trgovina na veliko drvom, građevinskim materijalom i sanitarnom opremom"]
[null,null,null,null,null,null,null,null,null,null,null,null,null,null,null,null,null,null,null,null,null,null,null,null,null,null,"Trgovina na veliko željeznom robom, instalacijskim materijalom i opremom za vodovod i grijanje",46840,"46.84.0 - Trgovina na veliko željeznom robom, instalacijskim materijalom i opremom za vodovod i grijanje"]
[null,null,null,null,null,null,null,null,null,null,null,null,null,null,null,null,null,null,null,null,null,null,null,null,null,null,"Trgovina na veliko kemijskim proizvodima",46850,"46.85.0 - Trgovina na veliko kemijskim proizvodima"]
[null,null,null,null,null,null,null,null,null,null,null,null,null,null,null,null,null,null,null,null,null,null,null,null,null,null,"Trgovina na veliko ostalim poluproizvodima",46860,"46.86.0 - Trgovina na veliko ostalim poluproizvodima"]
[null,null,null,null,null,null,null,null,null,null,null,null,null,null,null,null,null,null,null,null,null,null,null,null,null,null,"Trgovina na veliko ostacima i otpacima",46870,"46.87.0 - Trgovina na veliko ostacima i otpacima"]
[null,null,null,null,null,null,null,null,null,null,null,null,null,null,null,null,null,null,null,null,null,null,null,null,null,null,"Ostala specijalizirana trgovina na veliko, d. n.",46890,"46.89.0 - Ostala specijalizirana trgovina na veliko, d. n."]
[null,null,null,null,null,null,null,null,null,null,null,null,null,null,null,null,null,null,null,null,null,null,null,null,null,null,"Nespecijalizirana trgovina na veliko",46900,"46.90.0 - Nespecijalizirana trgovina na veliko"]
[null,null,null,null,null,null,null,null,null,null,null,null,null,null,null,null,null,null,null,null,null,null,null,null,null,null,"Nespecijalizirana trgovina na malo pretežno hranom, pićima i duhanskim proizvodima",47110,"47.11.0 - Nespecijalizirana trgovina na malo pretežno hranom, pićima i duhanskim proizvodima"]
[null,null,null,null,null,null,null,null,null,null,null,null,null,null,null,null,null,null,null,null,null,null,null,null,null,null,"Ostala nespecijalizirana trgovina na malo",47120,"47.12.0 - Ostala nespecijalizirana trgovina na malo"]
[null,null,null,null,null,null,null,null,null,null,null,null,null,null,null,null,null,null,null,null,null,null,null,null,null,null,"Trgovina na malo voćem i povrćem",47210,"47.21.0 - Trgovina na malo voćem i povrćem"]
[null,null,null,null,null,null,null,null,null,null,null,null,null,null,null,null,null,null,null,null,null,null,null,null,null,null,"Trgovina na malo mesom i mesnim proizvodima",47220,"47.22.0 - Trgovina na malo mesom i mesnim proizvodima"]
[null,null,null,null,null,null,null,null,null,null,null,null,null,null,null,null,null,null,null,null,null,null,null,null,null,null,"Trgovina na malo ribama, rakovima i mekušcima",47230,"47.23.0 - Trgovina na malo ribama, rakovima i mekušcima"]
[null,null,null,null,null,null,null,null,null,null,null,null,null,null,null,null,null,null,null,null,null,null,null,null,null,null,"Trgovina na malo kruhom, kolačima i slatkim proizvodima",47240,"47.24.0 - Trgovina na malo kruhom, kolačima i slatkim proizvodima"]
[null,null,null,null,null,null,null,null,null,null,null,null,null,null,null,null,null,null,null,null,null,null,null,null,null,null,"Trgovina na malo pićima ",47250,"47.25.0 - Trgovina na malo pićima "]
[null,null,null,null,null,null,null,null,null,null,null,null,null,null,null,null,null,null,null,null,null,null,null,null,null,null,"Trgovina na malo duhanskim proizvodima",47260,"47.26.0 - Trgovina na malo duhanskim proizvodima"]
[null,null,null,null,null,null,null,null,null,null,null,null,null,null,null,null,null,null,null,null,null,null,null,null,null,null,"Trgovina na malo ostalim prehrambenim proizvodima",47270,"47.27.0 - Trgovina na malo ostalim prehrambenim proizvodima"]
[null,null,null,null,null,null,null,null,null,null,null,null,null,null,null,null,null,null,null,null,null,null,null,null,null,null,"Trgovina na malo motornim gorivima i mazivima ",47300,"47.30.0 - Trgovina na malo motornim gorivima i mazivima "]
[null,null,null,null,null,null,null,null,null,null,null,null,null,null,null,null,null,null,null,null,null,null,null,null,null,null,"Trgovina na malo informacijsko-komunikacijskom opremom",47400,"47.40.0 - Trgovina na malo informacijsko-komunikacijskom opremom"]
[null,null,null,null,null,null,null,null,null,null,null,null,null,null,null,null,null,null,null,null,null,null,null,null,null,null,"Trgovina na malo tekstilom",47510,"47.51.0 - Trgovina na malo tekstilom"]
[null,null,null,null,null,null,null,null,null,null,null,null,null,null,null,null,null,null,null,null,null,null,null,null,null,null,"Trgovina na malo željeznom robom, građevinskim materijalom, bojama i staklom ",47520,"47.52.0 - Trgovina na malo željeznom robom, građevinskim materijalom, bojama i staklom "]
[null,null,null,null,null,null,null,null,null,null,null,null,null,null,null,null,null,null,null,null,null,null,null,null,null,null,"Trgovina na malo sagovima, prostirkama za pod, zidnim i podnim oblogama",47530,"47.53.0 - Trgovina na malo sagovima, prostirkama za pod, zidnim i podnim oblogama"]
[null,null,null,null,null,null,null,null,null,null,null,null,null,null,null,null,null,null,null,null,null,null,null,null,null,null,"Trgovina na malo električnim aparatima za kućanstvo",47540,"47.54.0 - Trgovina na malo električnim aparatima za kućanstvo"]
[null,null,null,null,null,null,null,null,null,null,null,null,null,null,null,null,null,null,null,null,null,null,null,null,null,null,"Trgovina na malo namještajem, opremom za rasvjetu, stolnim posuđem i ostalim proizvodima za kućanstvo",47550,"47.55.0 - Trgovina na malo namještajem, opremom za rasvjetu, stolnim posuđem i ostalim proizvodima za kućanstvo"]
[null,null,null,null,null,null,null,null,null,null,null,null,null,null,null,null,null,null,null,null,null,null,null,null,null,null,"Trgovina na malo knjigama",47610,"47.61.0 - Trgovina na malo knjigama"]
[null,null,null,null,null,null,null,null,null,null,null,null,null,null,null,null,null,null,null,null,null,null,null,null,null,null,"Trgovina na malo novinama i ostalim periodičnim publikacijama te papirnatom robom i pisaćim priborom",47620,"47.62.0 - Trgovina na malo novinama i ostalim periodičnim publikacijama te papirnatom robom i pisaćim priborom"]
[null,null,null,null,null,null,null,null,null,null,null,null,null,null,null,null,null,null,null,null,null,null,null,null,null,null,"Trgovina na malo sportskom opremom",47630,"47.63.0 - Trgovina na malo sportskom opremom"]
[null,null,null,null,null,null,null,null,null,null,null,null,null,null,null,null,null,null,null,null,null,null,null,null,null,null,"Trgovina na malo igrama i igračkama",47640,"47.64.0 - Trgovina na malo igrama i igračkama"]
[null,null,null,null,null,null,null,null,null,null,null,null,null,null,null,null,null,null,null,null,null,null,null,null,null,null,"Trgovina na malo proizvodima za kulturu i rekreaciju, d. n.",47690,"47.69.0 - Trgovina na malo proizvodima za kulturu i rekreaciju, d. n."]
[null,null,null,null,null,null,null,null,null,null,null,null,null,null,null,null,null,null,null,null,null,null,null,null,null,null,"Trgovina na malo odjećom",47710,"47.71.0 - Trgovina na malo odjećom"]
[null,null,null,null,null,null,null,null,null,null,null,null,null,null,null,null,null,null,null,null,null,null,null,null,null,null,"Trgovina na malo obućom i proizvodima od kože ",47720,"47.72.0 - Trgovina na malo obućom i proizvodima od kože "]
[null,null,null,null,null,null,null,null,null,null,null,null,null,null,null,null,null,null,null,null,null,null,null,null,null,null,"Trgovina na malo farmaceutskim proizvodima",47730,"47.73.0 - Trgovina na malo farmaceutskim proizvodima"]
[null,null,null,null,null,null,null,null,null,null,null,null,null,null,null,null,null,null,null,null,null,null,null,null,null,null,"Trgovina na malo naočalama",47741,"47.74.1 - Trgovina na malo naočalama"]
[null,null,null,null,null,null,null,null,null,null,null,null,null,null,null,null,null,null,null,null,null,null,null,null,null,null,"Trgovina na malo ostalim medicinskim i ortopedskim proizvodima",47749,"47.74.9 - Trgovina na malo ostalim medicinskim i ortopedskim proizvodima"]
[null,null,null,null,null,null,null,null,null,null,null,null,null,null,null,null,null,null,null,null,null,null,null,null,null,null,"Trgovina na malo kozmetičkim i toaletnim proizvodima",47750,"47.75.0 - Trgovina na malo kozmetičkim i toaletnim proizvodima"]
[null,null,null,null,null,null,null,null,null,null,null,null,null,null,null,null,null,null,null,null,null,null,null,null,null,null,"Trgovina na malo cvijećem",47761,"47.76.1 - Trgovina na malo cvijećem"]
[null,null,null,null,null,null,null,null,null,null,null,null,null,null,null,null,null,null,null,null,null,null,null,null,null,null,"Trgovina na malo sadnicama i gnojivom",47762,"47.76.2 - Trgovina na malo sadnicama i gnojivom"]
[null,null,null,null,null,null,null,null,null,null,null,null,null,null,null,null,null,null,null,null,null,null,null,null,null,null,"Trgovina na malo kućnim ljubimcima i hranom za kućne ljubimce",47763,"47.76.3 - Trgovina na malo kućnim ljubimcima i hranom za kućne ljubimce"]
[null,null,null,null,null,null,null,null,null,null,null,null,null,null,null,null,null,null,null,null,null,null,null,null,null,null,"Trgovina na malo satovima i nakitom",47770,"47.77.0 - Trgovina na malo satovima i nakitom"]
[null,null,null,null,null,null,null,null,null,null,null,null,null,null,null,null,null,null,null,null,null,null,null,null,null,null,"Trgovina na malo ostalom novom robom",47780,"47.78.0 - Trgovina na malo ostalom novom robom"]
[null,null,null,null,null,null,null,null,null,null,null,null,null,null,null,null,null,null,null,null,null,null,null,null,null,null,"Trgovina na malo rabljenom robom",47790,"47.79.0 - Trgovina na malo rabljenom robom"]
[null,null,null,null,null,null,null,null,null,null,null,null,null,null,null,null,null,null,null,null,null,null,null,null,null,null,"Trgovina na malo motornim vozilima",47810,"47.81.0 - Trgovina na malo motornim vozilima"]
[null,null,null,null,null,null,null,null,null,null,null,null,null,null,null,null,null,null,null,null,null,null,null,null,null,null,"Trgovina na malo dijelovima i priborom za motorna vozila",47820,"47.82.0 - Trgovina na malo dijelovima i priborom za motorna vozila"]
[null,null,null,null,null,null,null,null,null,null,null,null,null,null,null,null,null,null,null,null,null,null,null,null,null,null,"Trgovina na malo motociklima, njihovim dijelovima i priborom",47830,"47.83.0 - Trgovina na malo motociklima, njihovim dijelovima i priborom"]
[null,null,null,null,null,null,null,null,null,null,null,null,null,null,null,null,null,null,null,null,null,null,null,null,null,null,"Uslužne djelatnosti posredovanja u nespecijaliziranoj trgovini na malo",47910,"47.91.0 - Uslužne djelatnosti posredovanja u nespecijaliziranoj trgovini na malo"]
[null,null,null,null,null,null,null,null,null,null,null,null,null,null,null,null,null,null,null,null,null,null,null,null,null,null,"Uslužne djelatnosti posredovanja u specijaliziranoj trgovini na malo",47920,"47.92.0 - Uslužne djelatnosti posredovanja u specijaliziranoj trgovini na malo"]
[null,null,null,null,null,null,null,null,null,null,null,null,null,null,null,null,null,null,null,null,null,null,null,null,null,null,"Prijevoz putnika nacionalnom i međunarodnom željeznicom",49110,"49.11.0 - Prijevoz putnika nacionalnom i međunarodnom željeznicom"]
[null,null,null,null,null,null,null,null,null,null,null,null,null,null,null,null,null,null,null,null,null,null,null,null,null,null,"Ostali željeznički prijevoz putnika",49120,"49.12.0 - Ostali željeznički prijevoz putnika"]
[null,null,null,null,null,null,null,null,null,null,null,null,null,null,null,null,null,null,null,null,null,null,null,null,null,null,"Željeznički prijevoz robe",49200,"49.20.0 - Željeznički prijevoz robe"]
[null,null,null,null,null,null,null,null,null,null,null,null,null,null,null,null,null,null,null,null,null,null,null,null,null,null,"Linijski cestovni prijevoz putnika",49310,"49.31.0 - Linijski cestovni prijevoz putnika"]
[null,null,null,null,null,null,null,null,null,null,null,null,null,null,null,null,null,null,null,null,null,null,null,null,null,null,"Povremeni cestovni prijevoz putnika",49320,"49.32.0 - Povremeni cestovni prijevoz putnika"]
[null,null,null,null,null,null,null,null,null,null,null,null,null,null,null,null,null,null,null,null,null,null,null,null,null,null,"Uslužne djelatnosti prijevoza putnika vozilom s vozačem na zahtjev",49330,"49.33.0 - Uslužne djelatnosti prijevoza putnika vozilom s vozačem na zahtjev"]
[null,null,null,null,null,null,null,null,null,null,null,null,null,null,null,null,null,null,null,null,null,null,null,null,null,null,"Prijevoz putnika žičarom i vučnicom",49340,"49.34.0 - Prijevoz putnika žičarom i vučnicom"]
[null,null,null,null,null,null,null,null,null,null,null,null,null,null,null,null,null,null,null,null,null,null,null,null,null,null,"Ostali kopneni prijevoz putnika, d. n.",49390,"49.39.0 - Ostali kopneni prijevoz putnika, d. n."]
[null,null,null,null,null,null,null,null,null,null,null,null,null,null,null,null,null,null,null,null,null,null,null,null,null,null,"Cestovni prijevoz robe",49410,"49.41.0 - Cestovni prijevoz robe"]
[null,null,null,null,null,null,null,null,null,null,null,null,null,null,null,null,null,null,null,null,null,null,null,null,null,null,"Usluge preseljenja",49420,"49.42.0 - Usluge preseljenja"]
[null,null,null,null,null,null,null,null,null,null,null,null,null,null,null,null,null,null,null,null,null,null,null,null,null,null,"Cjevovodni transport",49500,"49.50.0 - Cjevovodni transport"]
[null,null,null,null,null,null,null,null,null,null,null,null,null,null,null,null,null,null,null,null,null,null,null,null,null,null,"Prijevoz putnika na plovilima za kružna putovanja i izlete",50101,"50.10.1 - Prijevoz putnika na plovilima za kružna putovanja i izlete"]
[null,null,null,null,null,null,null,null,null,null,null,null,null,null,null,null,null,null,null,null,null,null,null,null,null,null,"Ostali pomorski i obalni prijevoz putnika",50109,"50.10.9 - Ostali pomorski i obalni prijevoz putnika"]
[null,null,null,null,null,null,null,null,null,null,null,null,null,null,null,null,null,null,null,null,null,null,null,null,null,null,"Pomorski i obalni prijevoz robe",50200,"50.20.0 - Pomorski i obalni prijevoz robe"]
[null,null,null,null,null,null,null,null,null,null,null,null,null,null,null,null,null,null,null,null,null,null,null,null,null,null,"Prijevoz putnika unutarnjim vodnim putovima",50300,"50.30.0 - Prijevoz putnika unutarnjim vodnim putovima"]
[null,null,null,null,null,null,null,null,null,null,null,null,null,null,null,null,null,null,null,null,null,null,null,null,null,null,"Prijevoz robe unutarnjim vodnim putovima",50400,"50.40.0 - Prijevoz robe unutarnjim vodnim putovima"]
[null,null,null,null,null,null,null,null,null,null,null,null,null,null,null,null,null,null,null,null,null,null,null,null,null,null,"Zračni prijevoz putnika",51100,"51.10.0 - Zračni prijevoz putnika"]
[null,null,null,null,null,null,null,null,null,null,null,null,null,null,null,null,null,null,null,null,null,null,null,null,null,null,"Zračni prijevoz robe",51210,"51.21.0 - Zračni prijevoz robe"]
[null,null,null,null,null,null,null,null,null,null,null,null,null,null,null,null,null,null,null,null,null,null,null,null,null,null,"Svemirski prijevoz",51220,"51.22.0 - Svemirski prijevoz"]
[null,null,null,null,null,null,null,null,null,null,null,null,null,null,null,null,null,null,null,null,null,null,null,null,null,null,"Skladištenje robe",52100,"52.10.0 - Skladištenje robe"]
[null,null,null,null,null,null,null,null,null,null,null,null,null,null,null,null,null,null,null,null,null,null,null,null,null,null,"Uslužne djelatnosti u vezi s kopnenim prijevozom",52210,"52.21.0 - Uslužne djelatnosti u vezi s kopnenim prijevozom"]
[null,null,null,null,null,null,null,null,null,null,null,null,null,null,null,null,null,null,null,null,null,null,null,null,null,null,"Uslužne djelatnosti u vezi s vodnim prijevozom",52220,"52.22.0 - Uslužne djelatnosti u vezi s vodnim prijevozom"]
[null,null,null,null,null,null,null,null,null,null,null,null,null,null,null,null,null,null,null,null,null,null,null,null,null,null,"Uslužne djelatnosti u vezi sa zračnim prijevozom",52230,"52.23.0 - Uslužne djelatnosti u vezi sa zračnim prijevozom"]
[null,null,null,null,null,null,null,null,null,null,null,null,null,null,null,null,null,null,null,null,null,null,null,null,null,null,"Prekrcaj tereta",52240,"52.24.0 - Prekrcaj tereta"]
[null,null,null,null,null,null,null,null,null,null,null,null,null,null,null,null,null,null,null,null,null,null,null,null,null,null,"Uslužne djelatnosti u logistici",52250,"52.25.0 - Uslužne djelatnosti u logistici"]
[null,null,null,null,null,null,null,null,null,null,null,null,null,null,null,null,null,null,null,null,null,null,null,null,null,null,"Ostale prateće djelatnosti u prijevozu",52260,"52.26.0 - Ostale prateće djelatnosti u prijevozu"]
[null,null,null,null,null,null,null,null,null,null,null,null,null,null,null,null,null,null,null,null,null,null,null,null,null,null,"Uslužne djelatnosti posredovanja u prijevozu robe",52310,"52.31.0 - Uslužne djelatnosti posredovanja u prijevozu robe"]
[null,null,null,null,null,null,null,null,null,null,null,null,null,null,null,null,null,null,null,null,null,null,null,null,null,null,"Uslužne djelatnosti posredovanja u prijevozu putnika",52320,"52.32.0 - Uslužne djelatnosti posredovanja u prijevozu putnika"]
[null,null,null,null,null,null,null,null,null,null,null,null,null,null,null,null,null,null,null,null,null,null,null,null,null,null,"Djelatnosti pružanja univerzalnih poštanskih usluga",53100,"53.10.0 - Djelatnosti pružanja univerzalnih poštanskih usluga"]
[null,null,null,null,null,null,null,null,null,null,null,null,null,null,null,null,null,null,null,null,null,null,null,null,null,null,"Djelatnosti pružanja ostalih poštanskih i kurirskih usluga",53200,"53.20.0 - Djelatnosti pružanja ostalih poštanskih i kurirskih usluga"]
[null,null,null,null,null,null,null,null,null,null,null,null,null,null,null,null,null,null,null,null,null,null,null,null,null,null,"Uslužne djelatnosti posredovanja u pružanju poštanskih i kurirskih usluga ",53300,"53.30.0 - Uslužne djelatnosti posredovanja u pružanju poštanskih i kurirskih usluga "]
[null,null,null,null,null,null,null,null,null,null,null,null,null,null,null,null,null,null,null,null,null,null,null,null,null,null,"Hoteli i sličan smještaj",55100,"55.10.0 - Hoteli i sličan smještaj"]
[null,null,null,null,null,null,null,null,null,null,null,null,null,null,null,null,null,null,null,null,null,null,null,null,null,null,"Odmarališta i slični objekti za kraći odmor",55200,"55.20.0 - Odmarališta i slični objekti za kraći odmor"]
[null,null,null,null,null,null,null,null,null,null,null,null,null,null,null,null,null,null,null,null,null,null,null,null,null,null,"Kampovi i prostori za kampiranje",55300,"55.30.0 - Kampovi i prostori za kampiranje"]
[null,null,null,null,null,null,null,null,null,null,null,null,null,null,null,null,null,null,null,null,null,null,null,null,null,null,"Uslužne djelatnosti posredovanja u pružanju smještaja",55400,"55.40.0 - Uslužne djelatnosti posredovanja u pružanju smještaja"]
[null,null,null,null,null,null,null,null,null,null,null,null,null,null,null,null,null,null,null,null,null,null,null,null,null,null,"Ostali smještaj",55900,"55.90.0 - Ostali smještaj"]
[null,null,null,null,null,null,null,null,null,null,null,null,null,null,null,null,null,null,null,null,null,null,null,null,null,null,"Djelatnosti restorana",56110,"56.11.0 - Djelatnosti restorana"]
[null,null,null,null,null,null,null,null,null,null,null,null,null,null,null,null,null,null,null,null,null,null,null,null,null,null,"Pokretne djelatnosti usluživanja hrane",56120,"56.12.0 - Pokretne djelatnosti usluživanja hrane"]
[null,null,null,null,null,null,null,null,null,null,null,null,null,null,null,null,null,null,null,null,null,null,null,null,null,null,"Djelatnosti keteringa za razna događanja",56210,"56.21.0 - Djelatnosti keteringa za razna događanja"]
[null,null,null,null,null,null,null,null,null,null,null,null,null,null,null,null,null,null,null,null,null,null,null,null,null,null,"Usluge keteringa na osnovi ugovora i ostale djelatnosti pripreme i usluživanja hrane",56220,"56.22.0 - Usluge keteringa na osnovi ugovora i ostale djelatnosti pripreme i usluživanja hrane"]
[null,null,null,null,null,null,null,null,null,null,null,null,null,null,null,null,null,null,null,null,null,null,null,null,null,null,"Djelatnosti pripreme i usluživanja pića",56300,"56.30.0 - Djelatnosti pripreme i usluživanja pića"]
[null,null,null,null,null,null,null,null,null,null,null,null,null,null,null,null,null,null,null,null,null,null,null,null,null,null,"Uslužne djelatnosti posredovanja u pripremi i usluživanju hrane i pića",56400,"56.40.0 - Uslužne djelatnosti posredovanja u pripremi i usluživanju hrane i pića"]
[null,null,null,null,null,null,null,null,null,null,null,null,null,null,null,null,null,null,null,null,null,null,null,null,null,null,"Izdavanje udžbenika",58111,"58.11.1 - Izdavanje udžbenika"]
[null,null,null,null,null,null,null,null,null,null,null,null,null,null,null,null,null,null,null,null,null,null,null,null,null,null,"Izdavanje ostalih knjiga",58119,"58.11.9 - Izdavanje ostalih knjiga"]
[null,null,null,null,null,null,null,null,null,null,null,null,null,null,null,null,null,null,null,null,null,null,null,null,null,null,"Izdavanje novina",58120,"58.12.0 - Izdavanje novina"]
[null,null,null,null,null,null,null,null,null,null,null,null,null,null,null,null,null,null,null,null,null,null,null,null,null,null,"Izdavanje časopisa i periodičnih publikacija",58130,"58.13.0 - Izdavanje časopisa i periodičnih publikacija"]
[null,null,null,null,null,null,null,null,null,null,null,null,null,null,null,null,null,null,null,null,null,null,null,null,null,null,"Ostale izdavačke djelatnosti, osim izdavanja softvera",58190,"58.19.0 - Ostale izdavačke djelatnosti, osim izdavanja softvera"]
[null,null,null,null,null,null,null,null,null,null,null,null,null,null,null,null,null,null,null,null,null,null,null,null,null,null,"Izdavanje videoigara",58210,"58.21.0 - Izdavanje videoigara"]
[null,null,null,null,null,null,null,null,null,null,null,null,null,null,null,null,null,null,null,null,null,null,null,null,null,null,"Ostalo izdavanje softvera",58290,"58.29.0 - Ostalo izdavanje softvera"]
[null,null,null,null,null,null,null,null,null,null,null,null,null,null,null,null,null,null,null,null,null,null,null,null,null,null,"Proizvodnja filmova, videofilmova i televizijskog programa",59110,"59.11.0 - Proizvodnja filmova, videofilmova i televizijskog programa"]
[null,null,null,null,null,null,null,null,null,null,null,null,null,null,null,null,null,null,null,null,null,null,null,null,null,null,"Djelatnosti koje slijede nakon proizvodnje filmova i videofilmova i televizijskog programa",59120,"59.12.0 - Djelatnosti koje slijede nakon proizvodnje filmova i videofilmova i televizijskog programa"]
[null,null,null,null,null,null,null,null,null,null,null,null,null,null,null,null,null,null,null,null,null,null,null,null,null,null,"Distribucija filmova, videofilmova i televizijskog programa",59130,"59.13.0 - Distribucija filmova, videofilmova i televizijskog programa"]
[null,null,null,null,null,null,null,null,null,null,null,null,null,null,null,null,null,null,null,null,null,null,null,null,null,null,"Djelatnosti prikazivanja filmova",59140,"59.14.0 - Djelatnosti prikazivanja filmova"]
[null,null,null,null,null,null,null,null,null,null,null,null,null,null,null,null,null,null,null,null,null,null,null,null,null,null,"Djelatnosti snimanja zvučnih zapisa i izdavanja glazbenih zapisa",59200,"59.20.0 - Djelatnosti snimanja zvučnih zapisa i izdavanja glazbenih zapisa"]
[null,null,null,null,null,null,null,null,null,null,null,null,null,null,null,null,null,null,null,null,null,null,null,null,null,null,"Emitiranje radijskog programa i distribucija audio sadržaja",60100,"60.10.0 - Emitiranje radijskog programa i distribucija audio sadržaja"]
[null,null,null,null,null,null,null,null,null,null,null,null,null,null,null,null,null,null,null,null,null,null,null,null,null,null,"Emitiranje televizijskog programa i video distribucija",60200,"60.20.0 - Emitiranje televizijskog programa i video distribucija"]
[null,null,null,null,null,null,null,null,null,null,null,null,null,null,null,null,null,null,null,null,null,null,null,null,null,null,"Djelatnosti novinskih agencija",60310,"60.31.0 - Djelatnosti novinskih agencija"]
[null,null,null,null,null,null,null,null,null,null,null,null,null,null,null,null,null,null,null,null,null,null,null,null,null,null,"Ostale djelatnosti distribucije sadržaja",60390,"60.39.0 - Ostale djelatnosti distribucije sadržaja"]
[null,null,null,null,null,null,null,null,null,null,null,null,null,null,null,null,null,null,null,null,null,null,null,null,null,null,"Žičane, bežične i satelitske telekomunikacijske djelatnosti",61100,"61.10.0 - Žičane, bežične i satelitske telekomunikacijske djelatnosti"]
[null,null,null,null,null,null,null,null,null,null,null,null,null,null,null,null,null,null,null,null,null,null,null,null,null,null,"Djelatnosti preprodaje telekomunikacijskih usluga i usluge posredovanja u telekomunikacijskim djelatnostima",61200,"61.20.0 - Djelatnosti preprodaje telekomunikacijskih usluga i usluge posredovanja u telekomunikacijskim djelatnostima"]
[null,null,null,null,null,null,null,null,null,null,null,null,null,null,null,null,null,null,null,null,null,null,null,null,null,null,"Ostale telekomunikacijske djelatnosti",61900,"61.90.0 - Ostale telekomunikacijske djelatnosti"]
[null,null,null,null,null,null,null,null,null,null,null,null,null,null,null,null,null,null,null,null,null,null,null,null,null,null,"Programiranje videoigara",62101,"62.10.1 - Programiranje videoigara"]
[null,null,null,null,null,null,null,null,null,null,null,null,null,null,null,null,null,null,null,null,null,null,null,null,null,null,"Ostalo računalno programiranje",62109,"62.10.9 - Ostalo računalno programiranje"]
[null,null,null,null,null,null,null,null,null,null,null,null,null,null,null,null,null,null,null,null,null,null,null,null,null,null,"Računalno savjetovanje i djelatnosti upravljanja računalnom opremom",62200,"62.20.0 - Računalno savjetovanje i djelatnosti upravljanja računalnom opremom"]
[null,null,null,null,null,null,null,null,null,null,null,null,null,null,null,null,null,null,null,null,null,null,null,null,null,null,"Ostale uslužne djelatnosti u vezi s informacijskom tehnologijom i računalima",62900,"62.90.0 - Ostale uslužne djelatnosti u vezi s informacijskom tehnologijom i računalima"]
[null,null,null,null,null,null,null,null,null,null,null,null,null,null,null,null,null,null,null,null,null,null,null,null,null,null,"Računalna infrastruktura, obrada podataka, usluge poslužitelja i povezane djelatnosti",63100,"63.10.0 - Računalna infrastruktura, obrada podataka, usluge poslužitelja i povezane djelatnosti"]
[null,null,null,null,null,null,null,null,null,null,null,null,null,null,null,null,null,null,null,null,null,null,null,null,null,null,"Djelatnosti internetskih portala",63910,"63.91.0 - Djelatnosti internetskih portala"]
[null,null,null,null,null,null,null,null,null,null,null,null,null,null,null,null,null,null,null,null,null,null,null,null,null,null,"Ostale informacijske uslužne djelatnosti",63920,"63.92.0 - Ostale informacijske uslužne djelatnosti"]
[null,null,null,null,null,null,null,null,null,null,null,null,null,null,null,null,null,null,null,null,null,null,null,null,null,null,"Središnje bankarstvo",64110,"64.11.0 - Središnje bankarstvo"]
[null,null,null,null,null,null,null,null,null,null,null,null,null,null,null,null,null,null,null,null,null,null,null,null,null,null,"Ostalo novčarsko posredovanje",64190,"64.19.0 - Ostalo novčarsko posredovanje"]
[null,null,null,null,null,null,null,null,null,null,null,null,null,null,null,null,null,null,null,null,null,null,null,null,null,null,"Djelatnosti holding-društava",64210,"64.21.0 - Djelatnosti holding-društava"]
[null,null,null,null,null,null,null,null,null,null,null,null,null,null,null,null,null,null,null,null,null,null,null,null,null,null,"Djelatnosti kanala financiranja",64220,"64.22.0 - Djelatnosti kanala financiranja"]
[null,null,null,null,null,null,null,null,null,null,null,null,null,null,null,null,null,null,null,null,null,null,null,null,null,null,"Djelatnost novčanih i nenovčanih investicijskih fondova",64310,"64.31.0 - Djelatnost novčanih i nenovčanih investicijskih fondova"]
[null,null,null,null,null,null,null,null,null,null,null,null,null,null,null,null,null,null,null,null,null,null,null,null,null,null,"Djelatnosti uzajamnih fondova (trustova), imovinskih računa i računa o zastupanju",64320,"64.32.0 - Djelatnosti uzajamnih fondova (trustova), imovinskih računa i računa o zastupanju"]
[null,null,null,null,null,null,null,null,null,null,null,null,null,null,null,null,null,null,null,null,null,null,null,null,null,null,"Financijski leasing",64910,"64.91.0 - Financijski leasing"]
[null,null,null,null,null,null,null,null,null,null,null,null,null,null,null,null,null,null,null,null,null,null,null,null,null,null,"Ostalo kreditno posredovanje",64920,"64.92.0 - Ostalo kreditno posredovanje"]
[null,null,null,null,null,null,null,null,null,null,null,null,null,null,null,null,null,null,null,null,null,null,null,null,null,null,"Ostale financijske uslužne djelatnosti, osim osiguranja i mirovinskih fondova, d. n.",64990,"64.99.0 - Ostale financijske uslužne djelatnosti, osim osiguranja i mirovinskih fondova, d. n."]
[null,null,null,null,null,null,null,null,null,null,null,null,null,null,null,null,null,null,null,null,null,null,null,null,null,null,"Životno osiguranje",65110,"65.11.0 - Životno osiguranje"]
[null,null,null,null,null,null,null,null,null,null,null,null,null,null,null,null,null,null,null,null,null,null,null,null,null,null,"Ostalo osiguranje, osim životnog",65120,"65.12.0 - Ostalo osiguranje, osim životnog"]
[null,null,null,null,null,null,null,null,null,null,null,null,null,null,null,null,null,null,null,null,null,null,null,null,null,null,"Reosiguranje",65200,"65.20.0 - Reosiguranje"]
[null,null,null,null,null,null,null,null,null,null,null,null,null,null,null,null,null,null,null,null,null,null,null,null,null,null,"Mirovinski fondovi",65300,"65.30.0 - Mirovinski fondovi"]
[null,null,null,null,null,null,null,null,null,null,null,null,null,null,null,null,null,null,null,null,null,null,null,null,null,null,"Upravljanje financijskim tržištima",66110,"66.11.0 - Upravljanje financijskim tržištima"]
[null,null,null,null,null,null,null,null,null,null,null,null,null,null,null,null,null,null,null,null,null,null,null,null,null,null,"Djelatnosti posredovanja u poslovanju vrijednosnim papirima i robnim ugovorima",66120,"66.12.0 - Djelatnosti posredovanja u poslovanju vrijednosnim papirima i robnim ugovorima"]
[null,null,null,null,null,null,null,null,null,null,null,null,null,null,null,null,null,null,null,null,null,null,null,null,null,null,"Ostale pomoćne djelatnosti za financijske usluge, osim osiguranja i mirovinskih fondova",66190,"66.19.0 - Ostale pomoćne djelatnosti za financijske usluge, osim osiguranja i mirovinskih fondova"]
[null,null,null,null,null,null,null,null,null,null,null,null,null,null,null,null,null,null,null,null,null,null,null,null,null,null,"Procjena rizika i štete",66210,"66.21.0 - Procjena rizika i štete"]
[null,null,null,null,null,null,null,null,null,null,null,null,null,null,null,null,null,null,null,null,null,null,null,null,null,null,"Djelatnosti agenata i posrednika osiguranja",66220,"66.22.0 - Djelatnosti agenata i posrednika osiguranja"]
[null,null,null,null,null,null,null,null,null,null,null,null,null,null,null,null,null,null,null,null,null,null,null,null,null,null,"Pomoćne djelatnosti u osiguranju i mirovinskim fondovima, d. n.",66290,"66.29.0 - Pomoćne djelatnosti u osiguranju i mirovinskim fondovima, d. n."]
[null,null,null,null,null,null,null,null,null,null,null,null,null,null,null,null,null,null,null,null,null,null,null,null,null,null,"Djelatnosti upravljanja fondovima",66300,"66.30.0 - Djelatnosti upravljanja fondovima"]
[null,null,null,null,null,null,null,null,null,null,null,null,null,null,null,null,null,null,null,null,null,null,null,null,null,null,"Kupnja i prodaja vlastitih nekretnina",68110,"68.11.0 - Kupnja i prodaja vlastitih nekretnina"]
[null,null,null,null,null,null,null,null,null,null,null,null,null,null,null,null,null,null,null,null,null,null,null,null,null,null,"Organizacija izvedbe projekata za zgrade",68120,"68.12.0 - Organizacija izvedbe projekata za zgrade"]
[null,null,null,null,null,null,null,null,null,null,null,null,null,null,null,null,null,null,null,null,null,null,null,null,null,null,"Iznajmljivanje i upravljanje vlastitim nekretninama ili nekretninama uzetim u zakup (leasing)",68200,"68.20.0 - Iznajmljivanje i upravljanje vlastitim nekretninama ili nekretninama uzetim u zakup (leasing)"]
[null,null,null,null,null,null,null,null,null,null,null,null,null,null,null,null,null,null,null,null,null,null,null,null,null,null,"Uslužne djelatnosti posredovanja u poslovanju nekretninama",68310,"68.31.0 - Uslužne djelatnosti posredovanja u poslovanju nekretninama"]
[null,null,null,null,null,null,null,null,null,null,null,null,null,null,null,null,null,null,null,null,null,null,null,null,null,null,"Ostale djelatnosti poslovanja nekretninama uz naplatu ili na osnovi ugovora",68320,"68.32.0 - Ostale djelatnosti poslovanja nekretninama uz naplatu ili na osnovi ugovora"]
[null,null,null,null,null,null,null,null,null,null,null,null,null,null,null,null,null,null,null,null,null,null,null,null,null,null,"Djelatnosti javnih bilježnika",69101,"69.10.1 - Djelatnosti javnih bilježnika"]
[null,null,null,null,null,null,null,null,null,null,null,null,null,null,null,null,null,null,null,null,null,null,null,null,null,null,"Djelatnosti odvjetnika",69102,"69.10.2 - Djelatnosti odvjetnika"]
[null,null,null,null,null,null,null,null,null,null,null,null,null,null,null,null,null,null,null,null,null,null,null,null,null,null,"Ostale pravne djelatnosti",69109,"69.10.9 - Ostale pravne djelatnosti"]
[null,null,null,null,null,null,null,null,null,null,null,null,null,null,null,null,null,null,null,null,null,null,null,null,null,null,"Računovodstvene i knjigovodstvene djelatnosti",69201,"69.20.1 - Računovodstvene i knjigovodstvene djelatnosti"]
[null,null,null,null,null,null,null,null,null,null,null,null,null,null,null,null,null,null,null,null,null,null,null,null,null,null,"Revizijske djelatnosti",69202,"69.20.2 - Revizijske djelatnosti"]
[null,null,null,null,null,null,null,null,null,null,null,null,null,null,null,null,null,null,null,null,null,null,null,null,null,null,"Porezno savjetovanje",69203,"69.20.3 - Porezno savjetovanje"]
[null,null,null,null,null,null,null,null,null,null,null,null,null,null,null,null,null,null,null,null,null,null,null,null,null,null,"Upravljačke djelatnosti",70100,"70.10.0 - Upravljačke djelatnosti"]
[null,null,null,null,null,null,null,null,null,null,null,null,null,null,null,null,null,null,null,null,null,null,null,null,null,null,"Savjetovanje u vezi s poslovanjem i ostalim upravljanjem",70200,"70.20.0 - Savjetovanje u vezi s poslovanjem i ostalim upravljanjem"]
[null,null,null,null,null,null,null,null,null,null,null,null,null,null,null,null,null,null,null,null,null,null,null,null,null,null,"Arhitektonsko projektiranje",71111,"71.11.1 - Arhitektonsko projektiranje"]
[null,null,null,null,null,null,null,null,null,null,null,null,null,null,null,null,null,null,null,null,null,null,null,null,null,null,"Urbanističko i prostorno planiranje",71112,"71.11.2 - Urbanističko i prostorno planiranje"]
[null,null,null,null,null,null,null,null,null,null,null,null,null,null,null,null,null,null,null,null,null,null,null,null,null,null,"Geodetske i geoinformatičke djelatnosti",71121,"71.12.1 - Geodetske i geoinformatičke djelatnosti"]
[null,null,null,null,null,null,null,null,null,null,null,null,null,null,null,null,null,null,null,null,null,null,null,null,null,null,"Ostalo inženjerstvo i s njim povezano tehničko savjetovanje",71129,"71.12.9 - Ostalo inženjerstvo i s njim povezano tehničko savjetovanje"]
[null,null,null,null,null,null,null,null,null,null,null,null,null,null,null,null,null,null,null,null,null,null,null,null,null,null,"Tehničko ispitivanje i analiza",71200,"71.20.0 - Tehničko ispitivanje i analiza"]
[null,null,null,null,null,null,null,null,null,null,null,null,null,null,null,null,null,null,null,null,null,null,null,null,null,null,"Istraživanje i eksperimentalni razvoj u prirodnim, tehničkim i tehnološkim znanostima",72100,"72.10.0 - Istraživanje i eksperimentalni razvoj u prirodnim, tehničkim i tehnološkim znanostima"]
[null,null,null,null,null,null,null,null,null,null,null,null,null,null,null,null,null,null,null,null,null,null,null,null,null,null,"Istraživanje i eksperimentalni razvoj u društvenim i humanističkim znanostima",72200,"72.20.0 - Istraživanje i eksperimentalni razvoj u društvenim i humanističkim znanostima"]
[null,null,null,null,null,null,null,null,null,null,null,null,null,null,null,null,null,null,null,null,null,null,null,null,null,null,"Djelatnosti agencija za promidžbu",73110,"73.11.0 - Djelatnosti agencija za promidžbu"]
[null,null,null,null,null,null,null,null,null,null,null,null,null,null,null,null,null,null,null,null,null,null,null,null,null,null,"Oglašavanje putem medija",73120,"73.12.0 - Oglašavanje putem medija"]
[null,null,null,null,null,null,null,null,null,null,null,null,null,null,null,null,null,null,null,null,null,null,null,null,null,null,"Istraživanje tržišta i ispitivanje javnog mnijenja",73200,"73.20.0 - Istraživanje tržišta i ispitivanje javnog mnijenja"]
[null,null,null,null,null,null,null,null,null,null,null,null,null,null,null,null,null,null,null,null,null,null,null,null,null,null,"Odnosi s javnošću i djelatnosti priopćavanja",73300,"73.30.0 - Odnosi s javnošću i djelatnosti priopćavanja"]
[null,null,null,null,null,null,null,null,null,null,null,null,null,null,null,null,null,null,null,null,null,null,null,null,null,null,"Djelatnosti industrijskog i modnog dizajna",74110,"74.11.0 - Djelatnosti industrijskog i modnog dizajna"]
[null,null,null,null,null,null,null,null,null,null,null,null,null,null,null,null,null,null,null,null,null,null,null,null,null,null,"Djelatnosti grafičkog dizajna i vizualnih komunikacija",74120,"74.12.0 - Djelatnosti grafičkog dizajna i vizualnih komunikacija"]
[null,null,null,null,null,null,null,null,null,null,null,null,null,null,null,null,null,null,null,null,null,null,null,null,null,null,"Djelatnosti uređivanja interijera",74130,"74.13.0 - Djelatnosti uređivanja interijera"]
[null,null,null,null,null,null,null,null,null,null,null,null,null,null,null,null,null,null,null,null,null,null,null,null,null,null,"Ostale specijalizirane dizajnerske djelatnosti",74140,"74.14.0 - Ostale specijalizirane dizajnerske djelatnosti"]
[null,null,null,null,null,null,null,null,null,null,null,null,null,null,null,null,null,null,null,null,null,null,null,null,null,null,"Fotografske djelatnosti",74200,"74.20.0 - Fotografske djelatnosti"]
[null,null,null,null,null,null,null,null,null,null,null,null,null,null,null,null,null,null,null,null,null,null,null,null,null,null,"Djelatnosti pismenog prevođenja",74301,"74.30.1 - Djelatnosti pismenog prevođenja"]
[null,null,null,null,null,null,null,null,null,null,null,null,null,null,null,null,null,null,null,null,null,null,null,null,null,null,"Djelatnosti usmenog prevođenja",74302,"74.30.2 - Djelatnosti usmenog prevođenja"]
[null,null,null,null,null,null,null,null,null,null,null,null,null,null,null,null,null,null,null,null,null,null,null,null,null,null,"Uslužne djelatnosti posredovanja i promidžbe u vezi s patentima",74910,"74.91.0 - Uslužne djelatnosti posredovanja i promidžbe u vezi s patentima"]
[null,null,null,null,null,null,null,null,null,null,null,null,null,null,null,null,null,null,null,null,null,null,null,null,null,null,"Djelatnosti zaštite na radu",74991,"74.99.1 - Djelatnosti zaštite na radu"]
[null,null,null,null,null,null,null,null,null,null,null,null,null,null,null,null,null,null,null,null,null,null,null,null,null,null,"Sve ostale razne stručne, znanstvene i tehničke djelatnosti, d. n.",74999,"74.99.9 - Sve ostale razne stručne, znanstvene i tehničke djelatnosti, d. n."]
[null,null,null,null,null,null,null,null,null,null,null,null,null,null,null,null,null,null,null,null,null,null,null,null,null,null,"Veterinarske djelatnosti",75000,"75.00.0 - Veterinarske djelatnosti"]
[null,null,null,null,null,null,null,null,null,null,null,null,null,null,null,null,null,null,null,null,null,null,null,null,null,null,"Iznajmljivanje i davanje u zakup (leasing) automobila i motornih vozila lake kategorije",77110,"77.11.0 - Iznajmljivanje i davanje u zakup (leasing) automobila i motornih vozila lake kategorije"]
[null,null,null,null,null,null,null,null,null,null,null,null,null,null,null,null,null,null,null,null,null,null,null,null,null,null,"Iznajmljivanje i davanje u zakup (leasing) kamiona",77120,"77.12.0 - Iznajmljivanje i davanje u zakup (leasing) kamiona"]
[null,null,null,null,null,null,null,null,null,null,null,null,null,null,null,null,null,null,null,null,null,null,null,null,null,null,"Iznajmljivanje i davanje u zakup (leasing) plovila za razonodu",77211,"77.21.1 - Iznajmljivanje i davanje u zakup (leasing) plovila za razonodu"]
[null,null,null,null,null,null,null,null,null,null,null,null,null,null,null,null,null,null,null,null,null,null,null,null,null,null,"Iznajmljivanje i davanje u zakup (leasing) ostale opreme za rekreaciju i sport",77219,"77.21.9 - Iznajmljivanje i davanje u zakup (leasing) ostale opreme za rekreaciju i sport"]
[null,null,null,null,null,null,null,null,null,null,null,null,null,null,null,null,null,null,null,null,null,null,null,null,null,null,"Iznajmljivanje i davanje u zakup (leasing) ostalih predmeta za osobnu uporabu i kućanstvo",77220,"77.22.0 - Iznajmljivanje i davanje u zakup (leasing) ostalih predmeta za osobnu uporabu i kućanstvo"]
[null,null,null,null,null,null,null,null,null,null,null,null,null,null,null,null,null,null,null,null,null,null,null,null,null,null,"Iznajmljivanje i davanje u zakup (leasing) poljoprivrednih strojeva i opreme",77310,"77.31.0 - Iznajmljivanje i davanje u zakup (leasing) poljoprivrednih strojeva i opreme"]
[null,null,null,null,null,null,null,null,null,null,null,null,null,null,null,null,null,null,null,null,null,null,null,null,null,null,"Iznajmljivanje i davanje u zakup (leasing) strojeva i opreme za građevinarstvo i inženjerstvo",77320,"77.32.0 - Iznajmljivanje i davanje u zakup (leasing) strojeva i opreme za građevinarstvo i inženjerstvo"]
[null,null,null,null,null,null,null,null,null,null,null,null,null,null,null,null,null,null,null,null,null,null,null,null,null,null,"Iznajmljivanje i davanje u zakup (leasing) uredskih strojeva i opreme te računala",77330,"77.33.0 - Iznajmljivanje i davanje u zakup (leasing) uredskih strojeva i opreme te računala"]
[null,null,null,null,null,null,null,null,null,null,null,null,null,null,null,null,null,null,null,null,null,null,null,null,null,null,"Iznajmljivanje i davanje u zakup (leasing) plovnih prijevoznih sredstava",77340,"77.34.0 - Iznajmljivanje i davanje u zakup (leasing) plovnih prijevoznih sredstava"]
[null,null,null,null,null,null,null,null,null,null,null,null,null,null,null,null,null,null,null,null,null,null,null,null,null,null,"Iznajmljivanje i davanje u zakup (leasing) zračnih prijevoznih sredstava",77350,"77.35.0 - Iznajmljivanje i davanje u zakup (leasing) zračnih prijevoznih sredstava"]
[null,null,null,null,null,null,null,null,null,null,null,null,null,null,null,null,null,null,null,null,null,null,null,null,null,null,"Iznajmljivanje i davanje u zakup (leasing) ostalih strojeva, opreme i materijalnih dobara, d. n.",77390,"77.39.0 - Iznajmljivanje i davanje u zakup (leasing) ostalih strojeva, opreme i materijalnih dobara, d. n."]
[null,null,null,null,null,null,null,null,null,null,null,null,null,null,null,null,null,null,null,null,null,null,null,null,null,null,"Davanje u zakup (leasing) prava na uporabu intelektualnog vlasništva i sličnih proizvoda, osim radova koji su zaštićeni autorskim pravima",77400,"77.40.0 - Davanje u zakup (leasing) prava na uporabu intelektualnog vlasništva i sličnih proizvoda, osim radova koji su zaštićeni autorskim pravima"]
[null,null,null,null,null,null,null,null,null,null,null,null,null,null,null,null,null,null,null,null,null,null,null,null,null,null,"Usluge posredovanja u iznajmljivanju i davanju u zakup (leasing) automobila, kampera i prikolica",77510,"77.51.0 - Usluge posredovanja u iznajmljivanju i davanju u zakup (leasing) automobila, kampera i prikolica"]
[null,null,null,null,null,null,null,null,null,null,null,null,null,null,null,null,null,null,null,null,null,null,null,null,null,null,"Usluge posredovanja u iznajmljivanju i davanju u zakup (leasing) ostalih materijalnih dobara i nefinancijske nematerijalne imovine",77520,"77.52.0 - Usluge posredovanja u iznajmljivanju i davanju u zakup (leasing) ostalih materijalnih dobara i nefinancijske nematerijalne imovine"]
[null,null,null,null,null,null,null,null,null,null,null,null,null,null,null,null,null,null,null,null,null,null,null,null,null,null,"Djelatnosti agencija za zapošljavanje",78100,"78.10.0 - Djelatnosti agencija za zapošljavanje"]
[null,null,null,null,null,null,null,null,null,null,null,null,null,null,null,null,null,null,null,null,null,null,null,null,null,null,"Djelatnosti agencija za privremeno zapošljavanje i ostalo ustupanje ljudskih resursa",78200,"78.20.0 - Djelatnosti agencija za privremeno zapošljavanje i ostalo ustupanje ljudskih resursa"]
[null,null,null,null,null,null,null,null,null,null,null,null,null,null,null,null,null,null,null,null,null,null,null,null,null,null,"Djelatnosti putničkih agencija",79110,"79.11.0 - Djelatnosti putničkih agencija"]
[null,null,null,null,null,null,null,null,null,null,null,null,null,null,null,null,null,null,null,null,null,null,null,null,null,null,"Djelatnosti organizatora putovanja (turoperatora)",79120,"79.12.0 - Djelatnosti organizatora putovanja (turoperatora)"]
[null,null,null,null,null,null,null,null,null,null,null,null,null,null,null,null,null,null,null,null,null,null,null,null,null,null,"Ostale rezervacijske usluge i djelatnosti povezane s njima",79900,"79.90.0 - Ostale rezervacijske usluge i djelatnosti povezane s njima"]
[null,null,null,null,null,null,null,null,null,null,null,null,null,null,null,null,null,null,null,null,null,null,null,null,null,null,"Istražne djelatnosti",80011,"80.01.1 - Istražne djelatnosti"]
[null,null,null,null,null,null,null,null,null,null,null,null,null,null,null,null,null,null,null,null,null,null,null,null,null,null,"Djelatnosti privatne zaštite",80012,"80.01.2 - Djelatnosti privatne zaštite"]
[null,null,null,null,null,null,null,null,null,null,null,null,null,null,null,null,null,null,null,null,null,null,null,null,null,null,"Zaštitne djelatnosti, d. n.",80090,"80.09.0 - Zaštitne djelatnosti, d. n."]
[null,null,null,null,null,null,null,null,null,null,null,null,null,null,null,null,null,null,null,null,null,null,null,null,null,null,"Održavanje zgrada",81100,"81.10.0 - Održavanje zgrada"]
[null,null,null,null,null,null,null,null,null,null,null,null,null,null,null,null,null,null,null,null,null,null,null,null,null,null,"Osnovno čišćenje zgrada",81210,"81.21.0 - Osnovno čišćenje zgrada"]
[null,null,null,null,null,null,null,null,null,null,null,null,null,null,null,null,null,null,null,null,null,null,null,null,null,null,"Ostale djelatnosti čišćenja zgrada i objekata",81220,"81.22.0 - Ostale djelatnosti čišćenja zgrada i objekata"]
[null,null,null,null,null,null,null,null,null,null,null,null,null,null,null,null,null,null,null,null,null,null,null,null,null,null,"Ostale djelatnosti čišćenja",81230,"81.23.0 - Ostale djelatnosti čišćenja"]
[null,null,null,null,null,null,null,null,null,null,null,null,null,null,null,null,null,null,null,null,null,null,null,null,null,null,"Uslužne djelatnosti uređenja i održavanja krajolika",81300,"81.30.0 - Uslužne djelatnosti uređenja i održavanja krajolika"]
[null,null,null,null,null,null,null,null,null,null,null,null,null,null,null,null,null,null,null,null,null,null,null,null,null,null,"Uredske administrativne i pomoćne djelatnosti",82100,"82.10.0 - Uredske administrativne i pomoćne djelatnosti"]
[null,null,null,null,null,null,null,null,null,null,null,null,null,null,null,null,null,null,null,null,null,null,null,null,null,null,"Djelatnosti pozivnih centara",82200,"82.20.0 - Djelatnosti pozivnih centara"]
[null,null,null,null,null,null,null,null,null,null,null,null,null,null,null,null,null,null,null,null,null,null,null,null,null,null,"Organizacija sastanaka i poslovnih sajmova",82300,"82.30.0 - Organizacija sastanaka i poslovnih sajmova"]
[null,null,null,null,null,null,null,null,null,null,null,null,null,null,null,null,null,null,null,null,null,null,null,null,null,null,"Uslužne djelatnosti posredovanja za poslovne pomoćne uslužne djelatnosti, d. n.",82400,"82.40.0 - Uslužne djelatnosti posredovanja za poslovne pomoćne uslužne djelatnosti, d. n."]
[null,null,null,null,null,null,null,null,null,null,null,null,null,null,null,null,null,null,null,null,null,null,null,null,null,null,"Djelatnosti agencija za prikupljanje i naplatu računa te kreditnih ureda",82910,"82.91.0 - Djelatnosti agencija za prikupljanje i naplatu računa te kreditnih ureda"]
[null,null,null,null,null,null,null,null,null,null,null,null,null,null,null,null,null,null,null,null,null,null,null,null,null,null,"Djelatnosti pakiranja",82920,"82.92.0 - Djelatnosti pakiranja"]
[null,null,null,null,null,null,null,null,null,null,null,null,null,null,null,null,null,null,null,null,null,null,null,null,null,null,"Ostale poslovne pomoćne uslužne djelatnosti, d. n.",82990,"82.99.0 - Ostale poslovne pomoćne uslužne djelatnosti, d. n."]
[null,null,null,null,null,null,null,null,null,null,null,null,null,null,null,null,null,null,null,null,null,null,null,null,null,null,"Opće djelatnosti javne uprave",84110,"84.11.0 - Opće djelatnosti javne uprave"]
[null,null,null,null,null,null,null,null,null,null,null,null,null,null,null,null,null,null,null,null,null,null,null,null,null,null,"Reguliranje zdravstvenih, obrazovnih, kulturnih i drugih društvenih usluga\n",84120,"84.12.0 - Reguliranje zdravstvenih, obrazovnih, kulturnih i drugih društvenih usluga\n"]
[null,null,null,null,null,null,null,null,null,null,null,null,null,null,null,null,null,null,null,null,null,null,null,null,null,null,"Reguliranje i poboljšanje poslovanja u gospodarstvu",84130,"84.13.0 - Reguliranje i poboljšanje poslovanja u gospodarstvu"]
[null,null,null,null,null,null,null,null,null,null,null,null,null,null,null,null,null,null,null,null,null,null,null,null,null,null,"Vanjski poslovi",84210,"84.21.0 - Vanjski poslovi"]
[null,null,null,null,null,null,null,null,null,null,null,null,null,null,null,null,null,null,null,null,null,null,null,null,null,null,"Poslovi obrane",84220,"84.22.0 - Poslovi obrane"]
[null,null,null,null,null,null,null,null,null,null,null,null,null,null,null,null,null,null,null,null,null,null,null,null,null,null,"Sudske i pravosudne djelatnosti",84230,"84.23.0 - Sudske i pravosudne djelatnosti"]
[null,null,null,null,null,null,null,null,null,null,null,null,null,null,null,null,null,null,null,null,null,null,null,null,null,null,"Poslovi javnog reda i sigurnosti",84240,"84.24.0 - Poslovi javnog reda i sigurnosti"]
[null,null,null,null,null,null,null,null,null,null,null,null,null,null,null,null,null,null,null,null,null,null,null,null,null,null,"Djelatnosti vatrogasne službe",84250,"84.25.0 - Djelatnosti vatrogasne službe"]
[null,null,null,null,null,null,null,null,null,null,null,null,null,null,null,null,null,null,null,null,null,null,null,null,null,null,"Djelatnosti obveznog socijalnog osiguranja",84300,"84.30.0 - Djelatnosti obveznog socijalnog osiguranja"]
[null,null,null,null,null,null,null,null,null,null,null,null,null,null,null,null,null,null,null,null,null,null,null,null,null,null,"Predškolsko obrazovanje",85100,"85.10.0 - Predškolsko obrazovanje"]
[null,null,null,null,null,null,null,null,null,null,null,null,null,null,null,null,null,null,null,null,null,null,null,null,null,null,"Osnovnoškolsko obrazovanje",85200,"85.20.0 - Osnovnoškolsko obrazovanje"]
[null,null,null,null,null,null,null,null,null,null,null,null,null,null,null,null,null,null,null,null,null,null,null,null,null,null,"Opće srednjoškolsko obrazovanje",85310,"85.31.0 - Opće srednjoškolsko obrazovanje"]
[null,null,null,null,null,null,null,null,null,null,null,null,null,null,null,null,null,null,null,null,null,null,null,null,null,null,"Srednjoškolsko strukovno obrazovanje",85320,"85.32.0 - Srednjoškolsko strukovno obrazovanje"]
[null,null,null,null,null,null,null,null,null,null,null,null,null,null,null,null,null,null,null,null,null,null,null,null,null,null,"Obrazovanje nakon srednjoškolskog koje nije visoko",85330,"85.33.0 - Obrazovanje nakon srednjoškolskog koje nije visoko"]
[null,null,null,null,null,null,null,null,null,null,null,null,null,null,null,null,null,null,null,null,null,null,null,null,null,null,"Visoko obrazovanje",85400,"85.40.0 - Visoko obrazovanje"]
[null,null,null,null,null,null,null,null,null,null,null,null,null,null,null,null,null,null,null,null,null,null,null,null,null,null,"Obrazovanje i poučavanje u području sporta i rekreacije",85510,"85.51.0 - Obrazovanje i poučavanje u području sporta i rekreacije"]
[null,null,null,null,null,null,null,null,null,null,null,null,null,null,null,null,null,null,null,null,null,null,null,null,null,null,"Obrazovanje i poučavanje u području kulture",85520,"85.52.0 - Obrazovanje i poučavanje u području kulture"]
[null,null,null,null,null,null,null,null,null,null,null,null,null,null,null,null,null,null,null,null,null,null,null,null,null,null,"Djelatnosti vozačkih škola",85530,"85.53.0 - Djelatnosti vozačkih škola"]
[null,null,null,null,null,null,null,null,null,null,null,null,null,null,null,null,null,null,null,null,null,null,null,null,null,null,"Ostalo obrazovanje i poučavanje, d. n.",85590,"85.59.0 - Ostalo obrazovanje i poučavanje, d. n."]
[null,null,null,null,null,null,null,null,null,null,null,null,null,null,null,null,null,null,null,null,null,null,null,null,null,null,"Uslužne djelatnosti posredovanja za tečajeve i mentorstva",85610,"85.61.0 - Uslužne djelatnosti posredovanja za tečajeve i mentorstva"]
[null,null,null,null,null,null,null,null,null,null,null,null,null,null,null,null,null,null,null,null,null,null,null,null,null,null,"Pomoćne djelatnosti u obrazovanju, d. n.",85690,"85.69.0 - Pomoćne djelatnosti u obrazovanju, d. n."]
[null,null,null,null,null,null,null,null,null,null,null,null,null,null,null,null,null,null,null,null,null,null,null,null,null,null,"Djelatnosti bolnica",86100,"86.10.0 - Djelatnosti bolnica"]
[null,null,null,null,null,null,null,null,null,null,null,null,null,null,null,null,null,null,null,null,null,null,null,null,null,null,"Djelatnosti opće medicine",86210,"86.21.0 - Djelatnosti opće medicine"]
[null,null,null,null,null,null,null,null,null,null,null,null,null,null,null,null,null,null,null,null,null,null,null,null,null,null,"Specijalistička medicinska djelatnost",86220,"86.22.0 - Specijalistička medicinska djelatnost"]
[null,null,null,null,null,null,null,null,null,null,null,null,null,null,null,null,null,null,null,null,null,null,null,null,null,null,"Djelatnost dentalne medicine",86230,"86.23.0 - Djelatnost dentalne medicine"]
[null,null,null,null,null,null,null,null,null,null,null,null,null,null,null,null,null,null,null,null,null,null,null,null,null,null,"Usluge dijagnostičkog snimanja i djelatnosti medicinskog laboratorija\n",86910,"86.91.0 - Usluge dijagnostičkog snimanja i djelatnosti medicinskog laboratorija\n"]
[null,null,null,null,null,null,null,null,null,null,null,null,null,null,null,null,null,null,null,null,null,null,null,null,null,null,"Prijevoz pacijenata vozilom hitne pomoći",86920,"86.92.0 - Prijevoz pacijenata vozilom hitne pomoći"]
[null,null,null,null,null,null,null,null,null,null,null,null,null,null,null,null,null,null,null,null,null,null,null,null,null,null,"Djelatnosti psihologa i psihoterapeuta, osim doktora medicine",86930,"86.93.0 - Djelatnosti psihologa i psihoterapeuta, osim doktora medicine"]
[null,null,null,null,null,null,null,null,null,null,null,null,null,null,null,null,null,null,null,null,null,null,null,null,null,null,"Djelatnosti medicinskih sestara i primalja",86940,"86.94.0 - Djelatnosti medicinskih sestara i primalja"]
[null,null,null,null,null,null,null,null,null,null,null,null,null,null,null,null,null,null,null,null,null,null,null,null,null,null,"Djelatnosti fizioterapeuta",86950,"86.95.0 - Djelatnosti fizioterapeuta"]
[null,null,null,null,null,null,null,null,null,null,null,null,null,null,null,null,null,null,null,null,null,null,null,null,null,null,"Djelatnosti tradicionalne, komplementarne i alternativne medicine",86960,"86.96.0 - Djelatnosti tradicionalne, komplementarne i alternativne medicine"]
[null,null,null,null,null,null,null,null,null,null,null,null,null,null,null,null,null,null,null,null,null,null,null,null,null,null,"Uslužne djelatnosti posredovanja za medicinske, stomatološke i druge zdravstvene usluge",86970,"86.97.0 - Uslužne djelatnosti posredovanja za medicinske, stomatološke i druge zdravstvene usluge"]
[null,null,null,null,null,null,null,null,null,null,null,null,null,null,null,null,null,null,null,null,null,null,null,null,null,null,"Ostale djelatnosti zdravstvene zaštite, d. n.",86990,"86.99.0 - Ostale djelatnosti zdravstvene zaštite, d. n."]
[null,null,null,null,null,null,null,null,null,null,null,null,null,null,null,null,null,null,null,null,null,null,null,null,null,null,"Djelatnosti ustanova za njegu sa smještajem",87100,"87.10.0 - Djelatnosti ustanova za njegu sa smještajem"]
[null,null,null,null,null,null,null,null,null,null,null,null,null,null,null,null,null,null,null,null,null,null,null,null,null,null,"Djelatnosti socijalne skrbi sa smještajem za osobe koje boluju od nedijagnosticirane ili dijagnosticirane mentalne bolesti ili ovisnosti o opojnim sredstvima\n",87200,"87.20.0 - Djelatnosti socijalne skrbi sa smještajem za osobe koje boluju od nedijagnosticirane ili dijagnosticirane mentalne bolesti ili ovisnosti o opojnim sredstvima\n"]
[null,null,null,null,null,null,null,null,null,null,null,null,null,null,null,null,null,null,null,null,null,null,null,null,null,null,"Djelatnosti socijalne skrbi sa smještajem za starije osobe i osobe s fizičkim invaliditetom",87300,"87.30.0 - Djelatnosti socijalne skrbi sa smještajem za starije osobe i osobe s fizičkim invaliditetom"]
[null,null,null,null,null,null,null,null,null,null,null,null,null,null,null,null,null,null,null,null,null,null,null,null,null,null,"Usluge posredovanja za djelatnosti socijalne skrbi sa smještajem",87910,"87.91.0 - Usluge posredovanja za djelatnosti socijalne skrbi sa smještajem"]
[null,null,null,null,null,null,null,null,null,null,null,null,null,null,null,null,null,null,null,null,null,null,null,null,null,null,"Djelatnosti ustanova za skrb o braniteljsko-stradalničkoj populaciji iz Domovinskog rata s trajnim smještajem",87991,"87.99.1 - Djelatnosti ustanova za skrb o braniteljsko-stradalničkoj populaciji iz Domovinskog rata s trajnim smještajem"]
[null,null,null,null,null,null,null,null,null,null,null,null,null,null,null,null,null,null,null,null,null,null,null,null,null,null,"Djelatnosti ustanova za skrb o braniteljsko-stradalničkoj populaciji iz Domovinskog rata s privremenim smještajem i boravkom",87992,"87.99.2 - Djelatnosti ustanova za skrb o braniteljsko-stradalničkoj populaciji iz Domovinskog rata s privremenim smještajem i boravkom"]
[null,null,null,null,null,null,null,null,null,null,null,null,null,null,null,null,null,null,null,null,null,null,null,null,null,null,"Ostale razne djelatnosti socijalne skrbi sa smještajem, d. n.",87999,"87.99.9 - Ostale razne djelatnosti socijalne skrbi sa smještajem, d. n."]
[null,null,null,null,null,null,null,null,null,null,null,null,null,null,null,null,null,null,null,null,null,null,null,null,null,null,"Djelatnosti socijalne skrbi bez smještaja za starije osobe ili osobe s invaliditetom",88100,"88.10.0 - Djelatnosti socijalne skrbi bez smještaja za starije osobe ili osobe s invaliditetom"]
[null,null,null,null,null,null,null,null,null,null,null,null,null,null,null,null,null,null,null,null,null,null,null,null,null,null,"Djelatnosti dnevne skrbi o djeci",88910,"88.91.0 - Djelatnosti dnevne skrbi o djeci"]
[null,null,null,null,null,null,null,null,null,null,null,null,null,null,null,null,null,null,null,null,null,null,null,null,null,null,"Ostale djelatnosti socijalne skrbi bez smještaja, d. n.",88990,"88.99.0 - Ostale djelatnosti socijalne skrbi bez smještaja, d. n."]
[null,null,null,null,null,null,null,null,null,null,null,null,null,null,null,null,null,null,null,null,null,null,null,null,null,null,"Književno stvaralaštvo ",90111,"90.11.1 - Književno stvaralaštvo "]
[null,null,null,null,null,null,null,null,null,null,null,null,null,null,null,null,null,null,null,null,null,null,null,null,null,null,"Glazbeno stvaralaštvo ",90112,"90.11.2 - Glazbeno stvaralaštvo "]
[null,null,null,null,null,null,null,null,null,null,null,null,null,null,null,null,null,null,null,null,null,null,null,null,null,null,"Vizualne umjetnosti",90120,"90.12.0 - Vizualne umjetnosti"]
[null,null,null,null,null,null,null,null,null,null,null,null,null,null,null,null,null,null,null,null,null,null,null,null,null,null,"Ostalo umjetničko stvaralaštvo",90130,"90.13.0 - Ostalo umjetničko stvaralaštvo"]
[null,null,null,null,null,null,null,null,null,null,null,null,null,null,null,null,null,null,null,null,null,null,null,null,null,null,"Izvedbene umjetnosti",90200,"90.20.0 - Izvedbene umjetnosti"]
[null,null,null,null,null,null,null,null,null,null,null,null,null,null,null,null,null,null,null,null,null,null,null,null,null,null,"Rad umjetničkih objekata i lokaliteta",90310,"90.31.0 - Rad umjetničkih objekata i lokaliteta"]
[null,null,null,null,null,null,null,null,null,null,null,null,null,null,null,null,null,null,null,null,null,null,null,null,null,null,"Djelatnosti producenata i organizatora umjetničkih događaja",90391,"90.39.1 - Djelatnosti producenata i organizatora umjetničkih događaja"]
[null,null,null,null,null,null,null,null,null,null,null,null,null,null,null,null,null,null,null,null,null,null,null,null,null,null,"Ostale pomoćne djelatnosti u umjetničkom stvaralaštvu i izvedbenim umjetnostima, d. n.",90399,"90.39.9 - Ostale pomoćne djelatnosti u umjetničkom stvaralaštvu i izvedbenim umjetnostima, d. n."]
[null,null,null,null,null,null,null,null,null,null,null,null,null,null,null,null,null,null,null,null,null,null,null,null,null,null,"Djelatnosti knjižnica",91110,"91.11.0 - Djelatnosti knjižnica"]
[null,null,null,null,null,null,null,null,null,null,null,null,null,null,null,null,null,null,null,null,null,null,null,null,null,null,"Djelatnosti arhiva",91120,"91.12.0 - Djelatnosti arhiva"]
[null,null,null,null,null,null,null,null,null,null,null,null,null,null,null,null,null,null,null,null,null,null,null,null,null,null,"Djelatnosti muzeja i zbirki",91210,"91.21.0 - Djelatnosti muzeja i zbirki"]
[null,null,null,null,null,null,null,null,null,null,null,null,null,null,null,null,null,null,null,null,null,null,null,null,null,null,"Djelatnost povijesnih lokaliteta i spomenika kulture",91220,"91.22.0 - Djelatnost povijesnih lokaliteta i spomenika kulture"]
[null,null,null,null,null,null,null,null,null,null,null,null,null,null,null,null,null,null,null,null,null,null,null,null,null,null,"Konzervatorske, restauratorske i ostale pomoćne djelatnosti u području kulturne baštine",91300,"91.30.0 - Konzervatorske, restauratorske i ostale pomoćne djelatnosti u području kulturne baštine"]
[null,null,null,null,null,null,null,null,null,null,null,null,null,null,null,null,null,null,null,null,null,null,null,null,null,null,"Djelatnosti botaničkih i zooloških vrtova",91410,"91.41.0 - Djelatnosti botaničkih i zooloških vrtova"]
[null,null,null,null,null,null,null,null,null,null,null,null,null,null,null,null,null,null,null,null,null,null,null,null,null,null,"Djelatnosti prirodnih rezervata",91420,"91.42.0 - Djelatnosti prirodnih rezervata"]
[null,null,null,null,null,null,null,null,null,null,null,null,null,null,null,null,null,null,null,null,null,null,null,null,null,null,"Djelatnosti kockanja i klađenja",92000,"92.00.0 - Djelatnosti kockanja i klađenja"]
[null,null,null,null,null,null,null,null,null,null,null,null,null,null,null,null,null,null,null,null,null,null,null,null,null,null,"Rad sportskih objekata",93110,"93.11.0 - Rad sportskih objekata"]
[null,null,null,null,null,null,null,null,null,null,null,null,null,null,null,null,null,null,null,null,null,null,null,null,null,null,"Djelatnosti sportskih klubova",93120,"93.12.0 - Djelatnosti sportskih klubova"]
[null,null,null,null,null,null,null,null,null,null,null,null,null,null,null,null,null,null,null,null,null,null,null,null,null,null,"Djelatnosti fitness centara",93130,"93.13.0 - Djelatnosti fitness centara"]
[null,null,null,null,null,null,null,null,null,null,null,null,null,null,null,null,null,null,null,null,null,null,null,null,null,null,"Sportske djelatnosti, d. n.",93190,"93.19.0 - Sportske djelatnosti, d. n."]
[null,null,null,null,null,null,null,null,null,null,null,null,null,null,null,null,null,null,null,null,null,null,null,null,null,null,"Djelatnosti zabavnih i tematskih parkova",93210,"93.21.0 - Djelatnosti zabavnih i tematskih parkova"]
[null,null,null,null,null,null,null,null,null,null,null,null,null,null,null,null,null,null,null,null,null,null,null,null,null,null,"Djelatnosti marina",93291,"93.29.1 - Djelatnosti marina"]
[null,null,null,null,null,null,null,null,null,null,null,null,null,null,null,null,null,null,null,null,null,null,null,null,null,null,"Ostale zabavne i rekreacijske djelatnosti",93299,"93.29.9 - Ostale zabavne i rekreacijske djelatnosti"]
[null,null,null,null,null,null,null,null,null,null,null,null,null,null,null,null,null,null,null,null,null,null,null,null,null,null,"Djelatnosti poslovnih organizacija i organizacija poslodavaca",94110,"94.11.0 - Djelatnosti poslovnih organizacija i organizacija poslodavaca"]
[null,null,null,null,null,null,null,null,null,null,null,null,null,null,null,null,null,null,null,null,null,null,null,null,null,null,"Djelatnosti strukovnih članskih organizacija",94120,"94.12.0 - Djelatnosti strukovnih članskih organizacija"]
[null,null,null,null,null,null,null,null,null,null,null,null,null,null,null,null,null,null,null,null,null,null,null,null,null,null,"Djelatnosti sindikata",94200,"94.20.0 - Djelatnosti sindikata"]
[null,null,null,null,null,null,null,null,null,null,null,null,null,null,null,null,null,null,null,null,null,null,null,null,null,null,"Djelatnosti vjerskih organizacija",94910,"94.91.0 - Djelatnosti vjerskih organizacija"]
[null,null,null,null,null,null,null,null,null,null,null,null,null,null,null,null,null,null,null,null,null,null,null,null,null,null,"Djelatnosti političkih organizacija",94920,"94.92.0 - Djelatnosti političkih organizacija"]
[null,null,null,null,null,null,null,null,null,null,null,null,null,null,null,null,null,null,null,null,null,null,null,null,null,null,"Djelatnosti ostalih članskih organizacija, d. n.",94990,"94.99.0 - Djelatnosti ostalih članskih organizacija, d. n."]
[null,null,null,null,null,null,null,null,null,null,null,null,null,null,null,null,null,null,null,null,null,null,null,null,null,null,"Popravak i održavanje računala i komunikacijske opreme",95100,"95.10.0 - Popravak i održavanje računala i komunikacijske opreme"]
[null,null,null,null,null,null,null,null,null,null,null,null,null,null,null,null,null,null,null,null,null,null,null,null,null,null,"Popravak i održavanje elektroničkih uređaja za široku potrošnju",95210,"95.21.0 - Popravak i održavanje elektroničkih uređaja za široku potrošnju"]
[null,null,null,null,null,null,null,null,null,null,null,null,null,null,null,null,null,null,null,null,null,null,null,null,null,null,"Popravak i održavanje aparata za kućanstvo te opreme za kuću i vrt",95220,"95.22.0 - Popravak i održavanje aparata za kućanstvo te opreme za kuću i vrt"]
[null,null,null,null,null,null,null,null,null,null,null,null,null,null,null,null,null,null,null,null,null,null,null,null,null,null,"Popravak i održavanje obuće i proizvoda od kože",95230,"95.23.0 - Popravak i održavanje obuće i proizvoda od kože"]
[null,null,null,null,null,null,null,null,null,null,null,null,null,null,null,null,null,null,null,null,null,null,null,null,null,null,"Popravak i održavanje namještaja i pokućstva",95240,"95.24.0 - Popravak i održavanje namještaja i pokućstva"]
[null,null,null,null,null,null,null,null,null,null,null,null,null,null,null,null,null,null,null,null,null,null,null,null,null,null,"Popravak i održavanje satova i nakita",95250,"95.25.0 - Popravak i održavanje satova i nakita"]
[null,null,null,null,null,null,null,null,null,null,null,null,null,null,null,null,null,null,null,null,null,null,null,null,null,null,"Popravak i održavanje predmeta za osobnu uporabu i kućanstvo, d. n.",95290,"95.29.0 - Popravak i održavanje predmeta za osobnu uporabu i kućanstvo, d. n."]
[null,null,null,null,null,null,null,null,null,null,null,null,null,null,null,null,null,null,null,null,null,null,null,null,null,null,"Popravak i održavanje motornih vozila",95310,"95.31.0 - Popravak i održavanje motornih vozila"]
[null,null,null,null,null,null,null,null,null,null,null,null,null,null,null,null,null,null,null,null,null,null,null,null,null,null,"Popravak i održavanje motocikala",95320,"95.32.0 - Popravak i održavanje motocikala"]
[null,null,null,null,null,null,null,null,null,null,null,null,null,null,null,null,null,null,null,null,null,null,null,null,null,null,"Uslužne djelatnosti posredovanja u popravku i održavanju računala, predmeta za osobnu uporabu i kućanstvo te motornih vozila i motocikala",95400,"95.40.0 - Uslužne djelatnosti posredovanja u popravku i održavanju računala, predmeta za osobnu uporabu i kućanstvo te motornih vozila i motocikala"]
[null,null,null,null,null,null,null,null,null,null,null,null,null,null,null,null,null,null,null,null,null,null,null,null,null,null,"Pranje i čišćenje tekstilnih i krznenih proizvoda",96100,"96.10.0 - Pranje i čišćenje tekstilnih i krznenih proizvoda"]
[null,null,null,null,null,null,null,null,null,null,null,null,null,null,null,null,null,null,null,null,null,null,null,null,null,null,"Frizerski saloni i brijačnice",96210,"96.21.0 - Frizerski saloni i brijačnice"]
[null,null,null,null,null,null,null,null,null,null,null,null,null,null,null,null,null,null,null,null,null,null,null,null,null,null,"Saloni za uljepšavanje i ostali tretmani za ljepotu ",96220,"96.22.0 - Saloni za uljepšavanje i ostali tretmani za ljepotu "]
[null,null,null,null,null,null,null,null,null,null,null,null,null,null,null,null,null,null,null,null,null,null,null,null,null,null,"Dnevni spa tretmani, saune i parne kupelji",96230,"96.23.0 - Dnevni spa tretmani, saune i parne kupelji"]
[null,null,null,null,null,null,null,null,null,null,null,null,null,null,null,null,null,null,null,null,null,null,null,null,null,null,"Djelatnosti groblja i krematorija",96301,"96.30.1 - Djelatnosti groblja i krematorija"]
[null,null,null,null,null,null,null,null,null,null,null,null,null,null,null,null,null,null,null,null,null,null,null,null,null,null,"Pogrebničke djelatnosti",96302,"96.30.2 - Pogrebničke djelatnosti"]
[null,null,null,null,null,null,null,null,null,null,null,null,null,null,null,null,null,null,null,null,null,null,null,null,null,null,"Uslužne djelatnosti posredovanja u ostalim osobnim uslugama",96400,"96.40.0 - Uslužne djelatnosti posredovanja u ostalim osobnim uslugama"]
[null,null,null,null,null,null,null,null,null,null,null,null,null,null,null,null,null,null,null,null,null,null,null,null,null,null,"Pružanje osobnih uslužnih djelatnosti kućanstvima",96910,"96.91.0 - Pružanje osobnih uslužnih djelatnosti kućanstvima"]
[null,null,null,null,null,null,null,null,null,null,null,null,null,null,null,null,null,null,null,null,null,null,null,null,null,null,"Usluge skrbi za kućne ljubimce",96991,"96.99.1 - Usluge skrbi za kućne ljubimce"]
[null,null,null,null,null,null,null,null,null,null,null,null,null,null,null,null,null,null,null,null,null,null,null,null,null,null,"Ostale osobne uslužne djelatnosti",96999,"96.99.9 - Ostale osobne uslužne djelatnosti"]
[null,null,null,null,null,null,null,null,null,null,null,null,null,null,null,null,null,null,null,null,null,null,null,null,null,null,"Djelatnosti kućanstava koja zapošljavaju poslugu",97000,"97.00.0 - Djelatnosti kućanstava koja zapošljavaju poslugu"]
[null,null,null,null,null,null,null,null,null,null,null,null,null,null,null,null,null,null,null,null,null,null,null,null,null,null,"Djelatnosti privatnih kućanstava koja proizvode različitu robu za vlastite potrebe",98100,"98.10.0 - Djelatnosti privatnih kućanstava koja proizvode različitu robu za vlastite potrebe"]
[null,null,null,null,null,null,null,null,null,null,null,null,null,null,null,null,null,null,null,null,null,null,null,null,null,null,"Djelatnosti privatnih kućanstava koja obavljaju različite usluge za vlastite potrebe",98200,"98.20.0 - Djelatnosti privatnih kućanstava koja obavljaju različite usluge za vlastite potrebe"]
[null,null,null,null,null,null,null,null,null,null,null,null,null,null,null,null,null,null,null,null,null,null,null,null,null,null,"Djelatnosti izvanteritorijalnih organizacija i tijela",99000,"99.00.0 - Djelatnosti izvanteritorijalnih organizacija i tijela"]

{"sheet":"šifrarnik za identifikatore","index":2,"n_rows":361,"n_cols":9,"rows_kept":361,"cut":false,"hidden":true,"merged":[]}
["DVOSLOVNA OZNAKA","dvoslovna dio","identifikator","ostalo",null,null,"šif a","šif b","šif bb"]
["AD","AR","VAT broj","VAT broj",null,{"$f":"IF(COUNTIF(dio, A2) > 0, \"identifikator\",\"ostalo\")","v":"ostalo"},{"$f":"INDEX('šifrarnik za identifikatore'!$F$2:$F$326, MATCH('Šifrarnik A.'!#REF!,dvoslovna, 0))","v":{"$error":"#REF!"}},{"$f":"INDEX('šifrarnik za identifikatore'!$F$2:$F$326, MATCH('Šifrarnik B.'!C4,dvoslovna, 0))","v":{"$error":"#N/A"}},{"$f":"INDEX('šifrarnik za identifikatore'!$F$2:$F$326, MATCH('Šifrarnik B.B.'!G3,dvoslovna, 0))","v":{"$error":"#N/A"}}]
["AE","AE","Porezni broj","Porezni broj",null,{"$f":"IF(COUNTIF(dio, A3) > 0, \"identifikator\",\"ostalo\")","v":"identifikator"},{"$f":"INDEX('šifrarnik za identifikatore'!$F$2:$F$326, MATCH('Šifrarnik A.'!#REF!,dvoslovna, 0))","v":{"$error":"#REF!"}},{"$f":"INDEX('šifrarnik za identifikatore'!$F$2:$F$326, MATCH('Šifrarnik B.'!C5,dvoslovna, 0))","v":{"$error":"#N/A"}},{"$f":"INDEX('šifrarnik za identifikatore'!$F$2:$F$326, MATCH('Šifrarnik B.B.'!G4,dvoslovna, 0))","v":{"$error":"#N/A"}}]
["AF","AT","Broj iz poslovnog registra","Broj iz poslovnog registra",null,{"$f":"IF(COUNTIF(dio, A4) > 0, \"identifikator\",\"ostalo\")","v":"ostalo"},{"$f":"INDEX('šifrarnik za identifikatore'!$F$2:$F$326, MATCH('Šifrarnik A.'!#REF!,dvoslovna, 0))","v":{"$error":"#REF!"}},{"$f":"INDEX('šifrarnik za identifikatore'!$F$2:$F$326, MATCH('Šifrarnik B.'!C6,dvoslovna, 0))","v":{"$error":"#N/A"}},{"$f":"INDEX('šifrarnik za identifikatore'!$F$2:$F$326, MATCH('Šifrarnik B.B.'!G5,dvoslovna, 0))","v":{"$error":"#N/A"}}]
["AG","AU",null,"Ostalo",null,"ostalo",{"$f":"INDEX('šifrarnik za identifikatore'!$F$2:$F$326, MATCH('Šifrarnik A.'!C4,dvoslovna, 0))","v":{"$error":"#N/A"}},{"$f":"INDEX('šifrarnik za identifikatore'!$F$2:$F$326, MATCH('Šifrarnik B.'!C7,dvoslovna, 0))","v":{"$error":"#N/A"}},{"$f":"INDEX('šifrarnik za identifikatore'!$F$2:$F$326, MATCH('Šifrarnik B.B.'!G6,dvoslovna, 0))","v":{"$error":"#N/A"}}]
["AI","BA",null,null,null,"ostalo",{"$f":"INDEX('šifrarnik za identifikatore'!$F$2:$F$326, MATCH('Šifrarnik A.'!C5,dvoslovna, 0))","v":{"$error":"#N/A"}},{"$f":"INDEX('šifrarnik za identifikatore'!$F$2:$F$326, MATCH('Šifrarnik B.'!C8,dvoslovna, 0))","v":{"$error":"#N/A"}},{"$f":"INDEX('šifrarnik za identifikatore'!$F$2:$F$326, MATCH('Šifrarnik B.B.'!G7,dvoslovna, 0))","v":{"$error":"#N/A"}}]
["AL","BE",null,null,null,"ostalo",{"$f":"INDEX('šifrarnik za identifikatore'!$F$2:$F$326, MATCH('Šifrarnik A.'!C6,dvoslovna, 0))","v":{"$error":"#N/A"}},{"$f":"INDEX('šifrarnik za identifikatore'!$F$2:$F$326, MATCH('Šifrarnik B.'!C9,dvoslovna, 0))","v":{"$error":"#N/A"}},{"$f":"INDEX('šifrarnik za identifikatore'!$F$2:$F$326, MATCH('Šifrarnik B.B.'!G8,dvoslovna, 0))","v":{"$error":"#N/A"}}]
["AM","BG",null,null,null,"ostalo",{"$f":"INDEX('šifrarnik za identifikatore'!$F$2:$F$326, MATCH('Šifrarnik A.'!C7,dvoslovna, 0))","v":{"$error":"#N/A"}},{"$f":"INDEX('šifrarnik za identifikatore'!$F$2:$F$326, MATCH('Šifrarnik B.'!C10,dvoslovna, 0))","v":{"$error":"#N/A"}},{"$f":"INDEX('šifrarnik za identifikatore'!$F$2:$F$326, MATCH('Šifrarnik B.B.'!G9,dvoslovna, 0))","v":{"$error":"#N/A"}}]
["AN","BH",null,null,null,"ostalo",{"$f":"INDEX('šifrarnik za identifikatore'!$F$2:$F$326, MATCH('Šifrarnik A.'!C8,dvoslovna, 0))","v":{"$error":"#N/A"}},{"$f":"INDEX('šifrarnik za identifikatore'!$F$2:$F$326, MATCH('Šifrarnik B.'!C11,dvoslovna, 0))","v":{"$error":"#N/A"}},{"$f":"INDEX('šifrarnik za identifikatore'!$F$2:$F$326, MATCH('Šifrarnik B.B.'!G10,dvoslovna, 0))","v":{"$error":"#N/A"}}]
["AO","BM",null,null,null,"ostalo",{"$f":"INDEX('šifrarnik za identifikatore'!$F$2:$F$326, MATCH('Šifrarnik A.'!C9,dvoslovna, 0))","v":{"$error":"#N/A"}},{"$f":"INDEX('šifrarnik za identifikatore'!$F$2:$F$326, MATCH('Šifrarnik B.'!C12,dvoslovna, 0))","v":{"$error":"#N/A"}},{"$f":"INDEX('šifrarnik za identifikatore'!$F$2:$F$326, MATCH('Šifrarnik B.B.'!G11,dvoslovna, 0))","v":{"$error":"#N/A"}}]
["AQ","BS",null,null,null,"ostalo",{"$f":"INDEX('šifrarnik za identifikatore'!$F$2:$F$326, MATCH('Šifrarnik A.'!C10,dvoslovna, 0))","v":{"$error":"#N/A"}},{"$f":"INDEX('šifrarnik za identifikatore'!$F$2:$F$326, MATCH('Šifrarnik B.'!C13,dvoslovna, 0))","v":{"$error":"#N/A"}},{"$f":"INDEX('šifrarnik za identifikatore'!$F$2:$F$326, MATCH('Šifrarnik B.B.'!G12,dvoslovna, 0))","v":{"$error":"#N/A"}}]
["AR","BY",null,null,null,"identifikator",{"$f":"INDEX('šifrarnik za identifikatore'!$F$2:$F$326, MATCH('Šifrarnik A.'!C11,dvoslovna, 0))","v":{"$error":"#N/A"}},{"$f":"INDEX('šifrarnik za identifikatore'!$F$2:$F$326, MATCH('Šifrarnik B.'!C14,dvoslovna, 0))","v":{"$error":"#N/A"}},{"$f":"INDEX('šifrarnik za identifikatore'!$F$2:$F$326, MATCH('Šifrarnik B.B.'!G13,dvoslovna, 0))","v":{"$error":"#N/A"}}]
["AS","BZ",null,null,null,"ostalo",{"$f":"INDEX('šifrarnik za identifikatore'!$F$2:$F$326, MATCH('Šifrarnik A.'!C12,dvoslovna, 0))","v":{"$error":"#N/A"}},{"$f":"INDEX('šifrarnik za identifikatore'!$F$2:$F$326, MATCH('Šifrarnik B.'!C15,dvoslovna, 0))","v":{"$error":"#N/A"}},{"$f":"INDEX('šifrarnik za identifikatore'!$F$2:$F$326, MATCH('Šifrarnik B.B.'!G14,dvoslovna, 0))","v":{"$error":"#N/A"}}]
["AT","CA",null,null,null,"identifikator",{"$f":"INDEX('šifrarnik za identifikatore'!$F$2:$F$326, MATCH('Šifrarnik A.'!C13,dvoslovna, 0))","v":{"$error":"#N/A"}},{"$f":"INDEX('šifrarnik za identifikatore'!$F$2:$F$326, MATCH('Šifrarnik B.'!C16,dvoslovna, 0))","v":{"$error":"#N/A"}},{"$f":"INDEX('šifrarnik za identifikatore'!$F$2:$F$326, MATCH('Šifrarnik B.B.'!G15,dvoslovna, 0))","v":{"$error":"#N/A"}}]
["AU","CH",null,null,null,"identifikator",{"$f":"INDEX('šifrarnik za identifikatore'!$F$2:$F$326, MATCH('Šifrarnik A.'!C14,dvoslovna, 0))","v":{"$error":"#N/A"}},{"$f":"INDEX('šifrarnik za identifikatore'!$F$2:$F$326, MATCH('Šifrarnik B.'!C17,dvoslovna, 0))","v":{"$error":"#N/A"}},{"$f":"INDEX('šifrarnik za identifikatore'!$F$2:$F$326, MATCH('Šifrarnik B.B.'!G16,dvoslovna, 0))","v":{"$error":"#N/A"}}]
["AW","CL",null,null,null,"ostalo",{"$f":"INDEX('šifrarnik za identifikatore'!$F$2:$F$326, MATCH('Šifrarnik A.'!C15,dvoslovna, 0))","v":{"$error":"#N/A"}},{"$f":"INDEX('šifrarnik za identifikatore'!$F$2:$F$326, MATCH('Šifrarnik B.'!#REF!,dvoslovna, 0))","v":{"$error":"#REF!"}},{"$f":"INDEX('šifrarnik za identifikatore'!$F$2:$F$326, MATCH('Šifrarnik B.B.'!G17,dvoslovna, 0))","v":{"$error":"#N/A"}}]
["AX","CN",null,null,null,"ostalo",{"$f":"INDEX('šifrarnik za identifikatore'!$F$2:$F$326, MATCH('Šifrarnik A.'!C16,dvoslovna, 0))","v":{"$error":"#N/A"}},{"$f":"INDEX('šifrarnik za identifikatore'!$F$2:$F$326, MATCH('Šifrarnik B.'!#REF!,dvoslovna, 0))","v":{"$error":"#REF!"}},{"$f":"INDEX('šifrarnik za identifikatore'!$F$2:$F$326, MATCH('Šifrarnik B.B.'!G18,dvoslovna, 0))","v":{"$error":"#N/A"}}]
["AZ","CO",null,null,null,"ostalo",{"$f":"INDEX('šifrarnik za identifikatore'!$F$2:$F$326, MATCH('Šifrarnik A.'!C17,dvoslovna, 0))","v":{"$error":"#N/A"}},{"$f":"INDEX('šifrarnik za identifikatore'!$F$2:$F$326, MATCH('Šifrarnik B.'!#REF!,dvoslovna, 0))","v":{"$error":"#REF!"}},{"$f":"INDEX('šifrarnik za identifikatore'!$F$2:$F$326, MATCH('Šifrarnik B.B.'!G19,dvoslovna, 0))","v":{"$error":"#N/A"}}]
["BA","CR",null,null,null,"identifikator",{"$f":"INDEX('šifrarnik za identifikatore'!$F$2:$F$326, MATCH('Šifrarnik A.'!C18,dvoslovna, 0))","v":{"$error":"#N/A"}},{"$f":"INDEX('šifrarnik za identifikatore'!$F$2:$F$326, MATCH('Šifrarnik B.'!#REF!,dvoslovna, 0))","v":{"$error":"#REF!"}},{"$f":"INDEX('šifrarnik za identifikatore'!$F$2:$F$326, MATCH('Šifrarnik B.B.'!G20,dvoslovna, 0))","v":{"$error":"#N/A"}}]
["BB","CW",null,null,null,"ostalo",{"$f":"INDEX('šifrarnik za identifikatore'!$F$2:$F$326, MATCH('Šifrarnik A.'!C19,dvoslovna, 0))","v":{"$error":"#N/A"}},{"$f":"INDEX('šifrarnik za identifikatore'!$F$2:$F$326, MATCH('Šifrarnik B.'!#REF!,dvoslovna, 0))","v":{"$error":"#REF!"}},{"$f":"INDEX('šifrarnik za identifikatore'!$F$2:$F$326, MATCH('Šifrarnik B.B.'!G21,dvoslovna, 0))","v":{"$error":"#N/A"}}]
["BD","CY",null,null,null,"ostalo",{"$f":"INDEX('šifrarnik za identifikatore'!$F$2:$F$326, MATCH('Šifrarnik A.'!C20,dvoslovna, 0))","v":{"$error":"#N/A"}},{"$f":"INDEX('šifrarnik za identifikatore'!$F$2:$F$326, MATCH('Šifrarnik B.'!#REF!,dvoslovna, 0))","v":{"$error":"#REF!"}},{"$f":"INDEX('šifrarnik za identifikatore'!$F$2:$F$326, MATCH('Šifrarnik B.B.'!G22,dvoslovna, 0))","v":{"$error":"#N/A"}}]
["BE","CZ",null,null,null,"identifikator",{"$f":"INDEX('šifrarnik za identifikatore'!$F$2:$F$326, MATCH('Šifrarnik A.'!C21,dvoslovna, 0))","v":{"$error":"#N/A"}},{"$f":"INDEX('šifrarnik za identifikatore'!$F$2:$F$326, MATCH('Šifrarnik B.'!#REF!,dvoslovna, 0))","v":{"$error":"#REF!"}},{"$f":"INDEX('šifrarnik za identifikatore'!$F$2:$F$326, MATCH('Šifrarnik B.B.'!G23,dvoslovna, 0))","v":{"$error":"#N/A"}}]
["BF","DE",null,null,null,"ostalo",{"$f":"INDEX('šifrarnik za identifikatore'!$F$2:$F$326, MATCH('Šifrarnik A.'!C22,dvoslovna, 0))","v":{"$error":"#N/A"}},{"$f":"INDEX('šifrarnik za identifikatore'!$F$2:$F$326, MATCH('Šifrarnik B.'!#REF!,dvoslovna, 0))","v":{"$error":"#REF!"}},{"$f":"INDEX('šifrarnik za identifikatore'!$F$2:$F$326, MATCH('Šifrarnik B.B.'!G24,dvoslovna, 0))","v":{"$error":"#N/A"}}]
["BG","DK",null,null,null,"identifikator",{"$f":"INDEX('šifrarnik za identifikatore'!$F$2:$F$326, MATCH('Šifrarnik A.'!C23,dvoslovna, 0))","v":{"$error":"#N/A"}},{"$f":"INDEX('šifrarnik za identifikatore'!$F$2:$F$326, MATCH('Šifrarnik B.'!#REF!,dvoslovna, 0))","v":{"$error":"#REF!"}},{"$f":"INDEX('šifrarnik za identifikatore'!$F$2:$F$326, MATCH('Šifrarnik B.B.'!G25,dvoslovna, 0))","v":{"$error":"#N/A"}}]
["BH","DO",null,null,null,"identifikator",{"$f":"INDEX('šifrarnik za identifikatore'!$F$2:$F$326, MATCH('Šifrarnik A.'!C24,dvoslovna, 0))","v":{"$error":"#N/A"}},{"$f":"INDEX('šifrarnik za identifikatore'!$F$2:$F$326, MATCH('Šifrarnik B.'!#REF!,dvoslovna, 0))","v":{"$error":"#REF!"}},{"$f":"INDEX('šifrarnik za identifikatore'!$F$2:$F$326, MATCH('Šifrarnik B.B.'!G26,dvoslovna, 0))","v":{"$error":"#N/A"}}]
["BI","EC",null,null,null,"ostalo",{"$f":"INDEX('šifrarnik za identifikatore'!$F$2:$F$326, MATCH('Šifrarnik A.'!C25,dvoslovna, 0))","v":{"$error":"#N/A"}},{"$f":"INDEX('šifrarnik za identifikatore'!$F$2:$F$326, MATCH('Šifrarnik B.'!#REF!,dvoslovna, 0))","v":{"$error":"#REF!"}},{"$f":"INDEX('šifrarnik za identifikatore'!$F$2:$F$326, MATCH('Šifrarnik B.B.'!G27,dvoslovna, 0))","v":{"$error":"#N/A"}}]
["BJ","EE",null,null,null,"ostalo",{"$f":"INDEX('šifrarnik za identifikatore'!$F$2:$F$326, MATCH('Šifrarnik A.'!C26,dvoslovna, 0))","v":{"$error":"#N/A"}},{"$f":"INDEX('šifrarnik za identifikatore'!$F$2:$F$326, MATCH('Šifrarnik B.'!#REF!,dvoslovna, 0))","v":{"$error":"#REF!"}},{"$f":"INDEX('šifrarnik za identifikatore'!$F$2:$F$326, MATCH('Šifrarnik B.B.'!G28,dvoslovna, 0))","v":{"$error":"#N/A"}}]
["BL","ES",null,null,null,"ostalo",{"$f":"INDEX('šifrarnik za identifikatore'!$F$2:$F$326, MATCH('Šifrarnik A.'!C27,dvoslovna, 0))","v":{"$error":"#N/A"}},{"$f":"INDEX('šifrarnik za identifikatore'!$F$2:$F$326, MATCH('Šifrarnik B.'!#REF!,dvoslovna, 0))","v":{"$error":"#REF!"}},{"$f":"INDEX('šifrarnik za identifikatore'!$F$2:$F$326, MATCH('Šifrarnik B.B.'!G29,dvoslovna, 0))","v":{"$error":"#N/A"}}]
["BM","FI",null,null,null,"identifikator",{"$f":"INDEX('šifrarnik za identifikatore'!$F$2:$F$326, MATCH('Šifrarnik A.'!C28,dvoslovna, 0))","v":{"$error":"#N/A"}},{"$f":"INDEX('šifrarnik za identifikatore'!$F$2:$F$326, MATCH('Šifrarnik B.'!#REF!,dvoslovna, 0))","v":{"$error":"#REF!"}},{"$f":"INDEX('šifrarnik za identifikatore'!$F$2:$F$326, MATCH('Šifrarnik B.B.'!G30,dvoslovna, 0))","v":{"$error":"#N/A"}}]
["BN","FR",null,null,null,"ostalo",{"$f":"INDEX('šifrarnik za identifikatore'!$F$2:$F$326, MATCH('Šifrarnik A.'!C29,dvoslovna, 0))","v":{"$error":"#N/A"}},{"$f":"INDEX('šifrarnik za identifikatore'!$F$2:$F$326, MATCH('Šifrarnik B.'!#REF!,dvoslovna, 0))","v":{"$error":"#REF!"}},{"$f":"INDEX('šifrarnik za identifikatore'!$F$2:$F$326, MATCH('Šifrarnik B.B.'!G31,dvoslovna, 0))","v":{"$error":"#N/A"}}]
["BO","GB",null,null,null,"ostalo",{"$f":"INDEX('šifrarnik za identifikatore'!$F$2:$F$326, MATCH('Šifrarnik A.'!C30,dvoslovna, 0))","v":{"$error":"#N/A"}},{"$f":"INDEX('šifrarnik za identifikatore'!$F$2:$F$326, MATCH('Šifrarnik B.'!#REF!,dvoslovna, 0))","v":{"$error":"#REF!"}},{"$f":"INDEX('šifrarnik za identifikatore'!$F$2:$F$326, MATCH('Šifrarnik B.B.'!G32,dvoslovna, 0))","v":{"$error":"#N/A"}}]
["BQ","GG",null,null,null,"ostalo",{"$f":"INDEX('šifrarnik za identifikatore'!$F$2:$F$326, MATCH('Šifrarnik A.'!C31,dvoslovna, 0))","v":{"$error":"#N/A"}},{"$f":"INDEX('šifrarnik za identifikatore'!$F$2:$F$326, MATCH('Šifrarnik B.'!#REF!,dvoslovna, 0))","v":{"$error":"#REF!"}},{"$f":"INDEX('šifrarnik za identifikatore'!$F$2:$F$326, MATCH('Šifrarnik B.B.'!G33,dvoslovna, 0))","v":{"$error":"#N/A"}}]
["BR","GL",null,null,null,"ostalo",{"$f":"INDEX('šifrarnik za identifikatore'!$F$2:$F$326, MATCH('Šifrarnik A.'!C32,dvoslovna, 0))","v":{"$error":"#N/A"}},{"$f":"INDEX('šifrarnik za identifikatore'!$F$2:$F$326, MATCH('Šifrarnik B.'!#REF!,dvoslovna, 0))","v":{"$error":"#REF!"}},{"$f":"INDEX('šifrarnik za identifikatore'!$F$2:$F$326, MATCH('Šifrarnik B.B.'!G34,dvoslovna, 0))","v":{"$error":"#N/A"}}]
["BS","GR",null,null,null,"identifikator",{"$f":"INDEX('šifrarnik za identifikatore'!$F$2:$F$326, MATCH('Šifrarnik A.'!C33,dvoslovna, 0))","v":{"$error":"#N/A"}},{"$f":"INDEX('šifrarnik za identifikatore'!$F$2:$F$326, MATCH('Šifrarnik B.'!#REF!,dvoslovna, 0))","v":{"$error":"#REF!"}},{"$f":"INDEX('šifrarnik za identifikatore'!$F$2:$F$326, MATCH('Šifrarnik B.B.'!G35,dvoslovna, 0))","v":{"$error":"#N/A"}}]
["BT","GT",null,null,null,"ostalo",{"$f":"INDEX('šifrarnik za identifikatore'!$F$2:$F$326, MATCH('Šifrarnik A.'!C34,dvoslovna, 0))","v":{"$error":"#N/A"}},{"$f":"INDEX('šifrarnik za identifikatore'!$F$2:$F$326, MATCH('Šifrarnik B.'!#REF!,dvoslovna, 0))","v":{"$error":"#REF!"}},{"$f":"INDEX('šifrarnik za identifikatore'!$F$2:$F$326, MATCH('Šifrarnik B.B.'!G36,dvoslovna, 0))","v":{"$error":"#N/A"}}]
["BV","HK",null,null,null,"ostalo",{"$f":"INDEX('šifrarnik za identifikatore'!$F$2:$F$326, MATCH('Šifrarnik A.'!C35,dvoslovna, 0))","v":{"$error":"#N/A"}},{"$f":"INDEX('šifrarnik za identifikatore'!$F$2:$F$326, MATCH('Šifrarnik B.'!C18,dvoslovna, 0))","v":{"$error":"#N/A"}},{"$f":"INDEX('šifrarnik za identifikatore'!$F$2:$F$326, MATCH('Šifrarnik B.B.'!G37,dvoslovna, 0))","v":{"$error":"#N/A"}}]
["BW","HR",null,null,null,"ostalo",{"$f":"INDEX('šifrarnik za identifikatore'!$F$2:$F$326, MATCH('Šifrarnik A.'!C36,dvoslovna, 0))","v":{"$error":"#N/A"}},{"$f":"INDEX('šifrarnik za identifikatore'!$F$2:$F$326, MATCH('Šifrarnik B.'!C19,dvoslovna, 0))","v":{"$error":"#N/A"}},{"$f":"INDEX('šifrarnik za identifikatore'!$F$2:$F$326, MATCH('Šifrarnik B.B.'!G38,dvoslovna, 0))","v":{"$error":"#N/A"}}]
["BY","HU",null,null,null,"identifikator",{"$f":"INDEX('šifrarnik za identifikatore'!$F$2:$F$326, MATCH('Šifrarnik A.'!C37,dvoslovna, 0))","v":{"$error":"#N/A"}},{"$f":"INDEX('šifrarnik za identifikatore'!$F$2:$F$326, MATCH('Šifrarnik B.'!C20,dvoslovna, 0))","v":{"$error":"#N/A"}},{"$f":"INDEX('šifrarnik za identifikatore'!$F$2:$F$326, MATCH('Šifrarnik B.B.'!G39,dvoslovna, 0))","v":{"$error":"#N/A"}}]
["BZ","ID",null,null,null,"identifikator",{"$f":"INDEX('šifrarnik za identifikatore'!$F$2:$F$326, MATCH('Šifrarnik A.'!C38,dvoslovna, 0))","v":{"$error":"#N/A"}},{"$f":"INDEX('šifrarnik za identifikatore'!$F$2:$F$326, MATCH('Šifrarnik B.'!C21,dvoslovna, 0))","v":{"$error":"#N/A"}},{"$f":"INDEX('šifrarnik za identifikatore'!$F$2:$F$326, MATCH('Šifrarnik B.B.'!G40,dvoslovna, 0))","v":{"$error":"#N/A"}}]
["CA","IE",null,null,null,"identifikator",{"$f":"INDEX('šifrarnik za identifikatore'!$F$2:$F$326, MATCH('Šifrarnik A.'!C39,dvoslovna, 0))","v":{"$error":"#N/A"}},{"$f":"INDEX('šifrarnik za identifikatore'!$F$2:$F$326, MATCH('Šifrarnik B.'!C22,dvoslovna, 0))","v":{"$error":"#N/A"}},{"$f":"INDEX('šifrarnik za identifikatore'!$F$2:$F$326, MATCH('Šifrarnik B.B.'!G41,dvoslovna, 0))","v":{"$error":"#N/A"}}]
["CC","IL",null,null,null,"ostalo",{"$f":"INDEX('šifrarnik za identifikatore'!$F$2:$F$326, MATCH('Šifrarnik A.'!C40,dvoslovna, 0))","v":{"$error":"#N/A"}},{"$f":"INDEX('šifrarnik za identifikatore'!$F$2:$F$326, MATCH('Šifrarnik B.'!C23,dvoslovna, 0))","v":{"$error":"#N/A"}},{"$f":"INDEX('šifrarnik za identifikatore'!$F$2:$F$326, MATCH('Šifrarnik B.B.'!G42,dvoslovna, 0))","v":{"$error":"#N/A"}}]
["CD","IM",null,null,null,"ostalo",{"$f":"INDEX('šifrarnik za identifikatore'!$F$2:$F$326, MATCH('Šifrarnik A.'!C41,dvoslovna, 0))","v":{"$error":"#N/A"}},{"$f":"INDEX('šifrarnik za identifikatore'!$F$2:$F$326, MATCH('Šifrarnik B.'!C24,dvoslovna, 0))","v":{"$error":"#N/A"}},{"$f":"INDEX('šifrarnik za identifikatore'!$F$2:$F$326, MATCH('Šifrarnik B.B.'!G43,dvoslovna, 0))","v":{"$error":"#N/A"}}]
["CF","IN",null,null,null,"ostalo",{"$f":"INDEX('šifrarnik za identifikatore'!$F$2:$F$326, MATCH('Šifrarnik A.'!C42,dvoslovna, 0))","v":{"$error":"#N/A"}},{"$f":"INDEX('šifrarnik za identifikatore'!$F$2:$F$326, MATCH('Šifrarnik B.'!C25,dvoslovna, 0))","v":{"$error":"#N/A"}},{"$f":"INDEX('šifrarnik za identifikatore'!$F$2:$F$326, MATCH('Šifrarnik B.B.'!G44,dvoslovna, 0))","v":{"$error":"#N/A"}}]
["CG","IS",null,null,null,"ostalo",{"$f":"INDEX('šifrarnik za identifikatore'!$F$2:$F$326, MATCH('Šifrarnik A.'!C43,dvoslovna, 0))","v":{"$error":"#N/A"}},{"$f":"INDEX('šifrarnik za identifikatore'!$F$2:$F$326, MATCH('Šifrarnik B.'!C26,dvoslovna, 0))","v":{"$error":"#N/A"}},{"$f":"INDEX('šifrarnik za identifikatore'!$F$2:$F$326, MATCH('Šifrarnik B.B.'!G45,dvoslovna, 0))","v":{"$error":"#N/A"}}]
["CH","IT",null,null,null,"identifikator",{"$f":"INDEX('šifrarnik za identifikatore'!$F$2:$F$326, MATCH('Šifrarnik A.'!C44,dvoslovna, 0))","v":{"$error":"#N/A"}},{"$f":"INDEX('šifrarnik za identifikatore'!$F$2:$F$326, MATCH('Šifrarnik B.'!C27,dvoslovna, 0))","v":{"$error":"#N/A"}},{"$f":"INDEX('šifrarnik za identifikatore'!$F$2:$F$326, MATCH('Šifrarnik B.B.'!G46,dvoslovna, 0))","v":{"$error":"#N/A"}}]
["CI","JE",null,null,null,"ostalo",{"$f":"INDEX('šifrarnik za identifikatore'!$F$2:$F$326, MATCH('Šifrarnik A.'!C45,dvoslovna, 0))","v":{"$error":"#N/A"}},{"$f":"INDEX('šifrarnik za identifikatore'!$F$2:$F$326, MATCH('Šifrarnik B.'!C28,dvoslovna, 0))","v":{"$error":"#N/A"}},{"$f":"INDEX('šifrarnik za identifikatore'!$F$2:$F$326, MATCH('Šifrarnik B.B.'!G47,dvoslovna, 0))","v":{"$error":"#N/A"}}]
["CK","JP",null,null,null,"ostalo",{"$f":"INDEX('šifrarnik za identifikatore'!$F$2:$F$326, MATCH('Šifrarnik A.'!C46,dvoslovna, 0))","v":{"$error":"#N/A"}},{"$f":"INDEX('šifrarnik za identifikatore'!$F$2:$F$326, MATCH('Šifrarnik B.'!C29,dvoslovna, 0))","v":{"$error":"#N/A"}},{"$f":"INDEX('šifrarnik za identifikatore'!$F$2:$F$326, MATCH('Šifrarnik B.B.'!G48,dvoslovna, 0))","v":{"$error":"#N/A"}}]
["CL","KR",null,null,null,"identifikator",{"$f":"INDEX('šifrarnik za identifikatore'!$F$2:$F$326, MATCH('Šifrarnik A.'!C47,dvoslovna, 0))","v":{"$error":"#N/A"}},{"$f":"INDEX('šifrarnik za identifikatore'!$F$2:$F$326, MATCH('Šifrarnik B.'!C30,dvoslovna, 0))","v":{"$error":"#N/A"}},{"$f":"INDEX('šifrarnik za identifikatore'!$F$2:$F$326, MATCH('Šifrarnik B.B.'!G49,dvoslovna, 0))","v":{"$error":"#N/A"}}]
["CM","KZ",null,null,null,"ostalo",{"$f":"INDEX('šifrarnik za identifikatore'!$F$2:$F$326, MATCH('Šifrarnik A.'!C48,dvoslovna, 0))","v":{"$error":"#N/A"}},{"$f":"INDEX('šifrarnik za identifikatore'!$F$2:$F$326, MATCH('Šifrarnik B.'!C31,dvoslovna, 0))","v":{"$error":"#N/A"}},{"$f":"INDEX('šifrarnik za identifikatore'!$F$2:$F$326, MATCH('Šifrarnik B.B.'!G50,dvoslovna, 0))","v":{"$error":"#N/A"}}]
["CN","LB",null,null,null,"identifikator",{"$f":"INDEX('šifrarnik za identifikatore'!$F$2:$F$326, MATCH('Šifrarnik A.'!C49,dvoslovna, 0))","v":{"$error":"#N/A"}},{"$f":"INDEX('šifrarnik za identifikatore'!$F$2:$F$326, MATCH('Šifrarnik B.'!C32,dvoslovna, 0))","v":{"$error":"#N/A"}},{"$f":"INDEX('šifrarnik za identifikatore'!$F$2:$F$326, MATCH('Šifrarnik B.B.'!G51,dvoslovna, 0))","v":{"$error":"#N/A"}}]
["CO","LI",null,null,null,"identifikator",{"$f":"INDEX('šifrarnik za identifikatore'!$F$2:$F$326, MATCH('Šifrarnik A.'!C50,dvoslovna, 0))","v":{"$error":"#N/A"}},{"$f":"INDEX('šifrarnik za identifikatore'!$F$2:$F$326, MATCH('Šifrarnik B.'!C33,dvoslovna, 0))","v":{"$error":"#N/A"}},{"$f":"INDEX('šifrarnik za identifikatore'!$F$2:$F$326, MATCH('Šifrarnik B.B.'!G52,dvoslovna, 0))","v":{"$error":"#N/A"}}]
["CR","LT",null,null,null,"identifikator",{"$f":"INDEX('šifrarnik za identifikatore'!$F$2:$F$326, MATCH('Šifrarnik A.'!C51,dvoslovna, 0))","v":{"$error":"#N/A"}},{"$f":"INDEX('šifrarnik za identifikatore'!$F$2:$F$326, MATCH('Šifrarnik B.'!C34,dvoslovna, 0))","v":{"$error":"#N/A"}},{"$f":"INDEX('šifrarnik za identifikatore'!$F$2:$F$326, MATCH('Šifrarnik B.B.'!G53,dvoslovna, 0))","v":{"$error":"#N/A"}}]
["CU","LU",null,null,null,"ostalo",{"$f":"INDEX('šifrarnik za identifikatore'!$F$2:$F$326, MATCH('Šifrarnik A.'!C52,dvoslovna, 0))","v":{"$error":"#N/A"}},{"$f":"INDEX('šifrarnik za identifikatore'!$F$2:$F$326, MATCH('Šifrarnik B.'!C35,dvoslovna, 0))","v":{"$error":"#N/A"}},{"$f":"INDEX('šifrarnik za identifikatore'!$F$2:$F$326, MATCH('Šifrarnik B.B.'!G54,dvoslovna, 0))","v":{"$error":"#N/A"}}]
["CV","LV",null,null,null,"ostalo",{"$f":"INDEX('šifrarnik za identifikatore'!$F$2:$F$326, MATCH('Šifrarnik A.'!C53,dvoslovna, 0))","v":{"$error":"#N/A"}},{"$f":"INDEX('šifrarnik za identifikatore'!$F$2:$F$326, MATCH('Šifrarnik B.'!C36,dvoslovna, 0))","v":{"$error":"#N/A"}},{"$f":"INDEX('šifrarnik za identifikatore'!$F$2:$F$326, MATCH('Šifrarnik B.B.'!G55,dvoslovna, 0))","v":{"$error":"#N/A"}}]
["CW","MC",null,null,null,"identifikator",{"$f":"INDEX('šifrarnik za identifikatore'!$F$2:$F$326, MATCH('Šifrarnik A.'!C54,dvoslovna, 0))","v":{"$error":"#N/A"}},{"$f":"INDEX('šifrarnik za identifikatore'!$F$2:$F$326, MATCH('Šifrarnik B.'!C37,dvoslovna, 0))","v":{"$error":"#N/A"}},{"$f":"INDEX('šifrarnik za identifikatore'!$F$2:$F$326, MATCH('Šifrarnik B.B.'!G56,dvoslovna, 0))","v":{"$error":"#N/A"}}]
["CX","ME",null,null,null,"ostalo",{"$f":"INDEX('šifrarnik za identifikatore'!$F$2:$F$326, MATCH('Šifrarnik A.'!C55,dvoslovna, 0))","v":{"$error":"#N/A"}},{"$f":"INDEX('šifrarnik za identifikatore'!$F$2:$F$326, MATCH('Šifrarnik B.'!C38,dvoslovna, 0))","v":{"$error":"#N/A"}},{"$f":"INDEX('šifrarnik za identifikatore'!$F$2:$F$326, MATCH('Šifrarnik B.B.'!G57,dvoslovna, 0))","v":{"$error":"#N/A"}}]
["CY","MH",null,null,null,"identifikator",{"$f":"INDEX('šifrarnik za identifikatore'!$F$2:$F$326, MATCH('Šifrarnik A.'!C56,dvoslovna, 0))","v":{"$error":"#N/A"}},{"$f":"INDEX('šifrarnik za identifikatore'!$F$2:$F$326, MATCH('Šifrarnik B.'!C39,dvoslovna, 0))","v":{"$error":"#N/A"}},{"$f":"INDEX('šifrarnik za identifikatore'!$F$2:$F$326, MATCH('Šifrarnik B.B.'!G58,dvoslovna, 0))","v":{"$error":"#N/A"}}]
["CZ","MK",null,null,null,"identifikator",{"$f":"INDEX('šifrarnik za identifikatore'!$F$2:$F$326, MATCH('Šifrarnik A.'!C57,dvoslovna, 0))","v":{"$error":"#N/A"}},{"$f":"INDEX('šifrarnik za identifikatore'!$F$2:$F$326, MATCH('Šifrarnik B.'!C40,dvoslovna, 0))","v":{"$error":"#N/A"}},{"$f":"INDEX('šifrarnik za identifikatore'!$F$2:$F$326, MATCH('Šifrarnik B.B.'!G59,dvoslovna, 0))","v":{"$error":"#N/A"}}]
["DE","MT",null,null,null,"identifikator",{"$f":"INDEX('šifrarnik za identifikatore'!$F$2:$F$326, MATCH('Šifrarnik A.'!C58,dvoslovna, 0))","v":{"$error":"#N/A"}},{"$f":"INDEX('šifrarnik za identifikatore'!$F$2:$F$326, MATCH('Šifrarnik B.'!C41,dvoslovna, 0))","v":{"$error":"#N/A"}},{"$f":"INDEX('šifrarnik za identifikatore'!$F$2:$F$326, MATCH('Šifrarnik B.B.'!G60,dvoslovna, 0))","v":{"$error":"#N/A"}}]
["DJ","MU",null,null,null,"ostalo",{"$f":"INDEX('šifrarnik za identifikatore'!$F$2:$F$326, MATCH('Šifrarnik A.'!C59,dvoslovna, 0))","v":{"$error":"#N/A"}},{"$f":"INDEX('šifrarnik za identifikatore'!$F$2:$F$326, MATCH('Šifrarnik B.'!C42,dvoslovna, 0))","v":{"$error":"#N/A"}},{"$f":"INDEX('šifrarnik za identifikatore'!$F$2:$F$326, MATCH('Šifrarnik B.B.'!G61,dvoslovna, 0))","v":{"$error":"#N/A"}}]
["DK","MX",null,null,null,"identifikator",{"$f":"INDEX('šifrarnik za identifikatore'!$F$2:$F$326, MATCH('Šifrarnik A.'!C60,dvoslovna, 0))","v":{"$error":"#N/A"}},{"$f":"INDEX('šifrarnik za identifikatore'!$F$2:$F$326, MATCH('Šifrarnik B.'!C43,dvoslovna, 0))","v":{"$error":"#N/A"}},{"$f":"INDEX('šifrarnik za identifikatore'!$F$2:$F$326, MATCH('Šifrarnik B.B.'!G62,dvoslovna, 0))","v":{"$error":"#N/A"}}]
["DM","MY",null,null,null,"ostalo",{"$f":"INDEX('šifrarnik za identifikatore'!$F$2:$F$326, MATCH('Šifrarnik A.'!C61,dvoslovna, 0))","v":{"$error":"#N/A"}},{"$f":"INDEX('šifrarnik za identifikatore'!$F$2:$F$326, MATCH('Šifrarnik B.'!C44,dvoslovna, 0))","v":{"$error":"#N/A"}},{"$f":"INDEX('šifrarnik za identifikatore'!$F$2:$F$326, MATCH('Šifrarnik B.B.'!G63,dvoslovna, 0))","v":{"$error":"#N/A"}}]
["DO","NC",null,null,null,"identifikator",{"$f":"INDEX('šifrarnik za identifikatore'!$F$2:$F$326, MATCH('Šifrarnik A.'!C62,dvoslovna, 0))","v":{"$error":"#N/A"}},{"$f":"INDEX('šifrarnik za identifikatore'!$F$2:$F$326, MATCH('Šifrarnik B.'!C45,dvoslovna, 0))","v":{"$error":"#N/A"}},{"$f":"INDEX('šifrarnik za identifikatore'!$F$2:$F$326, MATCH('Šifrarnik B.B.'!G64,dvoslovna, 0))","v":{"$error":"#N/A"}}]
["DZ","NL",null,null,null,"ostalo",{"$f":"INDEX('šifrarnik za identifikatore'!$F$2:$F$326, MATCH('Šifrarnik A.'!C63,dvoslovna, 0))","v":{"$error":"#N/A"}},{"$f":"INDEX('šifrarnik za identifikatore'!$F$2:$F$326, MATCH('Šifrarnik B.'!C46,dvoslovna, 0))","v":{"$error":"#N/A"}},{"$f":"INDEX('šifrarnik za identifikatore'!$F$2:$F$326, MATCH('Šifrarnik B.B.'!G65,dvoslovna, 0))","v":{"$error":"#N/A"}}]
["EC","NO",null,null,null,"identifikator",{"$f":"INDEX('šifrarnik za identifikatore'!$F$2:$F$326, MATCH('Šifrarnik A.'!C64,dvoslovna, 0))","v":{"$error":"#N/A"}},{"$f":"INDEX('šifrarnik za identifikatore'!$F$2:$F$326, MATCH('Šifrarnik B.'!C47,dvoslovna, 0))","v":{"$error":"#N/A"}},{"$f":"INDEX('šifrarnik za identifikatore'!$F$2:$F$326, MATCH('Šifrarnik B.B.'!G66,dvoslovna, 0))","v":{"$error":"#N/A"}}]
["EE","NZ",null,null,null,{"$f":"IF(COUNTIF(dio, A66) > 0, \"identifikator\",\"ostalo\")","v":"identifikator"},{"$f":"INDEX('šifrarnik za identifikatore'!$F$2:$F$326, MATCH('Šifrarnik A.'!C65,dvoslovna, 0))","v":{"$error":"#N/A"}},{"$f":"INDEX('šifrarnik za identifikatore'!$F$2:$F$326, MATCH('Šifrarnik B.'!C48,dvoslovna, 0))","v":{"$error":"#N/A"}},{"$f":"INDEX('šifrarnik za identifikatore'!$F$2:$F$326, MATCH('Šifrarnik B.B.'!G67,dvoslovna, 0))","v":{"$error":"#N/A"}}]
["EG","OM",null,null,null,"ostalo",{"$f":"INDEX('šifrarnik za identifikatore'!$F$2:$F$326, MATCH('Šifrarnik A.'!C66,dvoslovna, 0))","v":{"$error":"#N/A"}},{"$f":"INDEX('šifrarnik za identifikatore'!$F$2:$F$326, MATCH('Šifrarnik B.'!C49,dvoslovna, 0))","v":{"$error":"#N/A"}},{"$f":"INDEX('šifrarnik za identifikatore'!$F$2:$F$326, MATCH('Šifrarnik B.B.'!G68,dvoslovna, 0))","v":{"$error":"#N/A"}}]
["EH","PA",null,null,null,"ostalo",{"$f":"INDEX('šifrarnik za identifikatore'!$F$2:$F$326, MATCH('Šifrarnik A.'!C67,dvoslovna, 0))","v":{"$error":"#N/A"}},{"$f":"INDEX('šifrarnik za identifikatore'!$F$2:$F$326, MATCH('Šifrarnik B.'!C50,dvoslovna, 0))","v":{"$error":"#N/A"}},{"$f":"INDEX('šifrarnik za identifikatore'!$F$2:$F$326, MATCH('Šifrarnik B.B.'!G69,dvoslovna, 0))","v":{"$error":"#N/A"}}]
["ER","PE",null,null,null,"ostalo",{"$f":"INDEX('šifrarnik za identifikatore'!$F$2:$F$326, MATCH('Šifrarnik A.'!C68,dvoslovna, 0))","v":{"$error":"#N/A"}},{"$f":"INDEX('šifrarnik za identifikatore'!$F$2:$F$326, MATCH('Šifrarnik B.'!C51,dvoslovna, 0))","v":{"$error":"#N/A"}},{"$f":"INDEX('šifrarnik za identifikatore'!$F$2:$F$326, MATCH('Šifrarnik B.B.'!G70,dvoslovna, 0))","v":{"$error":"#N/A"}}]
["ES","PL",null,null,null,"identifikator",{"$f":"INDEX('šifrarnik za identifikatore'!$F$2:$F$326, MATCH('Šifrarnik A.'!C69,dvoslovna, 0))","v":{"$error":"#N/A"}},{"$f":"INDEX('šifrarnik za identifikatore'!$F$2:$F$326, MATCH('Šifrarnik B.'!C52,dvoslovna, 0))","v":{"$error":"#N/A"}},{"$f":"INDEX('šifrarnik za identifikatore'!$F$2:$F$326, MATCH('Šifrarnik B.B.'!G71,dvoslovna, 0))","v":{"$error":"#N/A"}}]
["ET","PT",null,null,null,"ostalo",{"$f":"INDEX('šifrarnik za identifikatore'!$F$2:$F$326, MATCH('Šifrarnik A.'!C70,dvoslovna, 0))","v":{"$error":"#N/A"}},{"$f":"INDEX('šifrarnik za identifikatore'!$F$2:$F$326, MATCH('Šifrarnik B.'!C53,dvoslovna, 0))","v":{"$error":"#N/A"}},{"$f":"INDEX('šifrarnik za identifikatore'!$F$2:$F$326, MATCH('Šifrarnik B.B.'!G72,dvoslovna, 0))","v":{"$error":"#N/A"}}]
["FI","QA",null,null,null,"identifikator",{"$f":"INDEX('šifrarnik za identifikatore'!$F$2:$F$326, MATCH('Šifrarnik A.'!C71,dvoslovna, 0))","v":{"$error":"#N/A"}},{"$f":"INDEX('šifrarnik za identifikatore'!$F$2:$F$326, MATCH('Šifrarnik B.'!C54,dvoslovna, 0))","v":{"$error":"#N/A"}},{"$f":"INDEX('šifrarnik za identifikatore'!$F$2:$F$326, MATCH('Šifrarnik B.B.'!G73,dvoslovna, 0))","v":{"$error":"#N/A"}}]
["FJ","RO",null,null,null,"ostalo",{"$f":"INDEX('šifrarnik za identifikatore'!$F$2:$F$326, MATCH('Šifrarnik A.'!C72,dvoslovna, 0))","v":{"$error":"#N/A"}},{"$f":"INDEX('šifrarnik za identifikatore'!$F$2:$F$326, MATCH('Šifrarnik B.'!C55,dvoslovna, 0))","v":{"$error":"#N/A"}},{"$f":"INDEX('šifrarnik za identifikatore'!$F$2:$F$326, MATCH('Šifrarnik B.B.'!G74,dvoslovna, 0))","v":{"$error":"#N/A"}}]
["FK","RS",null,null,null,"ostalo",{"$f":"INDEX('šifrarnik za identifikatore'!$F$2:$F$326, MATCH('Šifrarnik A.'!C73,dvoslovna, 0))","v":{"$error":"#N/A"}},{"$f":"INDEX('šifrarnik za identifikatore'!$F$2:$F$326, MATCH('Šifrarnik B.'!C56,dvoslovna, 0))","v":{"$error":"#N/A"}},{"$f":"INDEX('šifrarnik za identifikatore'!$F$2:$F$326, MATCH('Šifrarnik B.B.'!G75,dvoslovna, 0))","v":{"$error":"#N/A"}}]
["FM","RU",null,null,null,"ostalo",{"$f":"INDEX('šifrarnik za identifikatore'!$F$2:$F$326, MATCH('Šifrarnik A.'!C74,dvoslovna, 0))","v":{"$error":"#N/A"}},{"$f":"INDEX('šifrarnik za identifikatore'!$F$2:$F$326, MATCH('Šifrarnik B.'!C57,dvoslovna, 0))","v":{"$error":"#N/A"}},{"$f":"INDEX('šifrarnik za identifikatore'!$F$2:$F$326, MATCH('Šifrarnik B.B.'!G76,dvoslovna, 0))","v":{"$error":"#N/A"}}]
["FO","SA",null,null,null,"ostalo",{"$f":"INDEX('šifrarnik za identifikatore'!$F$2:$F$326, MATCH('Šifrarnik A.'!C75,dvoslovna, 0))","v":{"$error":"#N/A"}},{"$f":"INDEX('šifrarnik za identifikatore'!$F$2:$F$326, MATCH('Šifrarnik B.'!C58,dvoslovna, 0))","v":{"$error":"#N/A"}},{"$f":"INDEX('šifrarnik za identifikatore'!$F$2:$F$326, MATCH('Šifrarnik B.B.'!G77,dvoslovna, 0))","v":{"$error":"#N/A"}}]
["FR","SC",null,null,null,"identifikator",{"$f":"INDEX('šifrarnik za identifikatore'!$F$2:$F$326, MATCH('Šifrarnik A.'!C76,dvoslovna, 0))","v":{"$error":"#N/A"}},{"$f":"INDEX('šifrarnik za identifikatore'!$F$2:$F$326, MATCH('Šifrarnik B.'!C59,dvoslovna, 0))","v":{"$error":"#N/A"}},{"$f":"INDEX('šifrarnik za identifikatore'!$F$2:$F$326, MATCH('Šifrarnik B.B.'!G78,dvoslovna, 0))","v":{"$error":"#N/A"}}]
["GA","SE",null,null,null,"ostalo",{"$f":"INDEX('šifrarnik za identifikatore'!$F$2:$F$326, MATCH('Šifrarnik A.'!C77,dvoslovna, 0))","v":{"$error":"#N/A"}},{"$f":"INDEX('šifrarnik za identifikatore'!$F$2:$F$326, MATCH('Šifrarnik B.'!C60,dvoslovna, 0))","v":{"$error":"#N/A"}},{"$f":"INDEX('šifrarnik za identifikatore'!$F$2:$F$326, MATCH('Šifrarnik B.B.'!G79,dvoslovna, 0))","v":{"$error":"#N/A"}}]
["GB","SG",null,null,null,"identifikator",{"$f":"INDEX('šifrarnik za identifikatore'!$F$2:$F$326, MATCH('Šifrarnik A.'!C78,dvoslovna, 0))","v":{"$error":"#N/A"}},{"$f":"INDEX('šifrarnik za identifikatore'!$F$2:$F$326, MATCH('Šifrarnik B.'!C61,dvoslovna, 0))","v":{"$error":"#N/A"}},{"$f":"INDEX('šifrarnik za identifikatore'!$F$2:$F$326, MATCH('Šifrarnik B.B.'!G80,dvoslovna, 0))","v":{"$error":"#N/A"}}]
["GD","SI",null,null,null,"ostalo",{"$f":"INDEX('šifrarnik za identifikatore'!$F$2:$F$326, MATCH('Šifrarnik A.'!C79,dvoslovna, 0))","v":{"$error":"#N/A"}},{"$f":"INDEX('šifrarnik za identifikatore'!$F$2:$F$326, MATCH('Šifrarnik B.'!C62,dvoslovna, 0))","v":{"$error":"#N/A"}},{"$f":"INDEX('šifrarnik za identifikatore'!$F$2:$F$326, MATCH('Šifrarnik B.B.'!G81,dvoslovna, 0))","v":{"$error":"#N/A"}}]
["GE","SK",null,null,null,"ostalo",{"$f":"INDEX('šifrarnik za identifikatore'!$F$2:$F$326, MATCH('Šifrarnik A.'!C80,dvoslovna, 0))","v":{"$error":"#N/A"}},{"$f":"INDEX('šifrarnik za identifikatore'!$F$2:$F$326, MATCH('Šifrarnik B.'!C63,dvoslovna, 0))","v":{"$error":"#N/A"}},{"$f":"INDEX('šifrarnik za identifikatore'!$F$2:$F$326, MATCH('Šifrarnik B.B.'!G82,dvoslovna, 0))","v":{"$error":"#N/A"}}]
["GF","SM",null,null,null,"ostalo",{"$f":"INDEX('šifrarnik za identifikatore'!$F$2:$F$326, MATCH('Šifrarnik A.'!C81,dvoslovna, 0))","v":{"$error":"#N/A"}},{"$f":"INDEX('šifrarnik za identifikatore'!$F$2:$F$326, MATCH('Šifrarnik B.'!C64,dvoslovna, 0))","v":{"$error":"#N/A"}},{"$f":"INDEX('šifrarnik za identifikatore'!$F$2:$F$326, MATCH('Šifrarnik B.B.'!G83,dvoslovna, 0))","v":{"$error":"#N/A"}}]
["GG","TH",null,null,null,"identifikator",{"$f":"INDEX('šifrarnik za identifikatore'!$F$2:$F$326, MATCH('Šifrarnik A.'!C82,dvoslovna, 0))","v":{"$error":"#N/A"}},{"$f":"INDEX('šifrarnik za identifikatore'!$F$2:$F$326, MATCH('Šifrarnik B.'!C65,dvoslovna, 0))","v":{"$error":"#N/A"}},{"$f":"INDEX('šifrarnik za identifikatore'!$F$2:$F$326, MATCH('Šifrarnik B.B.'!G84,dvoslovna, 0))","v":{"$error":"#N/A"}}]
["GH","TN",null,null,null,"ostalo",{"$f":"INDEX('šifrarnik za identifikatore'!$F$2:$F$326, MATCH('Šifrarnik A.'!C83,dvoslovna, 0))","v":{"$error":"#N/A"}},{"$f":"INDEX('šifrarnik za identifikatore'!$F$2:$F$326, MATCH('Šifrarnik B.'!C66,dvoslovna, 0))","v":{"$error":"#N/A"}},{"$f":"INDEX('šifrarnik za identifikatore'!$F$2:$F$326, MATCH('Šifrarnik B.B.'!G85,dvoslovna, 0))","v":{"$error":"#N/A"}}]
["GI","TR",null,null,null,"ostalo",{"$f":"INDEX('šifrarnik za identifikatore'!$F$2:$F$326, MATCH('Šifrarnik A.'!C84,dvoslovna, 0))","v":{"$error":"#N/A"}},{"$f":"INDEX('šifrarnik za identifikatore'!$F$2:$F$326, MATCH('Šifrarnik B.'!C67,dvoslovna, 0))","v":{"$error":"#N/A"}},{"$f":"INDEX('šifrarnik za identifikatore'!$F$2:$F$326, MATCH('Šifrarnik B.B.'!G86,dvoslovna, 0))","v":{"$error":"#N/A"}}]
["GL","TW",null,null,null,"identifikator",{"$f":"INDEX('šifrarnik za identifikatore'!$F$2:$F$326, MATCH('Šifrarnik A.'!C85,dvoslovna, 0))","v":{"$error":"#N/A"}},{"$f":"INDEX('šifrarnik za identifikatore'!$F$2:$F$326, MATCH('Šifrarnik B.'!C68,dvoslovna, 0))","v":{"$error":"#N/A"}},{"$f":"INDEX('šifrarnik za identifikatore'!$F$2:$F$326, MATCH('Šifrarnik B.B.'!G87,dvoslovna, 0))","v":{"$error":"#N/A"}}]
["GM","UA",null,null,null,"ostalo",{"$f":"INDEX('šifrarnik za identifikatore'!$F$2:$F$326, MATCH('Šifrarnik A.'!C86,dvoslovna, 0))","v":{"$error":"#N/A"}},{"$f":"INDEX('šifrarnik za identifikatore'!$F$2:$F$326, MATCH('Šifrarnik B.'!C69,dvoslovna, 0))","v":{"$error":"#N/A"}},{"$f":"INDEX('šifrarnik za identifikatore'!$F$2:$F$326, MATCH('Šifrarnik B.B.'!G88,dvoslovna, 0))","v":{"$error":"#N/A"}}]
["GN","US",null,null,null,"ostalo",{"$f":"INDEX('šifrarnik za identifikatore'!$F$2:$F$326, MATCH('Šifrarnik A.'!C87,dvoslovna, 0))","v":{"$error":"#N/A"}},{"$f":"INDEX('šifrarnik za identifikatore'!$F$2:$F$326, MATCH('Šifrarnik B.'!C70,dvoslovna, 0))","v":{"$error":"#N/A"}},{"$f":"INDEX('šifrarnik za identifikatore'!$F$2:$F$326, MATCH('Šifrarnik B.B.'!G89,dvoslovna, 0))","v":{"$error":"#N/A"}}]
["GP","UY",null,null,null,"ostalo",{"$f":"INDEX('šifrarnik za identifikatore'!$F$2:$F$326, MATCH('Šifrarnik A.'!C88,dvoslovna, 0))","v":{"$error":"#N/A"}},{"$f":"INDEX('šifrarnik za identifikatore'!$F$2:$F$326, MATCH('Šifrarnik B.'!C71,dvoslovna, 0))","v":{"$error":"#N/A"}},{"$f":"INDEX('šifrarnik za identifikatore'!$F$2:$F$326, MATCH('Šifrarnik B.B.'!G90,dvoslovna, 0))","v":{"$error":"#N/A"}}]
["GQ","VN",null,null,null,"ostalo",{"$f":"INDEX('šifrarnik za identifikatore'!$F$2:$F$326, MATCH('Šifrarnik A.'!C89,dvoslovna, 0))","v":{"$error":"#N/A"}},{"$f":"INDEX('šifrarnik za identifikatore'!$F$2:$F$326, MATCH('Šifrarnik B.'!C72,dvoslovna, 0))","v":{"$error":"#N/A"}},{"$f":"INDEX('šifrarnik za identifikatore'!$F$2:$F$326, MATCH('Šifrarnik B.B.'!G91,dvoslovna, 0))","v":{"$error":"#N/A"}}]
["GR","ZA",null,null,null,"identifikator",{"$f":"INDEX('šifrarnik za identifikatore'!$F$2:$F$326, MATCH('Šifrarnik A.'!C90,dvoslovna, 0))","v":{"$error":"#N/A"}},{"$f":"INDEX('šifrarnik za identifikatore'!$F$2:$F$326, MATCH('Šifrarnik B.'!C73,dvoslovna, 0))","v":{"$error":"#N/A"}},{"$f":"INDEX('šifrarnik za identifikatore'!$F$2:$F$326, MATCH('Šifrarnik B.B.'!G92,dvoslovna, 0))","v":{"$error":"#N/A"}}]
["GS","ZM",null,null,null,"ostalo",{"$f":"INDEX('šifrarnik za identifikatore'!$F$2:$F$326, MATCH('Šifrarnik A.'!C91,dvoslovna, 0))","v":{"$error":"#N/A"}},{"$f":"INDEX('šifrarnik za identifikatore'!$F$2:$F$326, MATCH('Šifrarnik B.'!C74,dvoslovna, 0))","v":{"$error":"#N/A"}},{"$f":"INDEX('šifrarnik za identifikatore'!$F$2:$F$326, MATCH('Šifrarnik B.B.'!G93,dvoslovna, 0))","v":{"$error":"#N/A"}}]
["GT",null,null,null,null,"identifikator",{"$f":"INDEX('šifrarnik za identifikatore'!$F$2:$F$326, MATCH('Šifrarnik A.'!C92,dvoslovna, 0))","v":{"$error":"#N/A"}},{"$f":"INDEX('šifrarnik za identifikatore'!$F$2:$F$326, MATCH('Šifrarnik B.'!C75,dvoslovna, 0))","v":{"$error":"#N/A"}},{"$f":"INDEX('šifrarnik za identifikatore'!$F$2:$F$326, MATCH('Šifrarnik B.B.'!G94,dvoslovna, 0))","v":{"$error":"#N/A"}}]
["GU",null,null,null,null,"ostalo",{"$f":"INDEX('šifrarnik za identifikatore'!$F$2:$F$326, MATCH('Šifrarnik A.'!C93,dvoslovna, 0))","v":{"$error":"#N/A"}},{"$f":"INDEX('šifrarnik za identifikatore'!$F$2:$F$326, MATCH('Šifrarnik B.'!C76,dvoslovna, 0))","v":{"$error":"#N/A"}},{"$f":"INDEX('šifrarnik za identifikatore'!$F$2:$F$326, MATCH('Šifrarnik B.B.'!G95,dvoslovna, 0))","v":{"$error":"#N/A"}}]
["GW",null,null,null,null,"ostalo",{"$f":"INDEX('šifrarnik za identifikatore'!$F$2:$F$326, MATCH('Šifrarnik A.'!C94,dvoslovna, 0))","v":{"$error":"#N/A"}},{"$f":"INDEX('šifrarnik za identifikatore'!$F$2:$F$326, MATCH('Šifrarnik B.'!C77,dvoslovna, 0))","v":{"$error":"#N/A"}},{"$f":"INDEX('šifrarnik za identifikatore'!$F$2:$F$326, MATCH('Šifrarnik B.B.'!G96,dvoslovna, 0))","v":{"$error":"#N/A"}}]
["GY",null,null,null,null,"ostalo",{"$f":"INDEX('šifrarnik za identifikatore'!$F$2:$F$326, MATCH('Šifrarnik A.'!C95,dvoslovna, 0))","v":{"$error":"#N/A"}},{"$f":"INDEX('šifrarnik za identifikatore'!$F$2:$F$326, MATCH('Šifrarnik B.'!C78,dvoslovna, 0))","v":{"$error":"#N/A"}},{"$f":"INDEX('šifrarnik za identifikatore'!$F$2:$F$326, MATCH('Šifrarnik B.B.'!G97,dvoslovna, 0))","v":{"$error":"#N/A"}}]
["HK",null,null,null,null,"identifikator",{"$f":"INDEX('šifrarnik za identifikatore'!$F$2:$F$326, MATCH('Šifrarnik A.'!C96,dvoslovna, 0))","v":{"$error":"#N/A"}},{"$f":"INDEX('šifrarnik za identifikatore'!$F$2:$F$326, MATCH('Šifrarnik B.'!C79,dvoslovna, 0))","v":{"$error":"#N/A"}},{"$f":"INDEX('šifrarnik za identifikatore'!$F$2:$F$326, MATCH('Šifrarnik B.B.'!G98,dvoslovna, 0))","v":{"$error":"#N/A"}}]
["HM",null,null,null,null,"ostalo",{"$f":"INDEX('šifrarnik za identifikatore'!$F$2:$F$326, MATCH('Šifrarnik A.'!C97,dvoslovna, 0))","v":{"$error":"#N/A"}},{"$f":"INDEX('šifrarnik za identifikatore'!$F$2:$F$326, MATCH('Šifrarnik B.'!C80,dvoslovna, 0))","v":{"$error":"#N/A"}},{"$f":"INDEX('šifrarnik za identifikatore'!$F$2:$F$326, MATCH('Šifrarnik B.B.'!G99,dvoslovna, 0))","v":{"$error":"#N/A"}}]
["HN",null,null,null,null,"ostalo",{"$f":"INDEX('šifrarnik za identifikatore'!$F$2:$F$326, MATCH('Šifrarnik A.'!C98,dvoslovna, 0))","v":{"$error":"#N/A"}},{"$f":"INDEX('šifrarnik za identifikatore'!$F$2:$F$326, MATCH('Šifrarnik B.'!C81,dvoslovna, 0))","v":{"$error":"#N/A"}},{"$f":"INDEX('šifrarnik za identifikatore'!$F$2:$F$326, MATCH('Šifrarnik B.B.'!G100,dvoslovna, 0))","v":{"$error":"#N/A"}}]
["HT",null,null,null,null,"ostalo",{"$f":"INDEX('šifrarnik za identifikatore'!$F$2:$F$326, MATCH('Šifrarnik A.'!C99,dvoslovna, 0))","v":{"$error":"#N/A"}},{"$f":"INDEX('šifrarnik za identifikatore'!$F$2:$F$326, MATCH('Šifrarnik B.'!C82,dvoslovna, 0))","v":{"$error":"#N/A"}},{"$f":"INDEX('šifrarnik za identifikatore'!$F$2:$F$326, MATCH('Šifrarnik B.B.'!G101,dvoslovna, 0))","v":{"$error":"#N/A"}}]
["HU",null,null,null,null,"identifikator",{"$f":"INDEX('šifrarnik za identifikatore'!$F$2:$F$326, MATCH('Šifrarnik A.'!C100,dvoslovna, 0))","v":{"$error":"#N/A"}},{"$f":"INDEX('šifrarnik za identifikatore'!$F$2:$F$326, MATCH('Šifrarnik B.'!C83,dvoslovna, 0))","v":{"$error":"#N/A"}},{"$f":"INDEX('šifrarnik za identifikatore'!$F$2:$F$326, MATCH('Šifrarnik B.B.'!G102,dvoslovna, 0))","v":{"$error":"#N/A"}}]
["ID",null,null,null,null,"identifikator",{"$f":"INDEX('šifrarnik za identifikatore'!$F$2:$F$326, MATCH('Šifrarnik A.'!C101,dvoslovna, 0))","v":{"$error":"#N/A"}},{"$f":"INDEX('šifrarnik za identifikatore'!$F$2:$F$326, MATCH('Šifrarnik B.'!C84,dvoslovna, 0))","v":{"$error":"#N/A"}},{"$f":"INDEX('šifrarnik za identifikatore'!$F$2:$F$326, MATCH('Šifrarnik B.B.'!G103,dvoslovna, 0))","v":{"$error":"#N/A"}}]
["IE",null,null,null,null,"identifikator",{"$f":"INDEX('šifrarnik za identifikatore'!$F$2:$F$326, MATCH('Šifrarnik A.'!C102,dvoslovna, 0))","v":{"$error":"#N/A"}},{"$f":"INDEX('šifrarnik za identifikatore'!$F$2:$F$326, MATCH('Šifrarnik B.'!C85,dvoslovna, 0))","v":{"$error":"#N/A"}},{"$f":"INDEX('šifrarnik za identifikatore'!$F$2:$F$326, MATCH('Šifrarnik B.B.'!G104,dvoslovna, 0))","v":{"$error":"#N/A"}}]
["IL",null,null,null,null,"identifikator",{"$f":"INDEX('šifrarnik za identifikatore'!$F$2:$F$326, MATCH('Šifrarnik A.'!C103,dvoslovna, 0))","v":{"$error":"#N/A"}},{"$f":"INDEX('šifrarnik za identifikatore'!$F$2:$F$326, MATCH('Šifrarnik B.'!C86,dvoslovna, 0))","v":{"$error":"#N/A"}},{"$f":"INDEX('šifrarnik za identifikatore'!$F$2:$F$326, MATCH('Šifrarnik B.B.'!G105,dvoslovna, 0))","v":{"$error":"#N/A"}}]
["IM",null,null,null,null,"identifikator",{"$f":"INDEX('šifrarnik za identifikatore'!$F$2:$F$326, MATCH('Šifrarnik A.'!C104,dvoslovna, 0))","v":{"$error":"#N/A"}},{"$f":"INDEX('šifrarnik za identifikatore'!$F$2:$F$326, MATCH('Šifrarnik B.'!C87,dvoslovna, 0))","v":{"$error":"#N/A"}},{"$f":"INDEX('šifrarnik za identifikatore'!$F$2:$F$326, MATCH('Šifrarnik B.B.'!G106,dvoslovna, 0))","v":{"$error":"#N/A"}}]
["IN",null,null,null,null,"identifikator",{"$f":"INDEX('šifrarnik za identifikatore'!$F$2:$F$326, MATCH('Šifrarnik A.'!C105,dvoslovna, 0))","v":{"$error":"#N/A"}},{"$f":"INDEX('šifrarnik za identifikatore'!$F$2:$F$326, MATCH('Šifrarnik B.'!C88,dvoslovna, 0))","v":{"$error":"#N/A"}},{"$f":"INDEX('šifrarnik za identifikatore'!$F$2:$F$326, MATCH('Šifrarnik B.B.'!G107,dvoslovna, 0))","v":{"$error":"#N/A"}}]
["IO",null,null,null,null,"ostalo",{"$f":"INDEX('šifrarnik za identifikatore'!$F$2:$F$326, MATCH('Šifrarnik A.'!C106,dvoslovna, 0))","v":{"$error":"#N/A"}},{"$f":"INDEX('šifrarnik za identifikatore'!$F$2:$F$326, MATCH('Šifrarnik B.'!C89,dvoslovna, 0))","v":{"$error":"#N/A"}},{"$f":"INDEX('šifrarnik za identifikatore'!$F$2:$F$326, MATCH('Šifrarnik B.B.'!G108,dvoslovna, 0))","v":{"$error":"#N/A"}}]
["IQ",null,null,null,null,"ostalo",{"$f":"INDEX('šifrarnik za identifikatore'!$F$2:$F$326, MATCH('Šifrarnik A.'!C107,dvoslovna, 0))","v":{"$error":"#N/A"}},{"$f":"INDEX('šifrarnik za identifikatore'!$F$2:$F$326, MATCH('Šifrarnik B.'!C90,dvoslovna, 0))","v":{"$error":"#N/A"}},{"$f":"INDEX('šifrarnik za identifikatore'!$F$2:$F$326, MATCH('Šifrarnik B.B.'!G109,dvoslovna, 0))","v":{"$error":"#N/A"}}]
["IR",null,null,null,null,"ostalo",{"$f":"INDEX('šifrarnik za identifikatore'!$F$2:$F$326, MATCH('Šifrarnik A.'!C108,dvoslovna, 0))","v":{"$error":"#N/A"}},{"$f":"INDEX('šifrarnik za identifikatore'!$F$2:$F$326, MATCH('Šifrarnik B.'!C91,dvoslovna, 0))","v":{"$error":"#N/A"}},{"$f":"INDEX('šifrarnik za identifikatore'!$F$2:$F$326, MATCH('Šifrarnik B.B.'!G110,dvoslovna, 0))","v":{"$error":"#N/A"}}]
["IS",null,null,null,null,"identifikator",{"$f":"INDEX('šifrarnik za identifikatore'!$F$2:$F$326, MATCH('Šifrarnik A.'!C109,dvoslovna, 0))","v":{"$error":"#N/A"}},{"$f":"INDEX('šifrarnik za identifikatore'!$F$2:$F$326, MATCH('Šifrarnik B.'!C92,dvoslovna, 0))","v":{"$error":"#N/A"}},{"$f":"INDEX('šifrarnik za identifikatore'!$F$2:$F$326, MATCH('Šifrarnik B.B.'!G111,dvoslovna, 0))","v":{"$error":"#N/A"}}]
["IT",null,null,null,null,"identifikator",{"$f":"INDEX('šifrarnik za identifikatore'!$F$2:$F$326, MATCH('Šifrarnik A.'!C110,dvoslovna, 0))","v":{"$error":"#N/A"}},{"$f":"INDEX('šifrarnik za identifikatore'!$F$2:$F$326, MATCH('Šifrarnik B.'!C93,dvoslovna, 0))","v":{"$error":"#N/A"}},{"$f":"INDEX('šifrarnik za identifikatore'!$F$2:$F$326, MATCH('Šifrarnik B.B.'!G112,dvoslovna, 0))","v":{"$error":"#N/A"}}]
["JE",null,null,null,null,"identifikator",{"$f":"INDEX('šifrarnik za identifikatore'!$F$2:$F$326, MATCH('Šifrarnik A.'!C111,dvoslovna, 0))","v":{"$error":"#N/A"}},{"$f":"INDEX('šifrarnik za identifikatore'!$F$2:$F$326, MATCH('Šifrarnik B.'!C94,dvoslovna, 0))","v":{"$error":"#N/A"}},{"$f":"INDEX('šifrarnik za identifikatore'!$F$2:$F$326, MATCH('Šifrarnik B.B.'!G113,dvoslovna, 0))","v":{"$error":"#N/A"}}]
["JM",null,null,null,null,"ostalo",{"$f":"INDEX('šifrarnik za identifikatore'!$F$2:$F$326, MATCH('Šifrarnik A.'!C112,dvoslovna, 0))","v":{"$error":"#N/A"}},{"$f":"INDEX('šifrarnik za identifikatore'!$F$2:$F$326, MATCH('Šifrarnik B.'!C95,dvoslovna, 0))","v":{"$error":"#N/A"}},{"$f":"INDEX('šifrarnik za identifikatore'!$F$2:$F$326, MATCH('Šifrarnik B.B.'!G114,dvoslovna, 0))","v":{"$error":"#N/A"}}]
["JO",null,null,null,null,"ostalo",{"$f":"INDEX('šifrarnik za identifikatore'!$F$2:$F$326, MATCH('Šifrarnik A.'!C113,dvoslovna, 0))","v":{"$error":"#N/A"}},{"$f":"INDEX('šifrarnik za identifikatore'!$F$2:$F$326, MATCH('Šifrarnik B.'!C96,dvoslovna, 0))","v":{"$error":"#N/A"}},{"$f":"INDEX('šifrarnik za identifikatore'!$F$2:$F$326, MATCH('Šifrarnik B.B.'!G115,dvoslovna, 0))","v":{"$error":"#N/A"}}]
["JP",null,null,null,null,"identifikator",{"$f":"INDEX('šifrarnik za identifikatore'!$F$2:$F$326, MATCH('Šifrarnik A.'!C114,dvoslovna, 0))","v":{"$error":"#N/A"}},{"$f":"INDEX('šifrarnik za identifikatore'!$F$2:$F$326, MATCH('Šifrarnik B.'!C97,dvoslovna, 0))","v":{"$error":"#N/A"}},{"$f":"INDEX('šifrarnik za identifikatore'!$F$2:$F$326, MATCH('Šifrarnik B.B.'!G116,dvoslovna, 0))","v":{"$error":"#N/A"}}]
["KE",null,null,null,null,"ostalo",{"$f":"INDEX('šifrarnik za identifikatore'!$F$2:$F$326, MATCH('Šifrarnik A.'!C115,dvoslovna, 0))","v":{"$error":"#N/A"}},{"$f":"INDEX('šifrarnik za identifikatore'!$F$2:$F$326, MATCH('Šifrarnik B.'!C98,dvoslovna, 0))","v":{"$error":"#N/A"}},{"$f":"INDEX('šifrarnik za identifikatore'!$F$2:$F$326, MATCH('Šifrarnik B.B.'!G117,dvoslovna, 0))","v":{"$error":"#N/A"}}]
["KG",null,null,null,null,"ostalo",{"$f":"INDEX('šifrarnik za identifikatore'!$F$2:$F$326, MATCH('Šifrarnik A.'!C116,dvoslovna, 0))","v":{"$error":"#N/A"}},{"$f":"INDEX('šifrarnik za identifikatore'!$F$2:$F$326, MATCH('Šifrarnik B.'!C99,dvoslovna, 0))","v":{"$error":"#N/A"}},{"$f":"INDEX('šifrarnik za identifikatore'!$F$2:$F$326, MATCH('Šifrarnik B.B.'!G118,dvoslovna, 0))","v":{"$error":"#N/A"}}]
["KH",null,null,null,null,"ostalo",{"$f":"INDEX('šifrarnik za identifikatore'!$F$2:$F$326, MATCH('Šifrarnik A.'!C117,dvoslovna, 0))","v":{"$error":"#N/A"}},{"$f":"INDEX('šifrarnik za identifikatore'!$F$2:$F$326, MATCH('Šifrarnik B.'!C100,dvoslovna, 0))","v":{"$error":"#N/A"}},{"$f":"INDEX('šifrarnik za identifikatore'!$F$2:$F$326, MATCH('Šifrarnik B.B.'!G119,dvoslovna, 0))","v":{"$error":"#N/A"}}]
["KI",null,null,null,null,"ostalo",{"$f":"INDEX('šifrarnik za identifikatore'!$F$2:$F$326, MATCH('Šifrarnik A.'!C118,dvoslovna, 0))","v":{"$error":"#N/A"}},{"$f":"INDEX('šifrarnik za identifikatore'!$F$2:$F$326, MATCH('Šifrarnik B.'!C101,dvoslovna, 0))","v":{"$error":"#N/A"}},{"$f":"INDEX('šifrarnik za identifikatore'!$F$2:$F$326, MATCH('Šifrarnik B.B.'!G120,dvoslovna, 0))","v":{"$error":"#N/A"}}]
["KM",null,null,null,null,"ostalo",{"$f":"INDEX('šifrarnik za identifikatore'!$F$2:$F$326, MATCH('Šifrarnik A.'!C119,dvoslovna, 0))","v":{"$error":"#N/A"}},{"$f":"INDEX('šifrarnik za identifikatore'!$F$2:$F$326, MATCH('Šifrarnik B.'!C102,dvoslovna, 0))","v":{"$error":"#N/A"}},{"$f":"INDEX('šifrarnik za identifikatore'!$F$2:$F$326, MATCH('Šifrarnik B.B.'!G121,dvoslovna, 0))","v":{"$error":"#N/A"}}]
["KN",null,null,null,null,"ostalo",{"$f":"INDEX('šifrarnik za identifikatore'!$F$2:$F$326, MATCH('Šifrarnik A.'!C120,dvoslovna, 0))","v":{"$error":"#N/A"}},{"$f":"INDEX('šifrarnik za identifikatore'!$F$2:$F$326, MATCH('Šifrarnik B.'!C103,dvoslovna, 0))","v":{"$error":"#N/A"}},{"$f":"INDEX('šifrarnik za identifikatore'!$F$2:$F$326, MATCH('Šifrarnik B.B.'!G122,dvoslovna, 0))","v":{"$error":"#N/A"}}]
["KP",null,null,null,null,"ostalo",{"$f":"INDEX('šifrarnik za identifikatore'!$F$2:$F$326, MATCH('Šifrarnik A.'!C121,dvoslovna, 0))","v":{"$error":"#N/A"}},{"$f":"INDEX('šifrarnik za identifikatore'!$F$2:$F$326, MATCH('Šifrarnik B.'!C104,dvoslovna, 0))","v":{"$error":"#N/A"}},{"$f":"INDEX('šifrarnik za identifikatore'!$F$2:$F$326, MATCH('Šifrarnik B.B.'!G123,dvoslovna, 0))","v":{"$error":"#N/A"}}]
["KR",null,null,null,null,"identifikator",{"$f":"INDEX('šifrarnik za identifikatore'!$F$2:$F$326, MATCH('Šifrarnik A.'!C122,dvoslovna, 0))","v":{"$error":"#N/A"}},{"$f":"INDEX('šifrarnik za identifikatore'!$F$2:$F$326, MATCH('Šifrarnik B.'!C105,dvoslovna, 0))","v":{"$error":"#N/A"}},{"$f":"INDEX('šifrarnik za identifikatore'!$F$2:$F$326, MATCH('Šifrarnik B.B.'!G124,dvoslovna, 0))","v":{"$error":"#N/A"}}]
["KW",null,null,null,null,"ostalo",{"$f":"INDEX('šifrarnik za identifikatore'!$F$2:$F$326, MATCH('Šifrarnik A.'!C123,dvoslovna, 0))","v":{"$error":"#N/A"}},{"$f":"INDEX('šifrarnik za identifikatore'!$F$2:$F$326, MATCH('Šifrarnik B.'!C106,dvoslovna, 0))","v":{"$error":"#N/A"}},{"$f":"INDEX('šifrarnik za identifikatore'!$F$2:$F$326, MATCH('Šifrarnik B.B.'!G125,dvoslovna, 0))","v":{"$error":"#N/A"}}]
["KY",null,null,null,null,"ostalo",{"$f":"INDEX('šifrarnik za identifikatore'!$F$2:$F$326, MATCH('Šifrarnik A.'!C124,dvoslovna, 0))","v":{"$error":"#N/A"}},{"$f":"INDEX('šifrarnik za identifikatore'!$F$2:$F$326, MATCH('Šifrarnik B.'!C107,dvoslovna, 0))","v":{"$error":"#N/A"}},{"$f":"INDEX('šifrarnik za identifikatore'!$F$2:$F$326, MATCH('Šifrarnik B.B.'!G126,dvoslovna, 0))","v":{"$error":"#N/A"}}]
["KZ",null,null,null,null,"identifikator",{"$f":"INDEX('šifrarnik za identifikatore'!$F$2:$F$326, MATCH('Šifrarnik A.'!C125,dvoslovna, 0))","v":{"$error":"#N/A"}},{"$f":"INDEX('šifrarnik za identifikatore'!$F$2:$F$326, MATCH('Šifrarnik B.'!C108,dvoslovna, 0))","v":{"$error":"#N/A"}},{"$f":"INDEX('šifrarnik za identifikatore'!$F$2:$F$326, MATCH('Šifrarnik B.B.'!G127,dvoslovna, 0))","v":{"$error":"#N/A"}}]
["LA",null,null,null,null,"ostalo",{"$f":"INDEX('šifrarnik za identifikatore'!$F$2:$F$326, MATCH('Šifrarnik A.'!C126,dvoslovna, 0))","v":{"$error":"#N/A"}},{"$f":"INDEX('šifrarnik za identifikatore'!$F$2:$F$326, MATCH('Šifrarnik B.'!C109,dvoslovna, 0))","v":{"$error":"#N/A"}},{"$f":"INDEX('šifrarnik za identifikatore'!$F$2:$F$326, MATCH('Šifrarnik B.B.'!G128,dvoslovna, 0))","v":{"$error":"#N/A"}}]
["LB",null,null,null,null,"identifikator",{"$f":"INDEX('šifrarnik za identifikatore'!$F$2:$F$326, MATCH('Šifrarnik A.'!C127,dvoslovna, 0))","v":{"$error":"#N/A"}},{"$f":"INDEX('šifrarnik za identifikatore'!$F$2:$F$326, MATCH('Šifrarnik B.'!C110,dvoslovna, 0))","v":{"$error":"#N/A"}},{"$f":"INDEX('šifrarnik za identifikatore'!$F$2:$F$326, MATCH('Šifrarnik B.B.'!G129,dvoslovna, 0))","v":{"$error":"#N/A"}}]
["LC",null,null,null,null,"ostalo",{"$f":"INDEX('šifrarnik za identifikatore'!$F$2:$F$326, MATCH('Šifrarnik A.'!C128,dvoslovna, 0))","v":{"$error":"#N/A"}},{"$f":"INDEX('šifrarnik za identifikatore'!$F$2:$F$326, MATCH('Šifrarnik B.'!C111,dvoslovna, 0))","v":{"$error":"#N/A"}},{"$f":"INDEX('šifrarnik za identifikatore'!$F$2:$F$326, MATCH('Šifrarnik B.B.'!G130,dvoslovna, 0))","v":{"$error":"#N/A"}}]
["LI",null,null,null,null,{"$f":"IF(COUNTIF(dio, A130) > 0, \"identifikator\",\"ostalo\")","v":"identifikator"},{"$f":"INDEX('šifrarnik za identifikatore'!$F$2:$F$326, MATCH('Šifrarnik A.'!C129,dvoslovna, 0))","v":{"$error":"#N/A"}},{"$f":"INDEX('šifrarnik za identifikatore'!$F$2:$F$326, MATCH('Šifrarnik B.'!C112,dvoslovna, 0))","v":{"$error":"#N/A"}},{"$f":"INDEX('šifrarnik za identifikatore'!$F$2:$F$326, MATCH('Šifrarnik B.B.'!G131,dvoslovna, 0))","v":{"$error":"#N/A"}}]
["LK",null,null,null,null,"ostalo",{"$f":"INDEX('šifrarnik za identifikatore'!$F$2:$F$326, MATCH('Šifrarnik A.'!C130,dvoslovna, 0))","v":{"$error":"#N/A"}},{"$f":"INDEX('šifrarnik za identifikatore'!$F$2:$F$326, MATCH('Šifrarnik B.'!C113,dvoslovna, 0))","v":{"$error":"#N/A"}},{"$f":"INDEX('šifrarnik za identifikatore'!$F$2:$F$326, MATCH('Šifrarnik B.B.'!G132,dvoslovna, 0))","v":{"$error":"#N/A"}}]
["LR",null,null,null,null,"ostalo",{"$f":"INDEX('šifrarnik za identifikatore'!$F$2:$F$326, MATCH('Šifrarnik A.'!C131,dvoslovna, 0))","v":{"$error":"#N/A"}},{"$f":"INDEX('šifrarnik za identifikatore'!$F$2:$F$326, MATCH('Šifrarnik B.'!C114,dvoslovna, 0))","v":{"$error":"#N/A"}},{"$f":"INDEX('šifrarnik za identifikatore'!$F$2:$F$326, MATCH('Šifrarnik B.B.'!G133,dvoslovna, 0))","v":{"$error":"#N/A"}}]
["LS",null,null,null,null,"ostalo",{"$f":"INDEX('šifrarnik za identifikatore'!$F$2:$F$326, MATCH('Šifrarnik A.'!C132,dvoslovna, 0))","v":{"$error":"#N/A"}},{"$f":"INDEX('šifrarnik za identifikatore'!$F$2:$F$326, MATCH('Šifrarnik B.'!C115,dvoslovna, 0))","v":{"$error":"#N/A"}},{"$f":"INDEX('šifrarnik za identifikatore'!$F$2:$F$326, MATCH('Šifrarnik B.B.'!G134,dvoslovna, 0))","v":{"$error":"#N/A"}}]
["LT",null,null,null,null,"identifikator",{"$f":"INDEX('šifrarnik za identifikatore'!$F$2:$F$326, MATCH('Šifrarnik A.'!C133,dvoslovna, 0))","v":{"$error":"#N/A"}},{"$f":"INDEX('šifrarnik za identifikatore'!$F$2:$F$326, MATCH('Šifrarnik B.'!C116,dvoslovna, 0))","v":{"$error":"#N/A"}},{"$f":"INDEX('šifrarnik za identifikatore'!$F$2:$F$326, MATCH('Šifrarnik B.B.'!G135,dvoslovna, 0))","v":{"$error":"#N/A"}}]
["LU",null,null,null,null,"identifikator",{"$f":"INDEX('šifrarnik za identifikatore'!$F$2:$F$326, MATCH('Šifrarnik A.'!C134,dvoslovna, 0))","v":{"$error":"#N/A"}},{"$f":"INDEX('šifrarnik za identifikatore'!$F$2:$F$326, MATCH('Šifrarnik B.'!C117,dvoslovna, 0))","v":{"$error":"#N/A"}},{"$f":"INDEX('šifrarnik za identifikatore'!$F$2:$F$326, MATCH('Šifrarnik B.B.'!G136,dvoslovna, 0))","v":{"$error":"#N/A"}}]
["LV",null,null,null,null,"identifikator",{"$f":"INDEX('šifrarnik za identifikatore'!$F$2:$F$326, MATCH('Šifrarnik A.'!C135,dvoslovna, 0))","v":{"$error":"#N/A"}},{"$f":"INDEX('šifrarnik za identifikatore'!$F$2:$F$326, MATCH('Šifrarnik B.'!C118,dvoslovna, 0))","v":{"$error":"#N/A"}},{"$f":"INDEX('šifrarnik za identifikatore'!$F$2:$F$326, MATCH('Šifrarnik B.B.'!G137,dvoslovna, 0))","v":{"$error":"#N/A"}}]
["LY",null,null,null,null,"ostalo",{"$f":"INDEX('šifrarnik za identifikatore'!$F$2:$F$326, MATCH('Šifrarnik A.'!C136,dvoslovna, 0))","v":{"$error":"#N/A"}},{"$f":"INDEX('šifrarnik za identifikatore'!$F$2:$F$326, MATCH('Šifrarnik B.'!C119,dvoslovna, 0))","v":{"$error":"#N/A"}},{"$f":"INDEX('šifrarnik za identifikatore'!$F$2:$F$326, MATCH('Šifrarnik B.B.'!G138,dvoslovna, 0))","v":{"$error":"#N/A"}}]
["MA",null,null,null,null,"ostalo",{"$f":"INDEX('šifrarnik za identifikatore'!$F$2:$F$326, MATCH('Šifrarnik A.'!C137,dvoslovna, 0))","v":{"$error":"#N/A"}},{"$f":"INDEX('šifrarnik za identifikatore'!$F$2:$F$326, MATCH('Šifrarnik B.'!C120,dvoslovna, 0))","v":{"$error":"#N/A"}},{"$f":"INDEX('šifrarnik za identifikatore'!$F$2:$F$326, MATCH('Šifrarnik B.B.'!G139,dvoslovna, 0))","v":{"$error":"#N/A"}}]
["MC",null,null,null,null,"identifikator",{"$f":"INDEX('šifrarnik za identifikatore'!$F$2:$F$326, MATCH('Šifrarnik A.'!C138,dvoslovna, 0))","v":{"$error":"#N/A"}},{"$f":"INDEX('šifrarnik za identifikatore'!$F$2:$F$326, MATCH('Šifrarnik B.'!C121,dvoslovna, 0))","v":{"$error":"#N/A"}},{"$f":"INDEX('šifrarnik za identifikatore'!$F$2:$F$326, MATCH('Šifrarnik B.B.'!G140,dvoslovna, 0))","v":{"$error":"#N/A"}}]
["MD",null,null,null,null,"ostalo",{"$f":"INDEX('šifrarnik za identifikatore'!$F$2:$F$326, MATCH('Šifrarnik A.'!C139,dvoslovna, 0))","v":{"$error":"#N/A"}},{"$f":"INDEX('šifrarnik za identifikatore'!$F$2:$F$326, MATCH('Šifrarnik B.'!C122,dvoslovna, 0))","v":{"$error":"#N/A"}},{"$f":"INDEX('šifrarnik za identifikatore'!$F$2:$F$326, MATCH('Šifrarnik B.B.'!G141,dvoslovna, 0))","v":{"$error":"#N/A"}}]
["ME",null,null,null,null,"identifikator",{"$f":"INDEX('šifrarnik za identifikatore'!$F$2:$F$326, MATCH('Šifrarnik A.'!C140,dvoslovna, 0))","v":{"$error":"#N/A"}},{"$f":"INDEX('šifrarnik za identifikatore'!$F$2:$F$326, MATCH('Šifrarnik B.'!C123,dvoslovna, 0))","v":{"$error":"#N/A"}},{"$f":"INDEX('šifrarnik za identifikatore'!$F$2:$F$326, MATCH('Šifrarnik B.B.'!G142,dvoslovna, 0))","v":{"$error":"#N/A"}}]
["MF",null,null,null,null,"ostalo",{"$f":"INDEX('šifrarnik za identifikatore'!$F$2:$F$326, MATCH('Šifrarnik A.'!C141,dvoslovna, 0))","v":{"$error":"#N/A"}},{"$f":"INDEX('šifrarnik za identifikatore'!$F$2:$F$326, MATCH('Šifrarnik B.'!C124,dvoslovna, 0))","v":{"$error":"#N/A"}},{"$f":"INDEX('šifrarnik za identifikatore'!$F$2:$F$326, MATCH('Šifrarnik B.B.'!G143,dvoslovna, 0))","v":{"$error":"#N/A"}}]
["MG",null,null,null,null,"ostalo",{"$f":"INDEX('šifrarnik za identifikatore'!$F$2:$F$326, MATCH('Šifrarnik A.'!C142,dvoslovna, 0))","v":{"$error":"#N/A"}},{"$f":"INDEX('šifrarnik za identifikatore'!$F$2:$F$326, MATCH('Šifrarnik B.'!C125,dvoslovna, 0))","v":{"$error":"#N/A"}},{"$f":"INDEX('šifrarnik za identifikatore'!$F$2:$F$326, MATCH('Šifrarnik B.B.'!G144,dvoslovna, 0))","v":{"$error":"#N/A"}}]
["MH",null,null,null,null,"identifikator",{"$f":"INDEX('šifrarnik za identifikatore'!$F$2:$F$326, MATCH('Šifrarnik A.'!C143,dvoslovna, 0))","v":{"$error":"#N/A"}},{"$f":"INDEX('šifrarnik za identifikatore'!$F$2:$F$326, MATCH('Šifrarnik B.'!C126,dvoslovna, 0))","v":{"$error":"#N/A"}},{"$f":"INDEX('šifrarnik za identifikatore'!$F$2:$F$326, MATCH('Šifrarnik B.B.'!G145,dvoslovna, 0))","v":{"$error":"#N/A"}}]
["MK",null,null,null,null,"identifikator",{"$f":"INDEX('šifrarnik za identifikatore'!$F$2:$F$326, MATCH('Šifrarnik A.'!C144,dvoslovna, 0))","v":{"$error":"#N/A"}},{"$f":"INDEX('šifrarnik za identifikatore'!$F$2:$F$326, MATCH('Šifrarnik B.'!C127,dvoslovna, 0))","v":{"$error":"#N/A"}},{"$f":"INDEX('šifrarnik za identifikatore'!$F$2:$F$326, MATCH('Šifrarnik B.B.'!G146,dvoslovna, 0))","v":{"$error":"#N/A"}}]
["ML",null,null,null,null,"ostalo",{"$f":"INDEX('šifrarnik za identifikatore'!$F$2:$F$326, MATCH('Šifrarnik A.'!C145,dvoslovna, 0))","v":{"$error":"#N/A"}},{"$f":"INDEX('šifrarnik za identifikatore'!$F$2:$F$326, MATCH('Šifrarnik B.'!C128,dvoslovna, 0))","v":{"$error":"#N/A"}},{"$f":"INDEX('šifrarnik za identifikatore'!$F$2:$F$326, MATCH('Šifrarnik B.B.'!G147,dvoslovna, 0))","v":{"$error":"#N/A"}}]
["MM",null,null,null,null,"ostalo",{"$f":"INDEX('šifrarnik za identifikatore'!$F$2:$F$326, MATCH('Šifrarnik A.'!C146,dvoslovna, 0))","v":{"$error":"#N/A"}},{"$f":"INDEX('šifrarnik za identifikatore'!$F$2:$F$326, MATCH('Šifrarnik B.'!C129,dvoslovna, 0))","v":{"$error":"#N/A"}},{"$f":"INDEX('šifrarnik za identifikatore'!$F$2:$F$326, MATCH('Šifrarnik B.B.'!G148,dvoslovna, 0))","v":{"$error":"#N/A"}}]
["MN",null,null,null,null,"ostalo",{"$f":"INDEX('šifrarnik za identifikatore'!$F$2:$F$326, MATCH('Šifrarnik A.'!C147,dvoslovna, 0))","v":{"$error":"#N/A"}},{"$f":"INDEX('šifrarnik za identifikatore'!$F$2:$F$326, MATCH('Šifrarnik B.'!C130,dvoslovna, 0))","v":{"$error":"#N/A"}},{"$f":"INDEX('šifrarnik za identifikatore'!$F$2:$F$326, MATCH('Šifrarnik B.B.'!G149,dvoslovna, 0))","v":{"$error":"#N/A"}}]
["MO",null,null,null,null,"ostalo",{"$f":"INDEX('šifrarnik za identifikatore'!$F$2:$F$326, MATCH('Šifrarnik A.'!C148,dvoslovna, 0))","v":{"$error":"#N/A"}},{"$f":"INDEX('šifrarnik za identifikatore'!$F$2:$F$326, MATCH('Šifrarnik B.'!C131,dvoslovna, 0))","v":{"$error":"#N/A"}},{"$f":"INDEX('šifrarnik za identifikatore'!$F$2:$F$326, MATCH('Šifrarnik B.B.'!G150,dvoslovna, 0))","v":{"$error":"#N/A"}}]
["MP",null,null,null,null,"ostalo",{"$f":"INDEX('šifrarnik za identifikatore'!$F$2:$F$326, MATCH('Šifrarnik A.'!C149,dvoslovna, 0))","v":{"$error":"#N/A"}},{"$f":"INDEX('šifrarnik za identifikatore'!$F$2:$F$326, MATCH('Šifrarnik B.'!C132,dvoslovna, 0))","v":{"$error":"#N/A"}},{"$f":"INDEX('šifrarnik za identifikatore'!$F$2:$F$326, MATCH('Šifrarnik B.B.'!G151,dvoslovna, 0))","v":{"$error":"#N/A"}}]
["MQ",null,null,null,null,"ostalo",{"$f":"INDEX('šifrarnik za identifikatore'!$F$2:$F$326, MATCH('Šifrarnik A.'!C150,dvoslovna, 0))","v":{"$error":"#N/A"}},{"$f":"INDEX('šifrarnik za identifikatore'!$F$2:$F$326, MATCH('Šifrarnik B.'!C133,dvoslovna, 0))","v":{"$error":"#N/A"}},{"$f":"INDEX('šifrarnik za identifikatore'!$F$2:$F$326, MATCH('Šifrarnik B.B.'!G152,dvoslovna, 0))","v":{"$error":"#N/A"}}]
["MR",null,null,null,null,"ostalo",{"$f":"INDEX('šifrarnik za identifikatore'!$F$2:$F$326, MATCH('Šifrarnik A.'!C151,dvoslovna, 0))","v":{"$error":"#N/A"}},{"$f":"INDEX('šifrarnik za identifikatore'!$F$2:$F$326, MATCH('Šifrarnik B.'!C134,dvoslovna, 0))","v":{"$error":"#N/A"}},{"$f":"INDEX('šifrarnik za identifikatore'!$F$2:$F$326, MATCH('Šifrarnik B.B.'!G153,dvoslovna, 0))","v":{"$error":"#N/A"}}]
["MS",null,null,null,null,"ostalo",{"$f":"INDEX('šifrarnik za identifikatore'!$F$2:$F$326, MATCH('Šifrarnik A.'!C152,dvoslovna, 0))","v":{"$error":"#N/A"}},{"$f":"INDEX('šifrarnik za identifikatore'!$F$2:$F$326, MATCH('Šifrarnik B.'!C135,dvoslovna, 0))","v":{"$error":"#N/A"}},{"$f":"INDEX('šifrarnik za identifikatore'!$F$2:$F$326, MATCH('Šifrarnik B.B.'!G154,dvoslovna, 0))","v":{"$error":"#N/A"}}]
["MT",null,null,null,null,"identifikator",{"$f":"INDEX('šifrarnik za identifikatore'!$F$2:$F$326, MATCH('Šifrarnik A.'!C153,dvoslovna, 0))","v":{"$error":"#N/A"}},{"$f":"INDEX('šifrarnik za identifikatore'!$F$2:$F$326, MATCH('Šifrarnik B.'!C136,dvoslovna, 0))","v":{"$error":"#N/A"}},{"$f":"INDEX('šifrarnik za identifikatore'!$F$2:$F$326, MATCH('Šifrarnik B.B.'!G155,dvoslovna, 0))","v":{"$error":"#N/A"}}]
["MU",null,null,null,null,"identifikator",{"$f":"INDEX('šifrarnik za identifikatore'!$F$2:$F$326, MATCH('Šifrarnik A.'!C154,dvoslovna, 0))","v":{"$error":"#N/A"}},{"$f":"INDEX('šifrarnik za identifikatore'!$F$2:$F$326, MATCH('Šifrarnik B.'!C137,dvoslovna, 0))","v":{"$error":"#N/A"}},{"$f":"INDEX('šifrarnik za identifikatore'!$F$2:$F$326, MATCH('Šifrarnik B.B.'!G156,dvoslovna, 0))","v":{"$error":"#N/A"}}]
["MV",null,null,null,null,"ostalo",{"$f":"INDEX('šifrarnik za identifikatore'!$F$2:$F$326, MATCH('Šifrarnik A.'!C155,dvoslovna, 0))","v":{"$error":"#N/A"}},{"$f":"INDEX('šifrarnik za identifikatore'!$F$2:$F$326, MATCH('Šifrarnik B.'!C138,dvoslovna, 0))","v":{"$error":"#N/A"}},{"$f":"INDEX('šifrarnik za identifikatore'!$F$2:$F$326, MATCH('Šifrarnik B.B.'!G157,dvoslovna, 0))","v":{"$error":"#N/A"}}]
["MW",null,null,null,null,"ostalo",{"$f":"INDEX('šifrarnik za identifikatore'!$F$2:$F$326, MATCH('Šifrarnik A.'!C156,dvoslovna, 0))","v":{"$error":"#N/A"}},{"$f":"INDEX('šifrarnik za identifikatore'!$F$2:$F$326, MATCH('Šifrarnik B.'!C139,dvoslovna, 0))","v":{"$error":"#N/A"}},{"$f":"INDEX('šifrarnik za identifikatore'!$F$2:$F$326, MATCH('Šifrarnik B.B.'!G158,dvoslovna, 0))","v":{"$error":"#N/A"}}]
["MX",null,null,null,null,"identifikator",{"$f":"INDEX('šifrarnik za identifikatore'!$F$2:$F$326, MATCH('Šifrarnik A.'!C157,dvoslovna, 0))","v":{"$error":"#N/A"}},{"$f":"INDEX('šifrarnik za identifikatore'!$F$2:$F$326, MATCH('Šifrarnik B.'!C140,dvoslovna, 0))","v":{"$error":"#N/A"}},{"$f":"INDEX('šifrarnik za identifikatore'!$F$2:$F$326, MATCH('Šifrarnik B.B.'!G159,dvoslovna, 0))","v":{"$error":"#N/A"}}]
["MY",null,null,null,null,"identifikator",{"$f":"INDEX('šifrarnik za identifikatore'!$F$2:$F$326, MATCH('Šifrarnik A.'!C158,dvoslovna, 0))","v":{"$error":"#N/A"}},{"$f":"INDEX('šifrarnik za identifikatore'!$F$2:$F$326, MATCH('Šifrarnik B.'!C141,dvoslovna, 0))","v":{"$error":"#N/A"}},{"$f":"INDEX('šifrarnik za identifikatore'!$F$2:$F$326, MATCH('Šifrarnik B.B.'!G160,dvoslovna, 0))","v":{"$error":"#N/A"}}]
["MZ",null,null,null,null,"ostalo",{"$f":"INDEX('šifrarnik za identifikatore'!$F$2:$F$326, MATCH('Šifrarnik A.'!C159,dvoslovna, 0))","v":{"$error":"#N/A"}},{"$f":"INDEX('šifrarnik za identifikatore'!$F$2:$F$326, MATCH('Šifrarnik B.'!C142,dvoslovna, 0))","v":{"$error":"#N/A"}},{"$f":"INDEX('šifrarnik za identifikatore'!$F$2:$F$326, MATCH('Šifrarnik B.B.'!G161,dvoslovna, 0))","v":{"$error":"#N/A"}}]
["NA",null,null,null,null,"ostalo",{"$f":"INDEX('šifrarnik za identifikatore'!$F$2:$F$326, MATCH('Šifrarnik A.'!C160,dvoslovna, 0))","v":{"$error":"#N/A"}},{"$f":"INDEX('šifrarnik za identifikatore'!$F$2:$F$326, MATCH('Šifrarnik B.'!C143,dvoslovna, 0))","v":{"$error":"#N/A"}},{"$f":"INDEX('šifrarnik za identifikatore'!$F$2:$F$326, MATCH('Šifrarnik B.B.'!G162,dvoslovna, 0))","v":{"$error":"#N/A"}}]
["NC",null,null,null,null,"identifikator",{"$f":"INDEX('šifrarnik za identifikatore'!$F$2:$F$326, MATCH('Šifrarnik A.'!C161,dvoslovna, 0))","v":{"$error":"#N/A"}},{"$f":"INDEX('šifrarnik za identifikatore'!$F$2:$F$326, MATCH('Šifrarnik B.'!C144,dvoslovna, 0))","v":{"$error":"#N/A"}},{"$f":"INDEX('šifrarnik za identifikatore'!$F$2:$F$326, MATCH('Šifrarnik B.B.'!G163,dvoslovna, 0))","v":{"$error":"#N/A"}}]
["NE",null,null,null,null,"ostalo",{"$f":"INDEX('šifrarnik za identifikatore'!$F$2:$F$326, MATCH('Šifrarnik A.'!C162,dvoslovna, 0))","v":{"$error":"#N/A"}},{"$f":"INDEX('šifrarnik za identifikatore'!$F$2:$F$326, MATCH('Šifrarnik B.'!C145,dvoslovna, 0))","v":{"$error":"#N/A"}},{"$f":"INDEX('šifrarnik za identifikatore'!$F$2:$F$326, MATCH('Šifrarnik B.B.'!G164,dvoslovna, 0))","v":{"$error":"#N/A"}}]
["NF",null,null,null,null,"ostalo",{"$f":"INDEX('šifrarnik za identifikatore'!$F$2:$F$326, MATCH('Šifrarnik A.'!C163,dvoslovna, 0))","v":{"$error":"#N/A"}},{"$f":"INDEX('šifrarnik za identifikatore'!$F$2:$F$326, MATCH('Šifrarnik B.'!C146,dvoslovna, 0))","v":{"$error":"#N/A"}},{"$f":"INDEX('šifrarnik za identifikatore'!$F$2:$F$326, MATCH('Šifrarnik B.B.'!G165,dvoslovna, 0))","v":{"$error":"#N/A"}}]
["NG",null,null,null,null,"ostalo",{"$f":"INDEX('šifrarnik za identifikatore'!$F$2:$F$326, MATCH('Šifrarnik A.'!C164,dvoslovna, 0))","v":{"$error":"#N/A"}},{"$f":"INDEX('šifrarnik za identifikatore'!$F$2:$F$326, MATCH('Šifrarnik B.'!C147,dvoslovna, 0))","v":{"$error":"#N/A"}},{"$f":"INDEX('šifrarnik za identifikatore'!$F$2:$F$326, MATCH('Šifrarnik B.B.'!G166,dvoslovna, 0))","v":{"$error":"#N/A"}}]
["NI",null,null,null,null,"ostalo",{"$f":"INDEX('šifrarnik za identifikatore'!$F$2:$F$326, MATCH('Šifrarnik A.'!C165,dvoslovna, 0))","v":{"$error":"#N/A"}},{"$f":"INDEX('šifrarnik za identifikatore'!$F$2:$F$326, MATCH('Šifrarnik B.'!C148,dvoslovna, 0))","v":{"$error":"#N/A"}},{"$f":"INDEX('šifrarnik za identifikatore'!$F$2:$F$326, MATCH('Šifrarnik B.B.'!G167,dvoslovna, 0))","v":{"$error":"#N/A"}}]
["NL",null,null,null,null,"identifikator",{"$f":"INDEX('šifrarnik za identifikatore'!$F$2:$F$326, MATCH('Šifrarnik A.'!C166,dvoslovna, 0))","v":{"$error":"#N/A"}},{"$f":"INDEX('šifrarnik za identifikatore'!$F$2:$F$326, MATCH('Šifrarnik B.'!C149,dvoslovna, 0))","v":{"$error":"#N/A"}},{"$f":"INDEX('šifrarnik za identifikatore'!$F$2:$F$326, MATCH('Šifrarnik B.B.'!G168,dvoslovna, 0))","v":{"$error":"#N/A"}}]
["NO",null,null,null,null,"identifikator",{"$f":"INDEX('šifrarnik za identifikatore'!$F$2:$F$326, MATCH('Šifrarnik A.'!C167,dvoslovna, 0))","v":{"$error":"#N/A"}},{"$f":"INDEX('šifrarnik za identifikatore'!$F$2:$F$326, MATCH('Šifrarnik B.'!C150,dvoslovna, 0))","v":{"$error":"#N/A"}},{"$f":"INDEX('šifrarnik za identifikatore'!$F$2:$F$326, MATCH('Šifrarnik B.B.'!G169,dvoslovna, 0))","v":{"$error":"#N/A"}}]
["NP",null,null,null,null,"ostalo",{"$f":"INDEX('šifrarnik za identifikatore'!$F$2:$F$326, MATCH('Šifrarnik A.'!C168,dvoslovna, 0))","v":{"$error":"#N/A"}},{"$f":"INDEX('šifrarnik za identifikatore'!$F$2:$F$326, MATCH('Šifrarnik B.'!C151,dvoslovna, 0))","v":{"$error":"#N/A"}},{"$f":"INDEX('šifrarnik za identifikatore'!$F$2:$F$326, MATCH('Šifrarnik B.B.'!G170,dvoslovna, 0))","v":{"$error":"#N/A"}}]
["NR",null,null,null,null,"ostalo",{"$f":"INDEX('šifrarnik za identifikatore'!$F$2:$F$326, MATCH('Šifrarnik A.'!C169,dvoslovna, 0))","v":{"$error":"#N/A"}},{"$f":"INDEX('šifrarnik za identifikatore'!$F$2:$F$326, MATCH('Šifrarnik B.'!C152,dvoslovna, 0))","v":{"$error":"#N/A"}},{"$f":"INDEX('šifrarnik za identifikatore'!$F$2:$F$326, MATCH('Šifrarnik B.B.'!G171,dvoslovna, 0))","v":{"$error":"#N/A"}}]
["NU",null,null,null,null,"ostalo",{"$f":"INDEX('šifrarnik za identifikatore'!$F$2:$F$326, MATCH('Šifrarnik A.'!C170,dvoslovna, 0))","v":{"$error":"#N/A"}},{"$f":"INDEX('šifrarnik za identifikatore'!$F$2:$F$326, MATCH('Šifrarnik B.'!C153,dvoslovna, 0))","v":{"$error":"#N/A"}},{"$f":"INDEX('šifrarnik za identifikatore'!$F$2:$F$326, MATCH('Šifrarnik B.B.'!G172,dvoslovna, 0))","v":{"$error":"#N/A"}}]
["NZ",null,null,null,null,"identifikator",{"$f":"INDEX('šifrarnik za identifikatore'!$F$2:$F$326, MATCH('Šifrarnik A.'!C171,dvoslovna, 0))","v":{"$error":"#N/A"}},{"$f":"INDEX('šifrarnik za identifikatore'!$F$2:$F$326, MATCH('Šifrarnik B.'!C154,dvoslovna, 0))","v":{"$error":"#N/A"}},{"$f":"INDEX('šifrarnik za identifikatore'!$F$2:$F$326, MATCH('Šifrarnik B.B.'!G173,dvoslovna, 0))","v":{"$error":"#N/A"}}]
["OM",null,null,null,null,"identifikator",{"$f":"INDEX('šifrarnik za identifikatore'!$F$2:$F$326, MATCH('Šifrarnik A.'!C172,dvoslovna, 0))","v":{"$error":"#N/A"}},{"$f":"INDEX('šifrarnik za identifikatore'!$F$2:$F$326, MATCH('Šifrarnik B.'!C155,dvoslovna, 0))","v":{"$error":"#N/A"}},{"$f":"INDEX('šifrarnik za identifikatore'!$F$2:$F$326, MATCH('Šifrarnik B.B.'!G174,dvoslovna, 0))","v":{"$error":"#N/A"}}]
["PA",null,null,null,null,"identifikator",{"$f":"INDEX('šifrarnik za identifikatore'!$F$2:$F$326, MATCH('Šifrarnik A.'!C173,dvoslovna, 0))","v":{"$error":"#N/A"}},{"$f":"INDEX('šifrarnik za identifikatore'!$F$2:$F$326, MATCH('Šifrarnik B.'!C156,dvoslovna, 0))","v":{"$error":"#N/A"}},{"$f":"INDEX('šifrarnik za identifikatore'!$F$2:$F$326, MATCH('Šifrarnik B.B.'!G175,dvoslovna, 0))","v":{"$error":"#N/A"}}]
["PE",null,null,null,null,"identifikator",{"$f":"INDEX('šifrarnik za identifikatore'!$F$2:$F$326, MATCH('Šifrarnik A.'!C174,dvoslovna, 0))","v":{"$error":"#N/A"}},{"$f":"INDEX('šifrarnik za identifikatore'!$F$2:$F$326, MATCH('Šifrarnik B.'!C157,dvoslovna, 0))","v":{"$error":"#N/A"}},{"$f":"INDEX('šifrarnik za identifikatore'!$F$2:$F$326, MATCH('Šifrarnik B.B.'!G176,dvoslovna, 0))","v":{"$error":"#N/A"}}]
["PF",null,null,null,null,"ostalo",{"$f":"INDEX('šifrarnik za identifikatore'!$F$2:$F$326, MATCH('Šifrarnik A.'!C175,dvoslovna, 0))","v":{"$error":"#N/A"}},{"$f":"INDEX('šifrarnik za identifikatore'!$F$2:$F$326, MATCH('Šifrarnik B.'!C158,dvoslovna, 0))","v":{"$error":"#N/A"}},{"$f":"INDEX('šifrarnik za identifikatore'!$F$2:$F$326, MATCH('Šifrarnik B.B.'!G177,dvoslovna, 0))","v":{"$error":"#N/A"}}]
["PG",null,null,null,null,"ostalo",{"$f":"INDEX('šifrarnik za identifikatore'!$F$2:$F$326, MATCH('Šifrarnik A.'!C176,dvoslovna, 0))","v":{"$error":"#N/A"}},{"$f":"INDEX('šifrarnik za identifikatore'!$F$2:$F$326, MATCH('Šifrarnik B.'!C159,dvoslovna, 0))","v":{"$error":"#N/A"}},{"$f":"INDEX('šifrarnik za identifikatore'!$F$2:$F$326, MATCH('Šifrarnik B.B.'!G178,dvoslovna, 0))","v":{"$error":"#N/A"}}]
["PH",null,null,null,null,"ostalo",{"$f":"INDEX('šifrarnik za identifikatore'!$F$2:$F$326, MATCH('Šifrarnik A.'!C177,dvoslovna, 0))","v":{"$error":"#N/A"}},{"$f":"INDEX('šifrarnik za identifikatore'!$F$2:$F$326, MATCH('Šifrarnik B.'!C160,dvoslovna, 0))","v":{"$error":"#N/A"}},{"$f":"INDEX('šifrarnik za identifikatore'!$F$2:$F$326, MATCH('Šifrarnik B.B.'!G179,dvoslovna, 0))","v":{"$error":"#N/A"}}]
["PK",null,null,null,null,"ostalo",{"$f":"INDEX('šifrarnik za identifikatore'!$F$2:$F$326, MATCH('Šifrarnik A.'!C178,dvoslovna, 0))","v":{"$error":"#N/A"}},{"$f":"INDEX('šifrarnik za identifikatore'!$F$2:$F$326, MATCH('Šifrarnik B.'!C161,dvoslovna, 0))","v":{"$error":"#N/A"}},{"$f":"INDEX('šifrarnik za identifikatore'!$F$2:$F$326, MATCH('Šifrarnik B.B.'!G180,dvoslovna, 0))","v":{"$error":"#N/A"}}]
["PL",null,null,null,null,"identifikator",{"$f":"INDEX('šifrarnik za identifikatore'!$F$2:$F$326, MATCH('Šifrarnik A.'!C179,dvoslovna, 0))","v":{"$error":"#N/A"}},{"$f":"INDEX('šifrarnik za identifikatore'!$F$2:$F$326, MATCH('Šifrarnik B.'!C162,dvoslovna, 0))","v":{"$error":"#N/A"}},{"$f":"INDEX('šifrarnik za identifikatore'!$F$2:$F$326, MATCH('Šifrarnik B.B.'!G181,dvoslovna, 0))","v":{"$error":"#N/A"}}]
["PM",null,null,null,null,"ostalo",{"$f":"INDEX('šifrarnik za identifikatore'!$F$2:$F$326, MATCH('Šifrarnik A.'!C180,dvoslovna, 0))","v":{"$error":"#N/A"}},{"$f":"INDEX('šifrarnik za identifikatore'!$F$2:$F$326, MATCH('Šifrarnik B.'!C163,dvoslovna, 0))","v":{"$error":"#N/A"}},{"$f":"INDEX('šifrarnik za identifikatore'!$F$2:$F$326, MATCH('Šifrarnik B.B.'!G182,dvoslovna, 0))","v":{"$error":"#N/A"}}]
["PN",null,null,null,null,"ostalo",{"$f":"INDEX('šifrarnik za identifikatore'!$F$2:$F$326, MATCH('Šifrarnik A.'!C181,dvoslovna, 0))","v":{"$error":"#N/A"}},{"$f":"INDEX('šifrarnik za identifikatore'!$F$2:$F$326, MATCH('Šifrarnik B.'!C164,dvoslovna, 0))","v":{"$error":"#N/A"}},{"$f":"INDEX('šifrarnik za identifikatore'!$F$2:$F$326, MATCH('Šifrarnik B.B.'!G183,dvoslovna, 0))","v":{"$error":"#N/A"}}]
["PR",null,null,null,null,"ostalo",{"$f":"INDEX('šifrarnik za identifikatore'!$F$2:$F$326, MATCH('Šifrarnik A.'!C182,dvoslovna, 0))","v":{"$error":"#N/A"}},{"$f":"INDEX('šifrarnik za identifikatore'!$F$2:$F$326, MATCH('Šifrarnik B.'!C165,dvoslovna, 0))","v":{"$error":"#N/A"}},{"$f":"INDEX('šifrarnik za identifikatore'!$F$2:$F$326, MATCH('Šifrarnik B.B.'!G184,dvoslovna, 0))","v":{"$error":"#N/A"}}]
["PS",null,null,null,null,"ostalo",{"$f":"INDEX('šifrarnik za identifikatore'!$F$2:$F$326, MATCH('Šifrarnik A.'!C183,dvoslovna, 0))","v":{"$error":"#N/A"}},{"$f":"INDEX('šifrarnik za identifikatore'!$F$2:$F$326, MATCH('Šifrarnik B.'!C166,dvoslovna, 0))","v":{"$error":"#N/A"}},{"$f":"INDEX('šifrarnik za identifikatore'!$F$2:$F$326, MATCH('Šifrarnik B.B.'!G185,dvoslovna, 0))","v":{"$error":"#N/A"}}]
["PT",null,null,null,null,"identifikator",{"$f":"INDEX('šifrarnik za identifikatore'!$F$2:$F$326, MATCH('Šifrarnik A.'!C184,dvoslovna, 0))","v":{"$error":"#N/A"}},{"$f":"INDEX('šifrarnik za identifikatore'!$F$2:$F$326, MATCH('Šifrarnik B.'!C167,dvoslovna, 0))","v":{"$error":"#N/A"}},{"$f":"INDEX('šifrarnik za identifikatore'!$F$2:$F$326, MATCH('Šifrarnik B.B.'!G186,dvoslovna, 0))","v":{"$error":"#N/A"}}]
["PW",null,null,null,null,"ostalo",{"$f":"INDEX('šifrarnik za identifikatore'!$F$2:$F$326, MATCH('Šifrarnik A.'!C185,dvoslovna, 0))","v":{"$error":"#N/A"}},{"$f":"INDEX('šifrarnik za identifikatore'!$F$2:$F$326, MATCH('Šifrarnik B.'!C168,dvoslovna, 0))","v":{"$error":"#N/A"}},{"$f":"INDEX('šifrarnik za identifikatore'!$F$2:$F$326, MATCH('Šifrarnik B.B.'!G187,dvoslovna, 0))","v":{"$error":"#N/A"}}]
["PY",null,null,null,null,"ostalo",{"$f":"INDEX('šifrarnik za identifikatore'!$F$2:$F$326, MATCH('Šifrarnik A.'!C186,dvoslovna, 0))","v":{"$error":"#N/A"}},{"$f":"INDEX('šifrarnik za identifikatore'!$F$2:$F$326, MATCH('Šifrarnik B.'!C169,dvoslovna, 0))","v":{"$error":"#N/A"}},{"$f":"INDEX('šifrarnik za identifikatore'!$F$2:$F$326, MATCH('Šifrarnik B.B.'!G188,dvoslovna, 0))","v":{"$error":"#N/A"}}]
["QA",null,null,null,null,"identifikator",{"$f":"INDEX('šifrarnik za identifikatore'!$F$2:$F$326, MATCH('Šifrarnik A.'!C187,dvoslovna, 0))","v":{"$error":"#N/A"}},{"$f":"INDEX('šifrarnik za identifikatore'!$F$2:$F$326, MATCH('Šifrarnik B.'!C170,dvoslovna, 0))","v":{"$error":"#N/A"}},{"$f":"INDEX('šifrarnik za identifikatore'!$F$2:$F$326, MATCH('Šifrarnik B.B.'!G189,dvoslovna, 0))","v":{"$error":"#N/A"}}]
["RE",null,null,null,null,"ostalo",{"$f":"INDEX('šifrarnik za identifikatore'!$F$2:$F$326, MATCH('Šifrarnik A.'!C188,dvoslovna, 0))","v":{"$error":"#N/A"}},{"$f":"INDEX('šifrarnik za identifikatore'!$F$2:$F$326, MATCH('Šifrarnik B.'!C171,dvoslovna, 0))","v":{"$error":"#N/A"}},{"$f":"INDEX('šifrarnik za identifikatore'!$F$2:$F$326, MATCH('Šifrarnik B.B.'!G190,dvoslovna, 0))","v":{"$error":"#N/A"}}]
["RO",null,null,null,null,"identifikator",{"$f":"INDEX('šifrarnik za identifikatore'!$F$2:$F$326, MATCH('Šifrarnik A.'!C189,dvoslovna, 0))","v":{"$error":"#N/A"}},{"$f":"INDEX('šifrarnik za identifikatore'!$F$2:$F$326, MATCH('Šifrarnik B.'!C172,dvoslovna, 0))","v":{"$error":"#N/A"}},{"$f":"INDEX('šifrarnik za identifikatore'!$F$2:$F$326, MATCH('Šifrarnik B.B.'!G191,dvoslovna, 0))","v":{"$error":"#N/A"}}]
["RS",null,null,null,null,"identifikator",{"$f":"INDEX('šifrarnik za identifikatore'!$F$2:$F$326, MATCH('Šifrarnik A.'!C190,dvoslovna, 0))","v":{"$error":"#N/A"}},{"$f":"INDEX('šifrarnik za identifikatore'!$F$2:$F$326, MATCH('Šifrarnik B.'!C173,dvoslovna, 0))","v":{"$error":"#N/A"}},{"$f":"INDEX('šifrarnik za identifikatore'!$F$2:$F$326, MATCH('Šifrarnik B.B.'!G192,dvoslovna, 0))","v":{"$error":"#N/A"}}]
["RU",null,null,null,null,"identifikator",{"$f":"INDEX('šifrarnik za identifikatore'!$F$2:$F$326, MATCH('Šifrarnik A.'!C191,dvoslovna, 0))","v":{"$error":"#N/A"}},{"$f":"INDEX('šifrarnik za identifikatore'!$F$2:$F$326, MATCH('Šifrarnik B.'!C174,dvoslovna, 0))","v":{"$error":"#N/A"}},{"$f":"INDEX('šifrarnik za identifikatore'!$F$2:$F$326, MATCH('Šifrarnik B.B.'!G193,dvoslovna, 0))","v":{"$error":"#N/A"}}]
["RW",null,null,null,null,"ostalo",{"$f":"INDEX('šifrarnik za identifikatore'!$F$2:$F$326, MATCH('Šifrarnik A.'!C192,dvoslovna, 0))","v":{"$error":"#N/A"}},{"$f":"INDEX('šifrarnik za identifikatore'!$F$2:$F$326, MATCH('Šifrarnik B.'!C175,dvoslovna, 0))","v":{"$error":"#N/A"}},{"$f":"INDEX('šifrarnik za identifikatore'!$F$2:$F$326, MATCH('Šifrarnik B.B.'!G194,dvoslovna, 0))","v":{"$error":"#N/A"}}]
["SA",null,null,null,null,{"$f":"IF(COUNTIF(dio, A194) > 0, \"identifikator\",\"ostalo\")","v":"identifikator"},{"$f":"INDEX('šifrarnik za identifikatore'!$F$2:$F$326, MATCH('Šifrarnik A.'!C193,dvoslovna, 0))","v":{"$error":"#N/A"}},{"$f":"INDEX('šifrarnik za identifikatore'!$F$2:$F$326, MATCH('Šifrarnik B.'!C176,dvoslovna, 0))","v":{"$error":"#N/A"}},{"$f":"INDEX('šifrarnik za identifikatore'!$F$2:$F$326, MATCH('Šifrarnik B.B.'!G195,dvoslovna, 0))","v":{"$error":"#N/A"}}]
["SB",null,null,null,null,"ostalo",{"$f":"INDEX('šifrarnik za identifikatore'!$F$2:$F$326, MATCH('Šifrarnik A.'!C194,dvoslovna, 0))","v":{"$error":"#N/A"}},{"$f":"INDEX('šifrarnik za identifikatore'!$F$2:$F$326, MATCH('Šifrarnik B.'!C177,dvoslovna, 0))","v":{"$error":"#N/A"}},{"$f":"INDEX('šifrarnik za identifikatore'!$F$2:$F$326, MATCH('Šifrarnik B.B.'!G196,dvoslovna, 0))","v":{"$error":"#N/A"}}]
["SC",null,null,null,null,"identifikator",{"$f":"INDEX('šifrarnik za identifikatore'!$F$2:$F$326, MATCH('Šifrarnik A.'!C195,dvoslovna, 0))","v":{"$error":"#N/A"}},{"$f":"INDEX('šifrarnik za identifikatore'!$F$2:$F$326, MATCH('Šifrarnik B.'!C178,dvoslovna, 0))","v":{"$error":"#N/A"}},{"$f":"INDEX('šifrarnik za identifikatore'!$F$2:$F$326, MATCH('Šifrarnik B.B.'!G197,dvoslovna, 0))","v":{"$error":"#N/A"}}]
["SD",null,null,null,null,"ostalo",{"$f":"INDEX('šifrarnik za identifikatore'!$F$2:$F$326, MATCH('Šifrarnik A.'!C196,dvoslovna, 0))","v":{"$error":"#N/A"}},{"$f":"INDEX('šifrarnik za identifikatore'!$F$2:$F$326, MATCH('Šifrarnik B.'!C179,dvoslovna, 0))","v":{"$error":"#N/A"}},{"$f":"INDEX('šifrarnik za identifikatore'!$F$2:$F$326, MATCH('Šifrarnik B.B.'!G198,dvoslovna, 0))","v":{"$error":"#N/A"}}]
["SE",null,null,null,null,"identifikator",{"$f":"INDEX('šifrarnik za identifikatore'!$F$2:$F$326, MATCH('Šifrarnik A.'!C197,dvoslovna, 0))","v":{"$error":"#N/A"}},{"$f":"INDEX('šifrarnik za identifikatore'!$F$2:$F$326, MATCH('Šifrarnik B.'!C180,dvoslovna, 0))","v":{"$error":"#N/A"}},{"$f":"INDEX('šifrarnik za identifikatore'!$F$2:$F$326, MATCH('Šifrarnik B.B.'!G199,dvoslovna, 0))","v":{"$error":"#N/A"}}]
["SG",null,null,null,null,"identifikator",{"$f":"INDEX('šifrarnik za identifikatore'!$F$2:$F$326, MATCH('Šifrarnik A.'!C198,dvoslovna, 0))","v":{"$error":"#N/A"}},{"$f":"INDEX('šifrarnik za identifikatore'!$F$2:$F$326, MATCH('Šifrarnik B.'!C181,dvoslovna, 0))","v":{"$error":"#N/A"}},{"$f":"INDEX('šifrarnik za identifikatore'!$F$2:$F$326, MATCH('Šifrarnik B.B.'!G200,dvoslovna, 0))","v":{"$error":"#N/A"}}]
["SH",null,null,null,null,"ostalo",{"$f":"INDEX('šifrarnik za identifikatore'!$F$2:$F$326, MATCH('Šifrarnik A.'!C199,dvoslovna, 0))","v":{"$error":"#N/A"}},{"$f":"INDEX('šifrarnik za identifikatore'!$F$2:$F$326, MATCH('Šifrarnik B.'!C182,dvoslovna, 0))","v":{"$error":"#N/A"}},{"$f":"INDEX('šifrarnik za identifikatore'!$F$2:$F$326, MATCH('Šifrarnik B.B.'!G201,dvoslovna, 0))","v":{"$error":"#N/A"}}]
["SI",null,null,null,null,"identifikator",{"$f":"INDEX('šifrarnik za identifikatore'!$F$2:$F$326, MATCH('Šifrarnik A.'!C200,dvoslovna, 0))","v":{"$error":"#N/A"}},{"$f":"INDEX('šifrarnik za identifikatore'!$F$2:$F$326, MATCH('Šifrarnik B.'!C183,dvoslovna, 0))","v":{"$error":"#N/A"}},{"$f":"INDEX('šifrarnik za identifikatore'!$F$2:$F$326, MATCH('Šifrarnik B.B.'!G202,dvoslovna, 0))","v":{"$error":"#N/A"}}]
["SJ",null,null,null,null,"ostalo",{"$f":"INDEX('šifrarnik za identifikatore'!$F$2:$F$326, MATCH('Šifrarnik A.'!C201,dvoslovna, 0))","v":{"$error":"#N/A"}},{"$f":"INDEX('šifrarnik za identifikatore'!$F$2:$F$326, MATCH('Šifrarnik B.'!C184,dvoslovna, 0))","v":{"$error":"#N/A"}},{"$f":"INDEX('šifrarnik za identifikatore'!$F$2:$F$326, MATCH('Šifrarnik B.B.'!G203,dvoslovna, 0))","v":{"$error":"#N/A"}}]
["SK",null,null,null,null,"identifikator",{"$f":"INDEX('šifrarnik za identifikatore'!$F$2:$F$326, MATCH('Šifrarnik A.'!C202,dvoslovna, 0))","v":{"$error":"#N/A"}},{"$f":"INDEX('šifrarnik za identifikatore'!$F$2:$F$326, MATCH('Šifrarnik B.'!C185,dvoslovna, 0))","v":{"$error":"#N/A"}},{"$f":"INDEX('šifrarnik za identifikatore'!$F$2:$F$326, MATCH('Šifrarnik B.B.'!G204,dvoslovna, 0))","v":{"$error":"#N/A"}}]
["SL",null,null,null,null,"ostalo",{"$f":"INDEX('šifrarnik za identifikatore'!$F$2:$F$326, MATCH('Šifrarnik A.'!C203,dvoslovna, 0))","v":{"$error":"#N/A"}},{"$f":"INDEX('šifrarnik za identifikatore'!$F$2:$F$326, MATCH('Šifrarnik B.'!C186,dvoslovna, 0))","v":{"$error":"#N/A"}},{"$f":"INDEX('šifrarnik za identifikatore'!$F$2:$F$326, MATCH('Šifrarnik B.B.'!G205,dvoslovna, 0))","v":{"$error":"#N/A"}}]
["SM",null,null,null,null,"identifikator",{"$f":"INDEX('šifrarnik za identifikatore'!$F$2:$F$326, MATCH('Šifrarnik A.'!C204,dvoslovna, 0))","v":{"$error":"#N/A"}},{"$f":"INDEX('šifrarnik za identifikatore'!$F$2:$F$326, MATCH('Šifrarnik B.'!C187,dvoslovna, 0))","v":{"$error":"#N/A"}},{"$f":"INDEX('šifrarnik za identifikatore'!$F$2:$F$326, MATCH('Šifrarnik B.B.'!G206,dvoslovna, 0))","v":{"$error":"#N/A"}}]
["SN",null,null,null,null,"ostalo",{"$f":"INDEX('šifrarnik za identifikatore'!$F$2:$F$326, MATCH('Šifrarnik A.'!C205,dvoslovna, 0))","v":{"$error":"#N/A"}},{"$f":"INDEX('šifrarnik za identifikatore'!$F$2:$F$326, MATCH('Šifrarnik B.'!C188,dvoslovna, 0))","v":{"$error":"#N/A"}},{"$f":"INDEX('šifrarnik za identifikatore'!$F$2:$F$326, MATCH('Šifrarnik B.B.'!G207,dvoslovna, 0))","v":{"$error":"#N/A"}}]
["SO",null,null,null,null,"ostalo",{"$f":"INDEX('šifrarnik za identifikatore'!$F$2:$F$326, MATCH('Šifrarnik A.'!C206,dvoslovna, 0))","v":{"$error":"#N/A"}},{"$f":"INDEX('šifrarnik za identifikatore'!$F$2:$F$326, MATCH('Šifrarnik B.'!C189,dvoslovna, 0))","v":{"$error":"#N/A"}},{"$f":"INDEX('šifrarnik za identifikatore'!$F$2:$F$326, MATCH('Šifrarnik B.B.'!G208,dvoslovna, 0))","v":{"$error":"#N/A"}}]
["SR",null,null,null,null,"ostalo",{"$f":"INDEX('šifrarnik za identifikatore'!$F$2:$F$326, MATCH('Šifrarnik A.'!C207,dvoslovna, 0))","v":{"$error":"#N/A"}},{"$f":"INDEX('šifrarnik za identifikatore'!$F$2:$F$326, MATCH('Šifrarnik B.'!C190,dvoslovna, 0))","v":{"$error":"#N/A"}},{"$f":"INDEX('šifrarnik za identifikatore'!$F$2:$F$326, MATCH('Šifrarnik B.B.'!G209,dvoslovna, 0))","v":{"$error":"#N/A"}}]
["SS",null,null,null,null,"ostalo",{"$f":"INDEX('šifrarnik za identifikatore'!$F$2:$F$326, MATCH('Šifrarnik A.'!C208,dvoslovna, 0))","v":{"$error":"#N/A"}},{"$f":"INDEX('šifrarnik za identifikatore'!$F$2:$F$326, MATCH('Šifrarnik B.'!C191,dvoslovna, 0))","v":{"$error":"#N/A"}},{"$f":"INDEX('šifrarnik za identifikatore'!$F$2:$F$326, MATCH('Šifrarnik B.B.'!G210,dvoslovna, 0))","v":{"$error":"#N/A"}}]
["ST",null,null,null,null,"ostalo",{"$f":"INDEX('šifrarnik za identifikatore'!$F$2:$F$326, MATCH('Šifrarnik A.'!C209,dvoslovna, 0))","v":{"$error":"#N/A"}},{"$f":"INDEX('šifrarnik za identifikatore'!$F$2:$F$326, MATCH('Šifrarnik B.'!C192,dvoslovna, 0))","v":{"$error":"#N/A"}},{"$f":"INDEX('šifrarnik za identifikatore'!$F$2:$F$326, MATCH('Šifrarnik B.B.'!G211,dvoslovna, 0))","v":{"$error":"#N/A"}}]
["SV",null,null,null,null,"ostalo",{"$f":"INDEX('šifrarnik za identifikatore'!$F$2:$F$326, MATCH('Šifrarnik A.'!C210,dvoslovna, 0))","v":{"$error":"#N/A"}},{"$f":"INDEX('šifrarnik za identifikatore'!$F$2:$F$326, MATCH('Šifrarnik B.'!C193,dvoslovna, 0))","v":{"$error":"#N/A"}},{"$f":"INDEX('šifrarnik za identifikatore'!$F$2:$F$326, MATCH('Šifrarnik B.B.'!G212,dvoslovna, 0))","v":{"$error":"#N/A"}}]
["SX",null,null,null,null,"ostalo",{"$f":"INDEX('šifrarnik za identifikatore'!$F$2:$F$326, MATCH('Šifrarnik A.'!C211,dvoslovna, 0))","v":{"$error":"#N/A"}},{"$f":"INDEX('šifrarnik za identifikatore'!$F$2:$F$326, MATCH('Šifrarnik B.'!C194,dvoslovna, 0))","v":{"$error":"#N/A"}},{"$f":"INDEX('šifrarnik za identifikatore'!$F$2:$F$326, MATCH('Šifrarnik B.B.'!G213,dvoslovna, 0))","v":{"$error":"#N/A"}}]
["SY",null,null,null,null,"ostalo",{"$f":"INDEX('šifrarnik za identifikatore'!$F$2:$F$326, MATCH('Šifrarnik A.'!C212,dvoslovna, 0))","v":{"$error":"#N/A"}},{"$f":"INDEX('šifrarnik za identifikatore'!$F$2:$F$326, MATCH('Šifrarnik B.'!C195,dvoslovna, 0))","v":{"$error":"#N/A"}},{"$f":"INDEX('šifrarnik za identifikatore'!$F$2:$F$326, MATCH('Šifrarnik B.B.'!G214,dvoslovna, 0))","v":{"$error":"#N/A"}}]
["SZ",null,null,null,null,"ostalo",{"$f":"INDEX('šifrarnik za identifikatore'!$F$2:$F$326, MATCH('Šifrarnik A.'!C213,dvoslovna, 0))","v":{"$error":"#N/A"}},{"$f":"INDEX('šifrarnik za identifikatore'!$F$2:$F$326, MATCH('Šifrarnik B.'!C196,dvoslovna, 0))","v":{"$error":"#N/A"}},{"$f":"INDEX('šifrarnik za identifikatore'!$F$2:$F$326, MATCH('Šifrarnik B.B.'!G215,dvoslovna, 0))","v":{"$error":"#N/A"}}]
["TC",null,null,null,null,"ostalo",{"$f":"INDEX('šifrarnik za identifikatore'!$F$2:$F$326, MATCH('Šifrarnik A.'!C214,dvoslovna, 0))","v":{"$error":"#N/A"}},{"$f":"INDEX('šifrarnik za identifikatore'!$F$2:$F$326, MATCH('Šifrarnik B.'!C197,dvoslovna, 0))","v":{"$error":"#N/A"}},{"$f":"INDEX('šifrarnik za identifikatore'!$F$2:$F$326, MATCH('Šifrarnik B.B.'!G216,dvoslovna, 0))","v":{"$error":"#N/A"}}]
["TD",null,null,null,null,"ostalo",{"$f":"INDEX('šifrarnik za identifikatore'!$F$2:$F$326, MATCH('Šifrarnik A.'!C215,dvoslovna, 0))","v":{"$error":"#N/A"}},{"$f":"INDEX('šifrarnik za identifikatore'!$F$2:$F$326, MATCH('Šifrarnik B.'!C198,dvoslovna, 0))","v":{"$error":"#N/A"}},{"$f":"INDEX('šifrarnik za identifikatore'!$F$2:$F$326, MATCH('Šifrarnik B.B.'!G217,dvoslovna, 0))","v":{"$error":"#N/A"}}]
["TF",null,null,null,null,"ostalo",{"$f":"INDEX('šifrarnik za identifikatore'!$F$2:$F$326, MATCH('Šifrarnik A.'!C216,dvoslovna, 0))","v":{"$error":"#N/A"}},{"$f":"INDEX('šifrarnik za identifikatore'!$F$2:$F$326, MATCH('Šifrarnik B.'!C199,dvoslovna, 0))","v":{"$error":"#N/A"}},{"$f":"INDEX('šifrarnik za identifikatore'!$F$2:$F$326, MATCH('Šifrarnik B.B.'!G218,dvoslovna, 0))","v":{"$error":"#N/A"}}]
["TG",null,null,null,null,"ostalo",{"$f":"INDEX('šifrarnik za identifikatore'!$F$2:$F$326, MATCH('Šifrarnik A.'!C217,dvoslovna, 0))","v":{"$error":"#N/A"}},{"$f":"INDEX('šifrarnik za identifikatore'!$F$2:$F$326, MATCH('Šifrarnik B.'!C200,dvoslovna, 0))","v":{"$error":"#N/A"}},{"$f":"INDEX('šifrarnik za identifikatore'!$F$2:$F$326, MATCH('Šifrarnik B.B.'!G219,dvoslovna, 0))","v":{"$error":"#N/A"}}]
["TH",null,null,null,null,"identifikator",{"$f":"INDEX('šifrarnik za identifikatore'!$F$2:$F$326, MATCH('Šifrarnik A.'!C218,dvoslovna, 0))","v":{"$error":"#N/A"}},{"$f":"INDEX('šifrarnik za identifikatore'!$F$2:$F$326, MATCH('Šifrarnik B.'!C201,dvoslovna, 0))","v":{"$error":"#N/A"}},{"$f":"INDEX('šifrarnik za identifikatore'!$F$2:$F$326, MATCH('Šifrarnik B.B.'!G220,dvoslovna, 0))","v":{"$error":"#N/A"}}]
["TJ",null,null,null,null,"ostalo",{"$f":"INDEX('šifrarnik za identifikatore'!$F$2:$F$326, MATCH('Šifrarnik A.'!C219,dvoslovna, 0))","v":{"$error":"#N/A"}},{"$f":"INDEX('šifrarnik za identifikatore'!$F$2:$F$326, MATCH('Šifrarnik B.'!C202,dvoslovna, 0))","v":{"$error":"#N/A"}},{"$f":"INDEX('šifrarnik za identifikatore'!$F$2:$F$326, MATCH('Šifrarnik B.B.'!G221,dvoslovna, 0))","v":{"$error":"#N/A"}}]
["TK",null,null,null,null,"ostalo",{"$f":"INDEX('šifrarnik za identifikatore'!$F$2:$F$326, MATCH('Šifrarnik A.'!C220,dvoslovna, 0))","v":{"$error":"#N/A"}},{"$f":"INDEX('šifrarnik za identifikatore'!$F$2:$F$326, MATCH('Šifrarnik B.'!C203,dvoslovna, 0))","v":{"$error":"#N/A"}},{"$f":"INDEX('šifrarnik za identifikatore'!$F$2:$F$326, MATCH('Šifrarnik B.B.'!G222,dvoslovna, 0))","v":{"$error":"#N/A"}}]
["TL",null,null,null,null,"ostalo",{"$f":"INDEX('šifrarnik za identifikatore'!$F$2:$F$326, MATCH('Šifrarnik A.'!C221,dvoslovna, 0))","v":{"$error":"#N/A"}},{"$f":"INDEX('šifrarnik za identifikatore'!$F$2:$F$326, MATCH('Šifrarnik B.'!C204,dvoslovna, 0))","v":{"$error":"#N/A"}},{"$f":"INDEX('šifrarnik za identifikatore'!$F$2:$F$326, MATCH('Šifrarnik B.B.'!G223,dvoslovna, 0))","v":{"$error":"#N/A"}}]
["TM",null,null,null,null,"ostalo",{"$f":"INDEX('šifrarnik za identifikatore'!$F$2:$F$326, MATCH('Šifrarnik A.'!C222,dvoslovna, 0))","v":{"$error":"#N/A"}},{"$f":"INDEX('šifrarnik za identifikatore'!$F$2:$F$326, MATCH('Šifrarnik B.'!C205,dvoslovna, 0))","v":{"$error":"#N/A"}},{"$f":"INDEX('šifrarnik za identifikatore'!$F$2:$F$326, MATCH('Šifrarnik B.B.'!G224,dvoslovna, 0))","v":{"$error":"#N/A"}}]
["TN",null,null,null,null,"identifikator",{"$f":"INDEX('šifrarnik za identifikatore'!$F$2:$F$326, MATCH('Šifrarnik A.'!C223,dvoslovna, 0))","v":{"$error":"#N/A"}},{"$f":"INDEX('šifrarnik za identifikatore'!$F$2:$F$326, MATCH('Šifrarnik B.'!C206,dvoslovna, 0))","v":{"$error":"#N/A"}},{"$f":"INDEX('šifrarnik za identifikatore'!$F$2:$F$326, MATCH('Šifrarnik B.B.'!G225,dvoslovna, 0))","v":{"$error":"#N/A"}}]
["TO",null,null,null,null,"ostalo",{"$f":"INDEX('šifrarnik za identifikatore'!$F$2:$F$326, MATCH('Šifrarnik A.'!C224,dvoslovna, 0))","v":{"$error":"#N/A"}},{"$f":"INDEX('šifrarnik za identifikatore'!$F$2:$F$326, MATCH('Šifrarnik B.'!C207,dvoslovna, 0))","v":{"$error":"#N/A"}},{"$f":"INDEX('šifrarnik za identifikatore'!$F$2:$F$326, MATCH('Šifrarnik B.B.'!G226,dvoslovna, 0))","v":{"$error":"#N/A"}}]
["TR",null,null,null,null,"identifikator",{"$f":"INDEX('šifrarnik za identifikatore'!$F$2:$F$326, MATCH('Šifrarnik A.'!C225,dvoslovna, 0))","v":{"$error":"#N/A"}},{"$f":"INDEX('šifrarnik za identifikatore'!$F$2:$F$326, MATCH('Šifrarnik B.'!C208,dvoslovna, 0))","v":{"$error":"#N/A"}},{"$f":"INDEX('šifrarnik za identifikatore'!$F$2:$F$326, MATCH('Šifrarnik B.B.'!G227,dvoslovna, 0))","v":{"$error":"#N/A"}}]
["TT",null,null,null,null,"ostalo",{"$f":"INDEX('šifrarnik za identifikatore'!$F$2:$F$326, MATCH('Šifrarnik A.'!C226,dvoslovna, 0))","v":{"$error":"#N/A"}},{"$f":"INDEX('šifrarnik za identifikatore'!$F$2:$F$326, MATCH('Šifrarnik B.'!C209,dvoslovna, 0))","v":{"$error":"#N/A"}},{"$f":"INDEX('šifrarnik za identifikatore'!$F$2:$F$326, MATCH('Šifrarnik B.B.'!G228,dvoslovna, 0))","v":{"$error":"#N/A"}}]
["TV",null,null,null,null,"ostalo",{"$f":"INDEX('šifrarnik za identifikatore'!$F$2:$F$326, MATCH('Šifrarnik A.'!C227,dvoslovna, 0))","v":{"$error":"#N/A"}},{"$f":"INDEX('šifrarnik za identifikatore'!$F$2:$F$326, MATCH('Šifrarnik B.'!C210,dvoslovna, 0))","v":{"$error":"#N/A"}},{"$f":"INDEX('šifrarnik za identifikatore'!$F$2:$F$326, MATCH('Šifrarnik B.B.'!G229,dvoslovna, 0))","v":{"$error":"#N/A"}}]
["TW",null,null,null,null,"identifikator",{"$f":"INDEX('šifrarnik za identifikatore'!$F$2:$F$326, MATCH('Šifrarnik A.'!C228,dvoslovna, 0))","v":{"$error":"#N/A"}},{"$f":"INDEX('šifrarnik za identifikatore'!$F$2:$F$326, MATCH('Šifrarnik B.'!C211,dvoslovna, 0))","v":{"$error":"#N/A"}},{"$f":"INDEX('šifrarnik za identifikatore'!$F$2:$F$326, MATCH('Šifrarnik B.B.'!G230,dvoslovna, 0))","v":{"$error":"#N/A"}}]
["TZ",null,null,null,null,"ostalo",{"$f":"INDEX('šifrarnik za identifikatore'!$F$2:$F$326, MATCH('Šifrarnik A.'!C229,dvoslovna, 0))","v":{"$error":"#N/A"}},{"$f":"INDEX('šifrarnik za identifikatore'!$F$2:$F$326, MATCH('Šifrarnik B.'!C212,dvoslovna, 0))","v":{"$error":"#N/A"}},{"$f":"INDEX('šifrarnik za identifikatore'!$F$2:$F$326, MATCH('Šifrarnik B.B.'!G231,dvoslovna, 0))","v":{"$error":"#N/A"}}]
["UA",null,null,null,null,"identifikator",{"$f":"INDEX('šifrarnik za identifikatore'!$F$2:$F$326, MATCH('Šifrarnik A.'!C230,dvoslovna, 0))","v":{"$error":"#N/A"}},{"$f":"INDEX('šifrarnik za identifikatore'!$F$2:$F$326, MATCH('Šifrarnik B.'!C213,dvoslovna, 0))","v":{"$error":"#N/A"}},{"$f":"INDEX('šifrarnik za identifikatore'!$F$2:$F$326, MATCH('Šifrarnik B.B.'!G232,dvoslovna, 0))","v":{"$error":"#N/A"}}]
["UG",null,null,null,null,"ostalo",{"$f":"INDEX('šifrarnik za identifikatore'!$F$2:$F$326, MATCH('Šifrarnik A.'!C231,dvoslovna, 0))","v":{"$error":"#N/A"}},{"$f":"INDEX('šifrarnik za identifikatore'!$F$2:$F$326, MATCH('Šifrarnik B.'!C214,dvoslovna, 0))","v":{"$error":"#N/A"}},{"$f":"INDEX('šifrarnik za identifikatore'!$F$2:$F$326, MATCH('Šifrarnik B.B.'!G233,dvoslovna, 0))","v":{"$error":"#N/A"}}]
["UM",null,null,null,null,"ostalo",{"$f":"INDEX('šifrarnik za identifikatore'!$F$2:$F$326, MATCH('Šifrarnik A.'!C232,dvoslovna, 0))","v":{"$error":"#N/A"}},{"$f":"INDEX('šifrarnik za identifikatore'!$F$2:$F$326, MATCH('Šifrarnik B.'!C215,dvoslovna, 0))","v":{"$error":"#N/A"}},{"$f":"INDEX('šifrarnik za identifikatore'!$F$2:$F$326, MATCH('Šifrarnik B.B.'!G234,dvoslovna, 0))","v":{"$error":"#N/A"}}]
["US",null,null,null,null,"identifikator",{"$f":"INDEX('šifrarnik za identifikatore'!$F$2:$F$326, MATCH('Šifrarnik A.'!C233,dvoslovna, 0))","v":{"$error":"#N/A"}},{"$f":"INDEX('šifrarnik za identifikatore'!$F$2:$F$326, MATCH('Šifrarnik B.'!C216,dvoslovna, 0))","v":{"$error":"#N/A"}},{"$f":"INDEX('šifrarnik za identifikatore'!$F$2:$F$326, MATCH('Šifrarnik B.B.'!G235,dvoslovna, 0))","v":{"$error":"#N/A"}}]
["UY",null,null,null,null,"identifikator",{"$f":"INDEX('šifrarnik za identifikatore'!$F$2:$F$326, MATCH('Šifrarnik A.'!C234,dvoslovna, 0))","v":{"$error":"#N/A"}},{"$f":"INDEX('šifrarnik za identifikatore'!$F$2:$F$326, MATCH('Šifrarnik B.'!C217,dvoslovna, 0))","v":{"$error":"#N/A"}},{"$f":"INDEX('šifrarnik za identifikatore'!$F$2:$F$326, MATCH('Šifrarnik B.B.'!G236,dvoslovna, 0))","v":{"$error":"#N/A"}}]
["UZ",null,null,null,null,"ostalo",{"$f":"INDEX('šifrarnik za identifikatore'!$F$2:$F$326, MATCH('Šifrarnik A.'!C235,dvoslovna, 0))","v":{"$error":"#N/A"}},{"$f":"INDEX('šifrarnik za identifikatore'!$F$2:$F$326, MATCH('Šifrarnik B.'!C218,dvoslovna, 0))","v":{"$error":"#N/A"}},{"$f":"INDEX('šifrarnik za identifikatore'!$F$2:$F$326, MATCH('Šifrarnik B.B.'!G237,dvoslovna, 0))","v":{"$error":"#N/A"}}]
["VA",null,null,null,null,"ostalo",{"$f":"INDEX('šifrarnik za identifikatore'!$F$2:$F$326, MATCH('Šifrarnik A.'!C236,dvoslovna, 0))","v":{"$error":"#N/A"}},{"$f":"INDEX('šifrarnik za identifikatore'!$F$2:$F$326, MATCH('Šifrarnik B.'!C219,dvoslovna, 0))","v":{"$error":"#N/A"}},{"$f":"INDEX('šifrarnik za identifikatore'!$F$2:$F$326, MATCH('Šifrarnik B.B.'!G238,dvoslovna, 0))","v":{"$error":"#N/A"}}]
["VC",null,null,null,null,"ostalo",{"$f":"INDEX('šifrarnik za identifikatore'!$F$2:$F$326, MATCH('Šifrarnik A.'!C237,dvoslovna, 0))","v":{"$error":"#N/A"}},{"$f":"INDEX('šifrarnik za identifikatore'!$F$2:$F$326, MATCH('Šifrarnik B.'!C220,dvoslovna, 0))","v":{"$error":"#N/A"}},{"$f":"INDEX('šifrarnik za identifikatore'!$F$2:$F$326, MATCH('Šifrarnik B.B.'!G239,dvoslovna, 0))","v":{"$error":"#N/A"}}]
["VE",null,null,null,null,"ostalo",{"$f":"INDEX('šifrarnik za identifikatore'!$F$2:$F$326, MATCH('Šifrarnik A.'!C238,dvoslovna, 0))","v":{"$error":"#N/A"}},{"$f":"INDEX('šifrarnik za identifikatore'!$F$2:$F$326, MATCH('Šifrarnik B.'!C221,dvoslovna, 0))","v":{"$error":"#N/A"}},{"$f":"INDEX('šifrarnik za identifikatore'!$F$2:$F$326, MATCH('Šifrarnik B.B.'!G240,dvoslovna, 0))","v":{"$error":"#N/A"}}]
["VG",null,null,null,null,"ostalo",{"$f":"INDEX('šifrarnik za identifikatore'!$F$2:$F$326, MATCH('Šifrarnik A.'!C239,dvoslovna, 0))","v":{"$error":"#N/A"}},{"$f":"INDEX('šifrarnik za identifikatore'!$F$2:$F$326, MATCH('Šifrarnik B.'!C222,dvoslovna, 0))","v":{"$error":"#N/A"}},{"$f":"INDEX('šifrarnik za identifikatore'!$F$2:$F$326, MATCH('Šifrarnik B.B.'!G241,dvoslovna, 0))","v":{"$error":"#N/A"}}]
["VI",null,null,null,null,"ostalo",{"$f":"INDEX('šifrarnik za identifikatore'!$F$2:$F$326, MATCH('Šifrarnik A.'!C240,dvoslovna, 0))","v":{"$error":"#N/A"}},{"$f":"INDEX('šifrarnik za identifikatore'!$F$2:$F$326, MATCH('Šifrarnik B.'!C223,dvoslovna, 0))","v":{"$error":"#N/A"}},{"$f":"INDEX('šifrarnik za identifikatore'!$F$2:$F$326, MATCH('Šifrarnik B.B.'!G242,dvoslovna, 0))","v":{"$error":"#N/A"}}]
["VN",null,null,null,null,"identifikator",{"$f":"INDEX('šifrarnik za identifikatore'!$F$2:$F$326, MATCH('Šifrarnik A.'!C241,dvoslovna, 0))","v":{"$error":"#N/A"}},{"$f":"INDEX('šifrarnik za identifikatore'!$F$2:$F$326, MATCH('Šifrarnik B.'!C224,dvoslovna, 0))","v":{"$error":"#N/A"}},{"$f":"INDEX('šifrarnik za identifikatore'!$F$2:$F$326, MATCH('Šifrarnik B.B.'!G243,dvoslovna, 0))","v":{"$error":"#N/A"}}]
["VU",null,null,null,null,"ostalo",{"$f":"INDEX('šifrarnik za identifikatore'!$F$2:$F$326, MATCH('Šifrarnik A.'!C242,dvoslovna, 0))","v":{"$error":"#N/A"}},{"$f":"INDEX('šifrarnik za identifikatore'!$F$2:$F$326, MATCH('Šifrarnik B.'!C225,dvoslovna, 0))","v":{"$error":"#N/A"}},{"$f":"INDEX('šifrarnik za identifikatore'!$F$2:$F$326, MATCH('Šifrarnik B.B.'!G244,dvoslovna, 0))","v":{"$error":"#N/A"}}]
["WF",null,null,null,null,"ostalo",{"$f":"INDEX('šifrarnik za identifikatore'!$F$2:$F$326, MATCH('Šifrarnik A.'!C243,dvoslovna, 0))","v":{"$error":"#N/A"}},{"$f":"INDEX('šifrarnik za identifikatore'!$F$2:$F$326, MATCH('Šifrarnik B.'!C226,dvoslovna, 0))","v":{"$error":"#N/A"}},{"$f":"INDEX('šifrarnik za identifikatore'!$F$2:$F$326, MATCH('Šifrarnik B.B.'!G245,dvoslovna, 0))","v":{"$error":"#N/A"}}]
["WS",null,null,null,null,"ostalo",{"$f":"INDEX('šifrarnik za identifikatore'!$F$2:$F$326, MATCH('Šifrarnik A.'!C244,dvoslovna, 0))","v":{"$error":"#N/A"}},{"$f":"INDEX('šifrarnik za identifikatore'!$F$2:$F$326, MATCH('Šifrarnik B.'!C227,dvoslovna, 0))","v":{"$error":"#N/A"}},{"$f":"INDEX('šifrarnik za identifikatore'!$F$2:$F$326, MATCH('Šifrarnik B.B.'!G246,dvoslovna, 0))","v":{"$error":"#N/A"}}]
["XK",null,null,null,null,"ostalo",{"$f":"INDEX('šifrarnik za identifikatore'!$F$2:$F$326, MATCH('Šifrarnik A.'!C245,dvoslovna, 0))","v":{"$error":"#N/A"}},{"$f":"INDEX('šifrarnik za identifikatore'!$F$2:$F$326, MATCH('Šifrarnik B.'!C228,dvoslovna, 0))","v":{"$error":"#N/A"}},{"$f":"INDEX('šifrarnik za identifikatore'!$F$2:$F$326, MATCH('Šifrarnik B.B.'!G247,dvoslovna, 0))","v":{"$error":"#N/A"}}]
["YE",null,null,null,null,"ostalo",{"$f":"INDEX('šifrarnik za identifikatore'!$F$2:$F$326, MATCH('Šifrarnik A.'!C246,dvoslovna, 0))","v":{"$error":"#N/A"}},{"$f":"INDEX('šifrarnik za identifikatore'!$F$2:$F$326, MATCH('Šifrarnik B.'!C229,dvoslovna, 0))","v":{"$error":"#N/A"}},{"$f":"INDEX('šifrarnik za identifikatore'!$F$2:$F$326, MATCH('Šifrarnik B.B.'!G248,dvoslovna, 0))","v":{"$error":"#N/A"}}]
["YT",null,null,null,null,"ostalo",{"$f":"INDEX('šifrarnik za identifikatore'!$F$2:$F$326, MATCH('Šifrarnik A.'!C247,dvoslovna, 0))","v":{"$error":"#N/A"}},{"$f":"INDEX('šifrarnik za identifikatore'!$F$2:$F$326, MATCH('Šifrarnik B.'!C230,dvoslovna, 0))","v":{"$error":"#N/A"}},{"$f":"INDEX('šifrarnik za identifikatore'!$F$2:$F$326, MATCH('Šifrarnik B.B.'!G249,dvoslovna, 0))","v":{"$error":"#N/A"}}]
["ZA",null,null,null,null,"identifikator",{"$f":"INDEX('šifrarnik za identifikatore'!$F$2:$F$326, MATCH('Šifrarnik A.'!C248,dvoslovna, 0))","v":{"$error":"#N/A"}},{"$f":"INDEX('šifrarnik za identifikatore'!$F$2:$F$326, MATCH('Šifrarnik B.'!C231,dvoslovna, 0))","v":{"$error":"#N/A"}},{"$f":"INDEX('šifrarnik za identifikatore'!$F$2:$F$326, MATCH('Šifrarnik B.B.'!G250,dvoslovna, 0))","v":{"$error":"#N/A"}}]
["ZM",null,null,null,null,"identifikator",{"$f":"INDEX('šifrarnik za identifikatore'!$F$2:$F$326, MATCH('Šifrarnik A.'!C249,dvoslovna, 0))","v":{"$error":"#N/A"}},{"$f":"INDEX('šifrarnik za identifikatore'!$F$2:$F$326, MATCH('Šifrarnik B.'!C232,dvoslovna, 0))","v":{"$error":"#N/A"}},{"$f":"INDEX('šifrarnik za identifikatore'!$F$2:$F$326, MATCH('Šifrarnik B.B.'!G251,dvoslovna, 0))","v":{"$error":"#N/A"}}]
["ZW",null,null,null,null,"ostalo",{"$f":"INDEX('šifrarnik za identifikatore'!$F$2:$F$326, MATCH('Šifrarnik A.'!C250,dvoslovna, 0))","v":{"$error":"#N/A"}},{"$f":"INDEX('šifrarnik za identifikatore'!$F$2:$F$326, MATCH('Šifrarnik B.'!C233,dvoslovna, 0))","v":{"$error":"#N/A"}},{"$f":"INDEX('šifrarnik za identifikatore'!$F$2:$F$326, MATCH('Šifrarnik B.B.'!G252,dvoslovna, 0))","v":{"$error":"#N/A"}}]
["5U",null,null,null,null,"ostalo",{"$f":"INDEX('šifrarnik za identifikatore'!$F$2:$F$326, MATCH('Šifrarnik A.'!C251,dvoslovna, 0))","v":{"$error":"#N/A"}},{"$f":"INDEX('šifrarnik za identifikatore'!$F$2:$F$326, MATCH('Šifrarnik B.'!C234,dvoslovna, 0))","v":{"$error":"#N/A"}},{"$f":"INDEX('šifrarnik za identifikatore'!$F$2:$F$326, MATCH('Šifrarnik B.B.'!G253,dvoslovna, 0))","v":{"$error":"#N/A"}}]
["5D",null,null,null,null,"ostalo",{"$f":"INDEX('šifrarnik za identifikatore'!$F$2:$F$326, MATCH('Šifrarnik A.'!C252,dvoslovna, 0))","v":{"$error":"#N/A"}},{"$f":"INDEX('šifrarnik za identifikatore'!$F$2:$F$326, MATCH('Šifrarnik B.'!C235,dvoslovna, 0))","v":{"$error":"#N/A"}},{"$f":"INDEX('šifrarnik za identifikatore'!$F$2:$F$326, MATCH('Šifrarnik B.B.'!G254,dvoslovna, 0))","v":{"$error":"#N/A"}}]
["5Q",null,null,null,null,"ostalo",{"$f":"INDEX('šifrarnik za identifikatore'!$F$2:$F$326, MATCH('Šifrarnik A.'!C253,dvoslovna, 0))","v":{"$error":"#N/A"}},{"$f":"INDEX('šifrarnik za identifikatore'!$F$2:$F$326, MATCH('Šifrarnik B.'!C236,dvoslovna, 0))","v":{"$error":"#N/A"}},{"$f":"INDEX('šifrarnik za identifikatore'!$F$2:$F$326, MATCH('Šifrarnik B.B.'!G255,dvoslovna, 0))","v":{"$error":"#N/A"}}]
["5M",null,null,null,null,"ostalo",{"$f":"INDEX('šifrarnik za identifikatore'!$F$2:$F$326, MATCH('Šifrarnik A.'!C254,dvoslovna, 0))","v":{"$error":"#N/A"}},{"$f":"INDEX('šifrarnik za identifikatore'!$F$2:$F$326, MATCH('Šifrarnik B.'!C237,dvoslovna, 0))","v":{"$error":"#N/A"}},{"$f":"INDEX('šifrarnik za identifikatore'!$F$2:$F$326, MATCH('Šifrarnik B.B.'!G256,dvoslovna, 0))","v":{"$error":"#N/A"}}]
["5E",null,null,null,null,"ostalo",{"$f":"INDEX('šifrarnik za identifikatore'!$F$2:$F$326, MATCH('Šifrarnik A.'!C255,dvoslovna, 0))","v":{"$error":"#N/A"}},{"$f":"INDEX('šifrarnik za identifikatore'!$F$2:$F$326, MATCH('Šifrarnik B.'!C238,dvoslovna, 0))","v":{"$error":"#N/A"}},{"$f":"INDEX('šifrarnik za identifikatore'!$F$2:$F$326, MATCH('Šifrarnik B.B.'!G257,dvoslovna, 0))","v":{"$error":"#N/A"}}]
["5R",null,null,null,null,"ostalo",{"$f":"INDEX('šifrarnik za identifikatore'!$F$2:$F$326, MATCH('Šifrarnik A.'!C256,dvoslovna, 0))","v":{"$error":"#N/A"}},{"$f":"INDEX('šifrarnik za identifikatore'!$F$2:$F$326, MATCH('Šifrarnik B.'!C239,dvoslovna, 0))","v":{"$error":"#N/A"}},{"$f":"INDEX('šifrarnik za identifikatore'!$F$2:$F$326, MATCH('Šifrarnik B.B.'!G258,dvoslovna, 0))","v":{"$error":"#N/A"}}]
["5N",null,null,null,null,{"$f":"IF(COUNTIF(dio, A258) > 0, \"identifikator\",\"ostalo\")","v":"ostalo"},{"$f":"INDEX('šifrarnik za identifikatore'!$F$2:$F$326, MATCH('Šifrarnik A.'!C257,dvoslovna, 0))","v":{"$error":"#N/A"}},{"$f":"INDEX('šifrarnik za identifikatore'!$F$2:$F$326, MATCH('Šifrarnik B.'!C240,dvoslovna, 0))","v":{"$error":"#N/A"}},{"$f":"INDEX('šifrarnik za identifikatore'!$F$2:$F$326, MATCH('Šifrarnik B.B.'!G259,dvoslovna, 0))","v":{"$error":"#N/A"}}]
["5O",null,null,null,null,"ostalo",{"$f":"INDEX('šifrarnik za identifikatore'!$F$2:$F$326, MATCH('Šifrarnik A.'!C258,dvoslovna, 0))","v":{"$error":"#N/A"}},{"$f":"INDEX('šifrarnik za identifikatore'!$F$2:$F$326, MATCH('Šifrarnik B.'!C241,dvoslovna, 0))","v":{"$error":"#N/A"}},{"$f":"INDEX('šifrarnik za identifikatore'!$F$2:$F$326, MATCH('Šifrarnik B.B.'!G260,dvoslovna, 0))","v":{"$error":"#N/A"}}]
["5W",null,null,null,null,"ostalo",{"$f":"INDEX('šifrarnik za identifikatore'!$F$2:$F$326, MATCH('Šifrarnik A.'!C259,dvoslovna, 0))","v":{"$error":"#N/A"}},{"$f":"INDEX('šifrarnik za identifikatore'!$F$2:$F$326, MATCH('Šifrarnik B.'!C242,dvoslovna, 0))","v":{"$error":"#N/A"}},{"$f":"INDEX('šifrarnik za identifikatore'!$F$2:$F$326, MATCH('Šifrarnik B.B.'!G261,dvoslovna, 0))","v":{"$error":"#N/A"}}]
["5B",null,null,null,null,"ostalo",{"$f":"INDEX('šifrarnik za identifikatore'!$F$2:$F$326, MATCH('Šifrarnik A.'!C260,dvoslovna, 0))","v":{"$error":"#N/A"}},{"$f":"INDEX('šifrarnik za identifikatore'!$F$2:$F$326, MATCH('Šifrarnik B.'!C243,dvoslovna, 0))","v":{"$error":"#N/A"}},{"$f":"INDEX('šifrarnik za identifikatore'!$F$2:$F$326, MATCH('Šifrarnik B.B.'!G262,dvoslovna, 0))","v":{"$error":"#N/A"}}]
["5T",null,null,null,null,"ostalo",{"$f":"INDEX('šifrarnik za identifikatore'!$F$2:$F$326, MATCH('Šifrarnik A.'!C261,dvoslovna, 0))","v":{"$error":"#N/A"}},{"$f":"INDEX('šifrarnik za identifikatore'!$F$2:$F$326, MATCH('Šifrarnik B.'!C244,dvoslovna, 0))","v":{"$error":"#N/A"}},{"$f":"INDEX('šifrarnik za identifikatore'!$F$2:$F$326, MATCH('Šifrarnik B.B.'!G263,dvoslovna, 0))","v":{"$error":"#N/A"}}]
["5P",null,null,null,null,"ostalo",{"$f":"INDEX('šifrarnik za identifikatore'!$F$2:$F$326, MATCH('Šifrarnik A.'!C262,dvoslovna, 0))","v":{"$error":"#N/A"}},{"$f":"INDEX('šifrarnik za identifikatore'!$F$2:$F$326, MATCH('Šifrarnik B.'!C245,dvoslovna, 0))","v":{"$error":"#N/A"}},{"$f":"INDEX('šifrarnik za identifikatore'!$F$2:$F$326, MATCH('Šifrarnik B.B.'!G264,dvoslovna, 0))","v":{"$error":"#N/A"}}]
["5L",null,null,null,null,"ostalo",{"$f":"INDEX('šifrarnik za identifikatore'!$F$2:$F$326, MATCH('Šifrarnik A.'!C263,dvoslovna, 0))","v":{"$error":"#N/A"}},{"$f":"INDEX('šifrarnik za identifikatore'!$F$2:$F$326, MATCH('Šifrarnik B.'!C246,dvoslovna, 0))","v":{"$error":"#N/A"}},{"$f":"INDEX('šifrarnik za identifikatore'!$F$2:$F$326, MATCH('Šifrarnik B.B.'!G265,dvoslovna, 0))","v":{"$error":"#N/A"}}]
["6P",null,null,null,null,"ostalo",{"$f":"INDEX('šifrarnik za identifikatore'!$F$2:$F$326, MATCH('Šifrarnik A.'!C264,dvoslovna, 0))","v":{"$error":"#N/A"}},{"$f":"INDEX('šifrarnik za identifikatore'!$F$2:$F$326, MATCH('Šifrarnik B.'!C247,dvoslovna, 0))","v":{"$error":"#N/A"}},{"$f":"INDEX('šifrarnik za identifikatore'!$F$2:$F$326, MATCH('Šifrarnik B.B.'!G266,dvoslovna, 0))","v":{"$error":"#N/A"}}]
["4Q",null,null,null,null,"ostalo",{"$f":"INDEX('šifrarnik za identifikatore'!$F$2:$F$326, MATCH('Šifrarnik A.'!C265,dvoslovna, 0))","v":{"$error":"#N/A"}},{"$f":"INDEX('šifrarnik za identifikatore'!$F$2:$F$326, MATCH('Šifrarnik B.'!C248,dvoslovna, 0))","v":{"$error":"#N/A"}},{"$f":"INDEX('šifrarnik za identifikatore'!$F$2:$F$326, MATCH('Šifrarnik B.B.'!G267,dvoslovna, 0))","v":{"$error":"#N/A"}}]
["5X",null,null,null,null,"ostalo",{"$f":"INDEX('šifrarnik za identifikatore'!$F$2:$F$326, MATCH('Šifrarnik A.'!C266,dvoslovna, 0))","v":{"$error":"#N/A"}},{"$f":"INDEX('šifrarnik za identifikatore'!$F$2:$F$326, MATCH('Šifrarnik B.'!C249,dvoslovna, 0))","v":{"$error":"#N/A"}},{"$f":"INDEX('šifrarnik za identifikatore'!$F$2:$F$326, MATCH('Šifrarnik B.B.'!G268,dvoslovna, 0))","v":{"$error":"#N/A"}}]
["6C",null,null,null,null,"ostalo",{"$f":"INDEX('šifrarnik za identifikatore'!$F$2:$F$326, MATCH('Šifrarnik A.'!C267,dvoslovna, 0))","v":{"$error":"#N/A"}},{"$f":"INDEX('šifrarnik za identifikatore'!$F$2:$F$326, MATCH('Šifrarnik B.'!C250,dvoslovna, 0))","v":{"$error":"#N/A"}},{"$f":"INDEX('šifrarnik za identifikatore'!$F$2:$F$326, MATCH('Šifrarnik B.B.'!G269,dvoslovna, 0))","v":{"$error":"#N/A"}}]
["4N",null,null,null,null,"ostalo",{"$f":"INDEX('šifrarnik za identifikatore'!$F$2:$F$326, MATCH('Šifrarnik A.'!C268,dvoslovna, 0))","v":{"$error":"#N/A"}},{"$f":"INDEX('šifrarnik za identifikatore'!$F$2:$F$326, MATCH('Šifrarnik B.'!C251,dvoslovna, 0))","v":{"$error":"#N/A"}},{"$f":"INDEX('šifrarnik za identifikatore'!$F$2:$F$326, MATCH('Šifrarnik B.B.'!G270,dvoslovna, 0))","v":{"$error":"#N/A"}}]
["4M",null,null,null,null,"ostalo",{"$f":"INDEX('šifrarnik za identifikatore'!$F$2:$F$326, MATCH('Šifrarnik A.'!C269,dvoslovna, 0))","v":{"$error":"#N/A"}},{"$f":"INDEX('šifrarnik za identifikatore'!$F$2:$F$326, MATCH('Šifrarnik B.'!C252,dvoslovna, 0))","v":{"$error":"#N/A"}},{"$f":"INDEX('šifrarnik za identifikatore'!$F$2:$F$326, MATCH('Šifrarnik B.B.'!G271,dvoslovna, 0))","v":{"$error":"#N/A"}}]
["5I",null,null,null,null,"ostalo",{"$f":"INDEX('šifrarnik za identifikatore'!$F$2:$F$326, MATCH('Šifrarnik A.'!C270,dvoslovna, 0))","v":{"$error":"#N/A"}},{"$f":"INDEX('šifrarnik za identifikatore'!$F$2:$F$326, MATCH('Šifrarnik B.'!C253,dvoslovna, 0))","v":{"$error":"#N/A"}},{"$f":"INDEX('šifrarnik za identifikatore'!$F$2:$F$326, MATCH('Šifrarnik B.B.'!G272,dvoslovna, 0))","v":{"$error":"#N/A"}}]
["5Y",null,null,null,null,"ostalo",{"$f":"INDEX('šifrarnik za identifikatore'!$F$2:$F$326, MATCH('Šifrarnik A.'!C271,dvoslovna, 0))","v":{"$error":"#N/A"}},{"$f":"INDEX('šifrarnik za identifikatore'!$F$2:$F$326, MATCH('Šifrarnik B.'!C254,dvoslovna, 0))","v":{"$error":"#N/A"}},{"$f":"INDEX('šifrarnik za identifikatore'!$F$2:$F$326, MATCH('Šifrarnik B.B.'!G273,dvoslovna, 0))","v":{"$error":"#N/A"}}]
["5F",null,null,null,null,"ostalo",{"$f":"INDEX('šifrarnik za identifikatore'!$F$2:$F$326, MATCH('Šifrarnik A.'!C272,dvoslovna, 0))","v":{"$error":"#N/A"}},{"$f":"INDEX('šifrarnik za identifikatore'!$F$2:$F$326, MATCH('Šifrarnik B.'!C255,dvoslovna, 0))","v":{"$error":"#N/A"}},{"$f":"INDEX('šifrarnik za identifikatore'!$F$2:$F$326, MATCH('Šifrarnik B.B.'!G274,dvoslovna, 0))","v":{"$error":"#N/A"}}]
["6K",null,null,null,null,"ostalo",{"$f":"INDEX('šifrarnik za identifikatore'!$F$2:$F$326, MATCH('Šifrarnik A.'!C273,dvoslovna, 0))","v":{"$error":"#N/A"}},{"$f":"INDEX('šifrarnik za identifikatore'!$F$2:$F$326, MATCH('Šifrarnik B.'!C256,dvoslovna, 0))","v":{"$error":"#N/A"}},{"$f":"INDEX('šifrarnik za identifikatore'!$F$2:$F$326, MATCH('Šifrarnik B.B.'!G275,dvoslovna, 0))","v":{"$error":"#N/A"}}]
["4D",null,null,null,null,"ostalo",{"$f":"INDEX('šifrarnik za identifikatore'!$F$2:$F$326, MATCH('Šifrarnik A.'!C274,dvoslovna, 0))","v":{"$error":"#N/A"}},{"$f":"INDEX('šifrarnik za identifikatore'!$F$2:$F$326, MATCH('Šifrarnik B.'!C257,dvoslovna, 0))","v":{"$error":"#N/A"}},{"$f":"INDEX('šifrarnik za identifikatore'!$F$2:$F$326, MATCH('Šifrarnik B.B.'!G276,dvoslovna, 0))","v":{"$error":"#N/A"}}]
["6N",null,null,null,null,"ostalo",{"$f":"INDEX('šifrarnik za identifikatore'!$F$2:$F$326, MATCH('Šifrarnik A.'!C275,dvoslovna, 0))","v":{"$error":"#N/A"}},{"$f":"INDEX('šifrarnik za identifikatore'!$F$2:$F$326, MATCH('Šifrarnik B.'!C258,dvoslovna, 0))","v":{"$error":"#N/A"}},{"$f":"INDEX('šifrarnik za identifikatore'!$F$2:$F$326, MATCH('Šifrarnik B.B.'!G277,dvoslovna, 0))","v":{"$error":"#N/A"}}]
["4P",null,null,null,null,"ostalo",{"$f":"INDEX('šifrarnik za identifikatore'!$F$2:$F$326, MATCH('Šifrarnik A.'!C276,dvoslovna, 0))","v":{"$error":"#N/A"}},{"$f":"INDEX('šifrarnik za identifikatore'!$F$2:$F$326, MATCH('Šifrarnik B.'!C259,dvoslovna, 0))","v":{"$error":"#N/A"}},{"$f":"INDEX('šifrarnik za identifikatore'!$F$2:$F$326, MATCH('Šifrarnik B.B.'!G278,dvoslovna, 0))","v":{"$error":"#N/A"}}]
["4H",null,null,null,null,"ostalo",{"$f":"INDEX('šifrarnik za identifikatore'!$F$2:$F$326, MATCH('Šifrarnik A.'!C277,dvoslovna, 0))","v":{"$error":"#N/A"}},{"$f":"INDEX('šifrarnik za identifikatore'!$F$2:$F$326, MATCH('Šifrarnik B.'!C260,dvoslovna, 0))","v":{"$error":"#N/A"}},{"$f":"INDEX('šifrarnik za identifikatore'!$F$2:$F$326, MATCH('Šifrarnik B.B.'!G279,dvoslovna, 0))","v":{"$error":"#N/A"}}]
["4E",null,null,null,null,"ostalo",{"$f":"INDEX('šifrarnik za identifikatore'!$F$2:$F$326, MATCH('Šifrarnik A.'!C278,dvoslovna, 0))","v":{"$error":"#N/A"}},{"$f":"INDEX('šifrarnik za identifikatore'!$F$2:$F$326, MATCH('Šifrarnik B.'!C261,dvoslovna, 0))","v":{"$error":"#N/A"}},{"$f":"INDEX('šifrarnik za identifikatore'!$F$2:$F$326, MATCH('Šifrarnik B.B.'!G280,dvoslovna, 0))","v":{"$error":"#N/A"}}]
["4C",null,null,null,null,"ostalo",{"$f":"INDEX('šifrarnik za identifikatore'!$F$2:$F$326, MATCH('Šifrarnik A.'!C279,dvoslovna, 0))","v":{"$error":"#N/A"}},{"$f":"INDEX('šifrarnik za identifikatore'!$F$2:$F$326, MATCH('Šifrarnik B.'!C262,dvoslovna, 0))","v":{"$error":"#N/A"}},{"$f":"INDEX('šifrarnik za identifikatore'!$F$2:$F$326, MATCH('Šifrarnik B.B.'!G281,dvoslovna, 0))","v":{"$error":"#N/A"}}]
["4G",null,null,null,null,"ostalo",{"$f":"INDEX('šifrarnik za identifikatore'!$F$2:$F$326, MATCH('Šifrarnik A.'!C280,dvoslovna, 0))","v":{"$error":"#N/A"}},{"$f":"INDEX('šifrarnik za identifikatore'!$F$2:$F$326, MATCH('Šifrarnik B.'!C263,dvoslovna, 0))","v":{"$error":"#N/A"}},{"$f":"INDEX('šifrarnik za identifikatore'!$F$2:$F$326, MATCH('Šifrarnik B.B.'!G282,dvoslovna, 0))","v":{"$error":"#N/A"}}]
["6O",null,null,null,null,"ostalo",{"$f":"INDEX('šifrarnik za identifikatore'!$F$2:$F$326, MATCH('Šifrarnik A.'!C281,dvoslovna, 0))","v":{"$error":"#N/A"}},{"$f":"INDEX('šifrarnik za identifikatore'!$F$2:$F$326, MATCH('Šifrarnik B.'!C264,dvoslovna, 0))","v":{"$error":"#N/A"}},{"$f":"INDEX('šifrarnik za identifikatore'!$F$2:$F$326, MATCH('Šifrarnik B.B.'!G283,dvoslovna, 0))","v":{"$error":"#N/A"}}]
["4B",null,null,null,null,"ostalo",{"$f":"INDEX('šifrarnik za identifikatore'!$F$2:$F$326, MATCH('Šifrarnik A.'!C282,dvoslovna, 0))","v":{"$error":"#N/A"}},{"$f":"INDEX('šifrarnik za identifikatore'!$F$2:$F$326, MATCH('Šifrarnik B.'!C265,dvoslovna, 0))","v":{"$error":"#N/A"}},{"$f":"INDEX('šifrarnik za identifikatore'!$F$2:$F$326, MATCH('Šifrarnik B.B.'!G284,dvoslovna, 0))","v":{"$error":"#N/A"}}]
["6F",null,null,null,null,"ostalo",{"$f":"INDEX('šifrarnik za identifikatore'!$F$2:$F$326, MATCH('Šifrarnik A.'!C283,dvoslovna, 0))","v":{"$error":"#N/A"}},{"$f":"INDEX('šifrarnik za identifikatore'!$F$2:$F$326, MATCH('Šifrarnik B.'!C266,dvoslovna, 0))","v":{"$error":"#N/A"}},{"$f":"INDEX('šifrarnik za identifikatore'!$F$2:$F$326, MATCH('Šifrarnik B.B.'!G285,dvoslovna, 0))","v":{"$error":"#N/A"}}]
["6E",null,null,null,null,"ostalo",{"$f":"INDEX('šifrarnik za identifikatore'!$F$2:$F$326, MATCH('Šifrarnik A.'!C284,dvoslovna, 0))","v":{"$error":"#N/A"}},{"$f":"INDEX('šifrarnik za identifikatore'!$F$2:$F$326, MATCH('Šifrarnik B.'!C267,dvoslovna, 0))","v":{"$error":"#N/A"}},{"$f":"INDEX('šifrarnik za identifikatore'!$F$2:$F$326, MATCH('Šifrarnik B.B.'!G286,dvoslovna, 0))","v":{"$error":"#N/A"}}]
["6M",null,null,null,null,"ostalo",{"$f":"INDEX('šifrarnik za identifikatore'!$F$2:$F$326, MATCH('Šifrarnik A.'!C285,dvoslovna, 0))","v":{"$error":"#N/A"}},{"$f":"INDEX('šifrarnik za identifikatore'!$F$2:$F$326, MATCH('Šifrarnik B.'!C268,dvoslovna, 0))","v":{"$error":"#N/A"}},{"$f":"INDEX('šifrarnik za identifikatore'!$F$2:$F$326, MATCH('Šifrarnik B.B.'!G287,dvoslovna, 0))","v":{"$error":"#N/A"}}]
["6L",null,null,null,null,"ostalo",{"$f":"INDEX('šifrarnik za identifikatore'!$F$2:$F$326, MATCH('Šifrarnik A.'!C286,dvoslovna, 0))","v":{"$error":"#N/A"}},{"$f":"INDEX('šifrarnik za identifikatore'!$F$2:$F$326, MATCH('Šifrarnik B.'!C269,dvoslovna, 0))","v":{"$error":"#N/A"}},{"$f":"INDEX('šifrarnik za identifikatore'!$F$2:$F$326, MATCH('Šifrarnik B.B.'!G288,dvoslovna, 0))","v":{"$error":"#N/A"}}]
["6G",null,null,null,null,"ostalo",{"$f":"INDEX('šifrarnik za identifikatore'!$F$2:$F$326, MATCH('Šifrarnik A.'!C287,dvoslovna, 0))","v":{"$error":"#N/A"}},{"$f":"INDEX('šifrarnik za identifikatore'!$F$2:$F$326, MATCH('Šifrarnik B.'!C270,dvoslovna, 0))","v":{"$error":"#N/A"}},{"$f":"INDEX('šifrarnik za identifikatore'!$F$2:$F$326, MATCH('Šifrarnik B.B.'!G289,dvoslovna, 0))","v":{"$error":"#N/A"}}]
["4L",null,null,null,null,"ostalo",{"$f":"INDEX('šifrarnik za identifikatore'!$F$2:$F$326, MATCH('Šifrarnik A.'!C288,dvoslovna, 0))","v":{"$error":"#N/A"}},{"$f":"INDEX('šifrarnik za identifikatore'!$F$2:$F$326, MATCH('Šifrarnik B.'!C271,dvoslovna, 0))","v":{"$error":"#N/A"}},{"$f":"INDEX('šifrarnik za identifikatore'!$F$2:$F$326, MATCH('Šifrarnik B.B.'!G290,dvoslovna, 0))","v":{"$error":"#N/A"}}]
["4K",null,null,null,null,"ostalo",{"$f":"INDEX('šifrarnik za identifikatore'!$F$2:$F$326, MATCH('Šifrarnik A.'!C289,dvoslovna, 0))","v":{"$error":"#N/A"}},{"$f":"INDEX('šifrarnik za identifikatore'!$F$2:$F$326, MATCH('Šifrarnik B.'!C272,dvoslovna, 0))","v":{"$error":"#N/A"}},{"$f":"INDEX('šifrarnik za identifikatore'!$F$2:$F$326, MATCH('Šifrarnik B.B.'!G291,dvoslovna, 0))","v":{"$error":"#N/A"}}]
["6H",null,null,null,null,"ostalo",{"$f":"INDEX('šifrarnik za identifikatore'!$F$2:$F$326, MATCH('Šifrarnik A.'!C290,dvoslovna, 0))","v":{"$error":"#N/A"}},{"$f":"INDEX('šifrarnik za identifikatore'!$F$2:$F$326, MATCH('Šifrarnik B.'!C273,dvoslovna, 0))","v":{"$error":"#N/A"}},{"$f":"INDEX('šifrarnik za identifikatore'!$F$2:$F$326, MATCH('Šifrarnik B.B.'!G292,dvoslovna, 0))","v":{"$error":"#N/A"}}]
["1J",null,null,null,null,"ostalo",{"$f":"INDEX('šifrarnik za identifikatore'!$F$2:$F$326, MATCH('Šifrarnik A.'!C291,dvoslovna, 0))","v":{"$error":"#N/A"}},{"$f":"INDEX('šifrarnik za identifikatore'!$F$2:$F$326, MATCH('Šifrarnik B.'!C274,dvoslovna, 0))","v":{"$error":"#N/A"}},{"$f":"INDEX('šifrarnik za identifikatore'!$F$2:$F$326, MATCH('Šifrarnik B.B.'!G293,dvoslovna, 0))","v":{"$error":"#N/A"}}]
["5S",null,null,null,null,"ostalo",{"$f":"INDEX('šifrarnik za identifikatore'!$F$2:$F$326, MATCH('Šifrarnik A.'!C292,dvoslovna, 0))","v":{"$error":"#N/A"}},{"$f":"INDEX('šifrarnik za identifikatore'!$F$2:$F$326, MATCH('Šifrarnik B.'!C275,dvoslovna, 0))","v":{"$error":"#N/A"}},{"$f":"INDEX('šifrarnik za identifikatore'!$F$2:$F$326, MATCH('Šifrarnik B.B.'!G294,dvoslovna, 0))","v":{"$error":"#N/A"}}]
["5C",null,null,null,null,"ostalo",{"$f":"INDEX('šifrarnik za identifikatore'!$F$2:$F$326, MATCH('Šifrarnik A.'!C293,dvoslovna, 0))","v":{"$error":"#N/A"}},{"$f":"INDEX('šifrarnik za identifikatore'!$F$2:$F$326, MATCH('Šifrarnik B.'!C276,dvoslovna, 0))","v":{"$error":"#N/A"}},{"$f":"INDEX('šifrarnik za identifikatore'!$F$2:$F$326, MATCH('Šifrarnik B.B.'!G295,dvoslovna, 0))","v":{"$error":"#N/A"}}]
["1R",null,null,null,null,"ostalo",{"$f":"INDEX('šifrarnik za identifikatore'!$F$2:$F$326, MATCH('Šifrarnik A.'!C294,dvoslovna, 0))","v":{"$error":"#N/A"}},{"$f":"INDEX('šifrarnik za identifikatore'!$F$2:$F$326, MATCH('Šifrarnik B.'!C277,dvoslovna, 0))","v":{"$error":"#N/A"}},{"$f":"INDEX('šifrarnik za identifikatore'!$F$2:$F$326, MATCH('Šifrarnik B.B.'!G296,dvoslovna, 0))","v":{"$error":"#N/A"}}]
["5J",null,null,null,null,"ostalo",{"$f":"INDEX('šifrarnik za identifikatore'!$F$2:$F$326, MATCH('Šifrarnik A.'!C295,dvoslovna, 0))","v":{"$error":"#N/A"}},{"$f":"INDEX('šifrarnik za identifikatore'!$F$2:$F$326, MATCH('Šifrarnik B.'!C278,dvoslovna, 0))","v":{"$error":"#N/A"}},{"$f":"INDEX('šifrarnik za identifikatore'!$F$2:$F$326, MATCH('Šifrarnik B.B.'!G297,dvoslovna, 0))","v":{"$error":"#N/A"}}]
["1E",null,null,null,null,"ostalo",{"$f":"INDEX('šifrarnik za identifikatore'!$F$2:$F$326, MATCH('Šifrarnik A.'!C296,dvoslovna, 0))","v":{"$error":"#N/A"}},{"$f":"INDEX('šifrarnik za identifikatore'!$F$2:$F$326, MATCH('Šifrarnik B.'!C279,dvoslovna, 0))","v":{"$error":"#N/A"}},{"$f":"INDEX('šifrarnik za identifikatore'!$F$2:$F$326, MATCH('Šifrarnik B.B.'!G298,dvoslovna, 0))","v":{"$error":"#N/A"}}]
["6D",null,null,null,null,"ostalo",{"$f":"INDEX('šifrarnik za identifikatore'!$F$2:$F$326, MATCH('Šifrarnik A.'!C297,dvoslovna, 0))","v":{"$error":"#N/A"}},{"$f":"INDEX('šifrarnik za identifikatore'!$F$2:$F$326, MATCH('Šifrarnik B.'!C280,dvoslovna, 0))","v":{"$error":"#N/A"}},{"$f":"INDEX('šifrarnik za identifikatore'!$F$2:$F$326, MATCH('Šifrarnik B.B.'!G299,dvoslovna, 0))","v":{"$error":"#N/A"}}]
["1F",null,null,null,null,"ostalo",{"$f":"INDEX('šifrarnik za identifikatore'!$F$2:$F$326, MATCH('Šifrarnik A.'!C298,dvoslovna, 0))","v":{"$error":"#N/A"}},{"$f":"INDEX('šifrarnik za identifikatore'!$F$2:$F$326, MATCH('Šifrarnik B.'!C281,dvoslovna, 0))","v":{"$error":"#N/A"}},{"$f":"INDEX('šifrarnik za identifikatore'!$F$2:$F$326, MATCH('Šifrarnik B.B.'!G300,dvoslovna, 0))","v":{"$error":"#N/A"}}]
["1L",null,null,null,null,"ostalo",{"$f":"INDEX('šifrarnik za identifikatore'!$F$2:$F$326, MATCH('Šifrarnik A.'!C299,dvoslovna, 0))","v":{"$error":"#N/A"}},{"$f":"INDEX('šifrarnik za identifikatore'!$F$2:$F$326, MATCH('Šifrarnik B.'!C282,dvoslovna, 0))","v":{"$error":"#N/A"}},{"$f":"INDEX('šifrarnik za identifikatore'!$F$2:$F$326, MATCH('Šifrarnik B.B.'!G301,dvoslovna, 0))","v":{"$error":"#N/A"}}]
["1M",null,null,null,null,"ostalo",{"$f":"INDEX('šifrarnik za identifikatore'!$F$2:$F$326, MATCH('Šifrarnik A.'!C300,dvoslovna, 0))","v":{"$error":"#N/A"}},{"$f":"INDEX('šifrarnik za identifikatore'!$F$2:$F$326, MATCH('Šifrarnik B.'!C283,dvoslovna, 0))","v":{"$error":"#N/A"}},{"$f":"INDEX('šifrarnik za identifikatore'!$F$2:$F$326, MATCH('Šifrarnik B.B.'!G302,dvoslovna, 0))","v":{"$error":"#N/A"}}]
["5K",null,null,null,null,"ostalo",{"$f":"INDEX('šifrarnik za identifikatore'!$F$2:$F$326, MATCH('Šifrarnik A.'!C301,dvoslovna, 0))","v":{"$error":"#N/A"}},{"$f":"INDEX('šifrarnik za identifikatore'!$F$2:$F$326, MATCH('Šifrarnik B.'!C284,dvoslovna, 0))","v":{"$error":"#N/A"}},{"$f":"INDEX('šifrarnik za identifikatore'!$F$2:$F$326, MATCH('Šifrarnik B.B.'!G303,dvoslovna, 0))","v":{"$error":"#N/A"}}]
["5G",null,null,null,null,"ostalo",{"$f":"INDEX('šifrarnik za identifikatore'!$F$2:$F$326, MATCH('Šifrarnik A.'!C302,dvoslovna, 0))","v":{"$error":"#N/A"}},{"$f":"INDEX('šifrarnik za identifikatore'!$F$2:$F$326, MATCH('Šifrarnik B.'!C285,dvoslovna, 0))","v":{"$error":"#N/A"}},{"$f":"INDEX('šifrarnik za identifikatore'!$F$2:$F$326, MATCH('Šifrarnik B.B.'!G304,dvoslovna, 0))","v":{"$error":"#N/A"}}]
["1S",null,null,null,null,"ostalo",{"$f":"INDEX('šifrarnik za identifikatore'!$F$2:$F$326, MATCH('Šifrarnik A.'!C303,dvoslovna, 0))","v":{"$error":"#N/A"}},{"$f":"INDEX('šifrarnik za identifikatore'!$F$2:$F$326, MATCH('Šifrarnik B.'!C286,dvoslovna, 0))","v":{"$error":"#N/A"}},{"$f":"INDEX('šifrarnik za identifikatore'!$F$2:$F$326, MATCH('Šifrarnik B.B.'!G305,dvoslovna, 0))","v":{"$error":"#N/A"}}]
["1C",null,null,null,null,"ostalo",{"$f":"INDEX('šifrarnik za identifikatore'!$F$2:$F$326, MATCH('Šifrarnik A.'!C304,dvoslovna, 0))","v":{"$error":"#N/A"}},{"$f":"INDEX('šifrarnik za identifikatore'!$F$2:$F$326, MATCH('Šifrarnik B.'!C287,dvoslovna, 0))","v":{"$error":"#N/A"}},{"$f":"INDEX('šifrarnik za identifikatore'!$F$2:$F$326, MATCH('Šifrarnik B.B.'!G306,dvoslovna, 0))","v":{"$error":"#N/A"}}]
["6J",null,null,null,null,"ostalo",{"$f":"INDEX('šifrarnik za identifikatore'!$F$2:$F$326, MATCH('Šifrarnik A.'!C305,dvoslovna, 0))","v":{"$error":"#N/A"}},{"$f":"INDEX('šifrarnik za identifikatore'!$F$2:$F$326, MATCH('Šifrarnik B.'!C288,dvoslovna, 0))","v":{"$error":"#N/A"}},{"$f":"INDEX('šifrarnik za identifikatore'!$F$2:$F$326, MATCH('Šifrarnik B.B.'!G307,dvoslovna, 0))","v":{"$error":"#N/A"}}]
["7Z",null,null,null,null,"ostalo",{"$f":"INDEX('šifrarnik za identifikatore'!$F$2:$F$326, MATCH('Šifrarnik A.'!C306,dvoslovna, 0))","v":{"$error":"#N/A"}},{"$f":"INDEX('šifrarnik za identifikatore'!$F$2:$F$326, MATCH('Šifrarnik B.'!C289,dvoslovna, 0))","v":{"$error":"#N/A"}},{"$f":"INDEX('šifrarnik za identifikatore'!$F$2:$F$326, MATCH('Šifrarnik B.B.'!G308,dvoslovna, 0))","v":{"$error":"#N/A"}}]
["6Q",null,null,null,null,"ostalo",{"$f":"INDEX('šifrarnik za identifikatore'!$F$2:$F$326, MATCH('Šifrarnik A.'!C307,dvoslovna, 0))","v":{"$error":"#N/A"}},{"$f":"INDEX('šifrarnik za identifikatore'!$F$2:$F$326, MATCH('Šifrarnik B.'!C290,dvoslovna, 0))","v":{"$error":"#N/A"}},{"$f":"INDEX('šifrarnik za identifikatore'!$F$2:$F$326, MATCH('Šifrarnik B.B.'!G309,dvoslovna, 0))","v":{"$error":"#N/A"}}]
["6R",null,null,null,null,"ostalo",{"$f":"INDEX('šifrarnik za identifikatore'!$F$2:$F$326, MATCH('Šifrarnik A.'!C308,dvoslovna, 0))","v":{"$error":"#N/A"}},{"$f":"INDEX('šifrarnik za identifikatore'!$F$2:$F$326, MATCH('Šifrarnik B.'!C291,dvoslovna, 0))","v":{"$error":"#N/A"}},{"$f":"INDEX('šifrarnik za identifikatore'!$F$2:$F$326, MATCH('Šifrarnik B.B.'!G310,dvoslovna, 0))","v":{"$error":"#N/A"}}]
["1T",null,null,null,null,"ostalo",{"$f":"INDEX('šifrarnik za identifikatore'!$F$2:$F$326, MATCH('Šifrarnik A.'!C309,dvoslovna, 0))","v":{"$error":"#N/A"}},{"$f":"INDEX('šifrarnik za identifikatore'!$F$2:$F$326, MATCH('Šifrarnik B.'!C292,dvoslovna, 0))","v":{"$error":"#N/A"}},{"$f":"INDEX('šifrarnik za identifikatore'!$F$2:$F$326, MATCH('Šifrarnik B.B.'!G311,dvoslovna, 0))","v":{"$error":"#N/A"}}]
["1N",null,null,null,null,"ostalo",{"$f":"INDEX('šifrarnik za identifikatore'!$F$2:$F$326, MATCH('Šifrarnik A.'!C310,dvoslovna, 0))","v":{"$error":"#N/A"}},{"$f":"INDEX('šifrarnik za identifikatore'!$F$2:$F$326, MATCH('Šifrarnik B.'!C293,dvoslovna, 0))","v":{"$error":"#N/A"}},{"$f":"INDEX('šifrarnik za identifikatore'!$F$2:$F$326, MATCH('Šifrarnik B.B.'!G312,dvoslovna, 0))","v":{"$error":"#N/A"}}]
["6B",null,null,null,null,"ostalo",{"$f":"INDEX('šifrarnik za identifikatore'!$F$2:$F$326, MATCH('Šifrarnik A.'!C311,dvoslovna, 0))","v":{"$error":"#N/A"}},{"$f":"INDEX('šifrarnik za identifikatore'!$F$2:$F$326, MATCH('Šifrarnik B.'!C294,dvoslovna, 0))","v":{"$error":"#N/A"}},{"$f":"INDEX('šifrarnik za identifikatore'!$F$2:$F$326, MATCH('Šifrarnik B.B.'!G313,dvoslovna, 0))","v":{"$error":"#N/A"}}]
["5H",null,null,null,null,"ostalo",{"$f":"INDEX('šifrarnik za identifikatore'!$F$2:$F$326, MATCH('Šifrarnik A.'!C312,dvoslovna, 0))","v":{"$error":"#N/A"}},{"$f":"INDEX('šifrarnik za identifikatore'!$F$2:$F$326, MATCH('Šifrarnik B.'!C295,dvoslovna, 0))","v":{"$error":"#N/A"}},{"$f":"INDEX('šifrarnik za identifikatore'!$F$2:$F$326, MATCH('Šifrarnik B.B.'!G314,dvoslovna, 0))","v":{"$error":"#N/A"}}]
["5A",null,null,null,null,"ostalo",{"$f":"INDEX('šifrarnik za identifikatore'!$F$2:$F$326, MATCH('Šifrarnik A.'!C313,dvoslovna, 0))","v":{"$error":"#N/A"}},{"$f":"INDEX('šifrarnik za identifikatore'!$F$2:$F$326, MATCH('Šifrarnik B.'!C296,dvoslovna, 0))","v":{"$error":"#N/A"}},{"$f":"INDEX('šifrarnik za identifikatore'!$F$2:$F$326, MATCH('Šifrarnik B.B.'!G315,dvoslovna, 0))","v":{"$error":"#N/A"}}]
["4J",null,null,null,null,"ostalo",{"$f":"INDEX('šifrarnik za identifikatore'!$F$2:$F$326, MATCH('Šifrarnik A.'!C314,dvoslovna, 0))","v":{"$error":"#N/A"}},{"$f":"INDEX('šifrarnik za identifikatore'!$F$2:$F$326, MATCH('Šifrarnik B.'!C297,dvoslovna, 0))","v":{"$error":"#N/A"}},{"$f":"INDEX('šifrarnik za identifikatore'!$F$2:$F$326, MATCH('Šifrarnik B.B.'!G316,dvoslovna, 0))","v":{"$error":"#N/A"}}]
["5Z",null,null,null,null,"ostalo",{"$f":"INDEX('šifrarnik za identifikatore'!$F$2:$F$326, MATCH('Šifrarnik A.'!C315,dvoslovna, 0))","v":{"$error":"#N/A"}},{"$f":"INDEX('šifrarnik za identifikatore'!$F$2:$F$326, MATCH('Šifrarnik B.'!C298,dvoslovna, 0))","v":{"$error":"#N/A"}},{"$f":"INDEX('šifrarnik za identifikatore'!$F$2:$F$326, MATCH('Šifrarnik B.B.'!G317,dvoslovna, 0))","v":{"$error":"#N/A"}}]
["6Z",null,null,null,null,"ostalo",{"$f":"INDEX('šifrarnik za identifikatore'!$F$2:$F$326, MATCH('Šifrarnik A.'!C316,dvoslovna, 0))","v":{"$error":"#N/A"}},{"$f":"INDEX('šifrarnik za identifikatore'!$F$2:$F$326, MATCH('Šifrarnik B.'!C299,dvoslovna, 0))","v":{"$error":"#N/A"}},{"$f":"INDEX('šifrarnik za identifikatore'!$F$2:$F$326, MATCH('Šifrarnik B.B.'!G318,dvoslovna, 0))","v":{"$error":"#N/A"}}]
["1Z",null,null,null,null,"ostalo",{"$f":"INDEX('šifrarnik za identifikatore'!$F$2:$F$326, MATCH('Šifrarnik A.'!C317,dvoslovna, 0))","v":{"$error":"#N/A"}},{"$f":"INDEX('šifrarnik za identifikatore'!$F$2:$F$326, MATCH('Šifrarnik B.'!C300,dvoslovna, 0))","v":{"$error":"#N/A"}},{"$f":"INDEX('šifrarnik za identifikatore'!$F$2:$F$326, MATCH('Šifrarnik B.B.'!G319,dvoslovna, 0))","v":{"$error":"#N/A"}}]
["1H",null,null,null,null,"ostalo",{"$f":"INDEX('šifrarnik za identifikatore'!$F$2:$F$326, MATCH('Šifrarnik A.'!C318,dvoslovna, 0))","v":{"$error":"#N/A"}},{"$f":"INDEX('šifrarnik za identifikatore'!$F$2:$F$326, MATCH('Šifrarnik B.'!C301,dvoslovna, 0))","v":{"$error":"#N/A"}},{"$f":"INDEX('šifrarnik za identifikatore'!$F$2:$F$326, MATCH('Šifrarnik B.B.'!G320,dvoslovna, 0))","v":{"$error":"#N/A"}}]
["1P",null,null,null,null,"ostalo",{"$f":"INDEX('šifrarnik za identifikatore'!$F$2:$F$326, MATCH('Šifrarnik A.'!C319,dvoslovna, 0))","v":{"$error":"#N/A"}},{"$f":"INDEX('šifrarnik za identifikatore'!$F$2:$F$326, MATCH('Šifrarnik B.'!C302,dvoslovna, 0))","v":{"$error":"#N/A"}},{"$f":"INDEX('šifrarnik za identifikatore'!$F$2:$F$326, MATCH('Šifrarnik B.B.'!G321,dvoslovna, 0))","v":{"$error":"#N/A"}}]
["1O",null,null,null,null,"ostalo",{"$f":"INDEX('šifrarnik za identifikatore'!$F$2:$F$326, MATCH('Šifrarnik A.'!C320,dvoslovna, 0))","v":{"$error":"#N/A"}},{"$f":"INDEX('šifrarnik za identifikatore'!$F$2:$F$326, MATCH('Šifrarnik B.'!C303,dvoslovna, 0))","v":{"$error":"#N/A"}},{"$f":"INDEX('šifrarnik za identifikatore'!$F$2:$F$326, MATCH('Šifrarnik B.B.'!G322,dvoslovna, 0))","v":{"$error":"#N/A"}}]
["1B",null,null,null,null,"ostalo",{"$f":"INDEX('šifrarnik za identifikatore'!$F$2:$F$326, MATCH('Šifrarnik A.'!C321,dvoslovna, 0))","v":{"$error":"#N/A"}},{"$f":"INDEX('šifrarnik za identifikatore'!$F$2:$F$326, MATCH('Šifrarnik B.'!C304,dvoslovna, 0))","v":{"$error":"#N/A"}},{"$f":"INDEX('šifrarnik za identifikatore'!$F$2:$F$326, MATCH('Šifrarnik B.B.'!G323,dvoslovna, 0))","v":{"$error":"#N/A"}}]
["1Q",null,null,null,null,"ostalo",{"$f":"INDEX('šifrarnik za identifikatore'!$F$2:$F$326, MATCH('Šifrarnik A.'!C322,dvoslovna, 0))","v":{"$error":"#N/A"}},{"$f":"INDEX('šifrarnik za identifikatore'!$F$2:$F$326, MATCH('Šifrarnik B.'!C305,dvoslovna, 0))","v":{"$error":"#N/A"}},{"$f":"INDEX('šifrarnik za identifikatore'!$F$2:$F$326, MATCH('Šifrarnik B.B.'!G324,dvoslovna, 0))","v":{"$error":"#N/A"}}]
["6I",null,null,null,null,"ostalo",{"$f":"INDEX('šifrarnik za identifikatore'!$F$2:$F$326, MATCH('Šifrarnik A.'!C323,dvoslovna, 0))","v":{"$error":"#N/A"}},{"$f":"INDEX('šifrarnik za identifikatore'!$F$2:$F$326, MATCH('Šifrarnik B.'!C306,dvoslovna, 0))","v":{"$error":"#N/A"}},{"$f":"INDEX('šifrarnik za identifikatore'!$F$2:$F$326, MATCH('Šifrarnik B.B.'!G325,dvoslovna, 0))","v":{"$error":"#N/A"}}]
["1K",null,null,null,null,"ostalo",{"$f":"INDEX('šifrarnik za identifikatore'!$F$2:$F$326, MATCH('Šifrarnik A.'!C324,dvoslovna, 0))","v":{"$error":"#N/A"}},{"$f":"INDEX('šifrarnik za identifikatore'!$F$2:$F$326, MATCH('Šifrarnik B.'!C307,dvoslovna, 0))","v":{"$error":"#N/A"}},{"$f":"INDEX('šifrarnik za identifikatore'!$F$2:$F$326, MATCH('Šifrarnik B.B.'!G326,dvoslovna, 0))","v":{"$error":"#N/A"}}]
["1D",null,null,null,null,null,{"$f":"INDEX('šifrarnik za identifikatore'!$F$2:$F$326, MATCH('Šifrarnik A.'!C325,dvoslovna, 0))","v":{"$error":"#N/A"}},{"$f":"INDEX('šifrarnik za identifikatore'!$F$2:$F$326, MATCH('Šifrarnik B.'!C308,dvoslovna, 0))","v":{"$error":"#N/A"}},{"$f":"INDEX('šifrarnik za identifikatore'!$F$2:$F$326, MATCH('Šifrarnik B.B.'!G327,dvoslovna, 0))","v":{"$error":"#N/A"}}]
[null,null,null,null,null,null,{"$f":"INDEX('šifrarnik za identifikatore'!$F$2:$F$326, MATCH('Šifrarnik A.'!C326,dvoslovna, 0))","v":{"$error":"#N/A"}},{"$f":"INDEX('šifrarnik za identifikatore'!$F$2:$F$326, MATCH('Šifrarnik B.'!C309,dvoslovna, 0))","v":{"$error":"#N/A"}},{"$f":"INDEX('šifrarnik za identifikatore'!$F$2:$F$326, MATCH('Šifrarnik B.B.'!G328,dvoslovna, 0))","v":{"$error":"#N/A"}}]
[null,null,null,null,null,null,{"$f":"INDEX('šifrarnik za identifikatore'!$F$2:$F$326, MATCH('Šifrarnik A.'!C327,dvoslovna, 0))","v":{"$error":"#N/A"}},{"$f":"INDEX('šifrarnik za identifikatore'!$F$2:$F$326, MATCH('Šifrarnik B.'!C310,dvoslovna, 0))","v":{"$error":"#N/A"}},{"$f":"INDEX('šifrarnik za identifikatore'!$F$2:$F$326, MATCH('Šifrarnik B.B.'!G329,dvoslovna, 0))","v":{"$error":"#N/A"}}]
[null,null,null,null,null,null,{"$f":"INDEX('šifrarnik za identifikatore'!$F$2:$F$326, MATCH('Šifrarnik A.'!C328,dvoslovna, 0))","v":{"$error":"#N/A"}},{"$f":"INDEX('šifrarnik za identifikatore'!$F$2:$F$326, MATCH('Šifrarnik B.'!C311,dvoslovna, 0))","v":{"$error":"#N/A"}},{"$f":"INDEX('šifrarnik za identifikatore'!$F$2:$F$326, MATCH('Šifrarnik B.B.'!G330,dvoslovna, 0))","v":{"$error":"#N/A"}}]
[null,null,null,null,null,null,{"$f":"INDEX('šifrarnik za identifikatore'!$F$2:$F$326, MATCH('Šifrarnik A.'!C329,dvoslovna, 0))","v":{"$error":"#N/A"}},{"$f":"INDEX('šifrarnik za identifikatore'!$F$2:$F$326, MATCH('Šifrarnik B.'!C312,dvoslovna, 0))","v":{"$error":"#N/A"}},{"$f":"INDEX('šifrarnik za identifikatore'!$F$2:$F$326, MATCH('Šifrarnik B.B.'!G331,dvoslovna, 0))","v":{"$error":"#N/A"}}]
[null,null,null,null,null,null,{"$f":"INDEX('šifrarnik za identifikatore'!$F$2:$F$326, MATCH('Šifrarnik A.'!C330,dvoslovna, 0))","v":{"$error":"#N/A"}},{"$f":"INDEX('šifrarnik za identifikatore'!$F$2:$F$326, MATCH('Šifrarnik B.'!C313,dvoslovna, 0))","v":{"$error":"#N/A"}},{"$f":"INDEX('šifrarnik za identifikatore'!$F$2:$F$326, MATCH('Šifrarnik B.B.'!G332,dvoslovna, 0))","v":{"$error":"#N/A"}}]
[null,null,null,null,null,null,{"$f":"INDEX('šifrarnik za identifikatore'!$F$2:$F$326, MATCH('Šifrarnik A.'!C331,dvoslovna, 0))","v":{"$error":"#N/A"}},{"$f":"INDEX('šifrarnik za identifikatore'!$F$2:$F$326, MATCH('Šifrarnik B.'!C314,dvoslovna, 0))","v":{"$error":"#N/A"}},{"$f":"INDEX('šifrarnik za identifikatore'!$F$2:$F$326, MATCH('Šifrarnik B.B.'!G333,dvoslovna, 0))","v":{"$error":"#N/A"}}]
[null,null,null,null,null,null,{"$f":"INDEX('šifrarnik za identifikatore'!$F$2:$F$326, MATCH('Šifrarnik A.'!C332,dvoslovna, 0))","v":{"$error":"#N/A"}},{"$f":"INDEX('šifrarnik za identifikatore'!$F$2:$F$326, MATCH('Šifrarnik B.'!C315,dvoslovna, 0))","v":{"$error":"#N/A"}},{"$f":"INDEX('šifrarnik za identifikatore'!$F$2:$F$326, MATCH('Šifrarnik B.B.'!G334,dvoslovna, 0))","v":{"$error":"#N/A"}}]
[null,null,null,null,null,null,{"$f":"INDEX('šifrarnik za identifikatore'!$F$2:$F$326, MATCH('Šifrarnik A.'!C333,dvoslovna, 0))","v":{"$error":"#N/A"}},{"$f":"INDEX('šifrarnik za identifikatore'!$F$2:$F$326, MATCH('Šifrarnik B.'!C316,dvoslovna, 0))","v":{"$error":"#N/A"}},{"$f":"INDEX('šifrarnik za identifikatore'!$F$2:$F$326, MATCH('Šifrarnik B.B.'!G335,dvoslovna, 0))","v":{"$error":"#N/A"}}]
[null,null,null,null,null,null,{"$f":"INDEX('šifrarnik za identifikatore'!$F$2:$F$326, MATCH('Šifrarnik A.'!C334,dvoslovna, 0))","v":{"$error":"#N/A"}},{"$f":"INDEX('šifrarnik za identifikatore'!$F$2:$F$326, MATCH('Šifrarnik B.'!C317,dvoslovna, 0))","v":{"$error":"#N/A"}},{"$f":"INDEX('šifrarnik za identifikatore'!$F$2:$F$326, MATCH('Šifrarnik B.B.'!G336,dvoslovna, 0))","v":{"$error":"#N/A"}}]
[null,null,null,null,null,null,{"$f":"INDEX('šifrarnik za identifikatore'!$F$2:$F$326, MATCH('Šifrarnik A.'!C335,dvoslovna, 0))","v":{"$error":"#N/A"}},{"$f":"INDEX('šifrarnik za identifikatore'!$F$2:$F$326, MATCH('Šifrarnik B.'!C318,dvoslovna, 0))","v":{"$error":"#N/A"}},{"$f":"INDEX('šifrarnik za identifikatore'!$F$2:$F$326, MATCH('Šifrarnik B.B.'!G337,dvoslovna, 0))","v":{"$error":"#N/A"}}]
[null,null,null,null,null,null,{"$f":"INDEX('šifrarnik za identifikatore'!$F$2:$F$326, MATCH('Šifrarnik A.'!C336,dvoslovna, 0))","v":{"$error":"#N/A"}},{"$f":"INDEX('šifrarnik za identifikatore'!$F$2:$F$326, MATCH('Šifrarnik B.'!C319,dvoslovna, 0))","v":{"$error":"#N/A"}},{"$f":"INDEX('šifrarnik za identifikatore'!$F$2:$F$326, MATCH('Šifrarnik B.B.'!G338,dvoslovna, 0))","v":{"$error":"#N/A"}}]
[null,null,null,null,null,null,{"$f":"INDEX('šifrarnik za identifikatore'!$F$2:$F$326, MATCH('Šifrarnik A.'!C337,dvoslovna, 0))","v":{"$error":"#N/A"}},{"$f":"INDEX('šifrarnik za identifikatore'!$F$2:$F$326, MATCH('Šifrarnik B.'!C320,dvoslovna, 0))","v":{"$error":"#N/A"}},{"$f":"INDEX('šifrarnik za identifikatore'!$F$2:$F$326, MATCH('Šifrarnik B.B.'!G339,dvoslovna, 0))","v":{"$error":"#N/A"}}]
[null,null,null,null,null,null,{"$f":"INDEX('šifrarnik za identifikatore'!$F$2:$F$326, MATCH('Šifrarnik A.'!C338,dvoslovna, 0))","v":{"$error":"#N/A"}},{"$f":"INDEX('šifrarnik za identifikatore'!$F$2:$F$326, MATCH('Šifrarnik B.'!C321,dvoslovna, 0))","v":{"$error":"#N/A"}},{"$f":"INDEX('šifrarnik za identifikatore'!$F$2:$F$326, MATCH('Šifrarnik B.B.'!G340,dvoslovna, 0))","v":{"$error":"#N/A"}}]
[null,null,null,null,null,null,{"$f":"INDEX('šifrarnik za identifikatore'!$F$2:$F$326, MATCH('Šifrarnik A.'!C339,dvoslovna, 0))","v":{"$error":"#N/A"}},{"$f":"INDEX('šifrarnik za identifikatore'!$F$2:$F$326, MATCH('Šifrarnik B.'!C322,dvoslovna, 0))","v":{"$error":"#N/A"}},{"$f":"INDEX('šifrarnik za identifikatore'!$F$2:$F$326, MATCH('Šifrarnik B.B.'!G341,dvoslovna, 0))","v":{"$error":"#N/A"}}]
[null,null,null,null,null,null,{"$f":"INDEX('šifrarnik za identifikatore'!$F$2:$F$326, MATCH('Šifrarnik A.'!C340,dvoslovna, 0))","v":{"$error":"#N/A"}},{"$f":"INDEX('šifrarnik za identifikatore'!$F$2:$F$326, MATCH('Šifrarnik B.'!C323,dvoslovna, 0))","v":{"$error":"#N/A"}},{"$f":"INDEX('šifrarnik za identifikatore'!$F$2:$F$326, MATCH('Šifrarnik B.B.'!G342,dvoslovna, 0))","v":{"$error":"#N/A"}}]
[null,null,null,null,null,null,{"$f":"INDEX('šifrarnik za identifikatore'!$F$2:$F$326, MATCH('Šifrarnik A.'!C341,dvoslovna, 0))","v":{"$error":"#N/A"}},{"$f":"INDEX('šifrarnik za identifikatore'!$F$2:$F$326, MATCH('Šifrarnik B.'!C324,dvoslovna, 0))","v":{"$error":"#N/A"}},{"$f":"INDEX('šifrarnik za identifikatore'!$F$2:$F$326, MATCH('Šifrarnik B.B.'!G343,dvoslovna, 0))","v":{"$error":"#N/A"}}]
[null,null,null,null,null,null,{"$f":"INDEX('šifrarnik za identifikatore'!$F$2:$F$326, MATCH('Šifrarnik A.'!C342,dvoslovna, 0))","v":{"$error":"#N/A"}},{"$f":"INDEX('šifrarnik za identifikatore'!$F$2:$F$326, MATCH('Šifrarnik B.'!C325,dvoslovna, 0))","v":{"$error":"#N/A"}},{"$f":"INDEX('šifrarnik za identifikatore'!$F$2:$F$326, MATCH('Šifrarnik B.B.'!G344,dvoslovna, 0))","v":{"$error":"#N/A"}}]
[null,null,null,null,null,null,{"$f":"INDEX('šifrarnik za identifikatore'!$F$2:$F$326, MATCH('Šifrarnik A.'!C343,dvoslovna, 0))","v":{"$error":"#N/A"}},{"$f":"INDEX('šifrarnik za identifikatore'!$F$2:$F$326, MATCH('Šifrarnik B.'!C326,dvoslovna, 0))","v":{"$error":"#N/A"}},{"$f":"INDEX('šifrarnik za identifikatore'!$F$2:$F$326, MATCH('Šifrarnik B.B.'!G345,dvoslovna, 0))","v":{"$error":"#N/A"}}]
[null,null,null,null,null,null,{"$f":"INDEX('šifrarnik za identifikatore'!$F$2:$F$326, MATCH('Šifrarnik A.'!C344,dvoslovna, 0))","v":{"$error":"#N/A"}},{"$f":"INDEX('šifrarnik za identifikatore'!$F$2:$F$326, MATCH('Šifrarnik B.'!C327,dvoslovna, 0))","v":{"$error":"#N/A"}},{"$f":"INDEX('šifrarnik za identifikatore'!$F$2:$F$326, MATCH('Šifrarnik B.B.'!G346,dvoslovna, 0))","v":{"$error":"#N/A"}}]
[null,null,null,null,null,null,{"$f":"INDEX('šifrarnik za identifikatore'!$F$2:$F$326, MATCH('Šifrarnik A.'!C345,dvoslovna, 0))","v":{"$error":"#N/A"}},{"$f":"INDEX('šifrarnik za identifikatore'!$F$2:$F$326, MATCH('Šifrarnik B.'!C328,dvoslovna, 0))","v":{"$error":"#N/A"}},{"$f":"INDEX('šifrarnik za identifikatore'!$F$2:$F$326, MATCH('Šifrarnik B.B.'!G347,dvoslovna, 0))","v":{"$error":"#N/A"}}]
[null,null,null,null,null,null,{"$f":"INDEX('šifrarnik za identifikatore'!$F$2:$F$326, MATCH('Šifrarnik A.'!C346,dvoslovna, 0))","v":{"$error":"#N/A"}},{"$f":"INDEX('šifrarnik za identifikatore'!$F$2:$F$326, MATCH('Šifrarnik B.'!C329,dvoslovna, 0))","v":{"$error":"#N/A"}},{"$f":"INDEX('šifrarnik za identifikatore'!$F$2:$F$326, MATCH('Šifrarnik B.B.'!G348,dvoslovna, 0))","v":{"$error":"#N/A"}}]
[null,null,null,null,null,null,{"$f":"INDEX('šifrarnik za identifikatore'!$F$2:$F$326, MATCH('Šifrarnik A.'!C347,dvoslovna, 0))","v":{"$error":"#N/A"}},{"$f":"INDEX('šifrarnik za identifikatore'!$F$2:$F$326, MATCH('Šifrarnik B.'!C330,dvoslovna, 0))","v":{"$error":"#N/A"}},{"$f":"INDEX('šifrarnik za identifikatore'!$F$2:$F$326, MATCH('Šifrarnik B.B.'!G349,dvoslovna, 0))","v":{"$error":"#N/A"}}]
[null,null,null,null,null,null,{"$f":"INDEX('šifrarnik za identifikatore'!$F$2:$F$326, MATCH('Šifrarnik A.'!C348,dvoslovna, 0))","v":{"$error":"#N/A"}},{"$f":"INDEX('šifrarnik za identifikatore'!$F$2:$F$326, MATCH('Šifrarnik B.'!C331,dvoslovna, 0))","v":{"$error":"#N/A"}},{"$f":"INDEX('šifrarnik za identifikatore'!$F$2:$F$326, MATCH('Šifrarnik B.B.'!G350,dvoslovna, 0))","v":{"$error":"#N/A"}}]
[null,null,null,null,null,null,{"$f":"INDEX('šifrarnik za identifikatore'!$F$2:$F$326, MATCH('Šifrarnik A.'!C349,dvoslovna, 0))","v":{"$error":"#N/A"}},{"$f":"INDEX('šifrarnik za identifikatore'!$F$2:$F$326, MATCH('Šifrarnik B.'!C332,dvoslovna, 0))","v":{"$error":"#N/A"}},{"$f":"INDEX('šifrarnik za identifikatore'!$F$2:$F$326, MATCH('Šifrarnik B.B.'!G351,dvoslovna, 0))","v":{"$error":"#N/A"}}]
[null,null,null,null,null,null,{"$f":"INDEX('šifrarnik za identifikatore'!$F$2:$F$326, MATCH('Šifrarnik A.'!C350,dvoslovna, 0))","v":{"$error":"#N/A"}},{"$f":"INDEX('šifrarnik za identifikatore'!$F$2:$F$326, MATCH('Šifrarnik B.'!C333,dvoslovna, 0))","v":{"$error":"#N/A"}},{"$f":"INDEX('šifrarnik za identifikatore'!$F$2:$F$326, MATCH('Šifrarnik B.B.'!G352,dvoslovna, 0))","v":{"$error":"#N/A"}}]
[null,null,null,null,null,null,{"$f":"INDEX('šifrarnik za identifikatore'!$F$2:$F$326, MATCH('Šifrarnik A.'!C351,dvoslovna, 0))","v":{"$error":"#N/A"}},{"$f":"INDEX('šifrarnik za identifikatore'!$F$2:$F$326, MATCH('Šifrarnik B.'!C334,dvoslovna, 0))","v":{"$error":"#N/A"}},{"$f":"INDEX('šifrarnik za identifikatore'!$F$2:$F$326, MATCH('Šifrarnik B.B.'!G353,dvoslovna, 0))","v":{"$error":"#N/A"}}]
[null,null,null,null,null,null,{"$f":"INDEX('šifrarnik za identifikatore'!$F$2:$F$326, MATCH('Šifrarnik A.'!C352,dvoslovna, 0))","v":{"$error":"#N/A"}},{"$f":"INDEX('šifrarnik za identifikatore'!$F$2:$F$326, MATCH('Šifrarnik B.'!C335,dvoslovna, 0))","v":{"$error":"#N/A"}},{"$f":"INDEX('šifrarnik za identifikatore'!$F$2:$F$326, MATCH('Šifrarnik B.B.'!G354,dvoslovna, 0))","v":{"$error":"#N/A"}}]
[null,null,null,null,null,null,{"$f":"INDEX('šifrarnik za identifikatore'!$F$2:$F$326, MATCH('Šifrarnik A.'!C353,dvoslovna, 0))","v":{"$error":"#N/A"}},{"$f":"INDEX('šifrarnik za identifikatore'!$F$2:$F$326, MATCH('Šifrarnik B.'!C336,dvoslovna, 0))","v":{"$error":"#N/A"}},{"$f":"INDEX('šifrarnik za identifikatore'!$F$2:$F$326, MATCH('Šifrarnik B.B.'!G355,dvoslovna, 0))","v":{"$error":"#N/A"}}]
[null,null,null,null,null,null,{"$f":"INDEX('šifrarnik za identifikatore'!$F$2:$F$326, MATCH('Šifrarnik A.'!C354,dvoslovna, 0))","v":{"$error":"#N/A"}},{"$f":"INDEX('šifrarnik za identifikatore'!$F$2:$F$326, MATCH('Šifrarnik B.'!C337,dvoslovna, 0))","v":{"$error":"#N/A"}},{"$f":"INDEX('šifrarnik za identifikatore'!$F$2:$F$326, MATCH('Šifrarnik B.B.'!G356,dvoslovna, 0))","v":{"$error":"#N/A"}}]
[null,null,null,null,null,null,{"$f":"INDEX('šifrarnik za identifikatore'!$F$2:$F$326, MATCH('Šifrarnik A.'!C355,dvoslovna, 0))","v":{"$error":"#N/A"}},{"$f":"INDEX('šifrarnik za identifikatore'!$F$2:$F$326, MATCH('Šifrarnik B.'!C338,dvoslovna, 0))","v":{"$error":"#N/A"}},{"$f":"INDEX('šifrarnik za identifikatore'!$F$2:$F$326, MATCH('Šifrarnik B.B.'!G357,dvoslovna, 0))","v":{"$error":"#N/A"}}]
[null,null,null,null,null,null,{"$f":"INDEX('šifrarnik za identifikatore'!$F$2:$F$326, MATCH('Šifrarnik A.'!C356,dvoslovna, 0))","v":{"$error":"#N/A"}},{"$f":"INDEX('šifrarnik za identifikatore'!$F$2:$F$326, MATCH('Šifrarnik B.'!C339,dvoslovna, 0))","v":{"$error":"#N/A"}},{"$f":"INDEX('šifrarnik za identifikatore'!$F$2:$F$326, MATCH('Šifrarnik B.B.'!G358,dvoslovna, 0))","v":{"$error":"#N/A"}}]
[null,null,null,null,null,null,{"$f":"INDEX('šifrarnik za identifikatore'!$F$2:$F$326, MATCH('Šifrarnik A.'!C357,dvoslovna, 0))","v":{"$error":"#N/A"}},{"$f":"INDEX('šifrarnik za identifikatore'!$F$2:$F$326, MATCH('Šifrarnik B.'!C340,dvoslovna, 0))","v":{"$error":"#N/A"}},{"$f":"INDEX('šifrarnik za identifikatore'!$F$2:$F$326, MATCH('Šifrarnik B.B.'!G359,dvoslovna, 0))","v":{"$error":"#N/A"}}]
[null,null,null,null,null,null,{"$f":"INDEX('šifrarnik za identifikatore'!$F$2:$F$326, MATCH('Šifrarnik A.'!C358,dvoslovna, 0))","v":{"$error":"#N/A"}},{"$f":"INDEX('šifrarnik za identifikatore'!$F$2:$F$326, MATCH('Šifrarnik B.'!C341,dvoslovna, 0))","v":{"$error":"#N/A"}},{"$f":"INDEX('šifrarnik za identifikatore'!$F$2:$F$326, MATCH('Šifrarnik B.B.'!G360,dvoslovna, 0))","v":{"$error":"#N/A"}}]
[null,null,null,null,null,null,{"$f":"INDEX('šifrarnik za identifikatore'!$F$2:$F$326, MATCH('Šifrarnik A.'!C359,dvoslovna, 0))","v":{"$error":"#N/A"}},{"$f":"INDEX('šifrarnik za identifikatore'!$F$2:$F$326, MATCH('Šifrarnik B.'!C342,dvoslovna, 0))","v":{"$error":"#N/A"}},{"$f":"INDEX('šifrarnik za identifikatore'!$F$2:$F$326, MATCH('Šifrarnik B.B.'!G361,dvoslovna, 0))","v":{"$error":"#N/A"}}]
[null,null,null,null,null,null,{"$f":"INDEX('šifrarnik za identifikatore'!$F$2:$F$326, MATCH('Šifrarnik A.'!C360,dvoslovna, 0))","v":{"$error":"#N/A"}},{"$f":"INDEX('šifrarnik za identifikatore'!$F$2:$F$326, MATCH('Šifrarnik B.'!C343,dvoslovna, 0))","v":{"$error":"#N/A"}},{"$f":"INDEX('šifrarnik za identifikatore'!$F$2:$F$326, MATCH('Šifrarnik B.B.'!G362,dvoslovna, 0))","v":{"$error":"#N/A"}}]

{"sheet":"šifrarnik zemalja i NKD","index":3,"n_rows":687,"n_cols":11,"rows_kept":687,"cut":false,"hidden":false,"merged":[]}
["DVOSLOVNA OZNAKA","DVOSLOVNA OZNAKA"," DRŽAVA ILI ZEMLJA (kratko ime na hrvatskom)",null,null,"DVOSLOVNA OZNAKA","ENGLESKI NAZIV FINANCIJSKE INSTITUCIJE",null,null,null,"NACE Rev.2.1 / NKD 2025"]
["AF","AF","AFGANISTAN",null,null,"5U","ADC (Andean Development Corporation)",null,null,null,"01.11.0 - Uzgoj žitarica, osim riže, uzgoj mahunarki i uljanog sjemenja"]
["AL","AL","ALBANIJA",null,null,"5D","AfDB (African Development Bank)",null,null,null,"01.12.0 - Uzgoj riže"]
["DZ","DZ","ALŽIR",null,null,"5Q","African Development Fund",null,null,null,"01.13.0 - Uzgoj povrća, dinja i lubenica, korjenastog i gomoljastog povrća"]
["AS","AS","AMERIČKA SAMOA",null,null,"5M","AMF (Arab Monetary Fund)",null,null,null,"01.14.0 - Uzgoj šećerne trske"]
["VI","VI","AMERIČKI DJEVIČANSKI OTOCI",null,null,"5E","AsDB (Asian Development Bank)",null,null,null,"01.15.0 - Uzgoj duhana"]
["AD","AD","ANDORA",null,null,"5R","Asian Development Fund",null,null,null,"01.16.0 - Uzgoj predivog bilja"]
["AO","AO","ANGOLA",null,null,"5N","BADEA (Banque arabe pour le développement économique en Afrique)",null,null,null,"01.19.0 - Uzgoj ostalih jednogodišnjih usjeva"]
["AI","AI","ANGUILLA",null,null,"5O","Banque Centrale des États de l’Afrique de l’Ouest (BCEAO)",null,null,null,"01.21.0 - Uzgoj grožđa"]
["AQ","AQ","ANTARKTIKA",null,null,"5W","Banque des États de l’Afrique centrale (BEAC)",null,null,null,"01.22.0 - Uzgoj tropskog i suptropskog voća"]
["AG","AG","ANTIGVA I BARBUDA",null,null,"5B","BIS (Bank for International Settlements)",null,null,null,"01.23.0 - Uzgoj agruma"]
["AR","AR","ARGENTINA",null,null,"5T","CABEI (Central American Bank for Economic Integration)",null,null,null,"01.24.0 - Uzgoj jezgričavog i koštuničavog voća "]
["AM","AM","ARMENIJA",null,null,"5P","CASDB (Central African States’ Development Bank)",null,null,null,"01.25.0 - Uzgoj bobičastog, orašastog i ostalog voća"]
["AW","AW","ARUBA",null,null,"5L","CDB (Caribbean Development Bank)",null,null,null,"01.26.0 - Uzgoj uljanih plodova"]
["AU","AU","AUSTRALIJA",null,null,"6P","CERN (European Organisation for Nuclear Research)",null,null,null,"01.27.0 - Uzgoj usjeva za pripremanje napitaka"]
["AT","AT","AUSTRIJA",null,null,"4Q","Committee of Regions",null,null,null,"01.28.0 - Uzgoj začinskog, aromatskog, ljekovitog bilja i bilja za uporabu u farmaciji"]
["AZ","AZ","AZERBAJDŽAN",null,null,"5X","Communauté Économique et Monétaire de l’Afrique Centrale (CEMAC) ",null,null,null,"01.29.0 - Uzgoj ostalih višegodišnjih usjeva"]
["BS","BS","BAHAMI",null,null,"6C","Council of Europe",null,null,null,"01.30.0 - Uzgoj sadnog materijala i ukrasnog bilja"]
["BH","BH","BAHREIN",null,null,"4N","Court of Auditors",null,null,null,"01.41.0 - Uzgoj mliječnih goveda"]
["BD","BD","BANGLADEŠ",null,null,"4M","Court of Justice",null,null,null,"01.42.0 - Uzgoj ostalih goveda i bivola"]
["BB","BB","BARBADOS",null,null,"5I","Eastern Caribbean Central Bank (ECCB)",null,null,null,"01.43.0 - Uzgoj konja i drugih kopitara"]
["BE","BE","BELGIJA",null,null,"5Y","Eastern Caribbean Currency Union (ECCU)",null,null,null,"01.44.0 - Uzgoj deva i ljama"]
["BZ","BZ","BELIZE",null,null,"5F","EBRD (European Bank for Reconstruction and Development)",null,null,null,"01.45.1 - Uzgoj mliječnih ovaca i koza"]
["BJ","BJ","BENIN",null,null,"6K","EBU/UER (European Broadcasting Union/Union européenne de radio-télévision)",null,null,null,"01.45.9 - Uzgoj ostalih ovaca i koza"]
["BM","BM","BERMUDI",null,null,"4D","EC (European Commission)",null,null,null,"01.46.0 - Uzgoj svinja"]
["CI","CI","BJELOKOSNA OBALA",null,null,"6N","ECMWF (European Centre for Medium-Range Weather Forecasts)",null,null,null,"01.47.1 - Uzgoj nesilica"]
["BY","BY","BJELORUSIJA",null,null,"4P","Economic and Social Committee",null,null,null,"01.47.2 - Uzgoj brojlera"]
["BW","BW","BOCVANA",null,null,"4H","ECSC (European Community of Steel and Coal)",null,null,null,"01.47.9 - Uzgoj ostale peradi"]
["BO","BO","BOLIVIJA, PLURINACIONALNA DRŽAVA",null,null,"4E","EDF (European Development Fund)",null,null,null,"01.48.1 - Uzgoj pčela"]
["BQ","BQ","BONAIRE, SVETI EUSTAZIJE I SABA",null,null,"4C","EIB (European Investment Bank)",null,null,null,"01.48.9 - Uzgoj ostalih životinja, d. n."]
["BA","BA","BOSNA I HERCEGOVINA",null,null,"4G","EIF (European Investment Fund)",null,null,null,"01.50.0 - Mješovita poljoprivreda"]
["CX","CX","BOŽIĆNI OTOK",null,null,"6O","EMBL (European Molecular Biology Laboratory)",null,null,null,"01.61.0 - Pomoćne djelatnosti za uzgoj usjeva"]
["BR","BR","BRAZIL",null,null,"4B","EMS (European Monetary System)",null,null,null,"01.62.0 - Pomoćne djelatnosti za uzgoj životinja"]
["VG","VG","BRITANSKI DJEVIČANSKI OTOCI",null,null,"6F","EPO (European Patent Office)",null,null,null,"01.63.0 - Djelatnosti koje se obavljaju nakon žetve usjeva i dorada sjemena za sjemenski materijal"]
["IO","IO","BRITANSKI INDIJSKOOCEANSKI TERITORIJ",null,null,"6E","ESA (European Space Agency)",null,null,null,"01.70.0 - Lov, stupičarenje i uslužne djelatnosti povezane s njima"]
["BN","BN","BRUNEJ",null,null,"6M","ESO (European Southern Observatory)",null,null,null,"02.10.0 - Uzgoj šuma i ostale djelatnosti u šumarstvu povezane s njime"]
["BG","BG","BUGARSKA",null,null,"6L","EUMETSAT (European Organisation for the Exploitation of Meteorological Satellites)",null,null,null,"02.20.0 - Sječa drva"]
["BF","BF","BURKINA FASO",null,null,"6G","EUROCONTROL (European Organisation for the Safety of Air Navigation)",null,null,null,"02.30.0 - Skupljanje samoniklih plodova i proizvoda, osim drva"]
["BI","BI","BURUNDI",null,null,"4L","European Council",null,null,null,"02.40.0 - Pomoćne usluge u šumarstvu"]
["BT","BT","BUTAN",null,null,"4K","European Parliament",null,null,null,"03.11.0 - Morski ribolov"]
["CY","CY","CIPAR",null,null,"6H","EUTELSAT (European Telecommunications Satellite Organisation)",null,null,null,"03.12.0 - Slatkovodni ribolov"]
["ME","ME","CRNA GORA",null,null,"1J","FAO (Food and Agriculture Organisation)",null,null,null,"03.21.0 - Morska akvakultura"]
["CW","CW","CURACAO",null,null,"5S","Fonds spécial unifié de développement",null,null,null,"03.22.0 - Slatkovodna akvakultura"]
["TD","TD","ČAD",null,null,"5C","IADB (Inter-American Development Bank)",null,null,null,"03.30.0 - Pomoćne djelatnosti u ribolovu i akvakulturi "]
["CZ","CZ","ČEŠKA",null,null,"1R","IAEA (International Atomic Energy Agency)",null,null,null,"05.10.0 - Vađenje kamenog ugljena"]
["CL","CL","ČILE",null,null,"5J","IBEC (International Bank for Economic Co-operation)",null,null,null,"05.20.0 - Vađenje lignita "]
["DK","DK","DANSKA",null,null,"1E","IBRD (International Bank for Reconstruction and Development)",null,null,null,"06.10.0 - Vađenje sirove nafte"]
["DM","DM","DOMINIKA",null,null,"6D","ICRC (International Committee of the Red Cross)",null,null,null,"06.20.0 - Vađenje prirodnog plina"]
["DO","DO","DOMINIKANSKA REPUBLIKA",null,null,"1F","IDA (International Development Association)",null,null,null,"07.10.0 - Vađenje željeznih ruda"]
["DJ","DJ","DŽIBUTI",null,null,"1L","IFAD (International Fund for Agricultural Development)",null,null,null,"07.21.0 - Vađenje uranovih i torijevih ruda"]
["EG","EG","EGIPAT",null,null,"1M","IFC (International Finance Corporation)",null,null,null,"07.29.0 - Vađenje ostalih ruda obojenih metala"]
["EC","EC","EKVADOR",null,null,"5K","IIB (International Investment Bank)",null,null,null,"08.11.0 - Vađenje ukrasnoga kamena, vapnenca, gipsa, škriljevca i drugoga kamena"]
["GQ","GQ","EKVATORSKA GVINEJA",null,null,"5G","IIC (Inter-American Investment Corporation)",null,null,null,"08.12.0 - Djelatnosti šljunčara i pješčara te vađenje gline i kaolina"]
["ER","ER","ERITREJA",null,null,"1S","ILO (International Labour Organisation)",null,null,null,"08.91.0 - Vađenje minerala za kemikalije i gnojiva"]
["EE","EE","ESTONIJA",null,null,"1C","IMF (International Monetary Fund)",null,null,null,"08.92.0 - Vađenje treseta"]
["ET","ET","ETIOPIJA",null,null,"6J","INTELSAT (International Telecommunications Satellite Organisation)",null,null,null,"08.93.0 - Vađenje soli"]
["FK","FK","FALKLANDI (MALVINI)",null,null,"7Z","International Organisations excluding European Union Institutions ",null,null,null,"08.99.0 - Ostalo rudarstvo i vađenje, d. n."]
["FO","FO","FEROJSKI OTOCI (OVČJI)",null,null,"6Q","IOM (International Organisation for Migration)",null,null,null,"09.10.0 - Pomoćne djelatnosti za vađenje nafte i prirodnog plina"]
["FJ","FJ","FIDŽI",null,null,"6R","Islamic Development Bank (IDB)",null,null,null,"09.90.0 - Pomoćne djelatnosti za ostalo rudarstvo i vađenje"]
["PH","PH","FILIPINI",null,null,"1T","ITU (International Telecommunication Union)",null,null,null,"10.11.0 - Prerada i konzerviranje mesa, osim mesa peradi"]
["FI","FI","FINSKA",null,null,"1N","MIGA (Multilateral Investment Guarantee Agency)",null,null,null,"10.12.0 - Prerada i konzerviranje mesa peradi"]
["FR","FR","FRANCUSKA",null,null,"6B","NATO (North Atlantic Treaty Organisation)",null,null,null,"10.13.0 - Proizvodnja proizvoda od mesa i mesa peradi"]
["GF","GF","FRANCUSKA GVAJANA",null,null,"5H","NIB (Nordic Investment Bank)",null,null,null,"10.20.0 - Prerada i konzerviranje riba, rakova i mekušaca"]
["PF","PF","FRANCUSKA POLINEZIJA",null,null,"5A","OECD (Organisation for Economic Co-operation and Development)",null,null,null,"10.31.0 - Prerada i konzerviranje krumpira"]
["TF","TF","FRANCUSKI JUŽNI TERITORIJ",null,null,"4J","Other EU Institutions, Organs and Organisms covered by the General budget",null,null,null,"10.32.0 - Proizvodnja sokova od voća i povrća"]
["GA","GA","GABON",null,null,"5Z","Other International Financial Organisations n.i.e.",null,null,null,"10.39.0 - Ostala prerada i konzerviranje voća i povrća"]
["GM","GM","GAMBIJA",null,null,"6Z","Other International Non-Financial Organisations n.i.e.",null,null,null,"10.41.0 - Proizvodnja ulja i masti"]
["GH","GH","GANA",null,null,"1Z","Other UN Organisations n.i.e.",null,null,null,"10.42.0 - Proizvodnja margarina i sličnih jestivih masti"]
["GI","GI","GIBRALTAR",null,null,"1H","UNESCO (United Nations Educational, Scientific and Cultural Organisation)",null,null,null,"10.51.0 - Proizvodnja mliječnih proizvoda"]
["GR","GR","GRČKA",null,null,"1P","UNHCR (United Nations High Commissioner for Refugees)",null,null,null,"10.52.0 - Proizvodnja sladoleda i ostalih jestivih ledenih proizvoda "]
["GD","GD","GRENADA",null,null,"1O","UNICEF (United Nations Children’s Fund)",null,null,null,"10.61.0 - Proizvodnja mlinskih proizvoda"]
["GL","GL","GRENLAND",null,null,"1B","United Nations organisations",null,null,null,"10.62.0 - Proizvodnja škroba i škrobnih proizvoda"]
["GE","GE","GRUZIJA",null,null,"1Q","UNRWA (United Nations Relief and Works Agency for Palestine)",null,null,null,"10.71.0 - Proizvodnja kruha; proizvodnja svježih peciva i sličnih proizvoda te kolača"]
["GP","GP","GUADELOUPE",null,null,"6I","West African Economic and Monetary Union (WAEMU)",null,null,null,"10.72.0 - Proizvodnja dvopeka, keksa, trajnih peciva i kolača"]
["GU","GU","GUAM",null,null,"1K","WHO (World Health Organisation)",null,null,null,"10.73.0 - Proizvodnja tjestenine"]
["GG","GG","GUERNSEY",null,null,"1D","WTO (World Trade Organisation)",null,null,null,"10.81.0 - Proizvodnja šećera"]
["GY","GY","GVAJANA",null,null,null,null,null,null,null,"10.82.0 - Proizvodnja kakao, čokoladnih proizvoda i proizvoda od šećera"]
["GT","GT","GVATEMALA",null,null,null,null,null,null,null,"10.83.0 - Prerada čaja i kave"]
["GN","GN","GVINEJA",null,null,null,null,null,null,null,"10.84.0 - Proizvodnja začina i drugih dodataka hrani"]
["GW","GW","GVINEJA BISAU",null,null,null,null,null,null,null,"10.85.0 - Proizvodnja gotove hrane i jela"]
["HT","HT","HAITI",null,null,null,null,null,null,null,"10.86.0 - Proizvodnja homogeniziranih prehrambenih pripravaka i dijetetske hrane"]
["HN","HN","HONDURAS",null,null,null,null,null,null,null,"10.89.0 - Proizvodnja ostalih prehrambenih proizvoda, d. n."]
["HK","HK","HONG KONG",null,null,null,null,null,null,null,"10.91.0 - Proizvodnja pripremljene stočne hrane"]
["HR","IN","INDIJA",null,null,null,null,null,null,null,"10.92.0 - Proizvodnja pripremljene hrane za kućne ljubimce"]
["IN","ID","INDONEZIJA",null,null,null,null,null,null,null,"11.01.0 - Destiliranje, pročišćavanje i miješanje alkoholnih pića"]
["ID","IQ","IRAK",null,null,null,null,null,null,null,"11.02.0 - Proizvodnja vina od grožđa"]
["IQ","IR","IRAN, ISLAMSKA REPUBLIKA",null,null,null,null,null,null,null,"11.03.0 - Proizvodnja jabukovače i ostalih fermentiranih voćnih pića"]
["IR","IE","IRSKA",null,null,null,null,null,null,null,"11.04.0 - Proizvodnja ostalih nedestiliranih fermentiranih pića"]
["IE","IS","ISLAND",null,null,null,null,null,null,null,"11.05.0 - Proizvodnja piva"]
["IS","IT","ITALIJA",null,null,null,null,null,null,null,"11.06.0 - Proizvodnja slada"]
["IT","IL","IZRAEL",null,null,null,null,null,null,null,"11.07.0 - Proizvodnja osvježavajućih napitaka i flaširane vode"]
["IL","JM","JAMAJKA",null,null,null,null,null,null,null,"12.00.1 - Obrada duhanskih listova"]
["JM","JP","JAPAN",null,null,null,null,null,null,null,"12.00.2 - Proizvodnja ostalih duhanskih proizvoda"]
["JP","YE","JEMEN",null,null,null,null,null,null,null,"13.10.0 - Priprema i predenje tekstilnih vlakana"]
["YE","JE","JERSEY",null,null,null,null,null,null,null,"13.20.0 - Tkanje tekstila"]
["JE","JO","JORDAN",null,null,null,null,null,null,null,"13.30.0 - Dovršavanje tekstila"]
["JO","GS","JUŽNA DŽORDŽIJA I OTOCI JUŽNI SENDVIČ",null,null,null,null,null,null,null,"13.91.0 - Proizvodnja pletenih i kukičanih tkanina"]
["GS","SS","JUŽNI SUDAN",null,null,null,null,null,null,null,"13.92.0 - Proizvodnja tekstilnih proizvoda za kućanstvo i gotovih proizvoda za pokućstvo"]
["SS","ZA","JUŽNOAFRIČKA REPUBLIKA",null,null,null,null,null,null,null,"13.93.0 - Proizvodnja tepiha i sagova"]
["ZA","KY","KAJMANSKI OTOCI",null,null,null,null,null,null,null,"13.94.0 - Proizvodnja užadi, konopaca, upletenoga konca i mreža"]
["KY","KH","KAMBODŽA",null,null,null,null,null,null,null,"13.95.0 - Proizvodnja netkanog tekstila i netkanih proizvoda"]
["KH","CM","KAMERUN",null,null,null,null,null,null,null,"13.96.0 - Proizvodnja ostalog tehničkog i industrijskog tekstila"]
["CM","CA","KANADA",null,null,null,null,null,null,null,"13.99.0 - Proizvodnja ostalog tekstila, d. n."]
["CA","QA","KATAR",null,null,null,null,null,null,null,"14.10.0 - Proizvodnja pletene i kukičane odjeće"]
["QA","KZ","KAZAHSTAN",null,null,null,null,null,null,null,"14.21.0 - Proizvodnja vanjske odjeće "]
["KZ","KE","KENIJA",null,null,null,null,null,null,null,"14.22.0 - Proizvodnja rublja"]
["KE","CN","KINA",null,null,null,null,null,null,null,"14.23.0 - Proizvodnja radne odjeće"]
["CN","KG","KIRGISTAN",null,null,null,null,null,null,null,"14.24.0 - Proizvodnja kožne odjeće i proizvoda od krzna"]
["KI","KI","KIRIBATI",null,null,null,null,null,null,null,"14.29.0 - Proizvodnja ostale odjeće i pribora za odjeću, d. n."]
["CC","CC","KOKOSOVI OTOCI (KEELING)",null,null,null,null,null,null,null,"15.11.0 - Štavljenje, obrada, bojenje kože i krzna"]
["CO","CO","KOLUMBIJA",null,null,null,null,null,null,null,"15.12.0 - Proizvodnja putnih i ručnih torbi, sedlarskih i remenarskih proizvoda od bilo kojeg materijala\n"]
["KM","KM","KOMORI",null,null,null,null,null,null,null,"15.20.0 - Proizvodnja obuće"]
["CG","CG","KONGO",null,null,null,null,null,null,null,"16.11.0 - Piljenje i blanjanje drva"]
["CD","CD","KONGO, DEMOKRATSKA REPUBLIKA",null,null,null,null,null,null,null,"16.12.0 - Obrada i dorada drva"]
["KP","KP","KOREJA, DNR",null,null,null,null,null,null,null,"16.21.0 - Proizvodnja furnira i ostalih ploča od drva"]
["KR","KR","KOREJA, REPUBLIKA",null,null,null,null,null,null,null,"16.22.0 - Proizvodnja sastavljenog parketa"]
["XK","XK","KOSOVO",null,null,null,null,null,null,null,"16.23.0 - Proizvodnja ostale građevne stolarije i elemenata"]
["CR","CR","KOSTARIKA",null,null,null,null,null,null,null,"16.24.0 - Proizvodnja ambalaže od drva"]
["CU","CU","KUBA",null,null,null,null,null,null,null,"16.25.0 - Proizvodnja vrata i prozora od drva"]
["CK","CK","KUKOVI OTOCI",null,null,null,null,null,null,null,"16.26.0 - Proizvodnja krutih goriva iz biljne biomase"]
["KW","KW","KUVAJT",null,null,null,null,null,null,null,"16.27.0 - Dorada proizvoda od drva"]
["LA","LA","LAOS, NDR",null,null,null,null,null,null,null,"16.28.0 - Proizvodnja ostalih proizvoda od drva i pluta, slame i pletarskih materijala"]
["LS","LS","LESOTO",null,null,null,null,null,null,null,"17.11.0 - Proizvodnja celuloze"]
["LV","LV","LETONIJA",null,null,null,null,null,null,null,"17.12.0 - Proizvodnja papira i kartona"]
["LB","LB","LIBANON",null,null,null,null,null,null,null,"17.21.0 - Proizvodnja valovitog papira, kartona i ambalaže od papira i kartona"]
["LR","LR","LIBERIJA",null,null,null,null,null,null,null,"17.22.0 - Proizvodnja robe za kućanstvo i higijenu te toaletnih potrepština od papira"]
["LY","LY","LIBIJA",null,null,null,null,null,null,null,"17.23.0 - Proizvodnja uredskog materijala od papira"]
["LI","LI","LIHTENŠTAJN",null,null,null,null,null,null,null,"17.24.0 - Proizvodnja zidnih tapeta"]
["LT","LT","LITVA",null,null,null,null,null,null,null,"17.25.0 - Proizvodnja ostalih proizvoda od papira i kartona"]
["LU","LU","LUKSEMBURG",null,null,null,null,null,null,null,"18.11.0 - Tiskanje novina"]
["MG","MG","MADAGASKAR",null,null,null,null,null,null,null,"18.12.0 - Ostalo tiskanje"]
["HU","HU","MADŽARSKA",null,null,null,null,null,null,null,"18.13.0 - Usluge pripreme za tisak i objavljivanje"]
["MO","MO","MAKAO",null,null,null,null,null,null,null,"18.14.0 - Knjigoveške i srodne usluge"]
[" MK","MK","MAKEDONIJA",null,null,null,null,null,null,null,"18.20.0 - Umnožavanje snimljenih zapisa"]
["MW","MW","MALAVI",null,null,null,null,null,null,null,"19.10.0 - Proizvodnja proizvoda koksnih peći"]
["MV","MV","MALDIVI",null,null,null,null,null,null,null,"19.20.0 - Proizvodnja rafiniranih naftnih proizvoda i proizvoda od fosilnih goriva"]
["MY","MY","MALEZIJA",null,null,null,null,null,null,null,"20.11.0 - Proizvodnja industrijskih plinova"]
["ML","ML","MALI",null,null,null,null,null,null,null,"20.12.0 - Proizvodnja bojila i pigmenata"]
["MT","MT","MALTA",null,null,null,null,null,null,null,"20.13.0 - Proizvodnja ostalih anorganskih osnovnih kemikalija"]
["MA","MA","MAROKO",null,null,null,null,null,null,null,"20.14.0 - Proizvodnja ostalih organskih osnovnih kemikalija"]
["MH","MH","MARŠALOVI OTOCI",null,null,null,null,null,null,null,"20.15.0 - Proizvodnja gnojiva i dušičnih spojeva"]
["MQ","MQ","MARTINIQUE",null,null,null,null,null,null,null,"20.16.0 - Proizvodnja plastike u primarnim oblicima"]
["MU","MU","MAURICIJUS",null,null,null,null,null,null,null,"20.17.0 - Proizvodnja sintetičkoga kaučuka u primarnim oblicima"]
["MR","MR","MAURITANIJA",null,null,null,null,null,null,null,"20.20.0 - Proizvodnja pesticida, dezinficijensa i drugih agrokemijskih proizvoda"]
["YT","YT","MAYOTTE",null,null,null,null,null,null,null,"20.30.0 - Proizvodnja boja, lakova i sličnih premaza, grafičkih boja i kitova"]
["MX","MX","MEKSIKO",null,null,null,null,null,null,null,"20.41.0 - Proizvodnja sapuna i deterdženata, sredstava za čišćenje i poliranje"]
["MM","MM","MIJANMAR",null,null,null,null,null,null,null,"20.42.0 - Proizvodnja parfema i toaletno-kozmetičkih preparata"]
["FM","FM","MIKRONEZIJA, SAVEZNE DRŽAVE",null,null,null,null,null,null,null,"20.51.0 - Proizvodnja tekućih biogoriva"]
["MD","MD","MOLDAVIJA, REPUBLIKA",null,null,null,null,null,null,null,"20.59.1 - Proizvodnja eksploziva"]
["MC","MC","MONAKO",null,null,null,null,null,null,null,"20.59.2 - Proizvodnja ljepila"]
["MN","MN","MONGOLIJA",null,null,null,null,null,null,null,"20.59.3 - Proizvodnja eteričnih ulja"]
["MS","MS","MONTSERRAT",null,null,null,null,null,null,null,"20.59.9 - Proizvodnja ostalih kemijskih proizvoda"]
["MZ","MZ","MOZAMBIK",null,null,null,null,null,null,null,"20.60.0 - Proizvodnja umjetnih vlakana"]
["NA","NA","NAMIBIJA",null,null,null,null,null,null,null,"21.10.0 - Proizvodnja osnovnih farmaceutskih proizvoda"]
["NR","NR","NAURU",null,null,null,null,null,null,null,"21.20.0 - Proizvodnja farmaceutskih pripravaka"]
["NP","NP","NEPAL",null,null,null,null,null,null,null,"22.11.0 - Proizvodnja, protektiranje i obnova vanjskih i unutrašnjih guma za vozila te proizvodnja zračnica"]
["NE","NE","NIGER",null,null,null,null,null,null,null,"22.12.0 - Proizvodnja ostalih proizvoda od gume"]
["NG","NG","NIGERIJA",null,null,null,null,null,null,null,"22.21.0 - Proizvodnja ploča, listova, cijevi i profila od plastike"]
["NI","NI","NIKARAGVA",null,null,null,null,null,null,null,"22.22.0 - Proizvodnja ambalaže od plastike"]
["NU","NU","NIUE",null,null,null,null,null,null,null,"22.23.0 - Proizvodnja vrata i prozora od plastike"]
["NL","NL","NIZOZEMSKA",null,null,null,null,null,null,null,"22.24.0 - Proizvodnja proizvoda od plastike za građevinarstvo"]
["AN","AN","NIZOZEMSKI ANTILI",null,null,null,null,null,null,null,"22.25.0 - Obrada i dovršavanje proizvoda od plastike"]
["NO","NO","NORVEŠKA",null,null,null,null,null,null,null,"22.26.0 - Proizvodnja ostalih proizvoda od plastike"]
["NC","NC","NOVA KALEDONIJA",null,null,null,null,null,null,null,"23.11.0 - Proizvodnja ravnog stakla"]
["NZ","NZ","NOVI ZELAND",null,null,null,null,null,null,null,"23.12.0 - Oblikovanje i obrada ravnog stakla"]
["DE","DE","NJEMAČKA",null,null,null,null,null,null,null,"23.13.0 - Proizvodnja šupljeg stakla"]
["OM","OM","OMAN",null,null,null,null,null,null,null,"23.14.0 - Proizvodnja staklenih vlakana"]
["AX","AX","OTOCI ALAND",null,null,null,null,null,null,null,"23.15.0 - Proizvodnja i obrada ostalog stakla uključujući tehničku robu od stakla"]
["TC","TC","OTOCI TURKS I CAICOS",null,null,null,null,null,null,null,"23.20.0 - Proizvodnja vatrostalnih proizvoda"]
["BV","BV","OTOK BOUVET",null,null,null,null,null,null,null,"23.31.0 - Proizvodnja keramičkih pločica i ploča"]
["HM","HM","OTOK HEARD I OTOCI MCDONALD",null,null,null,null,null,null,null,"23.32.0 - Proizvodnja opeke, crijepa i ostalih proizvoda od pečene gline za građevinarstvo"]
["IM","IM","OTOK MAN",null,null,null,null,null,null,null,"23.41.0 - Proizvodnja keramičkih proizvoda za kućanstvo i ukrasnih predmeta"]
["NF","NF","OTOK NORFOLK",null,null,null,null,null,null,null,"23.42.0 - Proizvodnja sanitarne keramike"]
["PK","PK","PAKISTAN",null,null,null,null,null,null,null,"23.43.0 - Proizvodnja keramičkih izolatora i izolacijskog pribora"]
["PW","PW","PALAU",null,null,null,null,null,null,null,"23.44.0 - Proizvodnja ostalih tehničkih proizvoda od keramike"]
["PS","PS","PALESTINA, DRŽAVA",null,null,null,null,null,null,null,"23.45.0 - Proizvodnja ostalih proizvoda od keramike"]
["PA","PA","PANAMA",null,null,null,null,null,null,null,"23.51.0 - Proizvodnja cementa"]
["PG","PG","PAPUA NOVA GVINEJA",null,null,null,null,null,null,null,"23.52.0 - Proizvodnja vapna i gipsa"]
["PY","PY","PARAGVAJ",null,null,null,null,null,null,null,"23.61.0 - Proizvodnja proizvoda od betona za građevinarstvo"]
["PE","PE","PERU",null,null,null,null,null,null,null,"23.62.0 - Proizvodnja proizvoda od gipsa za građevinarstvo"]
["PN","PN","PITCAIRN",null,null,null,null,null,null,null,"23.63.0 - Proizvodnja gotove betonske smjese"]
["PL","PL","POLJSKA",null,null,null,null,null,null,null,"23.64.0 - Proizvodnja žbuke"]
["PR","PR","PORTORIKO",null,null,null,null,null,null,null,"23.65.0 - Proizvodnja fibrocementa"]
["PT","PT","PORTUGAL",null,null,null,null,null,null,null,"23.66.0 - Proizvodnja ostalih proizvoda od betona, cementa i gipsa"]
["RE","RE","REUNION",null,null,null,null,null,null,null,"23.70.0 - Rezanje, oblikovanje i obrada kamena"]
["RW","RW","RUANDA",null,null,null,null,null,null,null,"23.91.0 - Proizvodnja brusnih proizvoda"]
["RO","RO","RUMUNJSKA",null,null,null,null,null,null,null,"23.99.0 - Proizvodnja ostalih nemetalnih mineralnih proizvoda, d. n."]
["RU","RU","RUSIJA",null,null,null,null,null,null,null,"24.10.0 - Proizvodnja sirovog željeza, čelika i ferolegura"]
["US","US","SAD",null,null,null,null,null,null,null,"24.20.0 - Proizvodnja čeličnih cijevi, šupljih profila i pripadajućeg pribora"]
["SV","SV","SALVADOR",null,null,null,null,null,null,null,"24.31.0 - Hladno vučenje šipki"]
["WS","WS","SAMOA",null,null,null,null,null,null,null,"24.32.0 - Hladno valjanje uskih vrpci"]
["SM","SM","SAN MARINO",null,null,null,null,null,null,null,"24.33.0 - Hladno oblikovanje i profiliranje"]
["SA","SA","SAUDIJSKA ARABIJA",null,null,null,null,null,null,null,"24.34.0 - Hladno vučenje žica"]
["SC","SC","SEJŠELI",null,null,null,null,null,null,null,"24.41.0 - Proizvodnja plemenitih metala"]
["SN","SN","SENEGAL",null,null,null,null,null,null,null,"24.42.0 - Proizvodnja aluminija"]
["SL","SL","SIJERA LEONE",null,null,null,null,null,null,null,"24.43.0 - Proizvodnja olova, cinka i kositra"]
["SG","SG","SINGAPUR",null,null,null,null,null,null,null,"24.44.0 - Proizvodnja bakra"]
["SY","SY","SIRIJA",null,null,null,null,null,null,null,"24.45.0 - Proizvodnja ostalih obojenih metala"]
["MP","MP","SJEVERNI MARIJANSKI OTOCI",null,null,null,null,null,null,null,"24.46.0 - Obrada nuklearnoga goriva"]
["SK","SK","SLOVAČKA",null,null,null,null,null,null,null,"24.51.0 - Lijevanje željeza"]
["SI","SI","SLOVENIJA",null,null,null,null,null,null,null,"24.52.0 - Lijevanje čelika"]
["SB","SB","SOLOMONSKI OTOCI",null,null,null,null,null,null,null,"24.53.0 - Lijevanje lakih metala"]
["SO","SO","SOMALIJA",null,null,null,null,null,null,null,"24.54.0 - Lijevanje ostalih obojenih metala"]
["RS","RS","SRBIJA",null,null,null,null,null,null,null,"25.11.0 - Proizvodnja metalnih konstrukcija i njihovih dijelova"]
["CF","CF","SREDNJOAFRIČKA REPUBLIKA",null,null,null,null,null,null,null,"25.12.0 - Proizvodnja vrata i prozora od metala"]
["SD","SD","SUDAN",null,null,null,null,null,null,null,"25.21.0 - Proizvodnja radijatora, parnih kotlova i kotlova za centralno grijanje"]
["SR","SR","SURINAM",null,null,null,null,null,null,null,"25.22.0 - Proizvodnja ostalih cisterni, rezervoara i sličnih posuda od metala"]
["SJ","SJ","SVALBARD I JAN MAYEN",null,null,null,null,null,null,null,"25.30.0 - Proizvodnja oružja i streljiva "]
["SZ","SZ","SVAZI",null,null,null,null,null,null,null,"25.40.0 - Kovanje i oblikovanje metala i metalurgija praha"]
["SH","SH","SVETA HELENA,ASCENSION I TRISTAN DA CUNH",null,null,null,null,null,null,null,"25.51.0 - Prevlačenje metala"]
["LC","LC","SVETA LUCIJA",null,null,null,null,null,null,null,"25.52.0 - Toplinska obrada metala"]
["VA","VA","SVETA STOLICA, DRŽAVA VATIKANSKOG GRADA",null,null,null,null,null,null,null,"25.53.0 - Strojna obrada metala"]
["BL","BL","SVETI BARTOLOMEJ",null,null,null,null,null,null,null,"25.61.0 - Proizvodnja pribora za jelo i sječiva"]
["KN","KN","SVETI KRISTOFOR I NEVIS",null,null,null,null,null,null,null,"25.62.0 - Proizvodnja brava i okova"]
["MF","MF","SVETI MARTIN (FRANCUSKI DIO)",null,null,null,null,null,null,null,"25.63.0 - Proizvodnja alata"]
["SX","SX","SVETI MARTIN (NIZOZEMSKI DIO)",null,null,null,null,null,null,null,"25.91.0 - Proizvodnja čeličnih bačvi i sličnih posuda"]
["PM","PM","SVETI PETAR I MIKELON",null,null,null,null,null,null,null,"25.92.0 - Proizvodnja ambalaže od lakih metala"]
["ST","ST","SVETI TOMA I PRINSIPE",null,null,null,null,null,null,null,"25.93.0 - Proizvodnja proizvoda od žice, lanaca i opruga"]
["VC","VC","SVETI VINCENT I GRENADINI",null,null,null,null,null,null,null,"25.94.0 - Proizvodnja zakovica i vijčane robe"]
["ES","ES","ŠPANJOLSKA",null,null,null,null,null,null,null,"25.99.0 - Proizvodnja ostalih gotovih proizvoda od metala, d. n."]
["LK","LK","ŠRI LANKA",null,null,null,null,null,null,null,"26.11.0 - Proizvodnja elektroničkih komponenata"]
["SE","SE","ŠVEDSKA",null,null,null,null,null,null,null,"26.12.0 - Proizvodnja punih elektroničkih ploča"]
["CH","CH","ŠVICARSKA",null,null,null,null,null,null,null,"26.20.0 - Proizvodnja računala i periferne opreme"]
["TJ","TJ","TADŽIKISTAN",null,null,null,null,null,null,null,"26.30.0 - Proizvodnja komunikacijske opreme"]
["TH","TH","TAJLAND",null,null,null,null,null,null,null,"26.40.0 - Proizvodnja elektroničkih uređaja za široku potrošnju"]
["TW","TW","TAJVAN, KINESKA PROVINCIJA",null,null,null,null,null,null,null,"26.51.0 - Proizvodnja instrumenata i aparata za mjerenje, ispitivanje i navigaciju"]
["TZ","TZ","TANZANIJA, UJEDINJENA REPUBLIKA",null,null,null,null,null,null,null,"26.52.0 - Proizvodnja satova"]
["TL","TL","TIMOR LESTE",null,null,null,null,null,null,null,"26.60.0 - Proizvodnja opreme za zračenje, elektromedicinske i elektroterapeutske opreme"]
["TG","TG","TOGO",null,null,null,null,null,null,null,"26.70.0 - Proizvodnja optičkih instrumenata, magnetskih i optičkih medija te fotografske opreme"]
["TK","TK","TOKELAU",null,null,null,null,null,null,null,"27.11.0 - Proizvodnja elektromotora, generatora i transformatora"]
["TO","TO","TONGA",null,null,null,null,null,null,null,"27.12.0 - Proizvodnja uređaja za distribuciju i kontrolu električne energije"]
["TT","TT","TRINIDAD I TOBAGO",null,null,null,null,null,null,null,"27.20.0 - Proizvodnja baterija i akumulatora"]
["TN","TN","TUNIS",null,null,null,null,null,null,null,"27.31.0 - Proizvodnja kablova od optičkih vlakana"]
["TM","TM","TURKMENISTAN",null,null,null,null,null,null,null,"27.32.0 - Proizvodnja ostalih elektroničkih i električnih žica i kablova"]
["TR","TR","TURSKA",null,null,null,null,null,null,null,"27.33.0 - Proizvodnja elektroinstalacijskog materijala"]
["TV","TV","TUVALU",null,null,null,null,null,null,null,"27.40.0 - Proizvodnja rasvjetne opreme"]
["UG","UG","UGANDA",null,null,null,null,null,null,null,"27.51.0 - Proizvodnja električnih aparata za kućanstvo"]
["UM","UM","UJEDINJENE DRŽ. MANJIH PACIFIČKIH OTOKA",null,null,null,null,null,null,null,"27.52.0 - Proizvodnja neelektričnih aparata za kućanstvo"]
["AE","AE","UJEDINJENI ARAPSKI EMIRATI",null,null,null,null,null,null,null,"27.90.0 - Proizvodnja ostale električne opreme"]
["UA","UA","UKRAJINA",null,null,null,null,null,null,null,"28.11.0 - Proizvodnja motora i turbina, osim motora za zrakoplove i motorna vozila"]
["UY","UY","URUGVAJ",null,null,null,null,null,null,null,"28.12.0 - Proizvodnja hidrauličnih pogonskih uređaja"]
["UZ","UZ","UZBEKISTAN",null,null,null,null,null,null,null,"28.13.0 - Proizvodnja ostalih crpki i kompresora"]
["VU","VU","VANUATU",null,null,null,null,null,null,null,"28.14.0 - Proizvodnja ostalih slavina i ventila"]
["GB","GB","VELIKA BRITANIJA",null,null,null,null,null,null,null,"28.15.0 - Proizvodnja ležajeva, prijenosnika te prijenosnih i pogonskih elemenata"]
["VE","VE","VENEZUELA, BOLIVARIJANSKA REPUBLIKA",null,null,null,null,null,null,null,"28.21.0 - Proizvodnja peći, kamina  i trajne opreme za grijanje kućanstva"]
["VN","VN","VIJETNAM",null,null,null,null,null,null,null,"28.22.0 - Proizvodnja uređaja za dizanje i prenošenje "]
["WF","WF","WALLIS I FUTUNA",null,null,null,null,null,null,null,"28.23.0 - Proizvodnja uredskih strojeva i opreme, osim proizvodnje računala i periferne opreme"]
["ZM","ZM","ZAMBIJA",null,null,null,null,null,null,null,"28.24.0 - Proizvodnja mehaniziranog ručnog alata"]
["EH","EH","ZAPADNA SAHARA",null,null,null,null,null,null,null,"28.25.0 - Proizvodnja rashladne i ventilacijske opreme, osim za kućanstva"]
["CV","CV","ZELENORTSKA REPUBLIKA",null,null,null,null,null,null,null,"28.29.0 - Proizvodnja ostalih strojeva za opće namjene, d. n."]
["ZW","ZW","ZIMBABVE",null,null,null,null,null,null,null,"28.30.0 - Proizvodnja strojeva za poljoprivredu i šumarstvo"]
["HR","HR","HRVATSKA",null,null,null,null,null,null,null,"28.41.0 - Proizvodnja strojeva za oblikovanje metala i alatnih strojeva za obradu metala"]
[null,null,null,null,null,null,null,null,null,null,"28.42.0 - Proizvodnja ostalih alatnih strojeva"]
[null,null,null,null,null,null,null,null,null,null,"28.91.0 - Proizvodnja strojeva za metalurgiju"]
[null,null,null,null,null,null,null,null,null,null,"28.92.0 - Proizvodnja strojeva za rudnike, kamenolome i građevinarstvo"]
[null,null,null,null,null,null,null,null,null,null,"28.93.0 - Proizvodnja strojeva za industriju hrane, pića i duhana"]
[null,null,null,null,null,null,null,null,null,null,"28.94.0 - Proizvodnja strojeva za industriju tekstila, odjeće i kože"]
[null,null,null,null,null,null,null,null,null,null,"28.95.0 - Proizvodnja strojeva za industriju papira i kartona"]
[null,null,null,null,null,null,null,null,null,null,"28.96.0 - Proizvodnja strojeva za plastiku i gumu"]
[null,null,null,null,null,null,null,null,null,null,"28.97.0 - Proizvodnja strojeva za aditivnu proizvodnju"]
[null,null,null,null,null,null,null,null,null,null,"28.99.0 - Proizvodnja ostalih strojeva za posebne namjene, d. n."]
[null,null,null,null,null,null,null,null,null,null,"29.10.0 - Proizvodnja motornih vozila"]
[null,null,null,null,null,null,null,null,null,null,"29.20.0 - Proizvodnja karoserija za motorna vozila; proizvodnja prikolica i poluprikolica"]
[null,null,null,null,null,null,null,null,null,null,"29.31.0 - Proizvodnja električne i elektroničke opreme za motorna vozila"]
[null,null,null,null,null,null,null,null,null,null,"29.32.0 - Proizvodnja ostalih dijelova i pribora za motorna vozila"]
[null,null,null,null,null,null,null,null,null,null,"30.11.0 - Gradnja civilnih brodova i plutajućih objekata"]
[null,null,null,null,null,null,null,null,null,null,"30.12.0 - Gradnja čamaca za razonodu i sportskih čamaca"]
[null,null,null,null,null,null,null,null,null,null,"30.13.0 - Gradnja vojnih brodova i plovila"]
[null,null,null,null,null,null,null,null,null,null,"30.20.0 - Proizvodnja željezničkih lokomotiva i tračničkih vozila "]
[null,null,null,null,null,null,null,null,null,null,"30.31.0 - Proizvodnja civilnih zrakoplova i svemirskih letjelica te srodnih strojeva i opreme"]
[null,null,null,null,null,null,null,null,null,null,"30.32.0 - Proizvodnja vojnih zrakoplova i svemirskih letjelica te srodnih strojeva i opreme"]
[null,null,null,null,null,null,null,null,null,null,"30.40.0 - Proizvodnja vojnih borbenih vozila"]
[null,null,null,null,null,null,null,null,null,null,"30.91.0 - Proizvodnja motocikala"]
[null,null,null,null,null,null,null,null,null,null,"30.92.0 - Proizvodnja bicikala i invalidskih kolica"]
[null,null,null,null,null,null,null,null,null,null,"30.99.0 - Proizvodnja ostalih prijevoznih sredstava, d. n."]
[null,null,null,null,null,null,null,null,null,null,"31.00.1 - Proizvodnja namještaja za poslovne i prodajne prostore"]
[null,null,null,null,null,null,null,null,null,null,"31.00.2 - Proizvodnja kuhinjskog namještaja"]
[null,null,null,null,null,null,null,null,null,null,"31.00.3 - Proizvodnja madraca"]
[null,null,null,null,null,null,null,null,null,null,"31.00.9 - Proizvodnja ostalog namještaja"]
[null,null,null,null,null,null,null,null,null,null,"32.11.0 - Proizvodnja kovanog novca"]
[null,null,null,null,null,null,null,null,null,null,"32.12.0 - Proizvodnja nakita i srodnih proizvoda"]
[null,null,null,null,null,null,null,null,null,null,"32.13.0 - Proizvodnja imitacije nakita (bižuterije) i srodnih proizvoda"]
[null,null,null,null,null,null,null,null,null,null,"32.20.0 - Proizvodnja glazbenih instrumenata"]
[null,null,null,null,null,null,null,null,null,null,"32.30.0 - Proizvodnja sportske opreme"]
[null,null,null,null,null,null,null,null,null,null,"32.40.0 - Proizvodnja igara i igračaka"]
[null,null,null,null,null,null,null,null,null,null,"32.50.0 - Proizvodnja medicinskih i stomatoloških instrumenata i pribora"]
[null,null,null,null,null,null,null,null,null,null,"32.91.0 - Proizvodnja metli i četki"]
[null,null,null,null,null,null,null,null,null,null,"32.99.0 - Ostala prerađivačka industrija, d. n."]
[null,null,null,null,null,null,null,null,null,null,"33.11.0 - Popravak i održavanje proizvoda od metala"]
[null,null,null,null,null,null,null,null,null,null,"33.12.0 - Popravak i održavanje strojeva"]
[null,null,null,null,null,null,null,null,null,null,"33.13.0 - Popravak i održavanje elektroničke i optičke opreme"]
[null,null,null,null,null,null,null,null,null,null,"33.14.0 - Popravak i održavanje električne opreme"]
[null,null,null,null,null,null,null,null,null,null,"33.15.0 - Popravak i održavanje civilnih brodova i čamaca"]
[null,null,null,null,null,null,null,null,null,null,"33.16.0 - Popravak i održavanje civilnih zrakoplova i svemirskih letjelica"]
[null,null,null,null,null,null,null,null,null,null,"33.17.0 - Popravak i održavanje ostalih civilnih prijevoznih sredstava"]
[null,null,null,null,null,null,null,null,null,null,"33.18.0 - Popravak i održavanje vojnih borbenih vozila, brodova, čamaca, zrakoplova i svemirskih letjelica"]
[null,null,null,null,null,null,null,null,null,null,"33.19.0 - Popravak i održavanje ostale opreme"]
[null,null,null,null,null,null,null,null,null,null,"33.20.0 - Instalacija industrijskih strojeva i opreme"]
[null,null,null,null,null,null,null,null,null,null,"35.11.0 - Proizvodnja električne energije iz neobnovljivih izvora"]
[null,null,null,null,null,null,null,null,null,null,"35.12.0 - Proizvodnja električne energije iz obnovljivih izvora"]
[null,null,null,null,null,null,null,null,null,null,"35.13.0 - Prijenos električne energije"]
[null,null,null,null,null,null,null,null,null,null,"35.14.0 - Distribucija električne energije"]
[null,null,null,null,null,null,null,null,null,null,"35.15.0 - Trgovina električnom energijom"]
[null,null,null,null,null,null,null,null,null,null,"35.16.0 - Skladištenje električne energije"]
[null,null,null,null,null,null,null,null,null,null,"35.21.0 - Proizvodnja plina"]
[null,null,null,null,null,null,null,null,null,null,"35.22.1 - Djelatnosti distribucije plina distribucijskom mrežom"]
[null,null,null,null,null,null,null,null,null,null,"35.22.2 - Djelatnosti opskrbe plinom putem distribucijske mreže"]
[null,null,null,null,null,null,null,null,null,null,"35.22.9 - Djelatnosti distribucije ostalih plinovitih goriva distribucijskom mrežom"]
[null,null,null,null,null,null,null,null,null,null,"35.23.0 - Trgovina plinom distribucijskom mrežom"]
[null,null,null,null,null,null,null,null,null,null,"35.24.0 - Skladištenje plina kao dio usluge opskrbe putem mreže"]
[null,null,null,null,null,null,null,null,null,null,"35.30.0 - Opskrba parom i klimatizacija"]
[null,null,null,null,null,null,null,null,null,null,"35.40.0 - Djelatnosti brokera i agenata za električnu energiju i plin"]
[null,null,null,null,null,null,null,null,null,null,"36.00.0 - Zahvaćanje, pročišćavanje i opskrba vodom"]
[null,null,null,null,null,null,null,null,null,null,"37.00.0 - Obrada otpadnih voda"]
[null,null,null,null,null,null,null,null,null,null,"38.11.0 - Sakupljanje neopasnog otpada"]
[null,null,null,null,null,null,null,null,null,null,"38.12.0 - Sakupljanje opasnog otpada"]
[null,null,null,null,null,null,null,null,null,null,"38.21.0 - Oporaba materijala"]
[null,null,null,null,null,null,null,null,null,null,"38.22.0 - Oporaba energije"]
[null,null,null,null,null,null,null,null,null,null,"38.23.0 - Ostala oporaba otpada"]
[null,null,null,null,null,null,null,null,null,null,"38.31.0 - Spaljivanje otpada bez dobivanja energije"]
[null,null,null,null,null,null,null,null,null,null,"38.32.0 - Odlaganje ili trajno skladištenje otpada"]
[null,null,null,null,null,null,null,null,null,null,"38.33.0 - Ostalo zbrinjavanje otpada"]
[null,null,null,null,null,null,null,null,null,null,"39.00.0 - Djelatnosti sanacije okoliša i ostale djelatnosti gospodarenja otpadom"]
[null,null,null,null,null,null,null,null,null,null,"41.00.0 - Građenje stambenih i nestambenih zgrada"]
[null,null,null,null,null,null,null,null,null,null,"42.11.0 - Građenje cesta i autocesta"]
[null,null,null,null,null,null,null,null,null,null,"42.12.0 - Građenje željezničkih pruga i podzemnih željeznica"]
[null,null,null,null,null,null,null,null,null,null,"42.13.0 - Građenje mostova i tunela"]
[null,null,null,null,null,null,null,null,null,null,"42.21.0 - Građenje cjevovoda za tekućine i plinove"]
[null,null,null,null,null,null,null,null,null,null,"42.22.0 - Građenje elektroenergetskih i telekomunikacijskih vodova"]
[null,null,null,null,null,null,null,null,null,null,"42.91.0 - Građenje vodnih građevina"]
[null,null,null,null,null,null,null,null,null,null,"42.99.0 - Građenje ostalih građevina niskogradnje, d. n."]
[null,null,null,null,null,null,null,null,null,null,"43.11.0 - Uklanjanje građevina "]
[null,null,null,null,null,null,null,null,null,null,"43.12.0 - Pripremni radovi na gradilištu"]
[null,null,null,null,null,null,null,null,null,null,"43.13.0 - Pokusno bušenje i sondiranje terena za gradnju"]
[null,null,null,null,null,null,null,null,null,null,"43.21.0 - Elektroinstalacijski radovi "]
[null,null,null,null,null,null,null,null,null,null,"43.22.0 - Uvođenje instalacija vodovoda, kanalizacije i plina te instalacija za grijanje i klimatizaciju"]
[null,null,null,null,null,null,null,null,null,null,"43.23.0 - Radovi na postavljanju izolacije"]
[null,null,null,null,null,null,null,null,null,null,"43.24.0 - Ostali građevinski instalacijski radovi"]
[null,null,null,null,null,null,null,null,null,null,"43.31.0 - Fasadni i štukaturski radovi"]
[null,null,null,null,null,null,null,null,null,null,"43.32.0 - Ugradnja stolarije"]
[null,null,null,null,null,null,null,null,null,null,"43.33.0 - Postavljanje podnih i zidnih obloga"]
[null,null,null,null,null,null,null,null,null,null,"43.34.0 - Soboslikarski i staklarski radovi"]
[null,null,null,null,null,null,null,null,null,null,"43.35.0 - Ostali završni građevinski radovi"]
[null,null,null,null,null,null,null,null,null,null,"43.41.0 - Radovi na krovištu"]
[null,null,null,null,null,null,null,null,null,null,"43.42.0 - Ostali specijalizirani građevinski radovi u gradnji zgrada"]
[null,null,null,null,null,null,null,null,null,null,"43.50.0 - Specijalizirani građevinski radovi u niskogradnji"]
[null,null,null,null,null,null,null,null,null,null,"43.60.0 - Usluge posredovanja u pružanju specijaliziranih građevinskih usluga"]
[null,null,null,null,null,null,null,null,null,null,"43.91.0 - Zidarski radovi"]
[null,null,null,null,null,null,null,null,null,null,"43.99.0 - Ostale specijalizirane građevinske djelatnosti, d. n."]
[null,null,null,null,null,null,null,null,null,null,"46.11.0 - Posredovanje u trgovini na veliko poljoprivrednim sirovinama, živim životinjama, tekstilnim sirovinama i poluproizvodima"]
[null,null,null,null,null,null,null,null,null,null,"46.12.0 - Posredovanje u trgovini na veliko gorivima, rudama, metalima i industrijskim kemikalijama"]
[null,null,null,null,null,null,null,null,null,null,"46.13.0 - Posredovanje u trgovini na veliko drvom i građevinskim materijalom"]
[null,null,null,null,null,null,null,null,null,null,"46.14.0 - Posredovanje u trgovini na veliko strojevima, industrijskom opremom, brodovima i zrakoplovima"]
[null,null,null,null,null,null,null,null,null,null,"46.15.0 - Posredovanje u trgovini na veliko namještajem, proizvodima za kućanstvo i željeznom robom"]
[null,null,null,null,null,null,null,null,null,null,"46.16.0 - Posredovanje u trgovini na veliko tekstilom, odjećom, krznom, obućom i kožnim proizvodima"]
[null,null,null,null,null,null,null,null,null,null,"46.17.0 - Posredovanje u trgovini na veliko hranom, pićima i duhanom"]
[null,null,null,null,null,null,null,null,null,null,"46.18.0 - Posredovanje u trgovini na veliko ostalim određenim proizvodima"]
[null,null,null,null,null,null,null,null,null,null,"46.19.0 - Posredovanje u  nespecijaliziranoj trgovini na veliko "]
[null,null,null,null,null,null,null,null,null,null,"46.21.0 - Trgovina na veliko žitaricama, sirovim duhanom, sjemenjem i stočnom hranom"]
[null,null,null,null,null,null,null,null,null,null,"46.22.0 - Trgovina na veliko cvijećem i sadnicama"]
[null,null,null,null,null,null,null,null,null,null,"46.23.0 - Trgovina na veliko živim životinjama"]
[null,null,null,null,null,null,null,null,null,null,"46.24.0 - Trgovina na veliko sirovim i štavljenim kožama"]
[null,null,null,null,null,null,null,null,null,null,"46.31.0 - Trgovina na veliko voćem i povrćem"]
[null,null,null,null,null,null,null,null,null,null,"46.32.0 - Trgovina na veliko mesom, mesnim proizvodima, ribom i ribljim proizvodima"]
[null,null,null,null,null,null,null,null,null,null,"46.33.0 - Trgovina na veliko mlijekom, mliječnim proizvodima, jajima, jestivim uljima i mastima"]
[null,null,null,null,null,null,null,null,null,null,"46.34.0 - Trgovina na veliko pićima"]
[null,null,null,null,null,null,null,null,null,null,"46.35.0 - Trgovina na veliko duhanskim proizvodima"]
[null,null,null,null,null,null,null,null,null,null,"46.36.0 - Trgovina na veliko šećerom, čokoladom i proizvodima od šećera"]
[null,null,null,null,null,null,null,null,null,null,"46.37.0 - Trgovina na veliko kavom, čajem, kakaom i začinima"]
[null,null,null,null,null,null,null,null,null,null,"46.38.0 - Trgovina na veliko ostalom hranom "]
[null,null,null,null,null,null,null,null,null,null,"46.39.0 - Nespecijalizirana trgovina na veliko hranom, pićima i duhanskim proizvodima"]
[null,null,null,null,null,null,null,null,null,null,"46.41.0 - Trgovina na veliko tekstilom"]
[null,null,null,null,null,null,null,null,null,null,"46.42.0 - Trgovina na veliko odjećom i obućom"]
[null,null,null,null,null,null,null,null,null,null,"46.43.0 - Trgovina na veliko električnim aparatima za kućanstvo"]
[null,null,null,null,null,null,null,null,null,null,"46.44.0 - Trgovina na veliko porculanom, staklom i sredstvima za čišćenje"]
[null,null,null,null,null,null,null,null,null,null,"46.45.0 - Trgovina na veliko parfemima i kozmetikom"]
[null,null,null,null,null,null,null,null,null,null,"46.46.0 - Trgovina na veliko farmaceutskim i medicinskim proizvodima"]
[null,null,null,null,null,null,null,null,null,null,"46.47.0 - Trgovina na veliko namještajem za kućanstva, urede i trgovine, sagovima i opremom za rasvjetu"]
[null,null,null,null,null,null,null,null,null,null,"46.48.0 - Trgovina na veliko satovima i nakitom"]
[null,null,null,null,null,null,null,null,null,null,"46.49.0 - Trgovina na veliko ostalim proizvodima za kućanstvo"]
[null,null,null,null,null,null,null,null,null,null,"46.50.0 - Trgovina na veliko informacijsko-komunikacijskom opremom"]
[null,null,null,null,null,null,null,null,null,null,"46.61.0 - Trgovina na veliko poljoprivrednim strojevima, opremom i priborom"]
[null,null,null,null,null,null,null,null,null,null,"46.62.0 - Trgovina na veliko alatnim strojevima"]
[null,null,null,null,null,null,null,null,null,null,"46.63.0 - Trgovina na veliko strojevima za rudarstvo i građevinarstvo"]
[null,null,null,null,null,null,null,null,null,null,"46.64.0 - Trgovina na veliko ostalim strojevima i opremom"]
[null,null,null,null,null,null,null,null,null,null,"46.71.0 - Trgovina na veliko motornim vozilima"]
[null,null,null,null,null,null,null,null,null,null,"46.72.0 - Trgovina na veliko dijelovima i priborom za motorna vozila"]
[null,null,null,null,null,null,null,null,null,null,"46.73.0 - Trgovina na veliko motociklima te dijelovima i priborom za motocikle"]
[null,null,null,null,null,null,null,null,null,null,"46.81.0 - Trgovina na veliko krutim, tekućim i plinovitim gorivima i srodnim proizvodima"]
[null,null,null,null,null,null,null,null,null,null,"46.82.0 - Trgovina na veliko metalima i metalnim rudama"]
[null,null,null,null,null,null,null,null,null,null,"46.83.0 - Trgovina na veliko drvom, građevinskim materijalom i sanitarnom opremom"]
[null,null,null,null,null,null,null,null,null,null,"46.84.0 - Trgovina na veliko željeznom robom, instalacijskim materijalom i opremom za vodovod i grijanje"]
[null,null,null,null,null,null,null,null,null,null,"46.85.0 - Trgovina na veliko kemijskim proizvodima"]
[null,null,null,null,null,null,null,null,null,null,"46.86.0 - Trgovina na veliko ostalim poluproizvodima"]
[null,null,null,null,null,null,null,null,null,null,"46.87.0 - Trgovina na veliko ostacima i otpacima"]
[null,null,null,null,null,null,null,null,null,null,"46.89.0 - Ostala specijalizirana trgovina na veliko, d. n."]
[null,null,null,null,null,null,null,null,null,null,"46.90.0 - Nespecijalizirana trgovina na veliko"]
[null,null,null,null,null,null,null,null,null,null,"47.11.0 - Nespecijalizirana trgovina na malo pretežno hranom, pićima i duhanskim proizvodima"]
[null,null,null,null,null,null,null,null,null,null,"47.12.0 - Ostala nespecijalizirana trgovina na malo"]
[null,null,null,null,null,null,null,null,null,null,"47.21.0 - Trgovina na malo voćem i povrćem"]
[null,null,null,null,null,null,null,null,null,null,"47.22.0 - Trgovina na malo mesom i mesnim proizvodima"]
[null,null,null,null,null,null,null,null,null,null,"47.23.0 - Trgovina na malo ribama, rakovima i mekušcima"]
[null,null,null,null,null,null,null,null,null,null,"47.24.0 - Trgovina na malo kruhom, kolačima i slatkim proizvodima"]
[null,null,null,null,null,null,null,null,null,null,"47.25.0 - Trgovina na malo pićima "]
[null,null,null,null,null,null,null,null,null,null,"47.26.0 - Trgovina na malo duhanskim proizvodima"]
[null,null,null,null,null,null,null,null,null,null,"47.27.0 - Trgovina na malo ostalim prehrambenim proizvodima"]
[null,null,null,null,null,null,null,null,null,null,"47.30.0 - Trgovina na malo motornim gorivima i mazivima "]
[null,null,null,null,null,null,null,null,null,null,"47.40.0 - Trgovina na malo informacijsko-komunikacijskom opremom"]
[null,null,null,null,null,null,null,null,null,null,"47.51.0 - Trgovina na malo tekstilom"]
[null,null,null,null,null,null,null,null,null,null,"47.52.0 - Trgovina na malo željeznom robom, građevinskim materijalom, bojama i staklom "]
[null,null,null,null,null,null,null,null,null,null,"47.53.0 - Trgovina na malo sagovima, prostirkama za pod, zidnim i podnim oblogama"]
[null,null,null,null,null,null,null,null,null,null,"47.54.0 - Trgovina na malo električnim aparatima za kućanstvo"]
[null,null,null,null,null,null,null,null,null,null,"47.55.0 - Trgovina na malo namještajem, opremom za rasvjetu, stolnim posuđem i ostalim proizvodima za kućanstvo"]
[null,null,null,null,null,null,null,null,null,null,"47.61.0 - Trgovina na malo knjigama"]
[null,null,null,null,null,null,null,null,null,null,"47.62.0 - Trgovina na malo novinama i ostalim periodičnim publikacijama te papirnatom robom i pisaćim priborom"]
[null,null,null,null,null,null,null,null,null,null,"47.63.0 - Trgovina na malo sportskom opremom"]
[null,null,null,null,null,null,null,null,null,null,"47.64.0 - Trgovina na malo igrama i igračkama"]
[null,null,null,null,null,null,null,null,null,null,"47.69.0 - Trgovina na malo proizvodima za kulturu i rekreaciju, d. n."]
[null,null,null,null,null,null,null,null,null,null,"47.71.0 - Trgovina na malo odjećom"]
[null,null,null,null,null,null,null,null,null,null,"47.72.0 - Trgovina na malo obućom i proizvodima od kože "]
[null,null,null,null,null,null,null,null,null,null,"47.73.0 - Trgovina na malo farmaceutskim proizvodima"]
[null,null,null,null,null,null,null,null,null,null,"47.74.1 - Trgovina na malo naočalama"]
[null,null,null,null,null,null,null,null,null,null,"47.74.9 - Trgovina na malo ostalim medicinskim i ortopedskim proizvodima"]
[null,null,null,null,null,null,null,null,null,null,"47.75.0 - Trgovina na malo kozmetičkim i toaletnim proizvodima"]
[null,null,null,null,null,null,null,null,null,null,"47.76.1 - Trgovina na malo cvijećem"]
[null,null,null,null,null,null,null,null,null,null,"47.76.2 - Trgovina na malo sadnicama i gnojivom"]
[null,null,null,null,null,null,null,null,null,null,"47.76.3 - Trgovina na malo kućnim ljubimcima i hranom za kućne ljubimce"]
[null,null,null,null,null,null,null,null,null,null,"47.77.0 - Trgovina na malo satovima i nakitom"]
[null,null,null,null,null,null,null,null,null,null,"47.78.0 - Trgovina na malo ostalom novom robom"]
[null,null,null,null,null,null,null,null,null,null,"47.79.0 - Trgovina na malo rabljenom robom"]
[null,null,null,null,null,null,null,null,null,null,"47.81.0 - Trgovina na malo motornim vozilima"]
[null,null,null,null,null,null,null,null,null,null,"47.82.0 - Trgovina na malo dijelovima i priborom za motorna vozila"]
[null,null,null,null,null,null,null,null,null,null,"47.83.0 - Trgovina na malo motociklima, njihovim dijelovima i priborom"]
[null,null,null,null,null,null,null,null,null,null,"47.91.0 - Uslužne djelatnosti posredovanja u nespecijaliziranoj trgovini na malo"]
[null,null,null,null,null,null,null,null,null,null,"47.92.0 - Uslužne djelatnosti posredovanja u specijaliziranoj trgovini na malo"]
[null,null,null,null,null,null,null,null,null,null,"49.11.0 - Prijevoz putnika nacionalnom i međunarodnom željeznicom"]
[null,null,null,null,null,null,null,null,null,null,"49.12.0 - Ostali željeznički prijevoz putnika"]
[null,null,null,null,null,null,null,null,null,null,"49.20.0 - Željeznički prijevoz robe"]
[null,null,null,null,null,null,null,null,null,null,"49.31.0 - Linijski cestovni prijevoz putnika"]
[null,null,null,null,null,null,null,null,null,null,"49.32.0 - Povremeni cestovni prijevoz putnika"]
[null,null,null,null,null,null,null,null,null,null,"49.33.0 - Uslužne djelatnosti prijevoza putnika vozilom s vozačem na zahtjev"]
[null,null,null,null,null,null,null,null,null,null,"49.34.0 - Prijevoz putnika žičarom i vučnicom"]
[null,null,null,null,null,null,null,null,null,null,"49.39.0 - Ostali kopneni prijevoz putnika, d. n."]
[null,null,null,null,null,null,null,null,null,null,"49.41.0 - Cestovni prijevoz robe"]
[null,null,null,null,null,null,null,null,null,null,"49.42.0 - Usluge preseljenja"]
[null,null,null,null,null,null,null,null,null,null,"49.50.0 - Cjevovodni transport"]
[null,null,null,null,null,null,null,null,null,null,"50.10.1 - Prijevoz putnika na plovilima za kružna putovanja i izlete"]
[null,null,null,null,null,null,null,null,null,null,"50.10.9 - Ostali pomorski i obalni prijevoz putnika"]
[null,null,null,null,null,null,null,null,null,null,"50.20.0 - Pomorski i obalni prijevoz robe"]
[null,null,null,null,null,null,null,null,null,null,"50.30.0 - Prijevoz putnika unutarnjim vodnim putovima"]
[null,null,null,null,null,null,null,null,null,null,"50.40.0 - Prijevoz robe unutarnjim vodnim putovima"]
[null,null,null,null,null,null,null,null,null,null,"51.10.0 - Zračni prijevoz putnika"]
[null,null,null,null,null,null,null,null,null,null,"51.21.0 - Zračni prijevoz robe"]
[null,null,null,null,null,null,null,null,null,null,"51.22.0 - Svemirski prijevoz"]
[null,null,null,null,null,null,null,null,null,null,"52.10.0 - Skladištenje robe"]
[null,null,null,null,null,null,null,null,null,null,"52.21.0 - Uslužne djelatnosti u vezi s kopnenim prijevozom"]
[null,null,null,null,null,null,null,null,null,null,"52.22.0 - Uslužne djelatnosti u vezi s vodnim prijevozom"]
[null,null,null,null,null,null,null,null,null,null,"52.23.0 - Uslužne djelatnosti u vezi sa zračnim prijevozom"]
[null,null,null,null,null,null,null,null,null,null,"52.24.0 - Prekrcaj tereta"]
[null,null,null,null,null,null,null,null,null,null,"52.25.0 - Uslužne djelatnosti u logistici"]
[null,null,null,null,null,null,null,null,null,null,"52.26.0 - Ostale prateće djelatnosti u prijevozu"]
[null,null,null,null,null,null,null,null,null,null,"52.31.0 - Uslužne djelatnosti posredovanja u prijevozu robe"]
[null,null,null,null,null,null,null,null,null,null,"52.32.0 - Uslužne djelatnosti posredovanja u prijevozu putnika"]
[null,null,null,null,null,null,null,null,null,null,"53.10.0 - Djelatnosti pružanja univerzalnih poštanskih usluga"]
[null,null,null,null,null,null,null,null,null,null,"53.20.0 - Djelatnosti pružanja ostalih poštanskih i kurirskih usluga"]
[null,null,null,null,null,null,null,null,null,null,"53.30.0 - Uslužne djelatnosti posredovanja u pružanju poštanskih i kurirskih usluga "]
[null,null,null,null,null,null,null,null,null,null,"55.10.0 - Hoteli i sličan smještaj"]
[null,null,null,null,null,null,null,null,null,null,"55.20.0 - Odmarališta i slični objekti za kraći odmor"]
[null,null,null,null,null,null,null,null,null,null,"55.30.0 - Kampovi i prostori za kampiranje"]
[null,null,null,null,null,null,null,null,null,null,"55.40.0 - Uslužne djelatnosti posredovanja u pružanju smještaja"]
[null,null,null,null,null,null,null,null,null,null,"55.90.0 - Ostali smještaj"]
[null,null,null,null,null,null,null,null,null,null,"56.11.0 - Djelatnosti restorana"]
[null,null,null,null,null,null,null,null,null,null,"56.12.0 - Pokretne djelatnosti usluživanja hrane"]
[null,null,null,null,null,null,null,null,null,null,"56.21.0 - Djelatnosti keteringa za razna događanja"]
[null,null,null,null,null,null,null,null,null,null,"56.22.0 - Usluge keteringa na osnovi ugovora i ostale djelatnosti pripreme i usluživanja hrane"]
[null,null,null,null,null,null,null,null,null,null,"56.30.0 - Djelatnosti pripreme i usluživanja pića"]
[null,null,null,null,null,null,null,null,null,null,"56.40.0 - Uslužne djelatnosti posredovanja u pripremi i usluživanju hrane i pića"]
[null,null,null,null,null,null,null,null,null,null,"58.11.1 - Izdavanje udžbenika"]
[null,null,null,null,null,null,null,null,null,null,"58.11.9 - Izdavanje ostalih knjiga"]
[null,null,null,null,null,null,null,null,null,null,"58.12.0 - Izdavanje novina"]
[null,null,null,null,null,null,null,null,null,null,"58.13.0 - Izdavanje časopisa i periodičnih publikacija"]
[null,null,null,null,null,null,null,null,null,null,"58.19.0 - Ostale izdavačke djelatnosti, osim izdavanja softvera"]
[null,null,null,null,null,null,null,null,null,null,"58.21.0 - Izdavanje videoigara"]
[null,null,null,null,null,null,null,null,null,null,"58.29.0 - Ostalo izdavanje softvera"]
[null,null,null,null,null,null,null,null,null,null,"59.11.0 - Proizvodnja filmova, videofilmova i televizijskog programa"]
[null,null,null,null,null,null,null,null,null,null,"59.12.0 - Djelatnosti koje slijede nakon proizvodnje filmova i videofilmova i televizijskog programa"]
[null,null,null,null,null,null,null,null,null,null,"59.13.0 - Distribucija filmova, videofilmova i televizijskog programa"]
[null,null,null,null,null,null,null,null,null,null,"59.14.0 - Djelatnosti prikazivanja filmova"]
[null,null,null,null,null,null,null,null,null,null,"59.20.0 - Djelatnosti snimanja zvučnih zapisa i izdavanja glazbenih zapisa"]
[null,null,null,null,null,null,null,null,null,null,"60.10.0 - Emitiranje radijskog programa i distribucija audio sadržaja"]
[null,null,null,null,null,null,null,null,null,null,"60.20.0 - Emitiranje televizijskog programa i video distribucija"]
[null,null,null,null,null,null,null,null,null,null,"60.31.0 - Djelatnosti novinskih agencija"]
[null,null,null,null,null,null,null,null,null,null,"60.39.0 - Ostale djelatnosti distribucije sadržaja"]
[null,null,null,null,null,null,null,null,null,null,"61.10.0 - Žičane, bežične i satelitske telekomunikacijske djelatnosti"]
[null,null,null,null,null,null,null,null,null,null,"61.20.0 - Djelatnosti preprodaje telekomunikacijskih usluga i usluge posredovanja u telekomunikacijskim djelatnostima"]
[null,null,null,null,null,null,null,null,null,null,"61.90.0 - Ostale telekomunikacijske djelatnosti"]
[null,null,null,null,null,null,null,null,null,null,"62.10.1 - Programiranje videoigara"]
[null,null,null,null,null,null,null,null,null,null,"62.10.9 - Ostalo računalno programiranje"]
[null,null,null,null,null,null,null,null,null,null,"62.20.0 - Računalno savjetovanje i djelatnosti upravljanja računalnom opremom"]
[null,null,null,null,null,null,null,null,null,null,"62.90.0 - Ostale uslužne djelatnosti u vezi s informacijskom tehnologijom i računalima"]
[null,null,null,null,null,null,null,null,null,null,"63.10.0 - Računalna infrastruktura, obrada podataka, usluge poslužitelja i povezane djelatnosti"]
[null,null,null,null,null,null,null,null,null,null,"63.91.0 - Djelatnosti internetskih portala"]
[null,null,null,null,null,null,null,null,null,null,"63.92.0 - Ostale informacijske uslužne djelatnosti"]
[null,null,null,null,null,null,null,null,null,null,"64.11.0 - Središnje bankarstvo"]
[null,null,null,null,null,null,null,null,null,null,"64.19.0 - Ostalo novčarsko posredovanje"]
[null,null,null,null,null,null,null,null,null,null,"64.21.0 - Djelatnosti holding-društava"]
[null,null,null,null,null,null,null,null,null,null,"64.22.0 - Djelatnosti kanala financiranja"]
[null,null,null,null,null,null,null,null,null,null,"64.31.0 - Djelatnost novčanih i nenovčanih investicijskih fondova"]
[null,null,null,null,null,null,null,null,null,null,"64.32.0 - Djelatnosti uzajamnih fondova (trustova), imovinskih računa i računa o zastupanju"]
[null,null,null,null,null,null,null,null,null,null,"64.91.0 - Financijski leasing"]
[null,null,null,null,null,null,null,null,null,null,"64.92.0 - Ostalo kreditno posredovanje"]
[null,null,null,null,null,null,null,null,null,null,"64.99.0 - Ostale financijske uslužne djelatnosti, osim osiguranja i mirovinskih fondova, d. n."]
[null,null,null,null,null,null,null,null,null,null,"65.11.0 - Životno osiguranje"]
[null,null,null,null,null,null,null,null,null,null,"65.12.0 - Ostalo osiguranje, osim životnog"]
[null,null,null,null,null,null,null,null,null,null,"65.20.0 - Reosiguranje"]
[null,null,null,null,null,null,null,null,null,null,"65.30.0 - Mirovinski fondovi"]
[null,null,null,null,null,null,null,null,null,null,"66.11.0 - Upravljanje financijskim tržištima"]
[null,null,null,null,null,null,null,null,null,null,"66.12.0 - Djelatnosti posredovanja u poslovanju vrijednosnim papirima i robnim ugovorima"]
[null,null,null,null,null,null,null,null,null,null,"66.19.0 - Ostale pomoćne djelatnosti za financijske usluge, osim osiguranja i mirovinskih fondova"]
[null,null,null,null,null,null,null,null,null,null,"66.21.0 - Procjena rizika i štete"]
[null,null,null,null,null,null,null,null,null,null,"66.22.0 - Djelatnosti agenata i posrednika osiguranja"]
[null,null,null,null,null,null,null,null,null,null,"66.29.0 - Pomoćne djelatnosti u osiguranju i mirovinskim fondovima, d. n."]
[null,null,null,null,null,null,null,null,null,null,"66.30.0 - Djelatnosti upravljanja fondovima"]
[null,null,null,null,null,null,null,null,null,null,"68.11.0 - Kupnja i prodaja vlastitih nekretnina"]
[null,null,null,null,null,null,null,null,null,null,"68.12.0 - Organizacija izvedbe projekata za zgrade"]
[null,null,null,null,null,null,null,null,null,null,"68.20.0 - Iznajmljivanje i upravljanje vlastitim nekretninama ili nekretninama uzetim u zakup (leasing)"]
[null,null,null,null,null,null,null,null,null,null,"68.31.0 - Uslužne djelatnosti posredovanja u poslovanju nekretninama"]
[null,null,null,null,null,null,null,null,null,null,"68.32.0 - Ostale djelatnosti poslovanja nekretninama uz naplatu ili na osnovi ugovora"]
[null,null,null,null,null,null,null,null,null,null,"69.10.1 - Djelatnosti javnih bilježnika"]
[null,null,null,null,null,null,null,null,null,null,"69.10.2 - Djelatnosti odvjetnika"]
[null,null,null,null,null,null,null,null,null,null,"69.10.9 - Ostale pravne djelatnosti"]
[null,null,null,null,null,null,null,null,null,null,"69.20.1 - Računovodstvene i knjigovodstvene djelatnosti"]
[null,null,null,null,null,null,null,null,null,null,"69.20.2 - Revizijske djelatnosti"]
[null,null,null,null,null,null,null,null,null,null,"69.20.3 - Porezno savjetovanje"]
[null,null,null,null,null,null,null,null,null,null,"70.10.0 - Upravljačke djelatnosti"]
[null,null,null,null,null,null,null,null,null,null,"70.20.0 - Savjetovanje u vezi s poslovanjem i ostalim upravljanjem"]
[null,null,null,null,null,null,null,null,null,null,"71.11.1 - Arhitektonsko projektiranje"]
[null,null,null,null,null,null,null,null,null,null,"71.11.2 - Urbanističko i prostorno planiranje"]
[null,null,null,null,null,null,null,null,null,null,"71.12.1 - Geodetske i geoinformatičke djelatnosti"]
[null,null,null,null,null,null,null,null,null,null,"71.12.9 - Ostalo inženjerstvo i s njim povezano tehničko savjetovanje"]
[null,null,null,null,null,null,null,null,null,null,"71.20.0 - Tehničko ispitivanje i analiza"]
[null,null,null,null,null,null,null,null,null,null,"72.10.0 - Istraživanje i eksperimentalni razvoj u prirodnim, tehničkim i tehnološkim znanostima"]
[null,null,null,null,null,null,null,null,null,null,"72.20.0 - Istraživanje i eksperimentalni razvoj u društvenim i humanističkim znanostima"]
[null,null,null,null,null,null,null,null,null,null,"73.11.0 - Djelatnosti agencija za promidžbu"]
[null,null,null,null,null,null,null,null,null,null,"73.12.0 - Oglašavanje putem medija"]
[null,null,null,null,null,null,null,null,null,null,"73.20.0 - Istraživanje tržišta i ispitivanje javnog mnijenja"]
[null,null,null,null,null,null,null,null,null,null,"73.30.0 - Odnosi s javnošću i djelatnosti priopćavanja"]
[null,null,null,null,null,null,null,null,null,null,"74.11.0 - Djelatnosti industrijskog i modnog dizajna"]
[null,null,null,null,null,null,null,null,null,null,"74.12.0 - Djelatnosti grafičkog dizajna i vizualnih komunikacija"]
[null,null,null,null,null,null,null,null,null,null,"74.13.0 - Djelatnosti uređivanja interijera"]
[null,null,null,null,null,null,null,null,null,null,"74.14.0 - Ostale specijalizirane dizajnerske djelatnosti"]
[null,null,null,null,null,null,null,null,null,null,"74.20.0 - Fotografske djelatnosti"]
[null,null,null,null,null,null,null,null,null,null,"74.30.1 - Djelatnosti pismenog prevođenja"]
[null,null,null,null,null,null,null,null,null,null,"74.30.2 - Djelatnosti usmenog prevođenja"]
[null,null,null,null,null,null,null,null,null,null,"74.91.0 - Uslužne djelatnosti posredovanja i promidžbe u vezi s patentima"]
[null,null,null,null,null,null,null,null,null,null,"74.99.1 - Djelatnosti zaštite na radu"]
[null,null,null,null,null,null,null,null,null,null,"74.99.9 - Sve ostale razne stručne, znanstvene i tehničke djelatnosti, d. n."]
[null,null,null,null,null,null,null,null,null,null,"75.00.0 - Veterinarske djelatnosti"]
[null,null,null,null,null,null,null,null,null,null,"77.11.0 - Iznajmljivanje i davanje u zakup (leasing) automobila i motornih vozila lake kategorije"]
[null,null,null,null,null,null,null,null,null,null,"77.12.0 - Iznajmljivanje i davanje u zakup (leasing) kamiona"]
[null,null,null,null,null,null,null,null,null,null,"77.21.1 - Iznajmljivanje i davanje u zakup (leasing) plovila za razonodu"]
[null,null,null,null,null,null,null,null,null,null,"77.21.9 - Iznajmljivanje i davanje u zakup (leasing) ostale opreme za rekreaciju i sport"]
[null,null,null,null,null,null,null,null,null,null,"77.22.0 - Iznajmljivanje i davanje u zakup (leasing) ostalih predmeta za osobnu uporabu i kućanstvo"]
[null,null,null,null,null,null,null,null,null,null,"77.31.0 - Iznajmljivanje i davanje u zakup (leasing) poljoprivrednih strojeva i opreme"]
[null,null,null,null,null,null,null,null,null,null,"77.32.0 - Iznajmljivanje i davanje u zakup (leasing) strojeva i opreme za građevinarstvo i inženjerstvo"]
[null,null,null,null,null,null,null,null,null,null,"77.33.0 - Iznajmljivanje i davanje u zakup (leasing) uredskih strojeva i opreme te računala"]
[null,null,null,null,null,null,null,null,null,null,"77.34.0 - Iznajmljivanje i davanje u zakup (leasing) plovnih prijevoznih sredstava"]
[null,null,null,null,null,null,null,null,null,null,"77.35.0 - Iznajmljivanje i davanje u zakup (leasing) zračnih prijevoznih sredstava"]
[null,null,null,null,null,null,null,null,null,null,"77.39.0 - Iznajmljivanje i davanje u zakup (leasing) ostalih strojeva, opreme i materijalnih dobara, d. n."]
[null,null,null,null,null,null,null,null,null,null,"77.40.0 - Davanje u zakup (leasing) prava na uporabu intelektualnog vlasništva i sličnih proizvoda, osim radova koji su zaštićeni autorskim pravima"]
[null,null,null,null,null,null,null,null,null,null,"77.51.0 - Usluge posredovanja u iznajmljivanju i davanju u zakup (leasing) automobila, kampera i prikolica"]
[null,null,null,null,null,null,null,null,null,null,"77.52.0 - Usluge posredovanja u iznajmljivanju i davanju u zakup (leasing) ostalih materijalnih dobara i nefinancijske nematerijalne imovine"]
[null,null,null,null,null,null,null,null,null,null,"78.10.0 - Djelatnosti agencija za zapošljavanje"]
[null,null,null,null,null,null,null,null,null,null,"78.20.0 - Djelatnosti agencija za privremeno zapošljavanje i ostalo ustupanje ljudskih resursa"]
[null,null,null,null,null,null,null,null,null,null,"79.11.0 - Djelatnosti putničkih agencija"]
[null,null,null,null,null,null,null,null,null,null,"79.12.0 - Djelatnosti organizatora putovanja (turoperatora)"]
[null,null,null,null,null,null,null,null,null,null,"79.90.0 - Ostale rezervacijske usluge i djelatnosti povezane s njima"]
[null,null,null,null,null,null,null,null,null,null,"80.01.1 - Istražne djelatnosti"]
[null,null,null,null,null,null,null,null,null,null,"80.01.2 - Djelatnosti privatne zaštite"]
[null,null,null,null,null,null,null,null,null,null,"80.09.0 - Zaštitne djelatnosti, d. n."]
[null,null,null,null,null,null,null,null,null,null,"81.10.0 - Održavanje zgrada"]
[null,null,null,null,null,null,null,null,null,null,"81.21.0 - Osnovno čišćenje zgrada"]
[null,null,null,null,null,null,null,null,null,null,"81.22.0 - Ostale djelatnosti čišćenja zgrada i objekata"]
[null,null,null,null,null,null,null,null,null,null,"81.23.0 - Ostale djelatnosti čišćenja"]
[null,null,null,null,null,null,null,null,null,null,"81.30.0 - Uslužne djelatnosti uređenja i održavanja krajolika"]
[null,null,null,null,null,null,null,null,null,null,"82.10.0 - Uredske administrativne i pomoćne djelatnosti"]
[null,null,null,null,null,null,null,null,null,null,"82.20.0 - Djelatnosti pozivnih centara"]
[null,null,null,null,null,null,null,null,null,null,"82.30.0 - Organizacija sastanaka i poslovnih sajmova"]
[null,null,null,null,null,null,null,null,null,null,"82.40.0 - Uslužne djelatnosti posredovanja za poslovne pomoćne uslužne djelatnosti, d. n."]
[null,null,null,null,null,null,null,null,null,null,"82.91.0 - Djelatnosti agencija za prikupljanje i naplatu računa te kreditnih ureda"]
[null,null,null,null,null,null,null,null,null,null,"82.92.0 - Djelatnosti pakiranja"]
[null,null,null,null,null,null,null,null,null,null,"82.99.0 - Ostale poslovne pomoćne uslužne djelatnosti, d. n."]
[null,null,null,null,null,null,null,null,null,null,"84.11.0 - Opće djelatnosti javne uprave"]
[null,null,null,null,null,null,null,null,null,null,"84.12.0 - Reguliranje zdravstvenih, obrazovnih, kulturnih i drugih društvenih usluga\n"]
[null,null,null,null,null,null,null,null,null,null,"84.13.0 - Reguliranje i poboljšanje poslovanja u gospodarstvu"]
[null,null,null,null,null,null,null,null,null,null,"84.21.0 - Vanjski poslovi"]
[null,null,null,null,null,null,null,null,null,null,"84.22.0 - Poslovi obrane"]
[null,null,null,null,null,null,null,null,null,null,"84.23.0 - Sudske i pravosudne djelatnosti"]
[null,null,null,null,null,null,null,null,null,null,"84.24.0 - Poslovi javnog reda i sigurnosti"]
[null,null,null,null,null,null,null,null,null,null,"84.25.0 - Djelatnosti vatrogasne službe"]
[null,null,null,null,null,null,null,null,null,null,"84.30.0 - Djelatnosti obveznog socijalnog osiguranja"]
[null,null,null,null,null,null,null,null,null,null,"85.10.0 - Predškolsko obrazovanje"]
[null,null,null,null,null,null,null,null,null,null,"85.20.0 - Osnovnoškolsko obrazovanje"]
[null,null,null,null,null,null,null,null,null,null,"85.31.0 - Opće srednjoškolsko obrazovanje"]
[null,null,null,null,null,null,null,null,null,null,"85.32.0 - Srednjoškolsko strukovno obrazovanje"]
[null,null,null,null,null,null,null,null,null,null,"85.33.0 - Obrazovanje nakon srednjoškolskog koje nije visoko"]
[null,null,null,null,null,null,null,null,null,null,"85.40.0 - Visoko obrazovanje"]
[null,null,null,null,null,null,null,null,null,null,"85.51.0 - Obrazovanje i poučavanje u području sporta i rekreacije"]
[null,null,null,null,null,null,null,null,null,null,"85.52.0 - Obrazovanje i poučavanje u području kulture"]
[null,null,null,null,null,null,null,null,null,null,"85.53.0 - Djelatnosti vozačkih škola"]
[null,null,null,null,null,null,null,null,null,null,"85.59.0 - Ostalo obrazovanje i poučavanje, d. n."]
[null,null,null,null,null,null,null,null,null,null,"85.61.0 - Uslužne djelatnosti posredovanja za tečajeve i mentorstva"]
[null,null,null,null,null,null,null,null,null,null,"85.69.0 - Pomoćne djelatnosti u obrazovanju, d. n."]
[null,null,null,null,null,null,null,null,null,null,"86.10.0 - Djelatnosti bolnica"]
[null,null,null,null,null,null,null,null,null,null,"86.21.0 - Djelatnosti opće medicine"]
[null,null,null,null,null,null,null,null,null,null,"86.22.0 - Specijalistička medicinska djelatnost"]
[null,null,null,null,null,null,null,null,null,null,"86.23.0 - Djelatnost dentalne medicine"]
[null,null,null,null,null,null,null,null,null,null,"86.91.0 - Usluge dijagnostičkog snimanja i djelatnosti medicinskog laboratorija\n"]
[null,null,null,null,null,null,null,null,null,null,"86.92.0 - Prijevoz pacijenata vozilom hitne pomoći"]
[null,null,null,null,null,null,null,null,null,null,"86.93.0 - Djelatnosti psihologa i psihoterapeuta, osim doktora medicine"]
[null,null,null,null,null,null,null,null,null,null,"86.94.0 - Djelatnosti medicinskih sestara i primalja"]
[null,null,null,null,null,null,null,null,null,null,"86.95.0 - Djelatnosti fizioterapeuta"]
[null,null,null,null,null,null,null,null,null,null,"86.96.0 - Djelatnosti tradicionalne, komplementarne i alternativne medicine"]
[null,null,null,null,null,null,null,null,null,null,"86.97.0 - Uslužne djelatnosti posredovanja za medicinske, stomatološke i druge zdravstvene usluge"]
[null,null,null,null,null,null,null,null,null,null,"86.99.0 - Ostale djelatnosti zdravstvene zaštite, d. n."]
[null,null,null,null,null,null,null,null,null,null,"87.10.0 - Djelatnosti ustanova za njegu sa smještajem"]
[null,null,null,null,null,null,null,null,null,null,"87.20.0 - Djelatnosti socijalne skrbi sa smještajem za osobe koje boluju od nedijagnosticirane ili dijagnosticirane mentalne bolesti ili ovisnosti o opojnim sredstvima\n"]
[null,null,null,null,null,null,null,null,null,null,"87.30.0 - Djelatnosti socijalne skrbi sa smještajem za starije osobe i osobe s fizičkim invaliditetom"]
[null,null,null,null,null,null,null,null,null,null,"87.91.0 - Usluge posredovanja za djelatnosti socijalne skrbi sa smještajem"]
[null,null,null,null,null,null,null,null,null,null,"87.99.1 - Djelatnosti ustanova za skrb o braniteljsko-stradalničkoj populaciji iz Domovinskog rata s trajnim smještajem"]
[null,null,null,null,null,null,null,null,null,null,"87.99.2 - Djelatnosti ustanova za skrb o braniteljsko-stradalničkoj populaciji iz Domovinskog rata s privremenim smještajem i boravkom"]
[null,null,null,null,null,null,null,null,null,null,"87.99.9 - Ostale razne djelatnosti socijalne skrbi sa smještajem, d. n."]
[null,null,null,null,null,null,null,null,null,null,"88.10.0 - Djelatnosti socijalne skrbi bez smještaja za starije osobe ili osobe s invaliditetom"]
[null,null,null,null,null,null,null,null,null,null,"88.91.0 - Djelatnosti dnevne skrbi o djeci"]
[null,null,null,null,null,null,null,null,null,null,"88.99.0 - Ostale djelatnosti socijalne skrbi bez smještaja, d. n."]
[null,null,null,null,null,null,null,null,null,null,"90.11.1 - Književno stvaralaštvo "]
[null,null,null,null,null,null,null,null,null,null,"90.11.2 - Glazbeno stvaralaštvo "]
[null,null,null,null,null,null,null,null,null,null,"90.12.0 - Vizualne umjetnosti"]
[null,null,null,null,null,null,null,null,null,null,"90.13.0 - Ostalo umjetničko stvaralaštvo"]
[null,null,null,null,null,null,null,null,null,null,"90.20.0 - Izvedbene umjetnosti"]
[null,null,null,null,null,null,null,null,null,null,"90.31.0 - Rad umjetničkih objekata i lokaliteta"]
[null,null,null,null,null,null,null,null,null,null,"90.39.1 - Djelatnosti producenata i organizatora umjetničkih događaja"]
[null,null,null,null,null,null,null,null,null,null,"90.39.9 - Ostale pomoćne djelatnosti u umjetničkom stvaralaštvu i izvedbenim umjetnostima, d. n."]
[null,null,null,null,null,null,null,null,null,null,"91.11.0 - Djelatnosti knjižnica"]
[null,null,null,null,null,null,null,null,null,null,"91.12.0 - Djelatnosti arhiva"]
[null,null,null,null,null,null,null,null,null,null,"91.21.0 - Djelatnosti muzeja i zbirki"]
[null,null,null,null,null,null,null,null,null,null,"91.22.0 - Djelatnost povijesnih lokaliteta i spomenika kulture"]
[null,null,null,null,null,null,null,null,null,null,"91.30.0 - Konzervatorske, restauratorske i ostale pomoćne djelatnosti u području kulturne baštine"]
[null,null,null,null,null,null,null,null,null,null,"91.41.0 - Djelatnosti botaničkih i zooloških vrtova"]
[null,null,null,null,null,null,null,null,null,null,"91.42.0 - Djelatnosti prirodnih rezervata"]
[null,null,null,null,null,null,null,null,null,null,"92.00.0 - Djelatnosti kockanja i klađenja"]
[null,null,null,null,null,null,null,null,null,null,"93.11.0 - Rad sportskih objekata"]
[null,null,null,null,null,null,null,null,null,null,"93.12.0 - Djelatnosti sportskih klubova"]
[null,null,null,null,null,null,null,null,null,null,"93.13.0 - Djelatnosti fitness centara"]
[null,null,null,null,null,null,null,null,null,null,"93.19.0 - Sportske djelatnosti, d. n."]
[null,null,null,null,null,null,null,null,null,null,"93.21.0 - Djelatnosti zabavnih i tematskih parkova"]
[null,null,null,null,null,null,null,null,null,null,"93.29.1 - Djelatnosti marina"]
[null,null,null,null,null,null,null,null,null,null,"93.29.9 - Ostale zabavne i rekreacijske djelatnosti"]
[null,null,null,null,null,null,null,null,null,null,"94.11.0 - Djelatnosti poslovnih organizacija i organizacija poslodavaca"]
[null,null,null,null,null,null,null,null,null,null,"94.12.0 - Djelatnosti strukovnih članskih organizacija"]
[null,null,null,null,null,null,null,null,null,null,"94.20.0 - Djelatnosti sindikata"]
[null,null,null,null,null,null,null,null,null,null,"94.91.0 - Djelatnosti vjerskih organizacija"]
[null,null,null,null,null,null,null,null,null,null,"94.92.0 - Djelatnosti političkih organizacija"]
[null,null,null,null,null,null,null,null,null,null,"94.99.0 - Djelatnosti ostalih članskih organizacija, d. n."]
[null,null,null,null,null,null,null,null,null,null,"95.10.0 - Popravak i održavanje računala i komunikacijske opreme"]
[null,null,null,null,null,null,null,null,null,null,"95.21.0 - Popravak i održavanje elektroničkih uređaja za široku potrošnju"]
[null,null,null,null,null,null,null,null,null,null,"95.22.0 - Popravak i održavanje aparata za kućanstvo te opreme za kuću i vrt"]
[null,null,null,null,null,null,null,null,null,null,"95.23.0 - Popravak i održavanje obuće i proizvoda od kože"]
[null,null,null,null,null,null,null,null,null,null,"95.24.0 - Popravak i održavanje namještaja i pokućstva"]
[null,null,null,null,null,null,null,null,null,null,"95.25.0 - Popravak i održavanje satova i nakita"]
[null,null,null,null,null,null,null,null,null,null,"95.29.0 - Popravak i održavanje predmeta za osobnu uporabu i kućanstvo, d. n."]
[null,null,null,null,null,null,null,null,null,null,"95.31.0 - Popravak i održavanje motornih vozila"]
[null,null,null,null,null,null,null,null,null,null,"95.32.0 - Popravak i održavanje motocikala"]
[null,null,null,null,null,null,null,null,null,null,"95.40.0 - Uslužne djelatnosti posredovanja u popravku i održavanju računala, predmeta za osobnu uporabu i kućanstvo te motornih vozila i motocikala"]
[null,null,null,null,null,null,null,null,null,null,"96.10.0 - Pranje i čišćenje tekstilnih i krznenih proizvoda"]
[null,null,null,null,null,null,null,null,null,null,"96.21.0 - Frizerski saloni i brijačnice"]
[null,null,null,null,null,null,null,null,null,null,"96.22.0 - Saloni za uljepšavanje i ostali tretmani za ljepotu "]
[null,null,null,null,null,null,null,null,null,null,"96.23.0 - Dnevni spa tretmani, saune i parne kupelji"]
[null,null,null,null,null,null,null,null,null,null,"96.30.1 - Djelatnosti groblja i krematorija"]
[null,null,null,null,null,null,null,null,null,null,"96.30.2 - Pogrebničke djelatnosti"]
[null,null,null,null,null,null,null,null,null,null,"96.40.0 - Uslužne djelatnosti posredovanja u ostalim osobnim uslugama"]
[null,null,null,null,null,null,null,null,null,null,"96.91.0 - Pružanje osobnih uslužnih djelatnosti kućanstvima"]
[null,null,null,null,null,null,null,null,null,null,"96.99.1 - Usluge skrbi za kućne ljubimce"]
[null,null,null,null,null,null,null,null,null,null,"96.99.9 - Ostale osobne uslužne djelatnosti"]
[null,null,null,null,null,null,null,null,null,null,"97.00.0 - Djelatnosti kućanstava koja zapošljavaju poslugu"]
[null,null,null,null,null,null,null,null,null,null,"98.10.0 - Djelatnosti privatnih kućanstava koja proizvode različitu robu za vlastite potrebe"]
[null,null,null,null,null,null,null,null,null,null,"98.20.0 - Djelatnosti privatnih kućanstava koja obavljaju različite usluge za vlastite potrebe"]

{"sheet":"šifrarnik identifikatora","index":4,"n_rows":124,"n_cols":7,"rows_kept":124,"cut":false,"hidden":false,"merged":[]}
["DVOSLOVNA OZNAKA"," DRŽAVA ILI ZEMLJA (kratko ime na hrvatskom)","VRSTA IDENTIFIKATORA","OPIS FORMATA ZA IZVJEŠTAVANJE","FORMAT IZVJEŠTAVANJA",null,"VRSTA IDENTIFIKATORA"]
["AR","ARGENTINA","Porezni broj","11-znamenkasti broj u formatu NN-NNNNNNNN-N (prve 2 znamenke označuju tip osobe; ID/DNI/CUIT).","30-71024269-7",null,"VAT broj"]
["AU","AUSTRALIJA","Broj iz poslovnog registra","2 znamenke + \" \" + 3 znamenke + \" \" + 3 znamenke + \" \" + 3 znamenke","34 072 814 058",null,"Porezni broj"]
["AU","AUSTRALIJA","Broj iz poslovnog registra","3 znamenke + \" \" + 3 znamenke + \" \" + 3 znamenke","150 217 299",null,"Broj iz poslovnog registra"]
["AT","AUSTRIJA","Broj iz poslovnog registra","do 7 znakova; zadnji znak je slovo (nije osjetljivo na velika/mala slova)","79063w \n"]
["BS","BAHAMI","Broj iz poslovnog registra","Broj od 5 do 7 znamenki","85844, 8046725"]
["BH","BAHREIN","Broj iz poslovnog registra","5 znamenki + \"-\" + 1 znamenka"," 49171-1"]
["GG","GUERNSEY","Broj iz poslovnog registra","Broj s najviše 6 znamenki",56753]
["BY","BJELORUSIJA","Broj iz poslovnog registra","9-znamenkasti broj",191262660]
["BE","BELGIJA","Broj iz poslovnog registra","10-znamenkasti broj, uvijek počinje s 0 ili 1 (posljednje dvije znamenke su kontrolni broj)","0203201340, 1203201340"]
["BZ","BELIZE","Porezni broj","6-znamenkasti broj",167815]
["BM","BERMUDI","Broj iz poslovnog registra","Bez unaprijed definiranog formata"]
["BA","BOSNA I HERCEGOVINA","Broj iz poslovnog registra","Broj s blokovima znamenki odvojenih crticama","64-01-0012-10, 1-24548"]
["BA","BOSNA I HERCEGOVINA","Porezni broj","12-znamenkasti broj","236031950005"]
["BG","BUGARSKA","VAT broj","\"BG\" + 9-znamenkasti broj ili \"BG\" + 10-znamenkasti broj","BG999999999, BG9999999999"]
["CA","KANADA","Porezni broj","9-znamenkasti broj",167251986]
["CA","KANADA","Broj iz poslovnog registra","7-znamenkasti broj ili \"BC\" + 7-znamenkasti broj","BC1006807, 0759736"]
["CL","ČILE","Porezni broj","8-znamenkasti broj (po potrebi u blokovima odvojen točkama) nakon čega slijedi crtica i \"K\" ili znamenka","61.704.000-K, 61704000-1"]
["CN","KINA","Porezni broj","18-znakovni niz sastavljen od slova i brojeva","167251986167251433"]
["CO","KOLUMBIJA","Porezni broj","9-znamenkasti broj + 1 znamenka","802024439-2"]
["CR","KOSTARIKA","Broj iz poslovnog registra","1 znamenka + \"-\" + 3 znamenke + \"-\" + 6 znamenki"," 3-130-684554"]
["HR","HRVATSKA","Broj iz poslovnog registra","8-znamenkasti broj (može počinjati nulama). Ako je kraći od 8 znamenki, nule se moraju dodati na početak da bi broj imao ukupno 8 znamenki","03449602"]
["HR","HRVATSKA","Porezni broj","11-znamenkasti broj (može, ali ne mora počinjati nulama)","05937759187"]
["CW","CURACAO","Porezni broj","9-znamenkasti broj",158497004]
["CY","CIPAR","Broj iz poslovnog registra","Veliko slovo C, O ili P, nakon čega slijedi broj od 1 do najviše 8 znamenki","C273730"]
["CY","CIPAR","Porezni broj","9 znakova; 8-znamenkasti broj + zadnji znak je veliko slovo ","12000018M"]
["CY","CIPAR","VAT broj","9 znakova; prvi znak je jedan od sljedećih brojeva: 0, 1, 3, 9, 4, 5; zadnji znak je veliko slovo ","10145530D"]
["CZ","ČEŠKA","Broj iz poslovnog registra","8-znamenkasti broj; ako broj ima manje od 8 znamenki, mora se dopuniti nulama na početku. Slova i posebni znakovi nisu dopušteni","00006947"]
["DK","DANSKA","Broj iz poslovnog registra","8-znamenkasti broj",22756214]
["DK","DANSKA","VAT broj","8-znamenkasti broj",22756214]
["DO","DOMINIKANSKA REPUBLIKA","Porezni broj","3 znamenke + \"-\" + 5 znamenki + \"-\" + 1 znamenka","102-01887-1"]
["EC","EKVADOR","Porezni broj","13-znamenkasti broj","9922882800010"]
["EE","ESTONIJA","Broj iz poslovnog registra","8-znamenkasti broj",10005211]
["FI","FINSKA","VAT broj","\"FI\" + 8-znamenkasti broj","FI01120389"]
["FI","FINSKA","Broj iz poslovnog registra","8-znamenkasti broj; posljednjoj znamenki prethodi crtica"," 0112038-9"]
["FR","FRANCUSKA","Broj iz poslovnog registra","9-znamenkasti broj",542051180]
["DE","NJEMAČKA","Porezni broj","13-znamenkasti broj",2475081508155]
["DE","NJEMAČKA","VAT broj","\"DE\" + 9-znamenkasti broj","DE811258273"]
["GR","GRČKA","Porezni broj","9-znamenkasti broj",940498654]
["GL","GRENLAND","Broj iz poslovnog registra","8-znamenkasti broj",22756214]
["GT","GVATEMALA","Porezni broj","7 znamenki + \"-\" + 1 znamenka","7555605-7"]
["HK","HONG KONG","Broj iz poslovnog registra","8-znamenkasti broj",35478945]
["HK","HONG KONG","Broj iz poslovnog registra","7-znamenkasti broj, može biti prethodno dodano jedno ili dva slova","2153177 or F0002646"]
["HU","MADŽARSKA","VAT broj","\"HU\" + 8-znamenkasti broj","HU99999999"]
["HU","MADŽARSKA","Porezni broj","8-znamenkasti broj",99999999]
["IS","ISLAND","Broj iz poslovnog registra","10-znamenkasti broj","5810080150"]
["IS","ISLAND","Porezni broj","6 znamenki + \"-\" + 4 znamenke","660791-6719"]
["IN","INDIJA","Broj iz poslovnog registra","21-znakovni niz sastavljen od slova i brojeva","L28920MH1945PLC004520"]
["IN","INDIJA","Porezni broj","10-znakovni niz sastavljen od slova i brojeva","AFZPK7190K"]
["ID","INDONEZIJA","Porezni broj","9-znamenkasti broj u 4 bloka odvojen točkama, nakon čega slijedi crtica i 6-znamenkasti broj u 2 bloka od po 3 znamenke, također odvojen točkom","01.001.634.3-093.000"]
["IE","IRSKA","VAT broj","\"IE\" + do 9 znakova","IE1234567WH, IE1234567"]
["IM","OTOK MAN","Porezni broj","\"[H,C,X] + 6 znamenki + \"-\" + 2 znamenke","C155673-79"]
["IL","IZRAEL","Porezni broj","9-znamenkasti broj",514157999]
["IT","ITALIJA","Porezni broj","11-znamenkasti broj","00470400011"]
["JP","JAPAN","Broj iz poslovnog registra","13-znamenkasti broj","1251425368993"]
["JE","JERSEY","Porezni broj","\"[A-Z]+ [A-Z] + 5 znamenki; Porezni identifikacijski brojevi za tvrtke počinju slovom C, za partnerstva slovima D ili E, a za ostale subjekte slovom E.","CC17261"]
["KZ","KAZAHSTAN","Broj iz poslovnog registra","12-znamenkasti broj","612400015835"]
["LV","LETONIJA","Broj iz poslovnog registra","11-znamenkasti broj",40103681895]
["LV","LETONIJA","VAT broj","\"LV\" + 11-znamenkasti broj","LV40103681895"]
["LB","LIBANON","Porezni broj","3-znamenkasti broj",816]
["LI","LIHTENŠTAJN","Broj iz poslovnog registra","Niz koji počinje s \"FL\", nakon čega slijedi crtica i 10-znamenkasti broj u 3 bloka odvojen točkama, zatim crtica i još jedna znamenka","FL-0001.012.124-5"]
["LT","LITVA","Broj iz poslovnog registra","9-znamenkasti broj",110486217]
["LU","LUKSEMBURG","VAT broj","8-znamenkasti broj",10355144]
["MY","MALEZIJA","Broj iz poslovnog registra","Stara verzija: 7 znamenki + \"-\" + [A-Z]; Nova verzija: 12 znamenki; Prve četiri znamenke predstavljaju godinu registracije; Sljedeće dvije označuju vrstu poslovnog subjekta: 01 – lokalna tvrtka, 02 – strana tvrtka, 03 – obrt, 04 – lokalno partnerstvo s ograničenom odgovornošću (LLP), 05 – strano LLP, 06 – LLP za profesionalnu praksu; Posljednjih šest znamenki su redni broj registracije","Stara verzija: 1130376-K\nNova verzija: 202005123456"]
["MY","MALEZIJA","Broj iz poslovnog registra","Nema unaprijed definiranog formata"]
["MT","MALTA","VAT broj","8-znamenkasti broj",13240110]
["MH","MARŠALOVI OTOCI","Broj iz poslovnog registra","Broj do 6 znamenki","8232, 53765, 478893"]
["MU","MAURICIJUS","Porezni broj","8-znamenkasti broj: Za fizičke osobe: prvi broj je uvijek 1, 5, 7 ili 8; Za pravne subjekte: prvi broj je uvijek 2 ili 3",27659804]
["MX","MEKSIKO","Porezni broj","3 slova + \"-\" + 6-znamenkasti broj + \"-\" + niz od 3 znaka","GFI-920961-IL7"]
["MC","MONAKO","Broj iz poslovnog registra","2 do 4 znamenke + 1 veliko slovo + 5-znamenkasti broj","6110Z07638, 9411Z05827"]
["ME","CRNA GORA","Broj iz poslovnog registra","8-znamenkasti broj","6023754"]
["ME","CRNA GORA","Porezni broj","8-znamenkasti broj","03073459"]
["NL","NIZOZEMSKA","Porezni broj","9-znamenkasti broj; može počinjati nulama","123456789, 000012345"]
["NC","NOVA KALEDONIJA","Broj iz poslovnog registra","7-znamenkasti broj",1000439]
["NZ","NOVI ZELAND","Broj iz poslovnog registra","1 do 9 znamenki",592734156]
["NZ","NOVI ZELAND","Broj iz poslovnog registra","13-znamenkasti broj",9429041132463]
["NO","NORVEŠKA","Broj iz poslovnog registra","9-znamenkasti broj",987654321]
["OM","OMAN","Porezni broj","1 do 7 znamenki",693676]
["PA","PANAMA","Porezni broj","Nema unaprijed definiranog formata","0000025752-00, 9-98-420-25, 07--0091-0097, 380693-1-421669-07, 59-1921450, 1410685-1-629823-55"]
["PE","PERU","Porezni broj","11-znamenkasti broj; (a) Fizičke osobe s DNI: Prefiks 10 + DNI + kontrolna znamenka; (b) Fizičke osobe s drugim dokumentom: Prefiks 15 + slučajan broj + kontrolna znamenka",20100152941]
["PL","POLJSKA","Broj iz poslovnog registra","Broj promjenjive duljine",456228]
["PL","POLJSKA","Porezni broj","10-znamenkasti broj",7740001454]
["PL","POLJSKA","Broj iz poslovnog registra","9-znamenkasti broj ili 14-znamenkasti broj s 5 nula na kraju","610188201, 12345678900000"]
["PL","POLJSKA","VAT broj","\"PL\" + 10-znamenkasti broj","PL7740001454"]
["PT","PORTUGAL","Porezni broj","9-znamenkasti broj",500792771]
["QA","KATAR","Porezni broj","10-znamenkasti broj",12345678]
["MK","MAKEDONIJA","Broj iz poslovnog registra","7-znamenkasti broj","4558669"]
["MK","MAKEDONIJA","Porezni broj","13-znamenkasti broj","4030005560757"]
["RS","SRBIJA","Broj iz poslovnog registra","8-znamenkasti broj",17464523]
["RS","SRBIJA","Porezni broj","9-znamenkasti broj",600184098]
["RO","RUMUNJSKA","Porezni broj","\"RO\" + najviše 10-znamenkasti broj","RO1234567890"]
["RO","RUMUNJSKA","VAT broj","\"RO\" + najviše 10-znamenkasti broj","RO9999999999"]
["RU","RUSIJA","Porezni broj","10-znamenkasti broj",1624351625]
["RU","RUSIJA","Broj iz poslovnog registra","13-znamenkasti broj",1036165026589]
["SM","SAN MARINO","Porezni broj","Broj do 5 znamenki, opcionalno s \"SM\" na početku",19854]
["SA","SAUDIJSKA ARABIJA","Porezni broj","10-znamenkasti broj",8754326197]
["SC","SEJŠELI","Broj iz poslovnog registra","9-znamenkasti broj slučajno generiran, s kontrolnom znamenkom; treća znamenka označava vrstu entiteta: 1 – Tvrtka, 2 – Pojedinac (samozaposleni ili iznajmljivač), 3 – Partnerstvo, 4 – Investicija, 5 – Povjerenje (trust), 7 – Fondovi, 8 – IBC",338239836]
["SG","SINGAPUR","Porezni broj","Niz slova i znamenki, opcionalno s crticom i sufiksom","201117341E, S73FC2287H, 193500026Z"]
["SK","SLOVAČKA","Broj iz poslovnog registra","8-znamenkasti broj ili 8-znamenkasti broj + 1 malo slovo","31364501 or 31364501a"]
["SI","SLOVENIJA","Porezni broj","8-znamenkasti broj",79007589]
["SI","SLOVENIJA","VAT broj","\"SI\" + 8-znamenkasti broj","SI79007589"]
["SI","SLOVENIJA","Broj iz poslovnog registra","10-znamenkasti broj",5063345000]
["ZA","JUŽNOAFRIČKA REPUBLIKA","Porezni broj","[0,1,2,3,9] + 9-znamenkasti broj",209325358]
["KR","KOREJA, REPUBLIKA","Broj iz poslovnog registra","3 znamenke + \"-\" + 2 znamenke + \"-\" + 5 znamenki","219-82-01220"]
["ES","ŠPANJOLSKA","Porezni broj","9-znakovni niz od slova i brojeva","A28015865, S2826011E"]
["SE","ŠVEDSKA","VAT broj","\"SE\" + 12-znamenkasti broj","SE554521579501"]
["SE","ŠVEDSKA","Broj iz poslovnog registra","10-znamenkasti broj, može imati \"-\" nakon šeste znamenke. Treća znamenka uvijek od 2 do 9","554521-5795"]
["CH","ŠVICARSKA","Broj iz poslovnog registra","\"CH\" + 3 znamenke + \"-\" + 7 znamenki + \"-\" + 1 znamenka","CH-020-3003970-9"]
["CH","ŠVICARSKA","Broj iz poslovnog registra","\"CH\" + \"-\" + 3 znamenke + \".\" + 1 znamenka + \".\" + 3 znamenke + \".\" + 3 znamenke + \"-\" + 1 znamenka","CH-130.3.018.934-7"]
["CH","ŠVICARSKA","Porezni broj","\"CHE-\" + 3 znamenke + \".\" + 3 znamenke + \".\" + 3 znamenke","CHE-123.456.789"]
["TW","TAJVAN, KINESKA PROVINCIJA","Porezni broj","8-znamenkasti broj",73251209]
["TH","TAJLAND","Broj iz poslovnog registra","13-znamenkasti broj",105538028665]
["TN","TUNIS","Broj iz poslovnog registra","7 znamenki + [A-Z]","1618672Z"]
["TR","TURSKA","Porezni broj","10-znamenkasti broj"]
["UA","UKRAJINA","Broj iz poslovnog registra","8-znamenkasti broj","0123456789"]
["AE","UJEDINJENI ARAPSKI EMIRATI","Broj iz poslovnog registra","Nema unaprijed definiranog formata"]
["GB","VELIKA BRITANIJA","Broj iz poslovnog registra","Niz od slova i brojeva","01234567, SC012345"]
["GB","VELIKA BRITANIJA","Porezni broj","10-znamenkasti kod (ponekad se zadnja znamenka zamjenjuje slovom K)","2415326715, 241532671K"]
["GB","VELIKA BRITANIJA","VAT broj","\"GB\" + 9-znamenkasti broj, ili \"GB\" + 12-znamenkasti broj, ili \"GBGD\" + 3-znamenkasti broj, ili \"GBHA\" + 3-znamenkasti broj","GB412051121, GB532476983177, GBGD321, GBHA666"]
["US","SAD","Broj iz poslovnog registra","5, 6 ili 7-znamenkasti broj",4307493]
["US","SAD","Porezni broj","2-znamenkasti broj + \"-\" + 7-znamenkasti broj","21-2567152"]
["UY","URUGVAJ","Porezni broj","12-znamenkasti broj",216549300014]
["VN","VIJETNAM","Broj iz poslovnog registra","10-znamenkasti broj","0311683782"]
["ZM","ZAMBIJA","Porezni broj","10-znamenkasti broj","1001745366"]

{"sheet":"Tablica 1. Osoba za kontakt","index":5,"n_rows":2,"n_cols":5,"rows_kept":2,"cut":false,"hidden":false,"merged":[]}
["Oznaka osobe","Ime i prezime","Broj telefona","Broj telefaksa","E-mail adresa"]
["<OdgovornaOsoba>","<ImeIPrezime>","<Telefon>","<Telefaks>","<EMail>"]

{"sheet":"Šifrarnik A.","index":6,"n_rows":3,"n_cols":9,"rows_kept":3,"cut":false,"hidden":false,"merged":[[0,8,1,8],[0,0,0,1],[0,2,1,2],[0,3,1,3],[0,6,1,6],[0,7,1,7],[0,5,1,5],[0,4,1,4]]}
["Šifra inozemnog ulagača",null,"Zemlja inozemnog ulagača*","Postotak udjela u kapitalu* (%)","Vrsta identifikatora inozemnog ulagača","Identifikator inozemnog ulagača","Naziv i sjedište inozemnog ulagača","Djelatnost inozemnog ulagača","Način ulaska u vlasničku strukturu"]
["Vrsta inozemnog ulaganja*","Broj inozemnog ulagača                (ne upisuje se za ostale ulagače!)"]
["<SifraInozemnogUlagaca>","<BrojInoUlagaca>","<ZemljaInozemnogVlasnika>","<PostotakUdjelaUVlasnistvu>",null,null,"<NazivISjedisteInozemnogVlasnika>","<DjelatnostInozemnogVlasnika>","<NacinUlaskaUVlasnickuStrukturu>"]

{"sheet":"Šifrarnik K.","index":7,"n_rows":3,"n_cols":3,"rows_kept":3,"cut":false,"hidden":false,"merged":[[0,2,1,2],[0,0,1,0],[0,1,1,1]]}
["Zemlja konačnog kontrolnog vlasnika","Naziv i sjedište konačnog kontrolnog vlasnika","Djelatnost konačnog kontrolnog vlasnika"]
[]
["<ZemljaInozemnogVlasnika>","<NazivISjedisteInozemnogVlasnika>","<DjelatnostInozemnogVlasnika>"]

{"sheet":"Šifrarnik D.","index":8,"n_rows":2,"n_cols":3,"rows_kept":2,"cut":false,"hidden":false,"merged":[]}
["OIB"," Naziv i sjedište domaće pravne osobe ","Postotak udjela u kapitalu (%)            jednak ili veći od 50%"]
["<OIB>","<NazivISjedisteDomacegVlasnika>","<PostotakUdjelaUVlasnistvu>"]

{"sheet":"Tablica A.1.IZRAVNA ULAGANJA","index":9,"n_rows":3,"n_cols":7,"rows_kept":3,"cut":false,"hidden":false,"merged":[[0,5,1,5],[0,6,1,6],[0,0,0,1],[0,2,1,2],[0,3,1,3],[0,4,1,4]]}
["Šifra inozemnog ulagača             ",null,"Mjesec","Tržišna vrijednost dionica ili udjela u kapitalu               (u tisućama eura)","Vrsta vlasničkog ulaganja","Način plaćanja","Udio u temeljnom kapitalu               ostvaren transakcijom ( %)"]
["Vrsta inozemnog ulaganja","Broj inozemnog ulagača"]
["<SifraInozemnogUlagaca>","<BrojInoUlagaca>","<Mjesec>","<TrzisnaVrijednostDionicaIliUdjelaUKapitalu>","<VrstaVlasnickogUlaganja>","<NacinPlacanja>","<UdioUTemeljnomKapitalu>"]

{"sheet":"Tablica A.1.OSTALA ULAGANJA","index":10,"n_rows":3,"n_cols":5,"rows_kept":3,"cut":false,"hidden":false,"merged":[[0,0,0,1],[0,2,1,2],[0,3,1,3],[0,4,1,4]]}
["Šifra inozemnog ulagača - ostali ulagači (<10%)",null,"Mjesec","Tržišna vrijednost udjela u kapitalu                       (u tisućama eura)","Način plaćanja"]
["Vrsta inozemnog ulaganja","Zemlja inozemnog ulagača"]
["<SIFRAINOZEMNOGULAGACA>","<ZemljaInozemnogVlasnika>","<Mjesec>","<TrzisnaVrijednostDionicaIliUdjelaUKapitalu>","<NacinPlacanja>"]

{"sheet":"Tablica A.2.","index":11,"n_rows":11,"n_cols":1,"rows_kept":11,"cut":false,"hidden":false,"merged":[]}
["90) UPISANI TEMELJNI KAPITAL bez premija na emitirane dionice"]
["      901) od toga, UPISANI TEMELJNI KAPITAL KOJI NIJE PLAĆEN"]
["91) PREMIJE NA EMITIRANE DIONICE"]
["92) REVALORIZACIJSKE PRIČUVE"]
["93) PRIČUVE (ZAKONSKE, STATUTARNE i OSTALE)"]
["94) ZADRŽANI DOBICI ILI PRENESENI GUBITAK"]
["95) NETO DOBIT (GUBITAK) TEKUĆE POSLOVNE GODINE"]
["   95a) Dobit ili gubitak tekuće poslovne godine koji je posljedica vrijednosnih usklađivanja (Vidi upute!)"]
["*OSTVARENA NETO DOBIT (GUBITAK) SAMO ZA IZVJEŠTAJNO RAZDOBLJE"]
["9) UKUPNI KAPITAL (suma 90 - 95)"]
["ZADRŽANA DOBIT (PRENESENI GUBICI)  POVEZANIH DRUŠTAVA IZ ŠIFRARNIKA D"]

{"sheet":"Tablica A.4.","index":12,"n_rows":5,"n_cols":1,"rows_kept":5,"cut":false,"hidden":false,"merged":[]}
["1. Mjesec stjecanja prava na dividendu"]
["2. Dobit (gubitak) prije oporezivanja                               "]
[" 2.a. Dobit (gubitak) prije oporezivanja kao posljedica vrijednosnih usklađivanja ( Vidi upute!) "]
["3. Dobit (gubitak) nakon oporezivanja"]
["4. Za raspodijeliti svim članovima (vlasnicima)     "]

{"sheet":"Tablica A.5.","index":13,"n_rows":2,"n_cols":4,"rows_kept":2,"cut":false,"hidden":false,"merged":[]}
["Šifra inozemnog ulagača iz Šifrarnika A","Mjesec","Isplaćena dividenda   /   udio u dobiti                                          (u tisućama eura)","Isplaćena zadržana dobit prethodnih godina                           (u tisućama eura)"]
["<SifraInozemnogUlagaca>","<Mjesec>","<IsplacenaDividendaUdioUDobiti>","<IsplacenaZadrzanaDobitPrethodnihGodina>"]

{"sheet":"Napomena","index":14,"n_rows":1,"n_cols":1,"rows_kept":1,"cut":false,"hidden":false,"merged":[[0,0,6,0],[0,1,6,1]]}
["Napomena                        upisati u jednom odlomku, bez tipe \"ENTER\""]

{"sheet":"Šifrarnik B.","index":15,"n_rows":3,"n_cols":8,"rows_kept":3,"cut":false,"hidden":false,"merged":[[0,0,0,1],[0,2,1,2],[0,3,1,3],[0,6,1,6],[0,7,1,7],[0,5,1,5],[0,4,1,4]]}
["Šifra inozemne pravne osobe",null,"Zemlja inozemne pravne osobe*","Postotak udjela u kapitalu* (%)","Vrsta identifikatora inozemne pravne osobe","Identifikator inozemne pravne osobe","Naziv i sjedište inozemne pravne osobe","Djelatnost inozemne pravne osobe"]
["Vrsta inozemnog ulaganja*","Broj inozemne pravne osobe              "]
["<VrstaInozemnogUlaganja>","<BrojInozemnePravneOsobe>","<ZemljaInozemnogVlasnika>","<PostotakUdjelaUVlasnistvu>",null,null,"<NazivISjedisteInozemnogVlasnika>","<DjelatnostInozemnogVlasnika>"]

{"sheet":"Šifrarnik B.B.","index":16,"n_rows":2,"n_cols":11,"rows_kept":2,"cut":false,"hidden":false,"merged":[]}
["Šifra inozemne pravne osobe","Razina1","Razina2","Razina3","Razina4","Razina5","Zemlja inozemne pravne osobe","Vrsta identifikatora inozemne pravne osobe","Identifikator inozemne pravne osobe","Naziv i sjedište inozemne pravne osobe","Postotak udjela u kapitalu (%)"]
["<SifraInozemnePravneOsobe>","<Nivo1>","<Nivo2>","<Nivo3>","<Nivo4>","<Nivo5>","<ZemljaInozemnePravneOsobe>",null,null,"<NazivISjedisteInozemnePravneOsobe>","<PostotakUdjelaUKapitalu>"]

{"sheet":"Tablica B.1.IZRAVNA ULAGANJA","index":17,"n_rows":5,"n_cols":18,"rows_kept":5,"cut":false,"hidden":false,"merged":[[2,10,3,10],[2,8,3,8],[1,17,3,17],[1,16,3,16],[0,0,0,1],[1,15,3,15],[1,2,3,2],[1,3,3,3],[1,0,2,1],[2,4,3,4],[2,5,3,5],[2,6,3,6],[2,7,3,7],[1,12,3,12],[1,13,3,13],[1,14,3,14],[1,4,1,7],[1,8,1,10],[1,11,3,11],[2,9,3,9]]}
[1,null,2,3,4,5,6,7,8,9,10,11,"11a","11b",12,13,14,15]
["Šifra inozemne pravne osobe",null,"ISIN","Početno stanje (isto kao stupac 11 prethodnog Q)","Promjene",null,null,null,"Prilagodbe",null,null,"Novo stanje - Ako ne postoji tržišna vrijednost, unosi se zbroj pozicija iz stupaca 11.a. i 11.b. (u tisućama eura)","Knjigovodstvena vrijednost dionica/udjela u kapitalu u vlasništvu izvještajnog subjekta (u tisućama eura)"," Knjigovodstveno stanje neraspodijeljene dobiti/gubitka koja na osnovi udjela u kapitalu pripada izvještajnom subjektu (u tisućama eura)","Stanje udjela u vlasništvu (%)","Naplaćena dividenda","Naplaćena ZD","Dobit/gubitak povezanih društava iz Šifrarnika B.B. (u tisućama eura)"]
[null,null,null,null,"Transakcija","Novoostvarena dobit/gubitak koja na osnovi udjela u vlasništvu pripada izvještajnom subjektu ","Potraživanja za izglasanu dividendu (koja pripada izvještajnom subjektu) ","Potraživanja za izglasanu isplatu zadržane dobiti (koja pripada izvještajnom subjektu)","Tečajna prilagodba","Cjenovna prilagodba","Prilagodba zbog reklasifikacije"]
["Vrsta inozemnog ulaganja","Broj inozemnog ulagača              "]
["<SifraInozemnePravneOsobe>","<BrojInozemnePravneOsobe>","<ISIN>","<PocetnoStanje>","<Transakcija>","<NoviDobitakGubitak","<IzglasanaDividenda>","<IzglasanaZadrzanaDobit>","<TecajnaPrilagodba>","<CjenovnaPrilagodba>","<PrilagodbaZbogReklasifikacije>","<NovoStanje>","<KnjigovodstvenaVrijednost>","<KnjigovodstvenoStanje>","<UdjeliUVlasnistvu>","<NaplacenaDividenda>","<NaplacenaZadrzanaDobit>"]

{"sheet":"Tablica B.1.OSTALA ULAGANJA","index":18,"n_rows":5,"n_cols":9,"rows_kept":5,"cut":false,"hidden":false,"merged":[[2,3,3,3],[2,4,3,4],[2,5,3,5],[2,6,3,6],[1,8,3,8],[1,4,1,6],[1,7,3,7],[1,2,3,2],[0,0,0,1],[1,0,1,1],[2,0,3,0],[2,1,3,1]]}
[1,null,2,3,4,5,6,7,8]
["Šifra inozemne pravne osobe - ostali ulagači (<10%)",null,"Početno stanje (isto kao stupac 10 prethodnog Q)","Promjena","Prilagodbe",null,null,"Novo stanje","Naplaćena dividenda"]
["Vrsta inozemnog ulaganja","Zemlja inozemnog ulagača",null,"Transakcija","Tečajna prilagodba","Cjenovna prilagodba","Prilagodba zbog reklasifikacije"]
[]
["<SifraInozemnePravneOsobe>","<ZemljaInozemnogUlagaca>","<PocetnoStanje>","<Transakcija>","<TecajnaPrilagodba>","<CjenovnaPrilagodba>","<PrilagodbaZbogReklasifikacije>","<NovoStanje>","<NaplacenaDividenda>"]

{"sheet":"B.2.1.Transakcije-izravna","index":19,"n_rows":3,"n_cols":6,"rows_kept":3,"cut":false,"hidden":false,"merged":[[0,3,1,3],[0,4,1,4],[0,5,1,5],[0,0,0,1],[0,2,1,2]]}
["Šifra inozemne pravne osobe",null,"Mjesec","Iznos","Način plaćanja","Ostvareni udio u vlasništvu (%)"]
["Vrsta inozemnog ulaganja","Broj inozemnog ulagača "]
["<SifraInozemnogUlagaca>","<BrojInozemnogUlagaca>","<Mjesec>","<Iznos>","<NacinPlacanja>","<OstvareniUdioUVlasnistvu>"]

{"sheet":"B.2.2.Transakcije-ostala","index":20,"n_rows":3,"n_cols":6,"rows_kept":3,"cut":false,"hidden":false,"merged":[[0,2,1,2],[0,3,1,3],[0,4,1,4],[0,5,1,5],[0,0,0,1]]}
["Šifra inozemne pravne osobe - ostali ulagači (<10%)",null,"Mjesec","Iznos","Način plaćanja","Ostvareni udio u vlasništvu (%)"]
["Vrsta inozemnog ulaganja*","Zemlja inozemne pravne osobe*"]
["<SIFRAINOZEMNEPRAVNEOSOBE>","<ZemljaInozemnePravneOsobe>","<Mjesec>","<Iznos>","<NacinPlacanja>","<OstvareniUdioUVlasnistvu>"]

{"sheet":"Tablica Dodatak A","index":21,"n_rows":2,"n_cols":11,"rows_kept":2,"cut":false,"hidden":false,"merged":[]}
["Poslovna Godina","Zemlja inozemne pravne osobe","Djelatnost (oznaka NACE)","Broj pravnih osoba ","Broj zaposlenih","Prodaja                      (u tisućama EUR)","Troškovi zaposlenika                 (u tisućama EUR)","Dodana vrijednost                  (u tisućama EUR)","Bruto investicije u materijalnu imovinu           (u tisućama EUR)","Izvoz proizvoda i usluga            (u tisućama EUR)","Uvoz proizvoda i usluga            (u tisućama EUR)"]
["<PoslovnaGodina>","<SifraZemlje>","<DjelatnostOznakaNACE>","<BrojPravnihOsoba>","<BrojZaposlenih>","<Prodaja>","<TroskoviZaposlenika>","<DodanaVrijednost>","<BrutoInvesticijeUMaterijalnuImovinu>","<IzvozProizvodaIUsluga>","<UvozProizvodaIUsluga>"]

{"sheet":"Kreiranje datoteke","index":22,"n_rows":38,"n_cols":8,"rows_kept":38,"cut":false,"hidden":false,"merged":[[8,4,8,5],[10,4,10,5],[6,4,6,5]]}
["UPUTA ZA DOSTAVU PODATAKA:"]
[]
["1. Omogućite izvođenje makro naredbi."]
[]
["2. Popunite tablice podacima."]
[]
["3. U narančasto polje upišite OIB:",null,null,null,null,null,null,"potvrdite unos tipkom <ENTER>"]
[]
["4. U žuto polje upišite godinu / odaberite razdoblje izvješća:"]
[]
["5. U plavo polje unesite koji put podnosite izvještaj:                                 "]
[]
["6. Pritisnite gumb 'Kreiraj XLM datoteku' za kreiranje XLM datoteke."]
[]
[]
[]
[]
[]
[]
[]
["7. Datoteka kreirana na lokaciji:"]
["\\\\hnb.local\\hnb\\Users03$\\iprgomet\\Desktop\\INUL-88035992407-IUT2-2026Q1-9-1.xml"]
[]
["8. Locirajte datoteku na navedenoj lokaciji"]
[]
["9. Provjerite naziv datoteke"]
[]
["10. Dogovorenim načinom dostavite XML datoteku"]
[]
[]
["NAPOMENA"]
["Kod nekih MS Excel verzija je nakon omogućavanja izvođenja makro naredbi datoteku potrebno zatvoriti (da se spreme postavke) te ponovo otvoriti."]
["Do opcija za postavljanje makro naredbi dolazi se putem padajućeg izbornika u MS Excel programu:"]
["Za starije verzije Ecela:"]
["hrv. verzija >> Alati > Odrednice... > Sigurnost > Sigurnost makro naredbe... > odaberite srednja ili niska"]
["eng. verzija >> Tools > Options... > Security > MacroSecurity... > odaberite Medium ili Low"]
["U novijim verzijama Excela: "]
["Datoteka>Mogućnosti>Centar za pouzdanost>Postavke centra za pouzdanost>Postavke makronaredbi> odabir \"Omogući sve makronaredbe\""]